Workbook

Sheet Sys (hidden)
A1: =PMBASIC+PMADVANCED -> 48
C3: Version Major: | D3: 2023 | E3: Minor: | F3: 416
C4: View Mode: | D4: 1
C5: Data Mode: | D5: FALSE
C6: Epoch Year: | D6: =1954 -> 1954
C7: Maximum Forecast Years: | D7: 80
C8: Maximum Extended Forecast Years: | D8: 100
H9: Shadow | I9: Default
C10: Parameter Mode: | H10: =IF(IF(COLUMN()=COLUMN(D10),TRUE,ISBLANK(D10)), I10, D10) -> Basic | I10: Basic
C11: Adjusted Date: | H11: =IF(IF(COLUMN()=COLUMN(D11),TRUE,ISBLANK(D11)), SP_CurrentDate, D11) -> 2023-04-15
C12: Adjust to system date: | H12: =IF(IF(COLUMN()=COLUMN(D12),TRUE,ISBLANK(D12)), I12, D12) -> TRUE | I12: TRUE
C13: Employer Income / Retirement Plans: | H13: FALSE | I13: FALSE
C14: Self-Employment Income / Retirement Plans: | H14: FALSE | I14: FALSE
C15: Passive Income / Individual Retirement Plans: | H15: FALSE | I15: FALSE
C16: Home / Mortgage: | H16: FALSE | I16: FALSE
C17: Social Security Retirement Insurance Benefits: | H17: FALSE | I17: FALSE
C19: Tax Index: | D19: =IF(NOT(INDEX(SC_ShowRetireatee,1)),0,1) -> 0 | E19: =IF(NOT(INDEX(SC_ShowRetireatee,2)),0,IF(SP_FilingStatus="Married Filing Jointly", 1, IF(SP_FilingStatus="Married Filing Separately",2,0))) -> 0
B21: Code | C21: Error Message
B22: 100
B23: 101 | C23: Date is in the past
B24: 102 | C24: Enter a valid date
B25: 103 | C25: Enter a valid number not equal to zero
B26: 104 | C26: Term needed (12 months or more)
B27: 105 | C27: Number outside of expected range
B28: 110 | C28: No filing age provided
B29: 111 | C29: No parameter provided
B30: 200 | C30: Enter a valid date
B31: 201 | C31: Enter a valid percentage
B32: 202 | C32: Enter a valid number
B33: 203 | C33: Error evaluating formula
B34: 204 | C34: Enter a valid percentage greater than zero
B35: 205 | C35: Enter a number greater than zero
B36: 206 | C36: Date is out of range
B37: 210 | C37: Invalid filing age
B38: 211 | C38: Only one auxiliary filing allowed
B39: 299 | C39: EOF

Sheet Main (hidden)
A1: =PMBASIC+PMADVANCED+VMONLINE+VMMACRO -> 54 | B1: =PMBASIC+PMADVANCED+VMONLINE+VMMACRO -> 54 | C1: =PMBASIC+PMADVANCED+VMONLINE+VMMACRO -> 54 | D1: =PMBASIC+PMADVANCED+IF(INDEX(SC_ShowRetireatee,2), VMONLINE+VMMACRO,0) -> 48 | E1: =PMBASIC+PMADVANCED -> 48 | F1: =PMBASIC+PMADVANCED -> 48 | G1: =PMBASIC+PMADVANCED -> 48 | H1: =PMBASIC+PMADVANCED -> 48 | I1: =PMBASIC+PMADVANCED+VMONLINE+VMMACRO -> 54 | J1: =PMBASIC+PMADVANCED+VMONLINE+VMMACRO -> 54 | K1: =PMBASIC+PMADVANCED -> 48 | L1: =PMBASIC+PMADVANCED -> 48 | M1: =PMBASIC+PMADVANCED+VMONLINE+VMMACRO -> 54 | N1: =PMBASIC+PMADVANCED+VMONLINE+VMMACRO -> 54
A2: =PMBASIC+PMADVANCED+VMONLINE+VMMACRO -> 54 | C2: Simulation Parameters | K2: Shadow | L2: Default
A3: =PMBASIC+PMADVANCED+VMONLINE+VMMACRO -> 54 | E3: FLT
A4: =PMBASIC+PMADVANCED+VMONLINE -> 50 | C4: Current Date: | E4: =IF(SC_ViewMode=VMWIPED,FALSE,IF(SC_ViewMode=VMDEBUG,TRUE,AND(MOD(INT($A4/POWER(2,LOG(SC_ParameterMode,2))),2)<>0,MOD(INT($A4/POWER(2,LOG(SC_ViewMode,2))),2)<>0))) -> FALSE | K4: =IF(IF(COLUMN()=COLUMN(I4),TRUE,ISBLANK(I4)), L4, I4) -> 2023-04-15 | L4: =MAX(MIN(TODAY(),DATE(SP_CurrentYear,12,31)),DATE(SP_CurrentYear,1,1)) -> 2023-04-15 | M4: =IF($E4, IF(ISERROR(DATEVALUE(TEXT(SP_CurrentDate,"mm/dd/yyyy"))),200,IF(SP_CurrentDate<DATE(YEAR(TODAY()),MONTH(TODAY()),1),101,0)),0) -> 0 | N4: =IFERROR(VLOOKUP(M4,IV_CodeTable,2,FALSE),"") -> 
A5: =PMBASIC+PMADVANCED+VMMACRO -> 52 | C5: Current Date: | E5: =IF(SC_ViewMode=VMWIPED,FALSE,IF(SC_ViewMode=VMDEBUG,TRUE,AND(MOD(INT($A5/POWER(2,LOG(SC_ParameterMode,2))),2)<>0,MOD(INT($A5/POWER(2,LOG(SC_ViewMode,2))),2)<>0))) -> FALSE | I5: =SP_CurrentDate -> 2023-04-15 | M5: =IF($E5, IF(ISERROR(DATEVALUE(TEXT(SP_CurrentDate,"mm/dd/yyyy"))),200,IF(SP_CurrentDate<DATE(YEAR(TODAY()),MONTH(TODAY()),1),101,0)),0) -> 0
A6: =PMBASIC+PMADVANCED -> 48 | C6: Current Date Prorate: | I6: =YEARFRAC(SP_CurrentDate, DATE(YEAR(SP_CurrentDate)+1,1,1)) -> 0.7111111111
A7: =PMBASIC+PMADVANCED -> 48 | C7: Current Year: | K7: =IF(IF(COLUMN()=COLUMN(I7),TRUE,ISBLANK(I7)), L7, I7) -> 2023 | L7: =YEAR(TODAY()) -> 2023
A8: =PMBASIC+PMADVANCED -> 48 | C8: Stop Year: | I8: =IFERROR(MAX(IF(INDEX(SC_ShowRetireatee,1),YEAR(INDEX(SP_BirthDate,1))+INDEX(SP_LifeExp,1)+1,SP_CurrentYear+1), IF(INDEX(SC_ShowRetireatee,2),YEAR(INDEX(SP_BirthDate,2))+INDEX(SP_LifeExp,2)+1),SP_CurrentYear+1),SP_CurrentYear+1) -> 2024
A9: =PMBASIC+PMADVANCED+VMONLINE -> 50 | C9: Retirement Date: | E9: =IF(SC_ViewMode=VMWIPED,FALSE,IF(SC_ViewMode=VMDEBUG,TRUE,AND(MOD(INT($A9/POWER(2,LOG(SC_ParameterMode,2))),2)<>0,MOD(INT($A9/POWER(2,LOG(SC_ViewMode,2))),2)<>0))) -> FALSE | K9: =IF(IF(COLUMN()=COLUMN(I9),TRUE,ISBLANK(I9)), L9, I9) -> 2024-01-01 | L9: =DATE(SC_YearStop,1,1) -> 2024-01-01 | M9: =IF($E9,IF(ISERROR(DATEVALUE(TEXT($K9,"mm/dd/yyyy"))),200,IF($K9>DATE(SC_YearStop,1,1),200,0)),0) -> 0
A10: =PMBASIC+PMADVANCED+VMMACRO -> 52 | C10: Retirement Date: | E10: =IF(SC_ViewMode=VMWIPED,FALSE,IF(SC_ViewMode=VMDEBUG,TRUE,AND(MOD(INT($A10/POWER(2,LOG(SC_ParameterMode,2))),2)<>0,MOD(INT($A10/POWER(2,LOG(SC_ViewMode,2))),2)<>0))) -> FALSE | I10: =SP_TargetRD -> 2024-01-01 | M10: =IF($E10,IF(ISERROR(DATEVALUE(TEXT(SP_TargetRD,"mm/dd/yyyy"))),200,IF(SP_TargetRD>DATE(SC_YearStop,1,1),200,0)),0) -> 0 | N10: =IFERROR(VLOOKUP(M10,IV_CodeTable,2,FALSE),"") -> 
A11: =PMBASIC+PMADVANCED+VMONLINE+VMMACRO -> 54 | C11: Default Wage Inflation: | K11: =IF(IF(COLUMN()=COLUMN(I11),TRUE,ISBLANK(I11)), L11, I11) -> 0.0375 | L11: 0.0375 | M11: =IFERROR(IF(OR(NOT(ISNUMBER($K11)),$K11<-1,$K11>1),201,0),203) -> 0
A12: =PMBASIC+PMADVANCED+VMONLINE+VMMACRO -> 54 | C12: Default Consumer Price Inflation: | K12: 0.0325 | L12: 0.0325 | M12: =IFERROR(IF(OR(NOT(ISNUMBER($K12)),$K12<-1,$K12>1),201,0),203) -> 0
A13: =PMBASIC+PMADVANCED+VMONLINE+VMMACRO -> 54 | C13: Default Annual Return on Stocks: | K13: 0.07 | L13: 0.07 | M13: =IFERROR(IF(OR(NOT(ISNUMBER($K13)),$K13<-1,$K13>1),201,0),203) -> 0 | N13: =IFERROR(VLOOKUP(M13,IV_CodeTable,2,FALSE),"") -> 
A14: =PMBASIC+PMADVANCED+VMONLINE+VMMACRO -> 54 | C14: Default Bond Yield: | K14: 0.05 | L14: 0.05 | M14: =IFERROR(IF(OR(NOT(ISNUMBER($K14)),$K14<0,$K14>1),201,0),203) -> 0 | N14: =IFERROR(VLOOKUP(M14,IV_CodeTable,2,FALSE),"") -> 
A15: =PMBASIC+PMADVANCED+VMONLINE+VMMACRO -> 54 | C15: Investment Strategy: | K15: Target Date Fund | L15: Target Date Fund
A16: =PMBASIC+PMADVANCED -> 48 | C16: Currency Mode: | K16: Nominal | L16: Nominal
A17: =PMBASIC+PMADVANCED+VMMACRO -> 52 | C17: Currency Mode: | I17: =SP_CurrencyMode -> Nominal
A18: =PMBASIC+PMADVANCED+VMONLINE+VMMACRO -> 54
A19: =PMBASIC+PMADVANCED+VMONLINE+VMMACRO -> 54 | C19: Detailed Household Profile | K19: Shadow | L19: Default
A20: =PMBASIC+PMADVANCED+VMONLINE+VMMACRO -> 54
A21: =PMBASIC+PMADVANCED+VMONLINE+VMMACRO -> 54 | C21: Marital Status: | K21: =IF(IF(COLUMN()=COLUMN(I21),TRUE,ISBLANK(I21)), $L21, I21) -> Single | L21: Single
A22: =PMBASIC+PMADVANCED+VMONLINE+VMMACRO -> 54 | C22: Filing Status: | K22: =IF(IF(COLUMN()=COLUMN(I22),TRUE,ISBLANK(I22)), $L22, I22) -> Single | L22: Single
A23: =PMBASIC+PMADVANCED+IF(INDEX(SC_ShowRetireatee,1), VMONLINE+VMMACRO,0) -> 48 | C23: Initials (Yourself): | K23: =IF(IF(COLUMN()=COLUMN(I23),TRUE,ISBLANK(I23)), "", I23) -> 
A24: =PMBASIC+PMADVANCED+IF(INDEX(SC_ShowRetireatee,2), VMONLINE+VMMACRO,0) -> 48 | C24: Initials (Spouse): | K24: =IF(IF(COLUMN()=COLUMN(I24),TRUE,ISBLANK(I24)), "", I24) -> 
A25: =PMBASIC+PMADVANCED+VMONLINE+VMMACRO -> 54 | C25: Core (Non-Retirement) Account Balance: | K25: =IF(IF(COLUMN()=COLUMN(I25),TRUE,ISBLANK(I25)),L25,I25) -> 0 | L25: 0 | M25: =IFERROR(IF(OR(NOT(ISNUMBER($K25)),$K25<0),202,0),203) -> 0
A26: =PMBASIC+PMADVANCED+VMONLINE+VMMACRO -> 54 | C26: Cost Basis: | K26: =IF(IF(COLUMN()=COLUMN(I26),TRUE,ISBLANK(I26)),L26,I26) -> 0 | L26: =IF(ISNUMBER(SP_CoreBalance),SP_CoreBalance,0) -> 0 | M26: =IFERROR(IF(OR(NOT(ISNUMBER($K26)),$K26<0),202,0),203) -> 0
A27: =PMADVANCED+VMONLINE+VMMACRO -> 38 | C27: Other Appreciating Assets: | K27: =IF(IF(COLUMN()=COLUMN(I27),TRUE,ISBLANK(I27)),L27,I27) -> 0 | L27: 0 | M27: =IFERROR(IF(OR(NOT(ISNUMBER($K27)),$K27<0),202,0),203) -> 0
A28: =PMBASIC+PMADVANCED+VMONLINE+VMMACRO -> 54 | C28: Additional Retirement Income: | J28: /year | K28: 0 | L28: 0 | M28: =IFERROR(IF(OR(NOT(ISNUMBER($K28)),$K28<0),202,0),203) -> 0
A29: =PMBASIC+PMADVANCED+VMONLINE+VMMACRO -> 54 | C29: State, Local, and Foreign Income Taxes: | K29: None | L29: None | M29: =IF($K29="None",111,0) -> 111 | N29: No parameter provided
A30: =PMADVANCED+VMONLINE+VMMACRO -> 38 | B30: Annuity | C30: Payment Terms: | K30: =IF(IF(COLUMN()=COLUMN(I30),TRUE,ISBLANK(I30)), L30, I30) -> Life | L30: Life
A31: 38 | C31: Payment Rate: | K31: Fixed | L31: Fixed
A32: 38 | C32: Inflation Adjusted: | K32: FALSE | L32: FALSE
A33: 38 | C33: Participation Rate: | K33: =IF(IF(COLUMN()=COLUMN(I33),TRUE,ISBLANK(I33)), L33, I33) -> 1 | L33: =IF(SP_AnnyRate="Indexed",0.75,1) -> 1 | M33: =IFERROR(IF(OR(NOT(ISNUMBER($K33)),$K33<=0,$K33>1),201,0),203) -> 0 | N33: =IFERROR(VLOOKUP(M33,IV_CodeTable,2,FALSE),"") -> 
A34: 38 | C34: Rate Ceiling: | K34: =IF(IF(COLUMN()=COLUMN(I34),TRUE,ISBLANK(I34)), L34, I34) -> 1 | L34: =IF(SP_AnnyRate="Indexed",0.07,1) -> 1 | M34: =IFERROR(IF(OR(NOT(ISNUMBER($K34)),$K34<=0,$K34>1),201,0),203) -> 0 | N34: =IFERROR(VLOOKUP(M34,IV_CodeTable,2,FALSE),"") -> 
A35: 38 | C35: Rate Floor: | K35: =IF(IF(COLUMN()=COLUMN(I35),TRUE,ISBLANK(I35)), L35, I35) -> 0 | L35: 0 | M35: =IFERROR(IF(OR(NOT(ISNUMBER($K35)),$K35<=-1,$K35>1),201,0),203) -> 0 | N35: =IFERROR(VLOOKUP(M35,IV_CodeTable,2,FALSE),"") -> 
A36: 38 | C36: Spread Fee: | J36: /year | K36: =IF(IF(COLUMN()=COLUMN(I36),TRUE,ISBLANK(I36)), L36, I36) -> 0.015 | L36: =IF(SP_AnnyRate="Variable",0.02,0.015) -> 0.015 | M36: =IFERROR(IF(OR(NOT(ISNUMBER($K36)),$K36<0,$K36>1),201,0),203) -> 0 | N36: =IFERROR(VLOOKUP(M36,IV_CodeTable,2,FALSE),"") -> 
A37: =PMADVANCED+IF(INDEX(SC_ShowRetireatee,2),VMONLINE+VMMACRO,0) -> 32 | C37: Survivor Benefit: | K37: FALSE | L37: =AND(INDEX(SC_ShowRetireatee,1),INDEX(SC_ShowRetireatee,2)) -> FALSE
A38: =PMADVANCED+VMONLINE+VMMACRO -> 38 | C38: Guaranteed Term: | J38: years | K38: 10 | L38: =IF(SP_AnnyTerms="Life",10,20) -> 10 | M38: =IF(AND($K$30="Period Certain",$K38=0),205,0) -> 0
A39: =PMBASIC+PMADVANCED+VMONLINE+VMMACRO -> 54 | C39: After-Tax Contribution: | J39: /year | K39: 0 | L39: 0 | M39: =IFERROR(IF(OR(NOT(ISNUMBER($K39)),$K39<0),202,0),203) -> 0 | N39: =IFERROR(VLOOKUP(M39,IV_CodeTable,2,FALSE),"") -> 
A40: =PMBASIC+PMADVANCED+VMONLINE+VMMACRO -> 54 | C40: Balance: | K40: =IF(IF(COLUMN()=COLUMN(I40),TRUE,ISBLANK(I40)), L40, I40) -> 0 | L40: 0 | M40: =IFERROR(IF(OR(NOT(ISNUMBER($K40)),$K40<0),202,0),203) -> 0 | N40: =IFERROR(VLOOKUP(M40,IV_CodeTable,2,FALSE),"") -> 
A41: =PMBASIC+PMADVANCED+VMONLINE+VMMACRO -> 54 | C41: Cost Basis: | K41: =IF(IF(COLUMN()=COLUMN(I41),TRUE,ISBLANK(I41)), L41, I41) -> 0 | L41: =$K$40 -> 0 | M41: =IFERROR(IF(OR(NOT(ISNUMBER($K41)),$K41<0),202,0),203) -> 0
A42: =PMBASIC+PMADVANCED+VMONLINE+VMMACRO -> 54 | C42: Nominal Rate of Return: | I42: =IFERROR(SUM(SC_ZA_AnnyROR*SC_ZA_AnnyWeight)/SUM(SC_ZA_AnnyWeight),0) -> 0
A43: =PMBASIC+PMADVANCED -> 48 | C43: Payment Prorate: | I43: =YEARFRAC(DATE(YEAR(SP_TargetRD),MONTH(SP_TargetRD)+IF(DAY(SP_TargetRD)=1, 0, 1),1),DATE(YEAR(SP_TargetRD)+1,1,1)) -> 1
A44: =PMBASIC+PMADVANCED+VMONLINE+VMMACRO -> 54 | C44: Debt Limit: | K44: 10000 | L44: 10000 | M44: =IFERROR(IF(OR(NOT(ISNUMBER($K44)),$K44<=0),202,0),203) -> 0
A45: 54 | C45: Current Debt: | K45: 0 | L45: 0 | M45: =IFERROR(IF(OR(NOT(ISNUMBER($K45)),$K45<0),202,IF($K45>$K44,105,0)),203) -> 0
A46: 54 | C46: Interest Rate: | K46: 0.05 | L46: =SP_BondYieldDef -> 0.05 | M46: =IFERROR(IF(OR(NOT(ISNUMBER($K46)),$K46<0,$K46>1),201,0),203) -> 0
A47: 54
A48: 54 | C48: Detailed Individual Profile(s) | K48: Shadow | L48: Default
A49: 54 | D49: RI | E49: FLT | F49: RN | G49: TN | H49: RO
A50: =PMBASIC+PMADVANCED -> 48 | C50: Show: | D50: =INDEX(SP_Initials,F50) ->  | E50: =IF(SC_ViewMode=VMWIPED,FALSE,IF(SC_ViewMode=VMDEBUG,TRUE,AND(MOD(INT($A50/POWER(2,LOG(SC_ParameterMode,2))),2)<>0,MOD(INT($A50/POWER(2,LOG(SC_ViewMode,2))),2)<>0))) -> FALSE | F50: =MOD(ROW()-ROW($F$50),2)+1 -> 1 | G50: =INDEX(SC_TaxIndex,$F50) -> 0 | H50: =MOD($F50,2)-($F50-1) -> 1 | I50: =INDEX(SP_Initials,$F50)<>"" -> FALSE
A51: =PMBASIC+PMADVANCED -> 48 | D51: =INDEX(SP_Initials,F51) ->  | E51: =IF(SC_ViewMode=VMWIPED,FALSE,IF(SC_ViewMode=VMDEBUG,TRUE,AND(MOD(INT($A51/POWER(2,LOG(SC_ParameterMode,2))),2)<>0,MOD(INT($A51/POWER(2,LOG(SC_ViewMode,2))),2)<>0))) -> FALSE | F51: =MOD(ROW()-ROW($F$50),2)+1 -> 2 | G51: 0 | H51: -1 | I51: =INDEX(SP_Initials,$F51)<>"" -> FALSE
A52: =PMBASIC+PMADVANCED+IF(INDEX(SC_ShowRetireatee,$F52), VMONLINE+VMMACRO,0) -> 48 | C52: Birth Date: | D52: =INDEX(SP_Initials,F52) ->  | E52: =IF(SC_ViewMode=VMWIPED,FALSE,IF(SC_ViewMode=VMDEBUG,TRUE,AND(MOD(INT($A52/POWER(2,LOG(SC_ParameterMode,2))),2)<>0,MOD(INT($A52/POWER(2,LOG(SC_ViewMode,2))),2)<>0))) -> FALSE | F52: 1 | G52: 0 | H52: 1 | K52: =IF(IF(COLUMN()=COLUMN(I52),TRUE,ISBLANK(I52)), "", I52) -> 
A53: 48 | E53: =IF(SC_ViewMode=VMWIPED,FALSE,IF(SC_ViewMode=VMDEBUG,TRUE,AND(MOD(INT($A53/POWER(2,LOG(SC_ParameterMode,2))),2)<>0,MOD(INT($A53/POWER(2,LOG(SC_ViewMode,2))),2)<>0))) -> FALSE | F53: 2 | G53: 0 | H53: -1 | K53: =IF(IF(COLUMN()=COLUMN(I53),TRUE,ISBLANK(I53)), "", I53) -> 
A54: 48 | C54: Start Work Age: | E54: =IF(SC_ViewMode=VMWIPED,FALSE,IF(SC_ViewMode=VMDEBUG,TRUE,AND(MOD(INT($A54/POWER(2,LOG(SC_ParameterMode,2))),2)<>0,MOD(INT($A54/POWER(2,LOG(SC_ViewMode,2))),2)<>0))) -> FALSE | F54: 1 | G54: 0 | H54: 1 | K54: =IF(IF(COLUMN()=COLUMN(I54),TRUE,ISBLANK(I54)), L54, I54) -> 18 | L54: 18
A55: 48 | E55: =IF(SC_ViewMode=VMWIPED,FALSE,IF(SC_ViewMode=VMDEBUG,TRUE,AND(MOD(INT($A55/POWER(2,LOG(SC_ParameterMode,2))),2)<>0,MOD(INT($A55/POWER(2,LOG(SC_ViewMode,2))),2)<>0))) -> FALSE | F55: 2 | G55: 0 | H55: -1 | K55: 18 | L55: 18
A56: 48 | C56: Life Expectancy: | E56: =IF(SC_ViewMode=VMWIPED,FALSE,IF(SC_ViewMode=VMDEBUG,TRUE,AND(MOD(INT($A56/POWER(2,LOG(SC_ParameterMode,2))),2)<>0,MOD(INT($A56/POWER(2,LOG(SC_ViewMode,2))),2)<>0))) -> FALSE | F56: 1 | G56: 0 | H56: 1 | K56: 92 | L56: 92
A57: 48 | E57: =IF(SC_ViewMode=VMWIPED,FALSE,IF(SC_ViewMode=VMDEBUG,TRUE,AND(MOD(INT($A57/POWER(2,LOG(SC_ParameterMode,2))),2)<>0,MOD(INT($A57/POWER(2,LOG(SC_ViewMode,2))),2)<>0))) -> FALSE | F57: 2 | G57: 0 | H57: -1 | K57: 92 | L57: 92
A58: =PMADVANCED+IF(AND(SP_SSRIB,INDEX(SC_ShowRetireatee,1),INDEX(SC_ShowRetireatee,2)), VMONLINE+VMMACRO, 0) -> 32 | C58: Surviving Age: | D58: =INDEX(SP_Initials,F58) ->  | E58: =IF(SC_ViewMode=VMWIPED,FALSE,IF(SC_ViewMode=VMDEBUG,TRUE,AND(MOD(INT($A58/POWER(2,LOG(SC_ParameterMode,2))),2)<>0,MOD(INT($A58/POWER(2,LOG(SC_ViewMode,2))),2)<>0))) -> FALSE | F58: =MOD(ROW()-ROW($F$50),2)+1 -> 1 | G58: =INDEX(SC_TaxIndex,$F58) -> 0 | H58: =MOD($F58,2)-($F58-1) -> 1 | I58: =IF(AND(INDEX(SC_ShowRetireatee,1),INDEX(SC_ShowRetireatee,2)),ROUND(YEAR(INDEX(SP_BirthDate,3-$F58))+INDEX(SP_LifeExp,3-$F58)+ROUNDUP(YEARFRAC(INDEX(SP_BirthDate,$F58), DATE(YEAR(INDEX(SP_BirthDate,$F58))+1,1,1)),1)-YEAR(INDEX(SP_BirthDate,$F58)),1),LT_AnnuityMaxAge+1) -> 121
A59: =PMADVANCED+IF(AND(SP_SSRIB,INDEX(SC_ShowRetireatee,1),INDEX(SC_ShowRetireatee,2)), VMONLINE+VMMACRO, 0) -> 32 | E59: =IF(SC_ViewMode=VMWIPED,FALSE,IF(SC_ViewMode=VMDEBUG,TRUE,AND(MOD(INT($A59/POWER(2,LOG(SC_ParameterMode,2))),2)<>0,MOD(INT($A59/POWER(2,LOG(SC_ViewMode,2))),2)<>0))) -> FALSE | F59: 2 | G59: =INDEX(SC_TaxIndex,$F59) -> 0 | H59: =MOD($F59,2)-($F59-1) -> -1 | I59: =IF(AND(INDEX(SC_ShowRetireatee,1),INDEX(SC_ShowRetireatee,2)),ROUND(YEAR(INDEX(SP_BirthDate,3-$F59))+INDEX(SP_LifeExp,3-$F59)+ROUNDUP(YEARFRAC(INDEX(SP_BirthDate,$F59), DATE(YEAR(INDEX(SP_BirthDate,$F59))+1,1,1)),1)-YEAR(INDEX(SP_BirthDate,$F59)),1),LT_AnnuityMaxAge+1) -> 121
A60: =PMBASIC+PMADVANCED+IF(INDEX(SC_ShowRetireatee,$F60), VMONLINE+VMMACRO,0) -> 48 | C60: Dependents: | E60: =IF(SC_ViewMode=VMWIPED,FALSE,IF(SC_ViewMode=VMDEBUG,TRUE,AND(MOD(INT($A60/POWER(2,LOG(SC_ParameterMode,2))),2)<>0,MOD(INT($A60/POWER(2,LOG(SC_ViewMode,2))),2)<>0))) -> FALSE | F60: 1 | G60: 0 | H60: 1 | K60: 0 | L60: 0 | M60: =IFERROR(IF($E60, IF(OR(NOT(ISNUMBER($K60)),$K60<0),202,0),0),203) -> 0
A61: =PMBASIC+PMADVANCED+IF(INDEX(SC_ShowRetireatee,$F61), VMONLINE+VMMACRO,0) -> 48 | E61: =IF(SC_ViewMode=VMWIPED,FALSE,IF(SC_ViewMode=VMDEBUG,TRUE,AND(MOD(INT($A61/POWER(2,LOG(SC_ParameterMode,2))),2)<>0,MOD(INT($A61/POWER(2,LOG(SC_ViewMode,2))),2)<>0))) -> FALSE | F61: 2 | G61: 0 | H61: -1 | K61: 0 | L61: 0 | M61: =IFERROR(IF($E61, IF(OR(NOT(ISNUMBER($K61)),$K61<0),202,0),0),203) -> 0
A62: =PMBASIC+PMADVANCED+IF(AND(SP_EI,INDEX(SC_ShowRetireatee,$F62)), VMONLINE+VMMACRO, 0) -> 48 | B62: Employer-Sponsored Retirement Plans | C62: Current Employer Income: | D62: =INDEX(SP_Initials,F62) ->  | E62: =IF(SC_ViewMode=VMWIPED,FALSE,IF(SC_ViewMode=VMDEBUG,TRUE,AND(MOD(INT($A62/POWER(2,LOG(SC_ParameterMode,2))),2)<>0,MOD(INT($A62/POWER(2,LOG(SC_ViewMode,2))),2)<>0))) -> FALSE | F62: =MOD(ROW()-ROW($F$50),2)+1 -> 1 | G62: 0 | H62: 1 | I62: =IF(SC_ViewMode=VMONLINE, INDEX(IV_IncomeEmployer,$F62),HYPERLINK(IV_WBNAME&ADDRESS(ROW(INDEX(IV_IncomeEmployer,$F62)),COLUMN(INDEX(IV_IncomeEmployer,$F62)),,,"Income"),INDEX(IV_IncomeEmployer,$F62))) -> 0
A63: =PMBASIC+PMADVANCED+IF(AND(SP_EI,INDEX(SC_ShowRetireatee,$F63)), VMONLINE+VMMACRO, 0) -> 48 | D63: =INDEX(SP_Initials,F63) ->  | E63: =IF(SC_ViewMode=VMWIPED,FALSE,IF(SC_ViewMode=VMDEBUG,TRUE,AND(MOD(INT($A63/POWER(2,LOG(SC_ParameterMode,2))),2)<>0,MOD(INT($A63/POWER(2,LOG(SC_ViewMode,2))),2)<>0))) -> FALSE | F63: 2 | G63: 0 | H63: -1 | I63: =IF(SC_ViewMode=VMONLINE, INDEX(IV_IncomeEmployer,$F63),HYPERLINK(IV_WBNAME&ADDRESS(ROW(INDEX(IV_IncomeEmployer,$F63)),COLUMN(INDEX(IV_IncomeEmployer,$F63)),,,"Income"),INDEX(IV_IncomeEmployer,$F63))) -> 0
A64: =PMBASIC+PMADVANCED+IF(AND(SP_EI,INDEX(SC_ShowRetireatee,$F64)), VMONLINE+VMMACRO, 0) -> 48 | C64: Default Annual Increase: | D64: =INDEX(SP_Initials,F64) ->  | E64: =IF(SC_ViewMode=VMWIPED,FALSE,IF(SC_ViewMode=VMDEBUG,TRUE,AND(MOD(INT($A64/POWER(2,LOG(SC_ParameterMode,2))),2)<>0,MOD(INT($A64/POWER(2,LOG(SC_ViewMode,2))),2)<>0))) -> FALSE | F64: 1 | G64: =INDEX(SC_TaxIndex,$F64) -> 0 | H64: =MOD($F64,2)-($F64-1) -> 1 | J64: + Wage Inflation | K64: =IF(IF(COLUMN()=COLUMN(I64),TRUE,ISBLANK(I64)), L64, I64) -> 0 | L64: 0 | M64: =IFERROR(IF($E64, IF(OR(NOT(ISNUMBER($K64)),$K64<-1,$K64>1),201,0), 0),203) -> 0 | N64: =IFERROR(VLOOKUP(M64,IV_CodeTable,2,FALSE),"") -> 
A65: =PMBASIC+PMADVANCED+IF(AND(SP_EI,INDEX(SC_ShowRetireatee,$F65)), VMONLINE+VMMACRO, 0) -> 48 | D65: =INDEX(SP_Initials,F65) ->  | E65: =IF(SC_ViewMode=VMWIPED,FALSE,IF(SC_ViewMode=VMDEBUG,TRUE,AND(MOD(INT($A65/POWER(2,LOG(SC_ParameterMode,2))),2)<>0,MOD(INT($A65/POWER(2,LOG(SC_ViewMode,2))),2)<>0))) -> FALSE | F65: 2 | G65: =INDEX(SC_TaxIndex,$F65) -> 0 | H65: =MOD($F65,2)-($F65-1) -> -1 | K65: =IF(IF(COLUMN()=COLUMN(I65),TRUE,ISBLANK(I65)), L65, I65) -> 0 | L65: 0 | M65: =IFERROR(IF($E65, IF(OR(NOT(ISNUMBER($K65)),$K65<-1,$K65>1),201,0), 0),203) -> 0 | N65: =IFERROR(VLOOKUP(M65,IV_CodeTable,2,FALSE),"") -> 
A66: =PMADVANCED+IF(AND(SP_EI,INDEX(SC_ShowRetireatee,$F66)), VMONLINE+VMMACRO, 0) -> 32 | C66: Defined Benefit (DB) Pension Start Work Date: | D66: =INDEX(SP_Initials,F66) ->  | E66: =IF(SC_ViewMode=VMWIPED,FALSE,IF(SC_ViewMode=VMDEBUG,TRUE,AND(MOD(INT($A66/POWER(2,LOG(SC_ParameterMode,2))),2)<>0,MOD(INT($A66/POWER(2,LOG(SC_ViewMode,2))),2)<>0))) -> FALSE | F66: 1 | G66: 0 | H66: 1 | K66: =IF(IF(COLUMN()=COLUMN(I66),TRUE,ISBLANK(I66)), L66, I66) ->  | L66: ="" ->  | M66: =IF($E66, IF($K66="",0,IF(ISERROR(DATEVALUE(TEXT($K66,"mm/dd/yyyy"))),200,0)), 0) -> 0
A67: 32 | E67: =IF(SC_ViewMode=VMWIPED,FALSE,IF(SC_ViewMode=VMDEBUG,TRUE,AND(MOD(INT($A67/POWER(2,LOG(SC_ParameterMode,2))),2)<>0,MOD(INT($A67/POWER(2,LOG(SC_ViewMode,2))),2)<>0))) -> FALSE | F67: 2 | G67: 0 | H67: -1 | K67: =IF(IF(COLUMN()=COLUMN(I67),TRUE,ISBLANK(I67)), L67, I67) ->  | L67: ="" ->  | M67: =IF($E67, IF($K67="",0,IF(ISERROR(DATEVALUE(TEXT($K67,"mm/dd/yyyy"))),200,0)), 0) -> 0
A68: 32 | C68: DB Pension Final Average Earnings (FAE) Years Used: | E68: =IF(SC_ViewMode=VMWIPED,FALSE,IF(SC_ViewMode=VMDEBUG,TRUE,AND(MOD(INT($A68/POWER(2,LOG(SC_ParameterMode,2))),2)<>0,MOD(INT($A68/POWER(2,LOG(SC_ViewMode,2))),2)<>0))) -> FALSE | F68: 1 | G68: 0 | H68: 1 | J68: years | K68: =IF(IF(COLUMN()=COLUMN(I68),TRUE,ISBLANK(I68)), L68, I68) -> 0 | L68: 0 | M68: =IFERROR(IF($E68, IF(OR(NOT(ISNUMBER($K68)),$K68<0),202,0),0),203) -> 0
A69: 32 | E69: =IF(SC_ViewMode=VMWIPED,FALSE,IF(SC_ViewMode=VMDEBUG,TRUE,AND(MOD(INT($A69/POWER(2,LOG(SC_ParameterMode,2))),2)<>0,MOD(INT($A69/POWER(2,LOG(SC_ViewMode,2))),2)<>0))) -> FALSE | F69: 2 | G69: 0 | H69: -1 | K69: 0 | L69: 0 | M69: =IFERROR(IF($E69, IF(OR(NOT(ISNUMBER($K69)),$K69<0),202,0),0),203) -> 0
A70: 32 | C70: DB Pension Benefit Percentage: | E70: =IF(SC_ViewMode=VMWIPED,FALSE,IF(SC_ViewMode=VMDEBUG,TRUE,AND(MOD(INT($A70/POWER(2,LOG(SC_ParameterMode,2))),2)<>0,MOD(INT($A70/POWER(2,LOG(SC_ViewMode,2))),2)<>0))) -> FALSE | F70: 1 | G70: 0 | H70: 1 | J70: of FAE | K70: 0 | L70: 0 | M70: =IFERROR(IF($E70, IF(OR(NOT(ISNUMBER($K70)),$K70<0,$K70>1),201,0), 0),203) -> 0
A71: 32 | E71: =IF(SC_ViewMode=VMWIPED,FALSE,IF(SC_ViewMode=VMDEBUG,TRUE,AND(MOD(INT($A71/POWER(2,LOG(SC_ParameterMode,2))),2)<>0,MOD(INT($A71/POWER(2,LOG(SC_ViewMode,2))),2)<>0))) -> FALSE | F71: 2 | G71: 0 | H71: -1 | K71: 0 | L71: 0 | M71: =IFERROR(IF($E71, IF(OR(NOT(ISNUMBER($K71)),$K71<0,$K71>1),201,0), 0),203) -> 0
A72: 32 | C72: DB Pension Payout Option: | D72: =INDEX(SP_Initials,F72) ->  | E72: =IF(SC_ViewMode=VMWIPED,FALSE,IF(SC_ViewMode=VMDEBUG,TRUE,AND(MOD(INT($A72/POWER(2,LOG(SC_ParameterMode,2))),2)<>0,MOD(INT($A72/POWER(2,LOG(SC_ViewMode,2))),2)<>0))) -> FALSE | F72: 1 | G72: 0 | H72: 1 | K72: =IF(IF(COLUMN()=COLUMN(I72),TRUE,ISBLANK(I72)), L72, I72) -> Annuity | L72: Annuity
A73: 32 | E73: =IF(SC_ViewMode=VMWIPED,FALSE,IF(SC_ViewMode=VMDEBUG,TRUE,AND(MOD(INT($A73/POWER(2,LOG(SC_ParameterMode,2))),2)<>0,MOD(INT($A73/POWER(2,LOG(SC_ViewMode,2))),2)<>0))) -> FALSE | F73: 2 | G73: 0 | H73: -1 | K73: Annuity | L73: Annuity
A74: =PMBASIC+PMADVANCED+IF(AND(SP_EI,INDEX(SC_ShowRetireatee,$F74)), VMONLINE+VMMACRO, 0) -> 48 | C74: Before-Tax Contribution (401(k)/403(b)/TSP): | E74: =IF(SC_ViewMode=VMWIPED,FALSE,IF(SC_ViewMode=VMDEBUG,TRUE,AND(MOD(INT($A74/POWER(2,LOG(SC_ParameterMode,2))),2)<>0,MOD(INT($A74/POWER(2,LOG(SC_ViewMode,2))),2)<>0))) -> FALSE | F74: 1 | G74: 0 | H74: 1 | J74: of Employer Income | K74: 0 | L74: 0 | M74: =IFERROR(IF($E74, IF(OR(NOT(ISNUMBER($K74)),$K74<0,$K74>1),201,0), 0),203) -> 0
A75: 48 | E75: =IF(SC_ViewMode=VMWIPED,FALSE,IF(SC_ViewMode=VMDEBUG,TRUE,AND(MOD(INT($A75/POWER(2,LOG(SC_ParameterMode,2))),2)<>0,MOD(INT($A75/POWER(2,LOG(SC_ViewMode,2))),2)<>0))) -> FALSE | F75: 2 | G75: 0 | H75: -1 | K75: 0 | L75: 0 | M75: =IFERROR(IF($E75, IF(OR(NOT(ISNUMBER($K75)),$K75<0,$K75>1),201,0), 0),203) -> 0
A76: 48 | C76: Before-Tax Balance: | E76: =IF(SC_ViewMode=VMWIPED,FALSE,IF(SC_ViewMode=VMDEBUG,TRUE,AND(MOD(INT($A76/POWER(2,LOG(SC_ParameterMode,2))),2)<>0,MOD(INT($A76/POWER(2,LOG(SC_ViewMode,2))),2)<>0))) -> FALSE | F76: 1 | G76: 0 | H76: 1 | K76: 0 | L76: 0 | M76: =IFERROR(IF($E76, IF(OR(NOT(ISNUMBER($K76)),$K76<0),202,0),0),203) -> 0
A77: 48 | E77: =IF(SC_ViewMode=VMWIPED,FALSE,IF(SC_ViewMode=VMDEBUG,TRUE,AND(MOD(INT($A77/POWER(2,LOG(SC_ParameterMode,2))),2)<>0,MOD(INT($A77/POWER(2,LOG(SC_ViewMode,2))),2)<>0))) -> FALSE | F77: 2 | G77: 0 | H77: -1 | K77: 0 | L77: 0 | M77: =IFERROR(IF($E77, IF(OR(NOT(ISNUMBER($K77)),$K77<0),202,0),0),203) -> 0
A78: 48 | C78: Company Match: | E78: =IF(SC_ViewMode=VMWIPED,FALSE,IF(SC_ViewMode=VMDEBUG,TRUE,AND(MOD(INT($A78/POWER(2,LOG(SC_ParameterMode,2))),2)<>0,MOD(INT($A78/POWER(2,LOG(SC_ViewMode,2))),2)<>0))) -> FALSE | F78: 1 | G78: 0 | H78: 1 | J78: of Employer Income | K78: 0 | L78: 0 | M78: =IFERROR(IF($E78, IF(OR(NOT(ISNUMBER($K78)),$K78<0,$K78>1),201,0), 0),203) -> 0
A79: 48 | E79: =IF(SC_ViewMode=VMWIPED,FALSE,IF(SC_ViewMode=VMDEBUG,TRUE,AND(MOD(INT($A79/POWER(2,LOG(SC_ParameterMode,2))),2)<>0,MOD(INT($A79/POWER(2,LOG(SC_ViewMode,2))),2)<>0))) -> FALSE | F79: 2 | G79: 0 | H79: -1 | K79: 0 | L79: 0 | M79: =IFERROR(IF($E79, IF(OR(NOT(ISNUMBER($K79)),$K79<0,$K79>1),201,0), 0),203) -> 0
A80: 48 | C80: After-Tax Contribution (Roth 401(k)/403(b)/TSP): | E80: =IF(SC_ViewMode=VMWIPED,FALSE,IF(SC_ViewMode=VMDEBUG,TRUE,AND(MOD(INT($A80/POWER(2,LOG(SC_ParameterMode,2))),2)<>0,MOD(INT($A80/POWER(2,LOG(SC_ViewMode,2))),2)<>0))) -> FALSE | F80: 1 | G80: 0 | H80: 1 | J80: of Employer Income | K80: 0 | L80: 0 | M80: =IFERROR(IF($E80, IF(OR(NOT(ISNUMBER($K80)),$K80<0,$K80>1),201,0), 0),203) -> 0
A81: 48 | E81: =IF(SC_ViewMode=VMWIPED,FALSE,IF(SC_ViewMode=VMDEBUG,TRUE,AND(MOD(INT($A81/POWER(2,LOG(SC_ParameterMode,2))),2)<>0,MOD(INT($A81/POWER(2,LOG(SC_ViewMode,2))),2)<>0))) -> FALSE | F81: 2 | G81: 0 | H81: -1 | K81: 0 | L81: 0 | M81: =IFERROR(IF($E81, IF(OR(NOT(ISNUMBER($K81)),$K81<0,$K81>1),201,0), 0),203) -> 0
A82: 48 | C82: After-Tax Balance: | E82: =IF(SC_ViewMode=VMWIPED,FALSE,IF(SC_ViewMode=VMDEBUG,TRUE,AND(MOD(INT($A82/POWER(2,LOG(SC_ParameterMode,2))),2)<>0,MOD(INT($A82/POWER(2,LOG(SC_ViewMode,2))),2)<>0))) -> FALSE | F82: 1 | G82: 0 | H82: 1 | K82: 0 | L82: 0 | M82: =IFERROR(IF($E82, IF(OR(NOT(ISNUMBER($K82)),$K82<0),202,0),0),203) -> 0
A83: 48 | E83: =IF(SC_ViewMode=VMWIPED,FALSE,IF(SC_ViewMode=VMDEBUG,TRUE,AND(MOD(INT($A83/POWER(2,LOG(SC_ParameterMode,2))),2)<>0,MOD(INT($A83/POWER(2,LOG(SC_ViewMode,2))),2)<>0))) -> FALSE | F83: 2 | G83: 0 | H83: -1 | K83: 0 | L83: 0 | M83: 0
A84: 48 | C84: After-Tax Cost Basis: | E84: =IF(SC_ViewMode=VMWIPED,FALSE,IF(SC_ViewMode=VMDEBUG,TRUE,AND(MOD(INT($A84/POWER(2,LOG(SC_ParameterMode,2))),2)<>0,MOD(INT($A84/POWER(2,LOG(SC_ViewMode,2))),2)<>0))) -> FALSE | F84: 1 | G84: 0 | H84: 1 | K84: 0 | L84: =IF($M82=0,$I82,0) -> 0 | M84: 0
A85: 48 | E85: =IF(SC_ViewMode=VMWIPED,FALSE,IF(SC_ViewMode=VMDEBUG,TRUE,AND(MOD(INT($A85/POWER(2,LOG(SC_ParameterMode,2))),2)<>0,MOD(INT($A85/POWER(2,LOG(SC_ViewMode,2))),2)<>0))) -> FALSE | F85: 2 | G85: 0 | H85: -1 | K85: 0 | L85: =IF($M83=0,$I83,0) -> 0 | M85: 0
A86: 48 | C86: Qualified Distribution Age: | E86: =IF(SC_ViewMode=VMWIPED,FALSE,IF(SC_ViewMode=VMDEBUG,TRUE,AND(MOD(INT($A86/POWER(2,LOG(SC_ParameterMode,2))),2)<>0,MOD(INT($A86/POWER(2,LOG(SC_ViewMode,2))),2)<>0))) -> FALSE | F86: 1 | G86: =INDEX(SC_TaxIndex,$F86) -> 0 | H86: =MOD($F86,2)-($F86-1) -> 1 | K86: 0 | L86: =IF($K52="",0,IF(SP_TargetRD < DATE(YEAR($K52)+55,MONTH($K52),DAY($K52)), 59.5, 55)) -> 0 | M86: 0
A87: 48 | E87: =IF(SC_ViewMode=VMWIPED,FALSE,IF(SC_ViewMode=VMDEBUG,TRUE,AND(MOD(INT($A87/POWER(2,LOG(SC_ParameterMode,2))),2)<>0,MOD(INT($A87/POWER(2,LOG(SC_ViewMode,2))),2)<>0))) -> FALSE | F87: 2 | G87: 0 | H87: -1 | K87: 0 | L87: =IF($K53="",0,IF(SP_TargetRD < DATE(YEAR($K53)+55,MONTH($K53),DAY($K53)), 59.5, 55)) -> 0 | M87: 0
A88: =PMBASIC+PMADVANCED+IF(AND(SP_SEI,INDEX(SC_ShowRetireatee,$F88)), VMONLINE+VMMACRO, 0) -> 48 | B88: Self-Employment Retirement Plans | C88: Current Self-Employment Income: | D88: =INDEX(SP_Initials,F88) ->  | E88: =IF(SC_ViewMode=VMWIPED,FALSE,IF(SC_ViewMode=VMDEBUG,TRUE,AND(MOD(INT($A88/POWER(2,LOG(SC_ParameterMode,2))),2)<>0,MOD(INT($A88/POWER(2,LOG(SC_ViewMode,2))),2)<>0))) -> FALSE | F88: =MOD(ROW()-ROW($F$50),2)+1 -> 1 | G88: 0 | H88: 1 | I88: =IF(SC_ViewMode=VMONLINE, INDEX(IV_IncomeSE,$F88), HYPERLINK(IV_WBNAME&ADDRESS(ROW(INDEX(IV_IncomeSE,$F88)),COLUMN(INDEX(IV_IncomeSE,$F88)),,,"Income"),INDEX(IV_IncomeSE,$F88))) -> 0
A89: 48 | D89: =INDEX(SP_Initials,F89) ->  | E89: =IF(SC_ViewMode=VMWIPED,FALSE,IF(SC_ViewMode=VMDEBUG,TRUE,AND(MOD(INT($A89/POWER(2,LOG(SC_ParameterMode,2))),2)<>0,MOD(INT($A89/POWER(2,LOG(SC_ViewMode,2))),2)<>0))) -> FALSE | F89: 2 | G89: 0 | H89: -1 | I89: =IF(SC_ViewMode=VMONLINE, INDEX(IV_IncomeSE,$F89), HYPERLINK(IV_WBNAME&ADDRESS(ROW(INDEX(IV_IncomeSE,$F89)),COLUMN(INDEX(IV_IncomeSE,$F89)),,,"Income"),INDEX(IV_IncomeSE,$F89))) -> 0
A90: 48 | C90: Default Annual Increase: | D90: =INDEX(SP_Initials,F90) ->  | E90: =IF(SC_ViewMode=VMWIPED,FALSE,IF(SC_ViewMode=VMDEBUG,TRUE,AND(MOD(INT($A90/POWER(2,LOG(SC_ParameterMode,2))),2)<>0,MOD(INT($A90/POWER(2,LOG(SC_ViewMode,2))),2)<>0))) -> FALSE | F90: 1 | G90: =INDEX(SC_TaxIndex,$F90) -> 0 | H90: =MOD($F90,2)-($F90-1) -> 1 | J90: + Wage Inflation | K90: =IF(IF(COLUMN()=COLUMN(I90),TRUE,ISBLANK(I90)), L90, I90) -> 0 | L90: 0 | M90: =IFERROR(IF($E90, IF(OR(NOT(ISNUMBER($K90)),$K90<-1,$K90>1),201,0), 0),203) -> 0 | N90: =IFERROR(VLOOKUP(M90,IV_CodeTable,2,FALSE),"") -> 
A91: 48 | D91: =INDEX(SP_Initials,F91) ->  | E91: =IF(SC_ViewMode=VMWIPED,FALSE,IF(SC_ViewMode=VMDEBUG,TRUE,AND(MOD(INT($A91/POWER(2,LOG(SC_ParameterMode,2))),2)<>0,MOD(INT($A91/POWER(2,LOG(SC_ViewMode,2))),2)<>0))) -> FALSE | F91: 2 | G91: =INDEX(SC_TaxIndex,$F91) -> 0 | H91: =MOD($F91,2)-($F91-1) -> -1 | K91: 0 | L91: 0 | M91: =IFERROR(IF($E91, IF(OR(NOT(ISNUMBER($K91)),$K91<-1,$K91>1),201,0), 0),203) -> 0 | N91: =IFERROR(VLOOKUP(M91,IV_CodeTable,2,FALSE),"") -> 
A92: 48 | C92: Before-Tax Contribution (SEP/SIMPLE/Solo 401(k)): | D92: =INDEX(SP_Initials,F92) ->  | E92: =IF(SC_ViewMode=VMWIPED,FALSE,IF(SC_ViewMode=VMDEBUG,TRUE,AND(MOD(INT($A92/POWER(2,LOG(SC_ParameterMode,2))),2)<>0,MOD(INT($A92/POWER(2,LOG(SC_ViewMode,2))),2)<>0))) -> FALSE | F92: 1 | G92: 0 | H92: 1 | J92: of Self-Employment Income | K92: 0 | L92: 0 | M92: =IFERROR(IF($E92, IF(OR(NOT(ISNUMBER($K92)),$K92<0,$K92>1),201,0), 0),203) -> 0 | N92: =IFERROR(VLOOKUP(M92,IV_CodeTable,2,FALSE),"") -> 
A93: 48 | E93: =IF(SC_ViewMode=VMWIPED,FALSE,IF(SC_ViewMode=VMDEBUG,TRUE,AND(MOD(INT($A93/POWER(2,LOG(SC_ParameterMode,2))),2)<>0,MOD(INT($A93/POWER(2,LOG(SC_ViewMode,2))),2)<>0))) -> FALSE | F93: 2 | G93: 0 | H93: -1 | K93: 0 | L93: 0 | M93: =IFERROR(IF($E93, IF(OR(NOT(ISNUMBER($K93)),$K93<0,$K93>1),201,0), 0),203) -> 0
A94: 48 | C94: Before-Tax Balance: | E94: =IF(SC_ViewMode=VMWIPED,FALSE,IF(SC_ViewMode=VMDEBUG,TRUE,AND(MOD(INT($A94/POWER(2,LOG(SC_ParameterMode,2))),2)<>0,MOD(INT($A94/POWER(2,LOG(SC_ViewMode,2))),2)<>0))) -> FALSE | F94: 1 | G94: 0 | H94: 1 | K94: 0 | L94: 0 | M94: =IFERROR(IF($E94, IF(OR(NOT(ISNUMBER($K94)),$K94<0),202,0),0),203) -> 0
A95: 48 | E95: =IF(SC_ViewMode=VMWIPED,FALSE,IF(SC_ViewMode=VMDEBUG,TRUE,AND(MOD(INT($A95/POWER(2,LOG(SC_ParameterMode,2))),2)<>0,MOD(INT($A95/POWER(2,LOG(SC_ViewMode,2))),2)<>0))) -> FALSE | F95: 2 | G95: 0 | H95: -1 | K95: 0 | L95: 0 | M95: =IFERROR(IF($E95, IF(OR(NOT(ISNUMBER($K95)),$K95<0),202,0),0),203) -> 0
A96: 48 | C96: Company Match: | E96: =IF(SC_ViewMode=VMWIPED,FALSE,IF(SC_ViewMode=VMDEBUG,TRUE,AND(MOD(INT($A96/POWER(2,LOG(SC_ParameterMode,2))),2)<>0,MOD(INT($A96/POWER(2,LOG(SC_ViewMode,2))),2)<>0))) -> FALSE | F96: 1 | G96: 0 | H96: 1 | J96: of Self-Employment Income | K96: 0 | L96: 0 | M96: =IFERROR(IF($E96, IF(OR(NOT(ISNUMBER($K96)),$K96<0,$K96>1),201,0), 0),203) -> 0
A97: 48 | E97: =IF(SC_ViewMode=VMWIPED,FALSE,IF(SC_ViewMode=VMDEBUG,TRUE,AND(MOD(INT($A97/POWER(2,LOG(SC_ParameterMode,2))),2)<>0,MOD(INT($A97/POWER(2,LOG(SC_ViewMode,2))),2)<>0))) -> FALSE | F97: 2 | G97: 0 | H97: -1 | K97: 0 | L97: 0 | M97: =IFERROR(IF($E97, IF(OR(NOT(ISNUMBER($K97)),$K97<0,$K97>1),201,0), 0),203) -> 0
A98: 48 | C98: After-Tax Contribution (Roth Solo 401(k)): | E98: =IF(SC_ViewMode=VMWIPED,FALSE,IF(SC_ViewMode=VMDEBUG,TRUE,AND(MOD(INT($A98/POWER(2,LOG(SC_ParameterMode,2))),2)<>0,MOD(INT($A98/POWER(2,LOG(SC_ViewMode,2))),2)<>0))) -> FALSE | F98: 1 | G98: 0 | H98: 1 | J98: of Self-Employment Income | K98: 0 | L98: 0 | M98: =IFERROR(IF($E98, IF(OR(NOT(ISNUMBER($K98)),$K98<0,$K98>1),201,0), 0),203) -> 0
A99: 48 | E99: =IF(SC_ViewMode=VMWIPED,FALSE,IF(SC_ViewMode=VMDEBUG,TRUE,AND(MOD(INT($A99/POWER(2,LOG(SC_ParameterMode,2))),2)<>0,MOD(INT($A99/POWER(2,LOG(SC_ViewMode,2))),2)<>0))) -> FALSE | F99: 2 | G99: 0 | H99: -1 | K99: 0 | L99: 0 | M99: =IFERROR(IF($E99, IF(OR(NOT(ISNUMBER($K99)),$K99<0,$K99>1),201,0), 0),203) -> 0
A100: 48 | C100: After-Tax Balance: | E100: =IF(SC_ViewMode=VMWIPED,FALSE,IF(SC_ViewMode=VMDEBUG,TRUE,AND(MOD(INT($A100/POWER(2,LOG(SC_ParameterMode,2))),2)<>0,MOD(INT($A100/POWER(2,LOG(SC_ViewMode,2))),2)<>0))) -> FALSE | F100: 1 | G100: 0 | H100: 1 | K100: 0 | L100: 0 | M100: =IFERROR(IF($E100, IF(OR(NOT(ISNUMBER($K100)),$K100<0),202,0),0),203) -> 0
A101: 48 | E101: =IF(SC_ViewMode=VMWIPED,FALSE,IF(SC_ViewMode=VMDEBUG,TRUE,AND(MOD(INT($A101/POWER(2,LOG(SC_ParameterMode,2))),2)<>0,MOD(INT($A101/POWER(2,LOG(SC_ViewMode,2))),2)<>0))) -> FALSE | F101: 2 | G101: 0 | H101: -1 | K101: 0 | L101: 0 | M101: 0
A102: 48 | C102: After-Tax Cost Basis: | E102: =IF(SC_ViewMode=VMWIPED,FALSE,IF(SC_ViewMode=VMDEBUG,TRUE,AND(MOD(INT($A102/POWER(2,LOG(SC_ParameterMode,2))),2)<>0,MOD(INT($A102/POWER(2,LOG(SC_ViewMode,2))),2)<>0))) -> FALSE | F102: 1 | G102: 0 | H102: 1 | K102: 0 | L102: =IF($M100=0,$I100,0) -> 0 | M102: 0
A103: 48 | E103: =IF(SC_ViewMode=VMWIPED,FALSE,IF(SC_ViewMode=VMDEBUG,TRUE,AND(MOD(INT($A103/POWER(2,LOG(SC_ParameterMode,2))),2)<>0,MOD(INT($A103/POWER(2,LOG(SC_ViewMode,2))),2)<>0))) -> FALSE | F103: 2 | G103: 0 | H103: -1 | K103: 0 | L103: =IF($M101=0,$I101,0) -> 0 | M103: 0
A104: 48 | C104: Qualified Distribution Age: | E104: =IF(SC_ViewMode=VMWIPED,FALSE,IF(SC_ViewMode=VMDEBUG,TRUE,AND(MOD(INT($A104/POWER(2,LOG(SC_ParameterMode,2))),2)<>0,MOD(INT($A104/POWER(2,LOG(SC_ViewMode,2))),2)<>0))) -> FALSE | F104: 1 | G104: 0 | H104: 1 | K104: 0 | L104: =IF($K52="",0,IF(SP_TargetRD < DATE(YEAR($K52)+55,MONTH($K52),DAY($K52)), 59.5, 55)) -> 0 | M104: 0
A105: 48 | E105: =IF(SC_ViewMode=VMWIPED,FALSE,IF(SC_ViewMode=VMDEBUG,TRUE,AND(MOD(INT($A105/POWER(2,LOG(SC_ParameterMode,2))),2)<>0,MOD(INT($A105/POWER(2,LOG(SC_ViewMode,2))),2)<>0))) -> FALSE | F105: 2 | G105: 0 | H105: -1 | K105: 0 | L105: =IF($K53="",0,IF(SP_TargetRD < DATE(YEAR($K53)+55,MONTH($K53),DAY($K53)), 59.5, 55)) -> 0 | M105: 0
A106: =PMBASIC+PMADVANCED+IF(AND(SP_PIIRP,INDEX(SC_ShowRetireatee,$F106)), VMONLINE+VMMACRO, 0) -> 48 | B106: Individual Retirement Plans | C106: Current Passive Income: | D106: =INDEX(SP_Initials,F106) ->  | E106: =IF(SC_ViewMode=VMWIPED,FALSE,IF(SC_ViewMode=VMDEBUG,TRUE,AND(MOD(INT($A106/POWER(2,LOG(SC_ParameterMode,2))),2)<>0,MOD(INT($A106/POWER(2,LOG(SC_ViewMode,2))),2)<>0))) -> FALSE | F106: =MOD(ROW()-ROW($F$50),2)+1 -> 1 | G106: 0 | H106: 1 | I106: =IF(SC_ViewMode=VMONLINE, INDEX(IV_IncomePassive,$F106), HYPERLINK(IV_WBNAME&ADDRESS(ROW(INDEX(IV_IncomePassive,$F106)),COLUMN(INDEX(IV_IncomePassive,$F106)),,,"Income"),INDEX(IV_IncomePassive,$F106))) -> 0
A107: 48 | D107: =INDEX(SP_Initials,F107) ->  | E107: =IF(SC_ViewMode=VMWIPED,FALSE,IF(SC_ViewMode=VMDEBUG,TRUE,AND(MOD(INT($A107/POWER(2,LOG(SC_ParameterMode,2))),2)<>0,MOD(INT($A107/POWER(2,LOG(SC_ViewMode,2))),2)<>0))) -> FALSE | F107: 2 | G107: 0 | H107: -1 | I107: =IF(SC_ViewMode=VMONLINE, INDEX(IV_IncomePassive,$F107), HYPERLINK(IV_WBNAME&ADDRESS(ROW(INDEX(IV_IncomePassive,$F107)),COLUMN(INDEX(IV_IncomePassive,$F107)),,,"Income"),INDEX(IV_IncomePassive,$F107))) -> 0
A108: 48 | C108: Default Annual Increase: | D108: =INDEX(SP_Initials,F108) ->  | E108: =IF(SC_ViewMode=VMWIPED,FALSE,IF(SC_ViewMode=VMDEBUG,TRUE,AND(MOD(INT($A108/POWER(2,LOG(SC_ParameterMode,2))),2)<>0,MOD(INT($A108/POWER(2,LOG(SC_ViewMode,2))),2)<>0))) -> FALSE | F108: 1 | G108: =INDEX(SC_TaxIndex,$F108) -> 0 | H108: =MOD($F108,2)-($F108-1) -> 1 | J108: + Price Inflation | K108: =IF(IF(COLUMN()=COLUMN(I108),TRUE,ISBLANK(I108)), L108, I108) -> 0 | L108: 0 | M108: =IFERROR(IF($E108, IF(OR(NOT(ISNUMBER($K108)),$K108<0,$K108>1),201,0), 0),203) -> 0 | N108: =IFERROR(VLOOKUP(M108,IV_CodeTable,2,FALSE),"") -> 
A109: 48 | E109: =IF(SC_ViewMode=VMWIPED,FALSE,IF(SC_ViewMode=VMDEBUG,TRUE,AND(MOD(INT($A109/POWER(2,LOG(SC_ParameterMode,2))),2)<>0,MOD(INT($A109/POWER(2,LOG(SC_ViewMode,2))),2)<>0))) -> FALSE | F109: 2 | G109: =INDEX(SC_TaxIndex,$F109) -> 0 | H109: =MOD($F109,2)-($F109-1) -> -1 | K109: 0 | L109: 0 | M109: =IFERROR(IF($E109, IF(OR(NOT(ISNUMBER($K109)),$K109<0,$K109>1),201,0), 0),203) -> 0 | N109: =IFERROR(VLOOKUP(M109,IV_CodeTable,2,FALSE),"") -> 
A110: 48 | C110: Before-Tax Contribution (Traditional IRA): | E110: =IF(SC_ViewMode=VMWIPED,FALSE,IF(SC_ViewMode=VMDEBUG,TRUE,AND(MOD(INT($A110/POWER(2,LOG(SC_ParameterMode,2))),2)<>0,MOD(INT($A110/POWER(2,LOG(SC_ViewMode,2))),2)<>0))) -> FALSE | F110: 1 | G110: 0 | H110: 1 | J110: /year | K110: 0 | L110: 0 | M110: =IFERROR(IF($E110, IF(OR(NOT(ISNUMBER($K110)),$K110<0),202,0),0),203) -> 0
A111: 48 | E111: =IF(SC_ViewMode=VMWIPED,FALSE,IF(SC_ViewMode=VMDEBUG,TRUE,AND(MOD(INT($A111/POWER(2,LOG(SC_ParameterMode,2))),2)<>0,MOD(INT($A111/POWER(2,LOG(SC_ViewMode,2))),2)<>0))) -> FALSE | F111: 2 | G111: 0 | H111: -1 | K111: 0 | L111: 0 | M111: 0
A112: =PMADVANCED+IF(AND(SP_PIIRP,INDEX(SC_ShowRetireatee,1),INDEX(SC_ShowRetireatee,2)), VMONLINE+VMMACRO, 0) -> 32 | C112: Before-Tax Contribution (Spousal IRA): | E112: =IF(SC_ViewMode=VMWIPED,FALSE,IF(SC_ViewMode=VMDEBUG,TRUE,AND(MOD(INT($A112/POWER(2,LOG(SC_ParameterMode,2))),2)<>0,MOD(INT($A112/POWER(2,LOG(SC_ViewMode,2))),2)<>0))) -> FALSE | F112: 1 | G112: 0 | H112: 1 | J112: /year | K112: 0 | L112: 0 | M112: 0
A113: =PMADVANCED+IF(AND(SP_PIIRP,INDEX(SC_ShowRetireatee,1),INDEX(SC_ShowRetireatee,2)), VMONLINE+VMMACRO, 0) -> 32 | E113: =IF(SC_ViewMode=VMWIPED,FALSE,IF(SC_ViewMode=VMDEBUG,TRUE,AND(MOD(INT($A113/POWER(2,LOG(SC_ParameterMode,2))),2)<>0,MOD(INT($A113/POWER(2,LOG(SC_ViewMode,2))),2)<>0))) -> FALSE | F113: 2 | G113: 0 | H113: -1 | K113: 0 | L113: 0 | M113: 0
A114: =PMBASIC+PMADVANCED+IF(AND(SP_PIIRP,INDEX(SC_ShowRetireatee,$F114)), VMONLINE+VMMACRO, 0) -> 48 | C114: Before-Tax Balance: | E114: =IF(SC_ViewMode=VMWIPED,FALSE,IF(SC_ViewMode=VMDEBUG,TRUE,AND(MOD(INT($A114/POWER(2,LOG(SC_ParameterMode,2))),2)<>0,MOD(INT($A114/POWER(2,LOG(SC_ViewMode,2))),2)<>0))) -> FALSE | F114: 1 | G114: 0 | H114: 1 | K114: 0 | L114: 0 | M114: 0
A115: 48 | E115: =IF(SC_ViewMode=VMWIPED,FALSE,IF(SC_ViewMode=VMDEBUG,TRUE,AND(MOD(INT($A115/POWER(2,LOG(SC_ParameterMode,2))),2)<>0,MOD(INT($A115/POWER(2,LOG(SC_ViewMode,2))),2)<>0))) -> FALSE | F115: 2 | G115: 0 | H115: -1 | K115: 0 | L115: 0 | M115: 0
A116: 48 | C116: After-Tax Contribution (Roth IRA): | E116: =IF(SC_ViewMode=VMWIPED,FALSE,IF(SC_ViewMode=VMDEBUG,TRUE,AND(MOD(INT($A116/POWER(2,LOG(SC_ParameterMode,2))),2)<>0,MOD(INT($A116/POWER(2,LOG(SC_ViewMode,2))),2)<>0))) -> FALSE | F116: 1 | G116: =INDEX(SC_TaxIndex,$F116) -> 0 | H116: =MOD($F116,2)-($F116-1) -> 1 | J116: /year | K116: 0 | L116: 0 | M116: 0
A117: 48 | E117: =IF(SC_ViewMode=VMWIPED,FALSE,IF(SC_ViewMode=VMDEBUG,TRUE,AND(MOD(INT($A117/POWER(2,LOG(SC_ParameterMode,2))),2)<>0,MOD(INT($A117/POWER(2,LOG(SC_ViewMode,2))),2)<>0))) -> FALSE | F117: 2 | G117: 0 | H117: -1 | K117: 0 | L117: 0 | M117: 0
A118: 48 | C118: After-Tax Balance: | E118: =IF(SC_ViewMode=VMWIPED,FALSE,IF(SC_ViewMode=VMDEBUG,TRUE,AND(MOD(INT($A118/POWER(2,LOG(SC_ParameterMode,2))),2)<>0,MOD(INT($A118/POWER(2,LOG(SC_ViewMode,2))),2)<>0))) -> FALSE | F118: 1 | G118: 0 | H118: 1 | K118: 0 | L118: 0 | M118: 0
A119: 48 | E119: =IF(SC_ViewMode=VMWIPED,FALSE,IF(SC_ViewMode=VMDEBUG,TRUE,AND(MOD(INT($A119/POWER(2,LOG(SC_ParameterMode,2))),2)<>0,MOD(INT($A119/POWER(2,LOG(SC_ViewMode,2))),2)<>0))) -> FALSE | F119: 2 | G119: 0 | H119: -1 | K119: 0 | L119: 0 | M119: 0
A120: 48 | C120: After-Tax Cost Basis: | E120: =IF(SC_ViewMode=VMWIPED,FALSE,IF(SC_ViewMode=VMDEBUG,TRUE,AND(MOD(INT($A120/POWER(2,LOG(SC_ParameterMode,2))),2)<>0,MOD(INT($A120/POWER(2,LOG(SC_ViewMode,2))),2)<>0))) -> FALSE | F120: 1 | G120: 0 | H120: 1 | K120: 0 | L120: =IF($M118=0,$I118,0) -> 0 | M120: 0
A121: 48 | E121: =IF(SC_ViewMode=VMWIPED,FALSE,IF(SC_ViewMode=VMDEBUG,TRUE,AND(MOD(INT($A121/POWER(2,LOG(SC_ParameterMode,2))),2)<>0,MOD(INT($A121/POWER(2,LOG(SC_ViewMode,2))),2)<>0))) -> FALSE | F121: 2 | G121: 0 | H121: -1 | K121: 0 | L121: =IF($M119=0,$I119,0) -> 0 | M121: 0
A122: 48 | C122: Qualified Distribution Age: | E122: =IF(SC_ViewMode=VMWIPED,FALSE,IF(SC_ViewMode=VMDEBUG,TRUE,AND(MOD(INT($A122/POWER(2,LOG(SC_ParameterMode,2))),2)<>0,MOD(INT($A122/POWER(2,LOG(SC_ViewMode,2))),2)<>0))) -> FALSE | F122: 1 | G122: 0 | H122: 1 | K122: 59.5 | L122: 59.5 | M122: 0
A123: 48 | E123: =IF(SC_ViewMode=VMWIPED,FALSE,IF(SC_ViewMode=VMDEBUG,TRUE,AND(MOD(INT($A123/POWER(2,LOG(SC_ParameterMode,2))),2)<>0,MOD(INT($A123/POWER(2,LOG(SC_ViewMode,2))),2)<>0))) -> FALSE | F123: 2 | G123: 0 | H123: -1 | K123: 59.5 | L123: 59.5 | M123: 0
A124: =PMBASIC+PMADVANCED+IF(AND(SP_SSRIB,INDEX(SC_ShowRetireatee,$F124)), VMONLINE+VMMACRO, 0) -> 48 | B124: Social Security Retirement Insurance Benefits (RIB) | C124: Primary Benefits Filing Age: | E124: =IF(SC_ViewMode=VMWIPED,FALSE,IF(SC_ViewMode=VMDEBUG,TRUE,AND(MOD(INT($A124/POWER(2,LOG(SC_ParameterMode,2))),2)<>0,MOD(INT($A124/POWER(2,LOG(SC_ViewMode,2))),2)<>0))) -> FALSE | F124: 1 | G124: 0 | H124: 1 | J124: =IF($K124="",0,EDATE(DATE(YEAR(INDEX(SP_BirthDate,$F124)-1),MONTH(INDEX(SP_BirthDate,$F124)-1),1),ROUND($I124*12,0))) -> 00:00:00 | K124: =IF(IF(COLUMN()=COLUMN(I124),TRUE,ISBLANK(I124)), L124, I124) ->  | L124: ="" ->  | M124: =IFERROR(IF($E124, IF($K124="",110,IF(OR(NOT(ISNUMBER($I124)),$I124<IF(DAY(INDEX(SP_BirthDate,$F124))=2,62,62+1/12),$I124>LT_AnnuityMaxAge),210,0)), 0),203) -> 0
A125: =PMBASIC+PMADVANCED+IF(AND(SP_SSRIB,INDEX(SC_ShowRetireatee,$F125)), VMONLINE+VMMACRO, 0) -> 48 | E125: =IF(SC_ViewMode=VMWIPED,FALSE,IF(SC_ViewMode=VMDEBUG,TRUE,AND(MOD(INT($A125/POWER(2,LOG(SC_ParameterMode,2))),2)<>0,MOD(INT($A125/POWER(2,LOG(SC_ViewMode,2))),2)<>0))) -> FALSE | F125: 2 | G125: 0 | H125: -1 | J125: =IF($K125="",0,EDATE(DATE(YEAR(INDEX(SP_BirthDate,$F125)-1),MONTH(INDEX(SP_BirthDate,$F125)-1),1),ROUND($I125*12,0))) -> 00:00:00 | K125: =IF(IF(COLUMN()=COLUMN(I125),TRUE,ISBLANK(I125)), L125, I125) ->  | L125: ="" ->  | M125: =IFERROR(IF($E125, IF($K125="",110,IF(OR(NOT(ISNUMBER($I125)),$I125<IF(DAY(INDEX(SP_BirthDate,$F125))=2,62,62+1/12),$I125>LT_AnnuityMaxAge),210,0)), 0),203) -> 0
A126: =PMADVANCED+IF(AND(SP_SSRIB,INDEX(SC_ShowRetireatee,$F126),INDEX(SC_ShowRetireatee,$F126+$H126)), VMONLINE+VMMACRO, 0) -> 32 | C126: Auxiliary/Survivor Benefits Filing Age: | E126: =IF(SC_ViewMode=VMWIPED,FALSE,IF(SC_ViewMode=VMDEBUG,TRUE,AND(MOD(INT($A126/POWER(2,LOG(SC_ParameterMode,2))),2)<>0,MOD(INT($A126/POWER(2,LOG(SC_ViewMode,2))),2)<>0))) -> FALSE | F126: 1 | G126: 0 | H126: 1 | J126: =IF($K126="",0,EDATE(DATE(YEAR(INDEX(SP_BirthDate,$F126)-1),MONTH(INDEX(SP_BirthDate,$F126)-1),1),ROUND($I126*12,0))) -> 00:00:00 | L126: ="" ->  | M126: =IFERROR(IF($E126, IF($K126="",0,IF(OR(NOT(ISNUMBER($I126)),$K126<$I128,$K126>INDEX(SP_LifeExp,$F126)),210,IF(INDEX(SP_SSABFA,$F126+$H126)="",0,211))), 0),203) -> 0
A127: =PMADVANCED+IF(AND(SP_SSRIB,INDEX(SC_ShowRetireatee,$F127),INDEX(SC_ShowRetireatee,$F127+$H127)), VMONLINE+VMMACRO, 0) -> 32 | E127: =IF(SC_ViewMode=VMWIPED,FALSE,IF(SC_ViewMode=VMDEBUG,TRUE,AND(MOD(INT($A127/POWER(2,LOG(SC_ParameterMode,2))),2)<>0,MOD(INT($A127/POWER(2,LOG(SC_ViewMode,2))),2)<>0))) -> FALSE | F127: 2 | G127: 0 | H127: -1 | J127: =IF($K127="",0,EDATE(DATE(YEAR(INDEX(SP_BirthDate,$F127)-1),MONTH(INDEX(SP_BirthDate,$F127)-1),1),ROUND($I127*12,0))) -> 00:00:00 | L127: ="" ->  | M127: =IFERROR(IF($E127, IF($K127="",0,IF(OR(NOT(ISNUMBER($I127)),$K127<$I129,$K127>INDEX(SP_LifeExp,$F127)),210,IF(INDEX(SP_SSABFA,$F127+$H127)="",0,211))), 0),203) -> 0
A128: =PMADVANCED -> 32 | C128: Dually Entitled Age: | D128: =INDEX(SP_Initials,F128) ->  | E128: =IF(SC_ViewMode=VMWIPED,FALSE,IF(SC_ViewMode=VMDEBUG,TRUE,AND(MOD(INT($A128/POWER(2,LOG(SC_ParameterMode,2))),2)<>0,MOD(INT($A128/POWER(2,LOG(SC_ViewMode,2))),2)<>0))) -> FALSE | F128: 1 | G128: 0 | H128: 1 | I128: =IF(INDEX(SC_ShowRetireatee,$F128),MIN(IF(INDEX(SC_SSPBFD,3-$F130)=0,LT_AnnuityMaxAge+1,MAX(IF(DAY(INDEX(SP_BirthDate,$F128))=2,62,62+1/12),ROUNDUP(YEARFRAC(INDEX(SP_BirthDate,$F130),INDEX(SC_SSPBFD,3-$F130)),1))),MAX($I58,60)),0) -> 0
A129: =PMADVANCED -> 32 | E129: =IF(SC_ViewMode=VMWIPED,FALSE,IF(SC_ViewMode=VMDEBUG,TRUE,AND(MOD(INT($A129/POWER(2,LOG(SC_ParameterMode,2))),2)<>0,MOD(INT($A129/POWER(2,LOG(SC_ViewMode,2))),2)<>0))) -> FALSE | F129: 2 | G129: 0 | H129: -1 | I129: =IF(INDEX(SC_ShowRetireatee,$F129),MIN(IF(INDEX(SC_SSPBFD,3-$F131)=0,LT_AnnuityMaxAge+1,MAX(IF(DAY(INDEX(SP_BirthDate,$F129))=2,62,62+1/12),ROUNDUP(YEARFRAC(INDEX(SP_BirthDate,$F131),INDEX(SC_SSPBFD,3-$F131)),1))),MAX($I59,60)),0) -> 0
A130: =PMBASIC+PMADVANCED -> 48 | C130: Base Year: | E130: =IF(SC_ViewMode=VMWIPED,FALSE,IF(SC_ViewMode=VMDEBUG,TRUE,AND(MOD(INT($A130/POWER(2,LOG(SC_ParameterMode,2))),2)<>0,MOD(INT($A130/POWER(2,LOG(SC_ViewMode,2))),2)<>0))) -> FALSE | F130: 1 | G130: 0 | H130: 1 | I130: =IF(INDEX(SC_ShowRetireatee,$F130),YEAR($K52-1)+60,0) -> 0
A131: =PMBASIC+PMADVANCED -> 48 | E131: =IF(SC_ViewMode=VMWIPED,FALSE,IF(SC_ViewMode=VMDEBUG,TRUE,AND(MOD(INT($A131/POWER(2,LOG(SC_ParameterMode,2))),2)<>0,MOD(INT($A131/POWER(2,LOG(SC_ViewMode,2))),2)<>0))) -> FALSE | F131: 2 | G131: 0 | H131: -1 | I131: =IF(INDEX(SC_ShowRetireatee,$F131),YEAR($K53-1)+60,0) -> 0
A132: =PMBASIC+PMADVANCED+IF(AND(SP_SSRIB,INDEX(SC_ShowRetireatee,$F132)), VMONLINE+VMMACRO, 0) -> 48 | C132: Full Retirement Age: | E132: =IF(SC_ViewMode=VMWIPED,FALSE,IF(SC_ViewMode=VMDEBUG,TRUE,AND(MOD(INT($A132/POWER(2,LOG(SC_ParameterMode,2))),2)<>0,MOD(INT($A132/POWER(2,LOG(SC_ViewMode,2))),2)<>0))) -> FALSE | F132: 1 | G132: 0 | H132: 1 | I132: =IF(INDEX(SC_ShowRetireatee,$F132),IF(YEAR($K52-1)<1937,65,IF(YEAR($K52-1)<1943,65+((YEAR($K52-1)-1937)/6),IF(YEAR($K52-1)<1954, 66, IF(YEAR($K52-1)<1960,66+((YEAR($K52-1)-1954)/6), 67)))),0) -> 0 | J132: =IF($I132=0,0,EDATE(DATE(YEAR(INDEX(SP_BirthDate,$F132)-1),MONTH(INDEX(SP_BirthDate,$F132)-1),1),ROUND($I132*12,0))) -> 00:00:00
A133: =PMBASIC+PMADVANCED+IF(AND(SP_SSRIB,INDEX(SC_ShowRetireatee,$F133)), VMONLINE+VMMACRO, 0) -> 48 | E133: =IF(SC_ViewMode=VMWIPED,FALSE,IF(SC_ViewMode=VMDEBUG,TRUE,AND(MOD(INT($A133/POWER(2,LOG(SC_ParameterMode,2))),2)<>0,MOD(INT($A133/POWER(2,LOG(SC_ViewMode,2))),2)<>0))) -> FALSE | F133: 2 | G133: 0 | H133: -1 | I133: =IF(INDEX(SC_ShowRetireatee,$F133),IF(YEAR($K53-1)<1937,65,IF(YEAR($K53-1)<1943,65+((YEAR($K53-1)-1937)/6),IF(YEAR($K53-1)<1954, 66, IF(YEAR($K53-1)<1960,66+((YEAR($K53-1)-1954)/6), 67)))),0) -> 0 | J133: =IF($I133=0,0,EDATE(DATE(YEAR(INDEX(SP_BirthDate,$F133)-1),MONTH(INDEX(SP_BirthDate,$F133)-1),1),ROUND($I133*12,0))) -> 00:00:00
A134: =PMADVANCED+IF(AND(SP_SSRIB,INDEX(SC_ShowRetireatee,$F134)), VMONLINE+VMMACRO, 0) -> 32 | C134: Deemed Filing Age: | E134: =IF(SC_ViewMode=VMWIPED,FALSE,IF(SC_ViewMode=VMDEBUG,TRUE,AND(MOD(INT($A134/POWER(2,LOG(SC_ParameterMode,2))),2)<>0,MOD(INT($A134/POWER(2,LOG(SC_ViewMode,2))),2)<>0))) -> FALSE | F134: 1 | G134: 0 | H134: 1 | I134: =IF($J124=0,IF($K126="",0,IF($K126<MIN(IF(YEAR($K52-1)<1954,$I132,70),$I58),MAX($K126,62),0)),IF($K126="",$K124,IF($K126<MIN(IF(YEAR($K52-1)<1954,$I132,70),$I58),MIN($K124,MAX($K126,62)),$K124))) -> 0 | J134: =IF($I134=0,0,EDATE(DATE(YEAR(INDEX(SP_BirthDate,$F134)-1),MONTH(INDEX(SP_BirthDate,$F134)-1),1),ROUND($I134*12,0))) -> 00:00:00
A135: =PMADVANCED+IF(AND(SP_SSRIB,INDEX(SC_ShowRetireatee,$F135)), VMONLINE+VMMACRO, 0) -> 32 | E135: =IF(SC_ViewMode=VMWIPED,FALSE,IF(SC_ViewMode=VMDEBUG,TRUE,AND(MOD(INT($A135/POWER(2,LOG(SC_ParameterMode,2))),2)<>0,MOD(INT($A135/POWER(2,LOG(SC_ViewMode,2))),2)<>0))) -> FALSE | F135: 2 | G135: 0 | H135: -1 | I135: =IF($J125=0,IF($K127="",0,IF($K127<MIN(IF(YEAR($K53-1)<1954,$I133,70),$I59),MAX($K127,62),0)),IF($K127="",$K125,IF($K127<MIN(IF(YEAR($K53-1)<1954,$I133,70),$I59),MIN($K125,MAX($K127,62)),$K125))) -> 0 | J135: =IF($I135=0,0,EDATE(DATE(YEAR(INDEX(SP_BirthDate,$F135)-1),MONTH(INDEX(SP_BirthDate,$F135)-1),1),ROUND($I135*12,0))) -> 00:00:00
A136: =PMBASIC+PMADVANCED+IF(AND(SP_SSRIB,INDEX(SC_ShowRetireatee,$F136)), VMONLINE+VMMACRO, 0) -> 48 | C136: Credits Needed | E136: =IF(SC_ViewMode=VMWIPED,FALSE,IF(SC_ViewMode=VMDEBUG,TRUE,AND(MOD(INT($A136/POWER(2,LOG(SC_ParameterMode,2))),2)<>0,MOD(INT($A136/POWER(2,LOG(SC_ViewMode,2))),2)<>0))) -> FALSE | F136: 1 | G136: 0 | H136: 1 | I136: =IF(INDEX(SC_ShowRetireatee,$F136),40-MAX(1929-YEAR($K52),0),0) -> 0
A137: 48 | E137: =IF(SC_ViewMode=VMWIPED,FALSE,IF(SC_ViewMode=VMDEBUG,TRUE,AND(MOD(INT($A137/POWER(2,LOG(SC_ParameterMode,2))),2)<>0,MOD(INT($A137/POWER(2,LOG(SC_ViewMode,2))),2)<>0))) -> FALSE | F137: 2 | G137: 0 | H137: -1 | I137: =IF(INDEX(SC_ShowRetireatee,$F137),40-MAX(1929-YEAR($K53),0),0) -> 0
A138: 48 | C138: Delayed Credit Per Year: | E138: =IF(SC_ViewMode=VMWIPED,FALSE,IF(SC_ViewMode=VMDEBUG,TRUE,AND(MOD(INT($A138/POWER(2,LOG(SC_ParameterMode,2))),2)<>0,MOD(INT($A138/POWER(2,LOG(SC_ViewMode,2))),2)<>0))) -> FALSE | F138: 1 | G138: 0 | H138: 1 | I138: =IF(INDEX(SC_ShowRetireatee,$F138),IF(YEAR($K52)<=1924, 0.03, 0.03+ MIN(ROUNDUP((YEAR($K52)-1924)/2,0),10)*0.005),0) -> 0
A139: 48 | E139: =IF(SC_ViewMode=VMWIPED,FALSE,IF(SC_ViewMode=VMDEBUG,TRUE,AND(MOD(INT($A139/POWER(2,LOG(SC_ParameterMode,2))),2)<>0,MOD(INT($A139/POWER(2,LOG(SC_ViewMode,2))),2)<>0))) -> FALSE | F139: 2 | G139: 0 | H139: -1 | I139: =IF(INDEX(SC_ShowRetireatee,$F139),IF(YEAR($K53)<=1924, 0.03, 0.03+ MIN(ROUNDUP((YEAR($K53)-1924)/2,0),10)*0.005),0) -> 0
A140: 48 | C140: Primary Benefit: | E140: =IF(SC_ViewMode=VMWIPED,FALSE,IF(SC_ViewMode=VMDEBUG,TRUE,AND(MOD(INT($A140/POWER(2,LOG(SC_ParameterMode,2))),2)<>0,MOD(INT($A140/POWER(2,LOG(SC_ViewMode,2))),2)<>0))) -> FALSE | F140: 1 | G140: 0 | H140: 1 | I140: =IF($I134=0,100%,1-(MAX(MIN(36,($I132-$I134)*12),0)*5/900)-(MAX(($I132-$I134)*12-36,0)*5/1200)+(MAX(MIN($I134,70)-$I132,0)*$I138)) -> 1
A141: 48 | E141: =IF(SC_ViewMode=VMWIPED,FALSE,IF(SC_ViewMode=VMDEBUG,TRUE,AND(MOD(INT($A141/POWER(2,LOG(SC_ParameterMode,2))),2)<>0,MOD(INT($A141/POWER(2,LOG(SC_ViewMode,2))),2)<>0))) -> FALSE | F141: 2 | G141: 0 | H141: -1 | I141: =IF($I135=0,100%,1-(MAX(MIN(36,($I133-$I135)*12),0)*5/900)-(MAX(($I133-$I135)*12-36,0)*5/1200)+(MAX(MIN($I135,70)-$I133,0)*$I139)) -> 1
A142: =PMADVANCED+IF(AND(SP_SSRIB,INDEX(SC_ShowRetireatee,1),INDEX(SC_ShowRetireatee,2)), VMONLINE+VMMACRO, 0) -> 32 | C142: Auxiliary Benefit: | E142: =IF(SC_ViewMode=VMWIPED,FALSE,IF(SC_ViewMode=VMDEBUG,TRUE,AND(MOD(INT($A142/POWER(2,LOG(SC_ParameterMode,2))),2)<>0,MOD(INT($A142/POWER(2,LOG(SC_ViewMode,2))),2)<>0))) -> FALSE | F142: 1 | G142: 0 | H142: 1 | I142: =IF($J126=0,0,1-(MAX(MIN(36, ($I132-MAX($K126,62))*12),0)*25/3600)-(MAX(($I132-MAX($K126,62))*12-36,0)*5/1200)) -> 0
A143: =PMADVANCED+IF(AND(SP_SSRIB,INDEX(SC_ShowRetireatee,1),INDEX(SC_ShowRetireatee,2)), VMONLINE+VMMACRO, 0) -> 32 | E143: =IF(SC_ViewMode=VMWIPED,FALSE,IF(SC_ViewMode=VMDEBUG,TRUE,AND(MOD(INT($A143/POWER(2,LOG(SC_ParameterMode,2))),2)<>0,MOD(INT($A143/POWER(2,LOG(SC_ViewMode,2))),2)<>0))) -> FALSE | F143: 2 | G143: 0 | H143: -1 | I143: =IF($J127=0,0,1-(MAX(MIN(36, ($I133-MAX($K127,62))*12),0)*25/3600)-(MAX(($I133-MAX($K127,62))*12-36,0)*5/1200)) -> 0
A144: =PMADVANCED+IF(AND(SP_SSRIB,INDEX(SC_ShowRetireatee,1),INDEX(SC_ShowRetireatee,2)), VMONLINE+VMMACRO, 0) -> 32 | C144: Survivor Benefit: | D144: =INDEX(SP_Initials,F144) ->  | E144: =IF(SC_ViewMode=VMWIPED,FALSE,IF(SC_ViewMode=VMDEBUG,TRUE,AND(MOD(INT($A144/POWER(2,LOG(SC_ParameterMode,2))),2)<>0,MOD(INT($A144/POWER(2,LOG(SC_ViewMode,2))),2)<>0))) -> FALSE | F144: 1 | G144: 0 | H144: 1 | I144: =IF($J126=0,0,(1-((MAX($I132-MAX($K126,INDEX(SC_SurvivingAge,$F144)),0)/($I132-60))*28.5%))*MAX(OFFSET($I140,$H144,0),82.5%)) -> 0
A145: =PMADVANCED+IF(AND(SP_SSRIB,INDEX(SC_ShowRetireatee,1),INDEX(SC_ShowRetireatee,2)), VMONLINE+VMMACRO, 0) -> 32 | E145: =IF(SC_ViewMode=VMWIPED,FALSE,IF(SC_ViewMode=VMDEBUG,TRUE,AND(MOD(INT($A145/POWER(2,LOG(SC_ParameterMode,2))),2)<>0,MOD(INT($A145/POWER(2,LOG(SC_ViewMode,2))),2)<>0))) -> FALSE | F145: 2 | G145: 0 | H145: -1 | I145: =IF($J127=0,0,(1-((MAX($I133-MAX($K127,INDEX(SC_SurvivingAge,$F145)),0)/($I133-60))*28.5%))*MAX(OFFSET($I141,$H145,0),82.5%)) -> 0

Sheet Economy (hidden)
A1: =PMADVANCED+VMONLINE+VMMACRO -> 38 | B1: =PMBASIC+PMADVANCED+VMONLINE+VMMACRO -> 54 | C1: =PMBASIC+PMADVANCED+VMONLINE+VMMACRO -> 54 | D1: =PMADVANCED+VMONLINE+VMMACRO -> 38 | E1: =PMADVANCED+VMONLINE+VMMACRO -> 38 | F1: =PMADVANCED+VMONLINE+VMMACRO -> 38 | G1: =PMADVANCED+VMONLINE+VMMACRO -> 38 | H1: =PMADVANCED -> 32 | I1: 32 | J1: 32 | K1: 32 | L1: 32 | M1: 32 | N1: 32 | O1: 32 | P1: =PMADVANCED+VMONLINE+VMMACRO -> 38 | Q1: =PMADVANCED -> 32 | R1: =PMADVANCED -> 32 | S1: =PMBASIC+PMADVANCED+VMONLINE+VMMACRO -> 54 | T1: 54 | U1: 54 | V1: 54 | W1: 54 | X1: 54
A2: =PMBASIC+PMADVANCED+VMONLINE+VMMACRO -> 54 | D2: Time Table | S2: Social Security Indexing
A3: =PMBASIC+PMADVANCED+VMONLINE+VMMACRO -> 54 | B3: Year | C3: $ | D3: Wage Inflation (AWI) | E3: CP Inflation (CPI-W) | F3: Annual Return Stocks | G3: Bond Yield | H3: Shadow | I3: Shadow | J3: Shadow | K3: Shadow | L3: Default | M3: Default | N3: Default | O3: Default | P3: Annual Return Bonds | Q3: Wage IDX | R3: CP IDX | S3: Social Security Wage Base | T3: Bend Point 1 | U3: Bend Point 2 | V3: COLA
B4: =SC_YearEpoch-1 -> 1953
B5: =B4+1 -> 1954 | C5: N | H5: =IF(IF(COLUMN()=COLUMN(D5),TRUE,ISBLANK(D5)),L5,D5) -> 0.0052 | J5: =IF(IF(COLUMN()=COLUMN(F5),TRUE,ISBLANK(F5)),N5,F5) -> 0.5256 | K5: =IF(IF(COLUMN()=COLUMN(G5),TRUE,ISBLANK(G5)),O5,G5) -> 0.0248 | L5: 0.0052 | N5: 0.5256 | O5: 0.0248 | P5: =IF(ROW()<ROW(B5),-(1+PV($K6,10,$K5,1))+$K5,$K5) -> 0.0248 | Q5: =IF($B5=SC_VersionMaj,1,IF($B5<SC_VersionMaj,Q6*($H5+1),1/(1/Q3*($H3+1)))) -> 20.01668241 | R5: =IF($B5=SC_VersionMaj,1,IF($B5<SC_VersionMaj,R6*($I5+1),1/(1/R3*($I3+1)))) -> 7.813959208 | S5: 3600
B6: 1955 | C6: N | H6: 0.0462 | J6: 0.326 | K6: 0.0261 | L6: 0.0462 | N6: 0.326 | O6: 0.0261 | P6: 0.0261 | Q6: =IF($B6=SC_VersionMaj,1,IF($B6<SC_VersionMaj,Q7*($H6+1),1/(1/Q5*($H5+1)))) -> 19.91313411 | R6: =IF($B6=SC_VersionMaj,1,IF($B6<SC_VersionMaj,R7*($I6+1),1/(1/R5*($I5+1)))) -> 7.813959208 | S6: 4200 | X6: =IFERROR(VLOOKUP(W6,IV_CodeTable,2,FALSE),"") -> 
B7: 1956 | C7: N | H7: 0.0699 | J7: 0.0744 | K7: 0.029 | L7: 0.0699 | N7: 0.0744 | O7: 0.029 | P7: 0.029 | Q7: 19.03377376 | R7: 7.813959208 | S7: 4200
B8: 1957 | C8: N | H8: 0.031 | J8: -0.1046 | K8: 0.0346 | L8: 0.031 | N8: -0.1046 | O8: 0.0346 | P8: 0.0346 | Q8: 17.79023625 | R8: 7.813959208 | S8: 4200
B9: 1958 | C9: N | H9: 0.0088 | J9: 0.4372 | K9: 0.0309 | L9: 0.0088 | N9: 0.4372 | O9: 0.0309 | P9: 0.0309 | Q9: 17.25532129 | R9: 7.813959208 | S9: 4200
B10: 1959 | C10: N | H10: 0.0495 | J10: 0.1206 | K10: 0.0402 | L10: 0.0495 | N10: 0.1206 | O10: 0.0402 | P10: 0.0402 | Q10: 17.10479906 | R10: 7.813959208 | S10: 4800
B11: 1960 | C11: N | H11: 0.0392 | J11: 0.0034 | K11: 0.0472 | L11: 0.0392 | N11: 0.0034 | O11: 0.0472 | P11: 0.0472 | Q11: 16.29804579 | R11: 7.813959208 | S11: 4800
B12: 1961 | C12: N | H12: 0.0199 | J12: 0.2664 | K12: 0.0384 | L12: 0.0199 | N12: 0.2664 | O12: 0.0384 | P12: 0.0384 | Q12: 15.68326192 | R12: 7.813959208 | S12: 4800
B13: 1962 | C13: N | H13: 0.0501 | J13: -0.0881 | K13: 0.0408 | L13: 0.0501 | N13: -0.0881 | O13: 0.0408 | P13: 0.0408 | Q13: 15.37725456 | R13: 7.813959208 | S13: 4800
B14: 1963 | C14: N | H14: 0.0245 | J14: 0.2261 | K14: 0.0383 | L14: 0.0245 | N14: 0.2261 | O14: 0.0383 | P14: 0.0383 | Q14: 14.64360971 | R14: 7.813959208 | S14: 4800
B15: 1964 | C15: N | H15: 0.0409 | J15: 0.1642 | K15: 0.0417 | L15: 0.0409 | N15: 0.1642 | O15: 0.0417 | P15: 0.0417 | Q15: 14.2934209 | R15: 7.813959208 | S15: 4800
B16: 1965 | C16: N | H16: 0.018 | J16: 0.124 | K16: 0.0419 | L16: 0.018 | N16: 0.124 | O16: 0.0419 | P16: 0.0419 | Q16: 13.73179066 | R16: 7.813959208 | S16: 4800
B17: 1966 | C17: N | H17: 0.06 | J17: -0.0997 | K17: 0.0461 | L17: 0.06 | N17: -0.0997 | O17: 0.0461 | P17: 0.0461 | Q17: 13.48898886 | R17: 7.813959208 | S17: 6600
B18: 1967 | C18: N | H18: 0.0557 | J18: 0.238 | K18: 0.0458 | L18: 0.0557 | N18: 0.238 | O18: 0.0458 | P18: 0.0458 | Q18: 12.72546119 | R18: 7.813959208 | S18: 6600
B19: 1968 | C19: N | H19: 0.0687 | J19: 0.1081 | K19: 0.0553 | L19: 0.0687 | N19: 0.1081 | O19: 0.0553 | P19: 0.0553 | Q19: 12.05405057 | R19: 7.813959208 | S19: 7800
B20: 1969 | C20: N | H20: 0.0578 | J20: -0.0824 | K20: 0.0604 | L20: 0.0578 | N20: -0.0824 | O20: 0.0604 | P20: 0.0604 | Q20: 11.27917149 | R20: 7.813959208 | S20: 7800
B21: 1970 | C21: N | H21: 0.0496 | I21: =IF(IF(COLUMN()=COLUMN(E21),TRUE,ISBLANK(E21)),M21,E21) -> 0.057 | J21: 0.0356 | K21: 0.0779 | L21: 0.0496 | M21: 0.057 | N21: 0.0356 | O21: 0.0779 | P21: 0.0779 | Q21: 10.66285828 | R21: 7.813959208 | S21: 7800
B22: 1971 | C22: N | H22: 0.0502 | I22: 0.044 | J22: 0.1422 | K22: 0.0624 | L22: 0.0502 | M22: 0.044 | N22: 0.1422 | O22: 0.0624 | P22: 0.0624 | Q22: 10.15897321 | R22: 7.392582032 | S22: 7800
B23: 1972 | C23: N | H23: 0.098 | I23: 0.034 | J23: 0.1876 | K23: 0.0595 | L23: 0.098 | M23: 0.034 | N23: 0.1876 | O23: 0.0595 | P23: 0.0595 | Q23: 9.673370037 | R23: 7.081017272 | S23: 9000
B24: 1973 | C24: N | H24: 0.0626 | I24: 0.062 | J24: -0.1431 | K24: 0.0646 | L24: 0.0626 | M24: 0.062 | N24: -0.1431 | O24: 0.0646 | P24: 0.0646 | Q24: 8.809990926 | R24: 6.84817918 | S24: 10800
B25: 1974 | C25: N | H25: 0.0594 | I25: 0.11 | J25: -0.259 | K25: 0.0699 | L25: 0.0594 | M25: 0.11 | N25: -0.259 | O25: 0.0699 | P25: 0.0699 | Q25: 8.290975838 | R25: 6.448379642 | S25: 13200
B26: 1975 | C26: N | H26: 0.0747 | I26: 0.0916 | J26: 0.37 | K26: 0.075 | L26: 0.0747 | M26: 0.0916 | N26: 0.37 | O26: 0.075 | P26: 0.075 | Q26: 7.82610519 | R26: 5.809351029 | S26: 14100 | V26: 0.08
B27: 1976 | C27: N | H27: 0.069 | I27: 0.0571 | J27: 0.2383 | K27: 0.0774 | L27: 0.069 | M27: 0.0571 | N27: 0.2383 | O27: 0.0774 | P27: 0.0774 | Q27: 7.282130074 | R27: 5.321867927 | S27: 15300 | V27: 0.064
B28: 1977 | C28: N | H28: 0.0599 | I28: 0.065 | J28: -0.0698 | K28: 0.0721 | L28: 0.0599 | M28: 0.065 | N28: -0.0698 | O28: 0.0721 | P28: 0.0721 | Q28: 6.812095485 | R28: 5.034403488 | S28: 16500 | V28: 0.059
B29: 1978 | C29: N | H29: 0.0794 | I29: 0.076 | J29: 0.0651 | K29: 0.0796 | L29: 0.0794 | M29: 0.076 | N29: 0.0651 | O29: 0.0796 | P29: 0.0796 | Q29: 6.427111506 | R29: 4.727139425 | S29: 17700 | V29: 0.065
B30: 1979 | C30: N | H30: 0.0875 | I30: 0.1143 | J30: 0.1852 | K30: 0.091 | L30: 0.0875 | M30: 0.1143 | N30: 0.1852 | O30: 0.091 | P30: 0.091 | Q30: 5.954337137 | R30: 4.393252254 | S30: 22900 | T30: 180 | U30: 1085 | V30: 0.099
B31: 1980 | C31: N | H31: 0.0901 | I31: 0.1349 | J31: 0.3174 | K31: 0.108 | L31: 0.0901 | M31: 0.1349 | N31: 0.3174 | O31: 0.108 | P31: 0.108 | Q31: 5.47525254 | R31: 3.942611733 | S31: 25900 | T31: 194 | U31: 1171 | V31: 0.143
B32: 1981 | C32: N | H32: 0.1007 | I32: 0.1025 | J32: -0.047 | K32: 0.1257 | L32: 0.1007 | M32: 0.1025 | N32: -0.047 | O32: 0.1257 | P32: 0.1257 | Q32: 5.022706669 | R32: 3.473972802 | S32: 29700 | T32: 211 | U32: 1274 | V32: 0.112
B33: 1982 | C33: N | H33: 0.0551 | I33: 0.0599 | J33: 0.2042 | K33: 0.1459 | L33: 0.0551 | M33: 0.0599 | N33: 0.2042 | O33: 0.1459 | P33: 0.1459 | Q33: 4.563193122 | R33: 3.150995738 | S33: 32400 | T33: 230 | U33: 1388 | V33: 0.074
B34: 1983 | C34: N | H34: 0.0487 | I34: 0.0304 | J34: 0.2234 | K34: 0.1046 | L34: 0.0487 | M34: 0.0304 | N34: 0.2234 | O34: 0.1046 | P34: 0.1046 | Q34: 4.324891595 | R34: 2.972917953 | S34: 35700 | T34: 254 | U34: 1528 | V34: 0.035
B35: 1984 | C35: N | H35: 0.0588 | I35: 0.0342 | J35: 0.0615 | K35: 0.1167 | L35: 0.0588 | M35: 0.0342 | N35: 0.0615 | O35: 0.1167 | P35: 0.1167 | Q35: 4.124050343 | R35: 2.885207641 | S35: 37800 | T35: 267 | U35: 1612 | V35: 0.035
B36: 1985 | C36: N | H36: 0.0426 | I36: 0.0354 | J36: 0.3124 | K36: 0.1138 | L36: 0.0426 | M36: 0.0354 | N36: 0.3124 | O36: 0.1138 | P36: 0.1138 | Q36: 3.895022991 | R36: 2.789796597 | S36: 39600 | T36: 280 | U36: 1691 | V36: 0.031
B37: 1986 | C37: N | H37: =IF(IF(COLUMN()=COLUMN(D37),TRUE,ISBLANK(D37)),L37,D37) -> 0.0297 | I37: 0.0155 | J37: =IF(IF(COLUMN()=COLUMN(F37),TRUE,ISBLANK(F37)),N37,F37) -> 0.1849 | K37: =IF(IF(COLUMN()=COLUMN(G37),TRUE,ISBLANK(G37)),O37,G37) -> 0.0919 | L37: 0.0297 | M37: 0.0155 | N37: 0.1849 | O37: 0.0919 | P37: =IF(ROW()<ROW(B37),-(1+PV($K38,10,$K37,1))+$K37,$K37) -> 0.0919 | Q37: 3.735874728 | R37: 2.69441433 | S37: 42000 | T37: 297 | U37: 1790 | V37: 0.013
B38: =B37+1 -> 1987 | C38: N | H38: 0.0638 | I38: 0.036 | J38: 0.0581 | K38: 0.0708 | L38: 0.0638 | M38: 0.036 | N38: 0.0581 | O38: 0.0708 | P38: 0.0708 | Q38: =IF($B38=SC_VersionMaj,1,IF($B38<SC_VersionMaj,Q39*($H38+1),1/(1/Q37*($H37+1)))) -> 3.628119576 | R38: =IF($B38=SC_VersionMaj,1,IF($B38<SC_VersionMaj,R39*($I38+1),1/(1/R37*($I37+1)))) -> 2.65328836 | S38: 43800 | T38: 310 | U38: 1866 | V38: 0.042
B39: 1988 | C39: N | H39: 0.0493 | I39: 0.0397 | J39: 0.1654 | K39: 0.0867 | L39: 0.0493 | M39: 0.0397 | N39: 0.1654 | O39: 0.0867 | P39: 0.0867 | Q39: 3.410527897 | R39: 2.561089151 | S39: 45000 | T39: 319 | U39: 1922 | V39: 0.04
B40: 1989 | C40: N | H40: 0.0396 | I40: 0.0482 | J40: 0.3148 | K40: 0.0909 | L40: 0.0396 | M40: 0.0482 | N40: 0.3148 | O40: 0.0909 | P40: 0.0909 | Q40: 3.250288665 | R40: 2.463296288 | S40: 48000 | T40: 339 | U40: 2044 | V40: 0.047
B41: 1990 | C41: N | H41: 0.0462 | I41: 0.0526 | J41: -0.0306 | K41: 0.0821 | L41: 0.0462 | M41: 0.0526 | N41: -0.0306 | O41: 0.0821 | P41: 0.0821 | Q41: 3.126480055 | R41: 2.350025079 | S41: 51300 | T41: 356 | U41: 2145 | V41: 0.054
B42: 1991 | C42: N | H42: 0.0373 | I42: 0.0405 | J42: 0.3023 | K42: 0.0809 | L42: 0.0373 | M42: 0.0405 | N42: 0.3023 | O42: 0.0809 | P42: 0.0809 | Q42: 2.98841527 | R42: 2.232590803 | S42: 53400 | T42: 370 | U42: 2230 | V42: 0.037
B43: 1992 | C43: N | H43: 0.0515 | I43: 0.0291 | J43: 0.0749 | K43: 0.0703 | L43: 0.0515 | M43: 0.0291 | N43: 0.0749 | O43: 0.0703 | P43: 0.0703 | Q43: 2.880955625 | R43: 2.145690344 | S43: 55500 | T43: 387 | U43: 2333 | V43: 0.03
B44: 1993 | C44: N | H44: 0.0086 | I44: 0.0282 | J44: 0.0997 | K44: 0.066 | L44: 0.0086 | M44: 0.0282 | N44: 0.0997 | O44: 0.066 | P44: 0.066 | Q44: 2.739853186 | R44: 2.085016368 | S44: 57600 | T44: 401 | U44: 2420 | V44: 0.026
B45: 1994 | C45: N | H45: 0.0268 | I45: 0.0252 | J45: 0.0133 | K45: 0.0575 | L45: 0.0268 | M45: 0.0252 | N45: 0.0133 | O45: 0.0575 | P45: 0.0575 | Q45: 2.71649136 | R45: 2.027831519 | S45: 60600 | T45: 422 | U45: 2545 | V45: 0.028
B46: 1995 | C46: N | H46: 0.0401 | I46: 0.0283 | J46: 0.372 | K46: 0.0778 | L46: 0.0401 | M46: 0.0283 | N46: 0.372 | O46: 0.0778 | P46: 0.0778 | Q46: 2.64558956 | R46: 1.977986265 | S46: 61200 | T46: 426 | U46: 2567 | V46: 0.026
B47: 1996 | C47: N | H47: 0.0489 | I47: 0.0293 | J47: 0.2268 | K47: 0.0565 | L47: 0.0489 | M47: 0.0293 | N47: 0.2268 | O47: 0.0565 | P47: 0.0565 | Q47: 2.543591539 | R47: 1.923549806 | S47: 62700 | T47: 437 | U47: 2635 | V47: 0.029
B48: 1997 | C48: N | H48: 0.0584 | I48: 0.0222 | J48: 0.331 | K48: 0.0658 | L48: 0.0584 | M48: 0.0222 | N48: 0.331 | O48: 0.0658 | P48: 0.0658 | Q48: 2.425008618 | R48: 1.868794137 | S48: 65400 | T48: 455 | U48: 2741 | V48: 0.021
B49: 1998 | C49: N | H49: 0.0523 | I49: 0.0133 | J49: 0.2834 | K49: 0.0554 | L49: 0.0523 | M49: 0.0133 | N49: 0.2834 | O49: 0.0554 | P49: 0.0554 | Q49: 2.291202398 | R49: 1.828207922 | S49: 68400 | T49: 477 | U49: 2875 | V49: 0.013
B50: 1999 | C50: N | H50: 0.0557 | I50: 0.0224 | J50: 0.2089 | K50: 0.0472 | L50: 0.0557 | M50: 0.0224 | N50: 0.2089 | O50: 0.0472 | P50: 0.0472 | Q50: 2.177328136 | R50: 1.804211903 | S50: 72600 | T50: 505 | U50: 3043 | V50: 0.025
B51: 2000 | C51: N | H51: 0.0553 | I51: 0.0347 | J51: -0.0903 | K51: 0.0666 | L51: 0.0553 | M51: 0.0347 | N51: -0.0903 | O51: 0.0666 | P51: 0.0666 | Q51: 2.062449689 | R51: 1.764683004 | S51: 76200 | T51: 531 | U51: 3202 | V51: 0.035
B52: 2001 | C52: N | H52: 0.0239 | I52: 0.0274 | J52: -0.1185 | K52: 0.0516 | L52: 0.0239 | M52: 0.0274 | N52: -0.1185 | O52: 0.0516 | P52: 0.0516 | Q52: 1.954372869 | R52: 1.705502082 | S52: 80400 | T52: 561 | U52: 3381 | V52: 0.026
B53: 2002 | C53: N | H53: 0.01 | I53: =IF(IF(COLUMN()=COLUMN(E53),TRUE,ISBLANK(E53)),M53,E53) -> 0.0136 | J53: -0.2197 | K53: 0.0504 | L53: 0.01 | M53: 0.0136 | N53: -0.2197 | O53: 0.0504 | P53: 0.0504 | Q53: 1.908753657 | R53: 1.6600176 | S53: 84900 | T53: 592 | U53: 3567 | V53: 0.014
B54: 2003 | C54: N | H54: 0.0244 | I54: 0.0224 | J54: 0.2836 | K54: 0.0405 | L54: 0.0244 | M54: 0.0224 | N54: 0.2836 | O54: 0.0405 | P54: 0.0405 | Q54: 1.889855106 | R54: 1.637744277 | S54: 87000 | T54: 606 | U54: 3653 | V54: 0.021
B55: 2004 | C55: N | H55: 0.0465 | I55: 0.026 | J55: 0.1074 | K55: 0.0415 | L55: 0.0465 | M55: 0.026 | N55: 0.1074 | O55: 0.0415 | P55: 0.0415 | Q55: 1.844840985 | R55: 1.601862556 | S55: 87900 | T55: 612 | U55: 3689 | V55: 0.027
B56: 2005 | C56: N | H56: 0.0366 | I56: 0.0352 | J56: 0.0483 | K56: 0.0422 | L56: 0.0366 | M56: 0.0352 | N56: 0.0483 | O56: 0.0422 | P56: 0.0422 | Q56: 1.76286764 | R56: 1.561269548 | S56: 90000 | T56: 627 | U56: 3779 | V56: 0.041
B57: 2006 | C57: N | H57: 0.046 | I57: 0.0323 | J57: 0.1561 | K57: 0.0442 | L57: 0.046 | M57: 0.0323 | N57: 0.1561 | O57: 0.0442 | P57: 0.0442 | Q57: 1.700624774 | R57: 1.508181557 | S57: 94200 | T57: 656 | U57: 3955 | V57: 0.033
B58: 2007 | C58: N | H58: 0.0454 | I58: 0.0285 | J58: 0.0548 | K58: 0.0476 | L58: 0.0454 | M58: 0.0285 | N58: 0.0548 | O58: 0.0476 | P58: 0.0476 | Q58: 1.625836304 | R58: 1.460991531 | S58: 97500 | T58: 680 | U58: 4100 | V58: 0.023
B59: 2008 | C59: N | H59: 0.023 | I59: 0.0409 | J59: -0.3655 | K59: 0.0374 | L59: 0.023 | M59: 0.0409 | N59: -0.3655 | O59: 0.0374 | P59: 0.0374 | Q59: 1.555228911 | R59: 1.420507079 | S59: 102000 | T59: 711 | U59: 4288 | V59: 0.058
B60: 2009 | C60: N | H60: -0.0151 | I60: -0.0067 | J60: 0.2594 | K60: 0.0252 | L60: -0.0151 | M60: -0.0067 | N60: 0.2594 | O60: 0.0252 | P60: 0.0252 | Q60: 1.520262865 | R60: 1.364691208 | S60: 106800 | T60: 744 | U60: 4483 | V60: 0
B61: 2010 | C61: N | H61: 0.0236 | I61: 0.0207 | J61: 0.1482 | K61: 0.0373 | L61: 0.0236 | M61: 0.0207 | N61: 0.1482 | O61: 0.0373 | P61: 0.0373 | Q61: 1.543570784 | R61: 1.373896314 | S61: 106800 | T61: 761 | U61: 4586 | V61: 0
B62: 2011 | C62: N | H62: 0.0313 | I62: 0.0356 | J62: 0.021 | K62: 0.0339 | L62: 0.0313 | M62: 0.0356 | N62: 0.021 | O62: 0.0339 | P62: 0.0339 | Q62: 1.507982399 | R62: 1.346033422 | S62: 106800 | T62: 749 | U62: 4517 | V62: 0.036
B63: 2012 | C63: N | H63: 0.0312 | I63: 0.021 | J63: 0.1589 | K63: 0.0197 | L63: 0.0312 | M63: 0.021 | N63: 0.1589 | O63: 0.0197 | P63: 0.0197 | Q63: 1.462215068 | R63: 1.299761898 | S63: 110100 | T63: 767 | U63: 4624 | V63: 0.017
B64: 2013 | C64: N | H64: 0.0128 | I64: 0.0137 | J64: 0.3215 | K64: 0.0191 | L64: 0.0128 | M64: 0.0137 | N64: 0.3215 | O64: 0.0191 | P64: 0.0191 | Q64: 1.41797427 | R64: 1.273028304 | S64: 113700 | T64: 791 | U64: 4768 | V64: 0.015
B65: 2014 | C65: N | H65: 0.0355 | I65: 0.015 | J65: 0.1352 | K65: 0.0286 | L65: 0.0355 | M65: 0.015 | N65: 0.1352 | O65: 0.0286 | P65: 0.0286 | Q65: 1.400053585 | R65: 1.255823522 | S65: 117000 | T65: 816 | U65: 4917 | V65: 0.017
B66: 2015 | C66: N | H66: 0.0348 | I66: -0.0041 | J66: 0.0138 | K66: 0.0188 | L66: 0.0348 | M66: -0.0041 | N66: 0.0138 | O66: 0.0188 | P66: 0.0188 | Q66: 1.35205561 | R66: 1.237264553 | S66: 118500 | T66: 826 | U66: 4980 | V66: 0
B67: 2016 | C67: N | H67: 0.0113 | I67: 0.0098 | J67: 0.1177 | K67: 0.0209 | L67: 0.0113 | M67: 0.0098 | N67: 0.1177 | O67: 0.0209 | P67: 0.0209 | Q67: 1.306586404 | R67: 1.242358222 | S67: 118500 | T67: 856 | U67: 5157 | V67: 0.003
B68: 2017 | C68: N | H68: 0.0345 | I68: 0.02125378082 | J68: 0.2161 | K68: 0.0243 | L68: 0.0345 | M68: 0.02125378082 | N68: 0.2161 | O68: 0.0243 | P68: 0.0243 | Q68: 1.291986951 | R68: 1.23030127 | S68: 127200 | T68: 885 | U68: 5336 | V68: 0.02
B69: 2018 | C69: N | H69: =IF(IF(COLUMN()=COLUMN(D69),TRUE,ISBLANK(D69)),L69,D69) -> 0.0362 | I69: 0.02549665134 | J69: =IF(IF(COLUMN()=COLUMN(F69),TRUE,ISBLANK(F69)),N69,F69) -> -0.0423 | K69: =IF(IF(COLUMN()=COLUMN(G69),TRUE,ISBLANK(G69)),O69,G69) -> 0.0258 | L69: 0.0362 | M69: 0.02549665134 | N69: -0.0423 | O69: 0.0258 | P69: =IF(ROW()<ROW(B69),-(1+PV($K70,10,$K69,1))+$K69,$K69) -> 0.0258 | Q69: 1.248899904 | R69: 1.204696906 | S69: 128400 | T69: 895 | U69: 5397 | V69: 0.028 | X69: =IFERROR(VLOOKUP(W69,IV_CodeTable,2,FALSE),"") -> 
B70: =B69+1 -> 2019 | C70: N | H70: 0.0375 | I70: 0.01662682646 | J70: 0.3122 | K70: 0.0271 | L70: 0.0375 | M70: 0.01662682646 | N70: 0.3122 | O70: 0.0271 | P70: 0.0271 | Q70: =IF($B70=SC_VersionMaj,1,IF($B70<SC_VersionMaj,Q71*($H70+1),1/(1/Q69*($H69+1)))) -> 1.205269161 | R70: =IF($B70=SC_VersionMaj,1,IF($B70<SC_VersionMaj,R71*($I70+1),1/(1/R69*($I69+1)))) -> 1.174744846 | S70: 132900 | T70: 926 | U70: 5583 | V70: 0.016
B71: 2020 | C71: N | H71: 0.0283 | I71: 0.01214178524 | J71: 0.1802 | K71: 0.0176 | L71: 0.0283 | M71: 0.01214178524 | N71: 0.1802 | O71: 0.0176 | P71: 0.0176 | Q71: 1.161705215 | R71: 1.155532016 | S71: 137700 | T71: 960 | U71: 5785 | V71: 0.013 | W71: =IF(OR(NOT(ISNUMBER($H71)),$H71<-1,$H71>1,NOT(ISNUMBER($I71)),$I71<-1,$I71>1,NOT(ISNUMBER($J71)),$J71<-1,$J71>1),201,IF(OR(NOT(ISNUMBER($K71)),$K71<0,$K71>1),201,0)) -> 0
B72: 2021 | C72: N | H72: 0.0889 | I72: 0.05257524341 | J72: 0.2847 | K72: 0.0108 | L72: 0.0889 | M72: 0.05257524341 | N72: 0.2847 | O72: 0.0108 | P72: 0.0108 | Q72: 1.12973375 | R72: 1.141670102 | S72: 142800 | T72: 996 | U72: 6002 | V72: 0.059 | W72: 0
B73: 2022 | C73: N | H73: 0.0375 | I73: 0.08464464615 | J73: -0.1801 | K73: 0.0176 | L73: =SP_AWI -> 0.0375 | M73: 0.08464464615 | N73: -0.1801 | O73: 0.0176 | P73: 0.0176 | Q73: 1.0375 | R73: 1.084644646 | S73: 147000 | T73: 1024 | U73: 6172 | V73: 0.087 | W73: 0
B74: 2023 | C74: N | H74: 0.0375 | I74: 0.0325 | J74: 0.07 | K74: 0.0353 | L74: 0.0375 | M74: =SP_CPI -> 0.0325 | N74: =SP_ARStocksDef -> 0.07 | O74: 0.0353 | P74: 0.0353 | Q74: 1 | R74: 1 | S74: 160200 | T74: 1115 | U74: 6721 | V74: =MAX(I74,0) -> 0.0325 | W74: 0
B75: 2024 | C75: N | H75: 0.0375 | I75: 0.0325 | J75: 0.07 | K75: 0.05 | L75: 0.0375 | M75: 0.0325 | N75: 0.07 | O75: =SP_BondYieldDef -> 0.05 | P75: 0.05 | Q75: 0.9638554217 | R75: 0.9685230024 | S75: =CEILING($S$45*$Q$43/Q73, 300) -> 168300 | T75: =CEILING($T$45*$Q$43/Q73,1) -> 1172 | U75: =CEILING(U$45*$Q$43/$Q73,1) -> 7068 | V75: 0.0325 | W75: 0
B76: 2025 | C76: N | H76: 0.0375 | I76: 0.0325 | J76: 0.07 | K76: 0.05 | L76: 0.0375 | M76: 0.0325 | N76: 0.07 | O76: 0.05 | P76: 0.05 | Q76: 0.9290172739 | R76: 0.9380368062 | S76: 174600 | T76: 1216 | U76: 7333 | V76: 0.0325 | W76: 0
B77: 2026 | C77: N | H77: 0.0375 | I77: 0.0325 | J77: 0.07 | K77: 0.05 | L77: 0.0375 | M77: 0.0325 | N77: 0.07 | O77: 0.05 | P77: 0.05 | Q77: 0.8954383363 | R77: 0.9085102239 | S77: 181200 | T77: 1262 | U77: 7607 | V77: 0.0325 | W77: 0
B78: 2027 | C78: N | H78: 0.0375 | I78: 0.0325 | J78: 0.07 | K78: 0.05 | L78: 0.0375 | M78: 0.0325 | N78: 0.07 | O78: 0.05 | P78: 0.05 | Q78: 0.8630730952 | R78: 0.8799130498 | S78: 188100 | T78: 1309 | U78: 7893 | V78: 0.0325 | W78: 0
B79: 2028 | C79: N | H79: 0.0375 | I79: 0.0325 | J79: 0.07 | K79: 0.05 | L79: 0.0375 | M79: 0.0325 | N79: 0.07 | O79: 0.05 | P79: 0.05 | Q79: 0.8318776822 | R79: 0.8522160289 | S79: 195000 | T79: 1358 | U79: 8189 | V79: 0.0325 | W79: 0
B80: 2029 | C80: N | H80: 0.0375 | I80: 0.0325 | J80: 0.07 | K80: 0.05 | L80: 0.0375 | M80: 0.0325 | N80: 0.07 | O80: 0.05 | P80: 0.05 | Q80: 0.8018098141 | R80: 0.825390827 | S80: 202500 | T80: 1409 | U80: 8496 | V80: 0.0325 | W80: 0
B81: 2030 | C81: N | H81: 0.0375 | I81: 0.0325 | J81: 0.07 | K81: 0.05 | L81: 0.0375 | M81: 0.0325 | N81: 0.07 | O81: 0.05 | P81: 0.05 | Q81: 0.7728287365 | R81: 0.7994100019 | S81: 210000 | T81: 1462 | U81: 8814 | V81: 0.0325 | W81: 0
B82: 2031 | C82: N | H82: 0.0375 | I82: 0.0325 | J82: 0.07 | K82: 0.05 | L82: 0.0375 | M82: 0.0325 | N82: 0.07 | O82: 0.05 | P82: 0.05 | Q82: 0.7448951677 | R82: 0.7742469752 | S82: 217800 | T82: 1517 | U82: 9145 | V82: 0.0325 | W82: =IF(OR(NOT(ISNUMBER($H82)),$H82<-1,$H82>1,NOT(ISNUMBER($I82)),$I82<-1,$I82>1,NOT(ISNUMBER($J82)),$J82<-1,$J82>1),201,IF(OR(NOT(ISNUMBER($K82)),$K82<0,$K82>1),201,0)) -> 0
B83: 2032 | C83: N | H83: 0.0375 | I83: 0.0325 | J83: 0.07 | K83: 0.05 | L83: 0.0375 | M83: 0.0325 | N83: 0.07 | O83: 0.05 | P83: 0.05 | Q83: 0.717971246 | R83: 0.7498760051 | S83: 226200 | T83: 1574 | U83: 9488 | V83: 0.0325 | W83: =IF(OR(NOT(ISNUMBER($H83)),$H83<-1,$H83>1,NOT(ISNUMBER($I83)),$I83<-1,$I83>1,NOT(ISNUMBER($J83)),$J83<-1,$J83>1),201,IF(OR(NOT(ISNUMBER($K83)),$K83<0,$K83>1),201,0)) -> 0
B84: 2033 | C84: N | H84: 0.0375 | I84: 0.0325 | J84: 0.07 | K84: 0.05 | L84: 0.0375 | M84: 0.0325 | N84: 0.07 | O84: 0.05 | P84: 0.05 | Q84: 0.6920204781 | R84: 0.7262721599 | S84: 234600 | T84: 1633 | U84: 9844 | V84: 0.0325 | W84: 0
B85: 2034 | C85: N | H85: 0.0375 | I85: =IF(IF(COLUMN()=COLUMN(E85),TRUE,ISBLANK(E85)),M85,E85) -> 0.0325 | J85: 0.07 | K85: 0.05 | L85: 0.0375 | M85: 0.0325 | N85: 0.07 | O85: 0.05 | P85: 0.05 | Q85: 0.6670076897 | R85: 0.7034112929 | S85: 243300 | T85: 1694 | U85: 10213 | V85: 0.0325 | W85: 0
B86: 2035 | C86: N | H86: 0.0375 | I86: 0.0325 | J86: 0.07 | K86: 0.05 | L86: 0.0375 | M86: 0.0325 | N86: 0.07 | O86: 0.05 | P86: 0.05 | Q86: 0.642898978 | R86: 0.6812700173 | S86: 252300 | T86: 1757 | U86: 10596 | V86: 0.0325 | W86: 0
B87: 2036 | C87: N | H87: 0.0375 | I87: 0.0325 | J87: 0.07 | K87: 0.05 | L87: 0.0375 | M87: 0.0325 | N87: 0.07 | O87: 0.05 | P87: 0.05 | Q87: 0.6196616656 | R87: 0.6598256826 | S87: 261900 | T87: 1823 | U87: 10993 | V87: 0.0325 | W87: 0
B88: 2037 | C88: N | H88: 0.0375 | I88: 0.0325 | J88: 0.07 | K88: 0.05 | L88: 0.0375 | M88: 0.0325 | N88: 0.07 | O88: 0.05 | P88: 0.05 | Q88: 0.597264256 | R88: 0.6390563512 | S88: 271800 | T88: 1892 | U88: 11405 | V88: 0.0325 | W88: 0
B89: 2038 | C89: N | H89: 0.0375 | I89: 0.0325 | J89: 0.07 | K89: 0.05 | L89: 0.0375 | M89: 0.0325 | N89: 0.07 | O89: 0.05 | P89: 0.05 | Q89: 0.5756763913 | R89: 0.618940776 | S89: 282000 | T89: 1962 | U89: 11833 | V89: 0.0325 | W89: 0
B90: 2039 | C90: N | H90: 0.0375 | I90: 0.0325 | J90: 0.07 | K90: 0.05 | L90: 0.0375 | M90: 0.0325 | N90: 0.07 | O90: 0.05 | P90: 0.05 | Q90: 0.5548688109 | R90: 0.5994583787 | S90: 292500 | T90: 2036 | U90: 12277 | V90: 0.0325 | W90: 0
B91: 2040 | C91: N | H91: 0.0375 | I91: 0.0325 | J91: 0.07 | K91: 0.05 | L91: 0.0375 | M91: 0.0325 | N91: 0.07 | O91: 0.05 | P91: 0.05 | Q91: 0.5348133117 | R91: 0.5805892287 | S91: 303300 | T91: 2112 | U91: 12737 | V91: 0.0325 | W91: 0
B92: 2041 | C92: N | H92: 0.0375 | I92: 0.0325 | J92: 0.07 | K92: 0.05 | L92: 0.0375 | M92: 0.0325 | N92: 0.07 | O92: 0.05 | P92: 0.05 | Q92: 0.5154827101 | R92: 0.562314023 | S92: 314700 | T92: 2192 | U92: 13214 | V92: 0.0325 | W92: 0
B93: 2042 | C93: N | H93: 0.0375 | I93: 0.0325 | J93: 0.07 | K93: 0.05 | L93: 0.0375 | M93: 0.0325 | N93: 0.07 | O93: 0.05 | P93: 0.05 | Q93: 0.4968508049 | R93: 0.5446140659 | S93: 326700 | T93: 2274 | U93: 13710 | V93: 0.0325 | W93: 0
B94: 2043 | C94: N | H94: 0.0375 | I94: 0.0325 | J94: 0.07 | K94: 0.05 | L94: 0.0375 | M94: 0.0325 | N94: 0.07 | O94: 0.05 | P94: 0.05 | Q94: 0.4788923421 | R94: 0.5274712502 | S94: 338700 | T94: 2359 | U94: 14224 | V94: 0.0325 | W94: 0
B95: 2044 | C95: N | H95: 0.0375 | I95: 0.0325 | J95: 0.07 | K95: 0.05 | L95: 0.0375 | M95: 0.0325 | N95: 0.07 | O95: 0.05 | P95: 0.05 | Q95: 0.4615829803 | R95: 0.510868039 | S95: 351600 | T95: 2447 | U95: 14758 | V95: 0.0325 | W95: 0
B96: 2045 | C96: N | H96: 0.0375 | I96: 0.0325 | J96: 0.07 | K96: 0.05 | L96: =SP_AWI -> 0.0375 | M96: 0.0325 | N96: 0.07 | O96: 0.05 | P96: 0.05 | Q96: 0.4448992581 | R96: 0.4947874469 | S96: 364800 | T96: 2539 | U96: 15311 | V96: 0.0325 | W96: 0
B97: 2046 | C97: N | H97: 0.0375 | I97: 0.0325 | J97: 0.07 | K97: 0.05 | L97: 0.0375 | M97: 0.0325 | N97: 0.07 | O97: 0.05 | P97: 0.05 | Q97: 0.428818562 | R97: 0.4792130237 | S97: 378300 | T97: 2634 | U97: 15885 | V97: 0.0325 | W97: 0
B98: 2047 | C98: N | H98: 0.0375 | I98: 0.0325 | J98: 0.07 | K98: 0.05 | L98: 0.0375 | M98: =SP_CPI -> 0.0325 | N98: 0.07 | O98: 0.05 | P98: 0.05 | Q98: 0.4133190959 | R98: 0.4641288365 | S98: 392700 | T98: 2733 | U98: 16481 | V98: 0.0325 | W98: 0
B99: 2048 | C99: N | H99: 0.0375 | I99: 0.0325 | J99: 0.07 | K99: 0.05 | L99: 0.0375 | M99: 0.0325 | N99: =SP_ARStocksDef -> 0.07 | O99: =SP_BondYieldDef -> 0.05 | P99: 0.05 | Q99: 0.3983798515 | R99: 0.4495194542 | S99: 407400 | T99: 2836 | U99: 17099 | V99: 0.0325 | W99: 0
B100: 2049 | C100: N | H100: 0.0375 | I100: 0.0325 | J100: 0.07 | K100: 0.05 | L100: 0.0375 | M100: 0.0325 | N100: 0.07 | O100: 0.05 | P100: 0.05 | Q100: 0.3839805798 | R100: 0.4353699314 | S100: =CEILING($S$45*$Q$43/Q98, 300) -> 422400 | T100: =CEILING($T$45*$Q$43/Q98,1) -> 2942 | U100: =CEILING(U$45*$Q$43/$Q98,1) -> 17740 | V100: 0.0325 | W100: 0
B101: 2050 | C101: N | H101: =IF(IF(COLUMN()=COLUMN(D101),TRUE,ISBLANK(D101)),L101,D101) -> 0.0375 | I101: 0.0325 | J101: =IF(IF(COLUMN()=COLUMN(F101),TRUE,ISBLANK(F101)),N101,F101) -> 0.07 | K101: =IF(IF(COLUMN()=COLUMN(G101),TRUE,ISBLANK(G101)),O101,G101) -> 0.05 | L101: 0.0375 | M101: 0.0325 | N101: 0.07 | O101: 0.05 | P101: =IF(ROW()<ROW(B101),-(1+PV($K102,10,$K101,1))+$K101,$K101) -> 0.05 | Q101: 0.3701017636 | R101: 0.4216657932 | S101: 438300 | T101: 3052 | U101: 18405 | V101: 0.0325 | W101: 0
B102: =B101+1 -> 2051 | C102: N | H102: 0.0375 | I102: 0.0325 | J102: 0.07 | K102: 0.05 | L102: 0.0375 | M102: 0.0325 | N102: 0.07 | O102: 0.05 | P102: 0.05 | Q102: =IF($B102=SC_VersionMaj,1,IF($B102<SC_VersionMaj,Q103*($H102+1),1/(1/Q101*($H101+1)))) -> 0.3567245915 | R102: =IF($B102=SC_VersionMaj,1,IF($B102<SC_VersionMaj,R103*($I102+1),1/(1/R101*($I101+1)))) -> 0.40839302 | S102: 454800 | T102: 3167 | U102: 19095 | V102: 0.0325 | W102: 0
B103: 2052 | C103: N | H103: 0.0375 | I103: 0.0325 | J103: 0.07 | K103: 0.05 | L103: 0.0375 | M103: 0.0325 | N103: 0.07 | O103: 0.05 | P103: 0.05 | Q103: 0.3438309315 | R103: 0.3955380339 | S103: 471900 | T103: 3285 | U103: 19811 | V103: =MAX(I103,0) -> 0.0325 | W103: 0
B104: 2053 | C104: N | H104: 0.0375 | I104: 0.0325 | J104: 0.07 | K104: 0.05 | L104: 0.0375 | M104: 0.0325 | N104: 0.07 | O104: 0.05 | P104: 0.05 | Q104: 0.3314033075 | R104: 0.3830876842 | S104: 489600 | T104: 3409 | U104: 20554 | V104: 0.0325 | W104: 0
B105: 2054 | C105: N | H105: 0.0375 | I105: 0.0325 | J105: 0.07 | K105: 0.05 | L105: 0.0375 | M105: 0.0325 | N105: 0.07 | O105: 0.05 | P105: 0.05 | Q105: 0.3194248747 | R105: 0.3710292341 | S105: 507900 | T105: 3536 | U105: 21325 | V105: 0.0325 | W105: 0
B106: 2055 | C106: N | H106: 0.0375 | I106: 0.0325 | J106: 0.07 | K106: 0.05 | L106: 0.0375 | M106: 0.0325 | N106: 0.07 | O106: 0.05 | P106: 0.05 | Q106: 0.3078793973 | R106: 0.3593503478 | S106: 527100 | T106: 3669 | U106: 22125 | V106: 0.0325 | W106: 0
B107: 2056 | C107: N | H107: 0.0375 | I107: 0.0325 | J107: 0.07 | K107: 0.05 | L107: 0.0375 | M107: 0.0325 | N107: 0.07 | O107: 0.05 | P107: 0.05 | Q107: 0.2967512263 | R107: 0.3480390777 | S107: 546600 | T107: 3807 | U107: 22954 | V107: 0.0325 | W107: 0
B108: 2057 | C108: N | H108: 0.0375 | I108: 0.0325 | J108: 0.07 | K108: 0.05 | L108: 0.0375 | M108: 0.0325 | N108: 0.07 | O108: 0.05 | P108: 0.05 | Q108: 0.2860252784 | R108: 0.3370838525 | S108: 567300 | T108: 3949 | U108: 23815 | V108: 0.0325 | W108: 0
B109: 2058 | C109: N | H109: 0.0375 | I109: 0.0325 | J109: 0.07 | K109: 0.05 | L109: 0.0375 | M109: 0.0325 | N109: 0.07 | O109: 0.05 | P109: 0.05 | Q109: 0.2756870153 | R109: 0.3264734649 | S109: 588600 | T109: 4097 | U109: 24708 | V109: 0.0325 | W109: 0
B110: 2059 | C110: N | H110: 0.0375 | I110: 0.0325 | J110: 0.07 | K110: 0.05 | L110: 0.0375 | M110: 0.0325 | N110: 0.07 | O110: 0.05 | P110: 0.05 | Q110: 0.2657224244 | R110: 0.3161970605 | S110: 610500 | T110: 4251 | U110: 25635 | V110: 0.0325 | W110: 0
B111: 2060 | C111: N | H111: 0.0375 | I111: 0.0325 | J111: 0.07 | K111: 0.05 | L111: 0.0375 | M111: 0.0325 | N111: 0.07 | O111: 0.05 | P111: 0.05 | Q111: 0.2561179994 | R111: 0.3062441264 | S111: 633300 | T111: 4410 | U111: 26596 | V111: 0.0325 | W111: 0
B112: 2061 | C112: N | H112: 0.0375 | I112: 0.0325 | J112: 0.07 | K112: 0.05 | L112: 0.0375 | M112: 0.0325 | N112: 0.07 | O112: 0.05 | P112: 0.05 | Q112: 0.2468607223 | R112: 0.2966044807 | S112: 657300 | T112: 4576 | U112: 27593 | V112: 0.0325 | W112: 0
B113: 2062 | C113: N | H113: 0.0375 | I113: 0.0325 | J113: 0.07 | K113: 0.05 | L113: 0.0375 | M113: 0.0325 | N113: 0.07 | O113: 0.05 | P113: 0.05 | Q113: 0.2379380456 | R113: 0.2872682622 | S113: 681900 | T113: 4747 | U113: 28628 | V113: 0.0325 | W113: 0
B114: 2063 | C114: N | H114: 0.0375 | I114: 0.0325 | J114: 0.07 | K114: 0.05 | L114: 0.0375 | M114: 0.0325 | N114: 0.07 | O114: 0.05 | P114: 0.05 | Q114: 0.2293378753 | R114: 0.2782259198 | S114: 707400 | T114: 4925 | U114: 29702 | V114: 0.0325 | W114: 0
B115: 2064 | C115: N | H115: 0.0375 | I115: 0.0325 | J115: 0.07 | K115: 0.05 | L115: 0.0375 | M115: 0.0325 | N115: 0.07 | O115: 0.05 | P115: 0.05 | Q115: 0.2210485545 | R115: 0.2694682032 | S115: 733800 | T115: 5110 | U115: 30815 | V115: 0.0325 | W115: 0
B116: 2065 | C116: N | H116: 0.0375 | I116: 0.0325 | J116: 0.07 | K116: 0.05 | L116: 0.0375 | M116: 0.0325 | N116: 0.07 | O116: 0.05 | P116: 0.05 | Q116: 0.2130588477 | R116: 0.2609861532 | S116: 761400 | T116: 5302 | U116: 31971 | V116: 0.0325 | W116: 0
B117: 2066 | C117: N | H117: 0.0375 | I117: =IF(IF(COLUMN()=COLUMN(E117),TRUE,ISBLANK(E117)),M117,E117) -> 0.0325 | J117: 0.07 | K117: 0.05 | L117: 0.0375 | M117: 0.0325 | N117: 0.07 | O117: 0.05 | P117: 0.05 | Q117: 0.2053579255 | R117: 0.2527710927 | S117: 789900 | T117: 5500 | U117: 33170 | V117: 0.0325 | W117: 0
B118: 2067 | C118: N | H118: 0.0375 | I118: 0.0325 | J118: 0.07 | K118: 0.05 | L118: 0.0375 | M118: 0.0325 | N118: 0.07 | O118: 0.05 | P118: 0.05 | Q118: 0.1979353499 | R118: 0.2448146176 | S118: 819600 | T118: 5707 | U118: 34414 | V118: 0.0325 | W118: 0
B119: 2068 | C119: N | H119: 0.0375 | I119: 0.0325 | J119: 0.07 | K119: 0.05 | L119: 0.0375 | M119: 0.0325 | N119: 0.07 | O119: 0.05 | P119: 0.05 | Q119: 0.1907810601 | R119: 0.2371085885 | S119: 850200 | T119: 5921 | U119: 35704 | V119: 0.0325 | W119: 0
B120: 2069 | C120: N | H120: 0.0375 | I120: 0.0325 | J120: 0.07 | K120: 0.05 | L120: 0.0375 | M120: 0.0325 | N120: 0.07 | O120: 0.05 | P120: 0.05 | Q120: 0.1838853592 | R120: 0.229645122 | S120: 882300 | T120: 6143 | U120: 37043 | V120: 0.0325 | W120: 0
B121: 2070 | C121: N | H121: 0.0375 | I121: 0.0325 | J121: 0.07 | K121: 0.05 | L121: 0.0375 | M121: 0.0325 | N121: 0.07 | O121: 0.05 | P121: 0.05 | Q121: 0.1772389004 | R121: 0.2224165831 | S121: 915300 | T121: 6373 | U121: 38432 | V121: 0.0325 | W121: 0
B122: 2071 | C122: N | H122: 0.0375 | I122: 0.0325 | J122: 0.07 | K122: 0.05 | L122: 0.0375 | M122: 0.0325 | N122: 0.07 | O122: 0.05 | P122: 0.05 | Q122: 0.1708326751 | R122: 0.2154155769 | S122: 949500 | T122: 6612 | U122: 39873 | V122: 0.0325 | W122: 0
B123: 2072 | C123: N | H123: 0.0375 | I123: 0.0325 | J123: 0.07 | K123: 0.05 | L123: 0.0375 | M123: 0.0325 | N123: 0.07 | O123: 0.05 | P123: 0.05 | Q123: 0.1646580001 | R123: 0.2086349413 | S123: 985200 | T123: 6860 | U123: 41369 | V123: 0.0325 | W123: 0
B124: 2073 | C124: N | H124: 0.0375 | I124: 0.0325 | J124: 0.07 | K124: 0.05 | L124: 0.0375 | M124: 0.0325 | N124: 0.07 | O124: 0.05 | P124: 0.05 | Q124: 0.1587065061 | R124: 0.2020677397 | S124: 1022100 | T124: 7117 | U124: 42920 | V124: 0.0325 | W124: 0
B125: 2074 | C125: N | H125: 0.0375 | I125: 0.0325 | J125: 0.07 | K125: 0.05 | L125: 0.0375 | M125: 0.0325 | N125: 0.07 | O125: 0.05 | P125: 0.05 | Q125: 0.1529701264 | R125: 0.195707254 | S125: 1060500 | T125: 7384 | U125: 44529 | V125: 0.0325 | W125: 0
B126: 2075 | C126: N | H126: 0.0375 | I126: 0.0325 | J126: 0.07 | K126: 0.05 | L126: 0.0375 | M126: 0.0325 | N126: 0.07 | O126: 0.05 | P126: 0.05 | Q126: 0.1474410856 | R126: 0.1895469772 | S126: 1100100 | T126: 7661 | U126: 46199 | V126: 0.0325 | W126: 0
B127: 2076 | C127: N | H127: 0.0375 | I127: 0.0325 | J127: 0.07 | K127: 0.05 | L127: 0.0375 | M127: 0.0325 | N127: 0.07 | O127: 0.05 | P127: 0.05 | Q127: 0.1421118898 | R127: 0.1835806075 | S127: 1141500 | T127: 7948 | U127: 47932 | V127: 0.0325 | W127: 0
B128: 2077 | C128: N | H128: 0.0375 | I128: 0.0325 | J128: 0.07 | K128: 0.05 | L128: =SP_AWI -> 0.0375 | M128: 0.0325 | N128: 0.07 | O128: 0.05 | P128: 0.05 | Q128: 0.1369753154 | R128: 0.1778020411 | S128: 1184400 | T128: 8246 | U128: 49729 | V128: 0.0325 | W128: 0
B129: 2078 | C129: N | H129: 0.0375 | I129: 0.0325 | J129: 0.07 | K129: 0.05 | L129: 0.0375 | M129: 0.0325 | N129: 0.07 | O129: 0.05 | P129: 0.05 | Q129: 0.1320244004 | R129: 0.1722053667 | S129: 1228800 | T129: 8555 | U129: 51594 | V129: 0.0325 | W129: 0
B130: 2079 | C130: N | H130: 0.0375 | I130: 0.0325 | J130: 0.07 | K130: 0.05 | L130: 0.0375 | M130: =SP_CPI -> 0.0325 | N130: 0.07 | O130: 0.05 | P130: 0.05 | Q130: 0.1272524341 | R130: 0.1667848588 | S130: 1274700 | T130: 8876 | U130: 53529 | V130: 0.0325 | W130: 0
B131: 2080 | C131: N | H131: 0.0375 | I131: 0.0325 | J131: 0.07 | K131: 0.05 | L131: 0.0375 | M131: 0.0325 | N131: =SP_ARStocksDef -> 0.07 | O131: =SP_BondYieldDef -> 0.05 | P131: 0.05 | Q131: 0.1226529486 | R131: 0.1615349722 | S131: 1322400 | T131: 9209 | U131: 55536 | V131: 0.0325 | W131: 0
B132: 2081 | C132: N | H132: 0.0375 | I132: 0.0325 | J132: 0.07 | K132: 0.05 | L132: 0.0375 | M132: 0.0325 | N132: 0.07 | O132: 0.05 | P132: 0.05 | Q132: 0.1182197095 | R132: 0.1564503363 | S132: =CEILING($S$45*$Q$43/Q130, 300) -> 1372200 | T132: =CEILING($T$45*$Q$43/Q130,1) -> 9554 | U132: =CEILING(U$45*$Q$43/$Q130,1) -> 57619 | V132: 0.0325 | W132: 0
B133: 2082 | C133: N | H133: =IF(IF(COLUMN()=COLUMN(D133),TRUE,ISBLANK(D133)),L133,D133) -> 0.0375 | I133: 0.0325 | J133: =IF(IF(COLUMN()=COLUMN(F133),TRUE,ISBLANK(F133)),N133,F133) -> 0.07 | K133: =IF(IF(COLUMN()=COLUMN(G133),TRUE,ISBLANK(G133)),O133,G133) -> 0.05 | L133: 0.0375 | M133: 0.0325 | N133: 0.07 | O133: 0.05 | P133: =IF(ROW()<ROW(B133),-(1+PV($K134,10,$K133,1))+$K133,$K133) -> 0.05 | Q133: 0.1139467079 | R133: 0.1515257494 | S133: 1423500 | T133: 9913 | U133: 59779 | V133: 0.0325 | W133: 0 | X133: =IFERROR(VLOOKUP(W133,IV_CodeTable,2,FALSE),"") -> 
B134: =B133+1 -> 2083 | C134: N | H134: 0.0375 | I134: 0.0325 | J134: 0.07 | K134: 0.05 | L134: 0.0375 | M134: 0.0325 | N134: 0.07 | O134: 0.05 | P134: 0.05 | Q134: =IF($B134=SC_VersionMaj,1,IF($B134<SC_VersionMaj,Q135*($H134+1),1/(1/Q133*($H133+1)))) -> 0.1098281522 | R134: =IF($B134=SC_VersionMaj,1,IF($B134<SC_VersionMaj,R135*($I134+1),1/(1/R133*($I133+1)))) -> 0.1467561738 | S134: 1476900 | T134: 10284 | U134: 62021 | V134: 0.0325 | W134: 0
B135: 2084 | C135: N | H135: 0.0375 | I135: 0.0325 | J135: 0.07 | K135: 0.05 | L135: 0.0375 | M135: 0.0325 | N135: 0.07 | O135: 0.05 | P135: 0.05 | Q135: 0.10585846 | R135: 0.14213673 | S135: 1532400 | T135: 10670 | U135: 64347 | V135: =MAX(I135,0) -> 0.0325 | W135: 0
B136: 2085 | C136: N | H136: 0.0375 | I136: 0.0325 | J136: 0.07 | K136: 0.05 | L136: 0.0375 | M136: 0.0325 | N136: 0.07 | O136: 0.05 | P136: 0.05 | Q136: 0.1020322506 | R136: 0.1376626925 | S136: 1589700 | T136: 11070 | U136: 66760 | V136: 0.0325 | W136: 0
B137: 2086 | C137: N | H137: 0.0375 | I137: 0.0325 | J137: 0.07 | K137: 0.05 | L137: 0.0375 | M137: 0.0325 | N137: 0.07 | O137: 0.05 | P137: 0.05 | Q137: 0.0983443379 | R137: 0.1333294843 | S137: 1649400 | T137: 11485 | U137: 69263 | V137: 0.0325 | W137: 0
B138: 2087 | C138: N | H138: 0.0375 | I138: 0.0325 | J138: 0.07 | K138: 0.05 | L138: 0.0375 | M138: 0.0325 | N138: 0.07 | O138: 0.05 | P138: 0.05 | Q138: 0.09478972328 | R138: 0.1291326724 | S138: 1711200 | T138: 11916 | U138: 71860 | V138: 0.0325 | W138: 0
B139: 2088 | C139: N | H139: 0.0375 | I139: 0.0325 | J139: 0.07 | K139: 0.05 | L139: 0.0375 | M139: 0.0325 | N139: 0.07 | O139: 0.05 | P139: 0.05 | Q139: 0.0913635887 | R139: 0.1250679636 | S139: 1775400 | T139: 12363 | U139: 74555 | V139: 0.0325 | W139: 0
B140: 2089 | C140: N | H140: 0.0375 | I140: 0.0325 | J140: 0.07 | K140: 0.05 | L140: 0.0375 | M140: 0.0325 | N140: 0.07 | O140: 0.05 | P140: 0.05 | Q140: 0.08806129031 | R140: 0.1211311996 | S140: 1842000 | T140: 12826 | U140: 77351 | V140: 0.0325 | W140: 0
B141: 2090 | C141: N | H141: 0.0375 | I141: 0.0325 | J141: 0.07 | K141: 0.05 | L141: 0.0375 | M141: 0.0325 | N141: 0.07 | O141: 0.05 | P141: 0.05 | Q141: 0.08487835211 | R141: 0.1173183532 | S141: 1911000 | T141: 13307 | U141: 80252 | V141: 0.0325 | W141: 0
B142: 2091 | C142: N | H142: 0.0375 | I142: 0.0325 | J142: 0.07 | K142: 0.05 | L142: 0.0375 | M142: 0.0325 | N142: 0.07 | O142: 0.05 | P142: 0.05 | Q142: 0.08181045986 | R142: 0.1136255236 | S142: 1982700 | T142: 13806 | U142: 83261 | V142: 0.0325 | W142: 0
B143: 2092 | C143: N | H143: 0.0375 | I143: 0.0325 | J143: 0.07 | K143: 0.05 | L143: 0.0375 | M143: 0.0325 | N143: 0.07 | O143: 0.05 | P143: 0.05 | Q143: 0.07885345529 | R143: 0.1100489333 | S143: 2057100 | T143: 14324 | U143: 86383 | V143: 0.0325 | W143: 0
B144: 2093 | C144: N | H144: 0.0375 | I144: 0.0325 | J144: 0.07 | K144: 0.05 | L144: 0.0375 | M144: 0.0325 | N144: 0.07 | O144: 0.05 | P144: 0.05 | Q144: 0.0760033304 | R144: 0.1065849233 | S144: 2134200 | T144: 14861 | U144: 89623 | V144: 0.0325 | W144: 0
B145: 2094 | C145: N | H145: 0.0375 | I145: 0.0325 | J145: 0.07 | K145: 0.05 | L145: 0.0375 | M145: 0.0325 | N145: 0.07 | O145: 0.05 | P145: 0.05 | Q145: 0.07325622207 | R145: 0.1032299499 | S145: =CEILING($S$45*$Q$43/Q142, 300) -> 2134200 | T145: =CEILING($T$45*$Q$43/Q142,1) -> 14861 | U145: =CEILING(U$45*$Q$43/$Q142,1) -> 89623 | V145: 0.0325 | W145: 0 | X145: =IFERROR(VLOOKUP(W145,IV_CodeTable,2,FALSE),"") -> 
B146: 2095 | C146: N | H146: 0.0375 | I146: 0.0325 | J146: 0.07 | K146: 0.05 | L146: 0.0375 | M146: 0.0325 | N146: 0.07 | O146: 0.05 | P146: 0.05 | Q146: 0.07060840682 | R146: 0.09998058104 | S146: 2214300 | T146: 15419 | U146: 92984 | V146: 0.0325 | W146: 0
B147: 2096 | C147: N | H147: =IF(IF(COLUMN()=COLUMN(D147),TRUE,ISBLANK(D147)),L147,D147) -> 0.0375 | I147: =IF(IF(COLUMN()=COLUMN(E147),TRUE,ISBLANK(E147)),M147,E147) -> 0.0325 | J147: =IF(IF(COLUMN()=COLUMN(F147),TRUE,ISBLANK(F147)),N147,F147) -> 0.07 | K147: =IF(IF(COLUMN()=COLUMN(G147),TRUE,ISBLANK(G147)),O147,G147) -> 0.05 | L147: 0.0375 | M147: 0.0325 | N147: 0.07 | O147: 0.05 | P147: =IF(ROW()<ROW(B147),-(1+PV($K151,10,$K147,1))+$K147,$K147) -> 0.05 | Q147: =IF($B147=SC_VersionMaj,1,IF($B147<SC_VersionMaj,Q151*($H147+1),1/(1/Q146*($H146+1)))) -> 0.06805629573 | R147: =IF($B147=SC_VersionMaj,1,IF($B147<SC_VersionMaj,R151*($I147+1),1/(1/R146*($I146+1)))) -> 0.09683349254 | S147: 2297100 | T147: 15997 | U147: 96470 | V147: 0.0325 | W147: 0 | X147: =IFERROR(VLOOKUP(W147,IV_CodeTable,2,FALSE),"") -> 
B148: 2097 | C148: N | H148: =IF(IF(COLUMN()=COLUMN(D148),TRUE,ISBLANK(D148)),L148,D148) -> 0.0375 | I148: =IF(IF(COLUMN()=COLUMN(E148),TRUE,ISBLANK(E148)),M148,E148) -> 0.0325 | J148: =IF(IF(COLUMN()=COLUMN(F148),TRUE,ISBLANK(F148)),N148,F148) -> 0.07 | K148: =IF(IF(COLUMN()=COLUMN(G148),TRUE,ISBLANK(G148)),O148,G148) -> 0.05 | L148: 0.0375 | M148: 0.0325 | N148: 0.07 | O148: 0.05 | P148: 0.05 | Q148: 0.06559642962 | R148: 0.09378546493 | S148: 2383500 | T148: 16597 | U148: 100088 | V148: =MAX(I148,0) -> 0.0325 | W148: 0 | X148: =IFERROR(VLOOKUP(W148,IV_CodeTable,2,FALSE),"") -> 
B149: 2098 | C149: N | H149: =IF(IF(COLUMN()=COLUMN(D149),TRUE,ISBLANK(D149)),L149,D149) -> 0.0375 | I149: =IF(IF(COLUMN()=COLUMN(E149),TRUE,ISBLANK(E149)),M149,E149) -> 0.0325 | J149: =IF(IF(COLUMN()=COLUMN(F149),TRUE,ISBLANK(F149)),N149,F149) -> 0.07 | K149: =IF(IF(COLUMN()=COLUMN(G149),TRUE,ISBLANK(G149)),O149,G149) -> 0.05 | L149: 0.0375 | M149: 0.0325 | N149: 0.07 | O149: 0.05 | P149: 0.05 | Q149: 0.06322547433 | R149: 0.09083338007 | S149: 2472600 | T149: 17219 | U149: 103841 | V149: =MAX(I149,0) -> 0.0325 | W149: 0 | X149: =IFERROR(VLOOKUP(W149,IV_CodeTable,2,FALSE),"") -> 
B150: 2099 | C150: N | H150: =IF(IF(COLUMN()=COLUMN(D150),TRUE,ISBLANK(D150)),L150,D150) -> 0.0375 | I150: =IF(IF(COLUMN()=COLUMN(E150),TRUE,ISBLANK(E150)),M150,E150) -> 0.0325 | J150: =IF(IF(COLUMN()=COLUMN(F150),TRUE,ISBLANK(F150)),N150,F150) -> 0.07 | K150: =IF(IF(COLUMN()=COLUMN(G150),TRUE,ISBLANK(G150)),O150,G150) -> 0.05 | L150: 0.0375 | M150: 0.0325 | N150: 0.07 | O150: 0.05 | P150: 0.05 | Q150: 0.06094021622 | R150: 0.08797421799 | S150: 2565600 | T150: 17865 | U150: 107735 | V150: =MAX(I150,0) -> 0.0325 | W150: 0 | X150: =IFERROR(VLOOKUP(W150,IV_CodeTable,2,FALSE),"") -> 
B151: 2100 | C151: N | H151: =IF(IF(COLUMN()=COLUMN(D151),TRUE,ISBLANK(D151)),L151,D151) -> 0.0375 | I151: =IF(IF(COLUMN()=COLUMN(E151),TRUE,ISBLANK(E151)),M151,E151) -> 0.0325 | J151: =IF(IF(COLUMN()=COLUMN(F151),TRUE,ISBLANK(F151)),N151,F151) -> 0.07 | K151: =IF(IF(COLUMN()=COLUMN(G151),TRUE,ISBLANK(G151)),O151,G151) -> 0.05 | L151: 0.0375 | M151: 0.0325 | N151: 0.07 | O151: 0.05 | P151: 0.05 | Q151: 0.0587375578 | R151: 0.08520505374 | S151: =CEILING($S$45*$Q$43/Q148, 300) -> 2661600 | T151: =CEILING($T$45*$Q$43/Q148,1) -> 18534 | U151: 111775 | V151: =MAX(I151,0) -> 0.0325 | W151: 0
B152: 2101 | C152: N | H152: =IF(IF(COLUMN()=COLUMN(D152),TRUE,ISBLANK(D152)),L152,D152) -> 0.0375 | I152: =IF(IF(COLUMN()=COLUMN(E152),TRUE,ISBLANK(E152)),M152,E152) -> 0.0325 | J152: =IF(IF(COLUMN()=COLUMN(F152),TRUE,ISBLANK(F152)),N152,F152) -> 0.07 | K152: =IF(IF(COLUMN()=COLUMN(G152),TRUE,ISBLANK(G152)),O152,G152) -> 0.05 | L152: 0.0375 | M152: 0.0325 | N152: 0.07 | O152: 0.05 | P152: 0.05 | Q152: 0.05661451355 | R152: 0.08252305447 | S152: =CEILING($S$45*$Q$43/Q149, 300) -> 2761500 | T152: =CEILING($T$45*$Q$43/Q149,1) -> 19230 | U152: 115967 | V152: =MAX(I152,0) -> 0.0325
B153: 2102 | C153: N | H153: =IF(IF(COLUMN()=COLUMN(D153),TRUE,ISBLANK(D153)),L153,D153) -> 0.0375 | I153: =IF(IF(COLUMN()=COLUMN(E153),TRUE,ISBLANK(E153)),M153,E153) -> 0.0325 | J153: =IF(IF(COLUMN()=COLUMN(F153),TRUE,ISBLANK(F153)),N153,F153) -> 0.07 | K153: =IF(IF(COLUMN()=COLUMN(G153),TRUE,ISBLANK(G153)),O153,G153) -> 0.05 | L153: 0.0375 | M153: 0.0325 | N153: 0.07 | O153: 0.05 | P153: =IF(ROW()<ROW(B153),-(1+PV($K157,10,$K153,1))+$K153,$K153) -> 0.05 | Q153: 0.05456820583 | R153: 0.07992547649 | S153: =CEILING($S$45*$Q$43/Q150, 300) -> 2865000 | T153: =CEILING($T$45*$Q$43/Q150,1) -> 19951 | U153: 120316 | V153: =MAX(I153,0) -> 0.0325

Sheet Income (hidden)
A1: =PMBASIC+PMADVANCED+IF(OR(SP_EI,SP_SEI,SP_PIIRP), VMONLINE+VMMACRO, 0) -> 48 | B1: =PMBASIC+PMADVANCED+VMONLINE+VMMACRO -> 54 | C1: =PMBASIC+PMADVANCED+VMONLINE+VMMACRO -> 54 | D1: =PMBASIC+PMADVANCED+IF(INDEX(SC_ShowRetireatee,2), VMONLINE+VMMACRO, 0) -> 48 | E1: =PMBASIC+PMADVANCED -> 48 | F1: =PMBASIC+PMADVANCED -> 48 | G1: =PMBASIC+PMADVANCED -> 48 | H1: =PMBASIC+PMADVANCED -> 48 | I1: =PMBASIC+PMADVANCED+VMONLINE+VMMACRO -> 54 | J1: =PMBASIC+PMADVANCED -> 48 | K1: =PMBASIC+PMADVANCED -> 48 | L1: =PMBASIC+PMADVANCED+IF(SP_EI, VMONLINE+VMMACRO, 0) -> 48 | M1: =PMBASIC+PMADVANCED+IF(SP_SEI, VMONLINE+VMMACRO, 0) -> 48 | N1: =PMBASIC+PMADVANCED+IF(SP_PIIRP, VMONLINE+VMMACRO, 0) -> 48 | O1: =PMADVANCED+IF(OR(SP_EI,SP_SEI), VMONLINE+VMMACRO, 0) -> 32 | P1: =PMBASIC+PMADVANCED -> 48 | Q1: =PMBASIC+PMADVANCED -> 48 | R1: =PMBASIC+PMADVANCED -> 48 | S1: =PMADVANCED -> 32 | T1: =PMBASIC+PMADVANCED -> 48 | U1: =PMBASIC+PMADVANCED -> 48 | V1: =PMBASIC+PMADVANCED+IF(SP_EI, VMONLINE+VMMACRO, 0) -> 48 | W1: =PMBASIC+PMADVANCED+IF(SP_SEI, VMONLINE+VMMACRO, 0) -> 48 | X1: =PMBASIC+PMADVANCED+IF(AND(SP_EI,SP_SSRIB), VMONLINE+VMMACRO, 0) -> 48 | Y1: =PMBASIC+PMADVANCED+IF(AND(SP_SEI,SP_SSRIB), VMONLINE+VMMACRO, 0) -> 48 | Z1: =PMBASIC+PMADVANCED -> 48 | AA1: =PMADVANCED+IF(SP_SSRIB, VMONLINE+VMMACRO, 0) -> 32 | AB1: =PMADVANCED+IF(SP_SSRIB, VMONLINE+VMMACRO, 0) -> 32 | AC1: =PMBASIC+PMADVANCED -> 48 | AD1: =PMADVANCED+IF(SP_EI, VMONLINE+VMMACRO, 0) -> 32 | AE1: =PMADVANCED+IF(SP_EI, VMONLINE+VMMACRO, 0) -> 32 | AF1: =PMBASIC+PMADVANCED+VMONLINE+VMMACRO -> 54 | AG1: =PMBASIC+PMADVANCED+VMONLINE+VMMACRO -> 54 | AH1: =PMADVANCED+IF(SP_EI, VMONLINE+VMMACRO, 0) -> 32 | AI1: =PMADVANCED+IF(SP_EI, VMONLINE+VMMACRO, 0) -> 32 | AJ1: =PMBASIC+PMADVANCED+VMONLINE+VMMACRO -> 54 | AK1: =PMBASIC+PMADVANCED+VMONLINE+VMMACRO -> 54 | AL1: =PMBASIC+PMADVANCED+VMONLINE+VMMACRO -> 54
A2: =PMBASIC+PMADVANCED+VMONLINE+VMMACRO -> 54 | L2: Ordinary Income | AD2: DB Pension | AF2: Individual | AH2: Household
A3: =PMBASIC+PMADVANCED+VMONLINE+VMMACRO -> 54 | B3: Year | C3: $ | D3: RI | E3: TN | F3: YIW | G3: RN | H3: RO | I3: Age | J3: Age LE | K3: APW | L3: Employer Income | M3: Self-Employment Income | N3: Passive Income | O3: Pre-FICA Deductions | P3: Shadow | Q3: Shadow | R3: Shadow | S3: Shadow | T3: Prorated | U3: Prorated | V3: Medicare Wages | W3: Medicare Wages SE | X3: Social Security Wages | Y3: Social Security Wages SE | Z3: Base Year IDX | AA3: Work Credits | AB3: AIME | AC3: COLA IDX | AD3: Years of Service | AE3: Payout | AF3: Taxable Active Income | AG3: Taxable Passive Income | AH3: Core Account Rollover | AI3: Annuity Rollover | AJ3: Additional Retirement Income | AK3: Active Income | AL3: Passive Income
B4: =SC_YearEpoch-1 -> 1953 | AJ4: 0
B5: =SC_YearEpoch-1 -> 1953
B6: =B4+1 -> 1954 | C6: N | D6: =INDEX(SP_Initials,G6) ->  | E6: =INDEX(SC_TaxIndex,$G6) -> 0 | F6: =MAX($J6+1-INDEX(SP_StartWorkAge,$G6),0) -> 0 | G6: =MOD(ROW(),2)+1 -> 1 | H6: =MOD($G6,2)-($G6-1) -> 1 | I6: =IF(INDEX(SC_ShowRetireatee,$G6),IF($B6<YEAR(INDEX(SP_BirthDate,$G6)),0,$B6-YEAR(INDEX(SP_BirthDate,$G6))),0) -> 0 | J6: =IF(INDEX(SC_ShowRetireatee,$G6),IF($B6>(YEAR(INDEX(SP_BirthDate,$G6))+INDEX(SP_LifeExp,$G6)),0,$I6),0) -> 0 | K6: =IF($B6<SC_TargetRY,1,IF($B6=SC_TargetRY,-(1-YEARFRAC(SP_TargetRD,DATE($B6+1,1,1))),0)) -> 1 | P6: =IF(IF(COLUMN()=COLUMN(L6),TRUE,ISBLANK(L6)), IF(OR($F6=0,$K6=0),0,IF($B6=SP_CurrentYear, 0, IF($B6>SP_CurrentYear, $P4*(1+INDEX(SP_EA_InflationWageRate, EAIDX-1)+INDEX(SP_IncomeEmployerAdj, $G6)), $P8/(1+INDEX(SP_EA_InflationWageRate, EAIDX)+INDEX(SP_IncomeEmployerAdj, $G6))))), L6) -> 0 | Q6: =IF(IF(COLUMN()=COLUMN(M6),TRUE,ISBLANK(M6)), IF(OR($F6=0,$K6=0),0,IF($B6=SP_CurrentYear, 0, IF($B6>SP_CurrentYear, $Q4*(1+INDEX(SP_EA_InflationWageRate, EAIDX-1)+INDEX(SP_IncomeSEAdj, $G6)), 0))), M6) -> 0 | R6: =IF(IF(COLUMN()=COLUMN(N6),TRUE,ISBLANK(N6)), IF($B6=SP_CurrentYear, 0, IF($B6>SP_CurrentYear, $R4*(1+INDEX(SP_EA_InflationWageRate, EAIDX-1)+INDEX(SP_IncomePassiveAdj, $G6)), 0)), N6) -> 0 | S6: =IF(IF(COLUMN()=COLUMN(O6),TRUE,ISBLANK(O6)), IF($B6=SP_CurrentYear,(-INDEX(SC_ExpensesLivingPF,$G6,1)*ABS($K6)-INDEX(SC_ExpensesLivingPF,$G6,2)*(1-ABS($K6)))/INDEX(SC_EA_InflationCPIdx, EAIDX)*12, IF($B6>SP_CurrentYear, $S4*(1+INDEX(SP_EA_InflationCPRate, EAIDX-1)), IF($P6=0, 0,$S8/(1+INDEX(SP_EA_InflationCPRate, EAIDX)))))*ABS($K6), O6) -> 0 | T6: =P6*ABS($K6) -> 0 | U6: =Q6*ABS($K6) -> 0 | V6: =MAX(T6-ABS($S6)*ABS($K6), 0) -> 0 | W6: =MAX(U6-MAX(ABS($S6)*ABS($K6)-P6, 0),0) -> 0 | X6: =IF($J6=0, 0, MAX(MIN(T6-ABS($S6)*ABS($K6), INDEX(SC_EA_SSWageBase, EAIDX)), 0)) -> 0 | Y6: =IF($J6=0, 0, MIN(MAX(U6-MAX(ABS($S6)*ABS($K6)-P6, 0),0), INDEX(SC_EA_SSWageBase, EAIDX)-X6)) -> 0 | Z6: =IF($J6=0,1,IF($B6>=INDEX(SC_SSBaseYear,$G6),1,Z8*(INDEX(SP_EA_InflationWageRate, EAIDX+1)+1))) -> 1 | AA6: =IF($J6=0, 0, ROUNDDOWN(MIN((X6+Y6)*Z6,LT_SSMaxCredit*Z6)/(LT_SSOneCredit*Z6), 0)) -> 0 | AB6: =ROUNDDOWN(AVERAGE(IFERROR(LARGE((X5:X$6+Y5:Y$6)*Z5:Z$6*(G5:G$6=G6), SC_SSCalcYears),0))/(12*Z6),0) -> 0 | AC6: =IF($I6>0, IF($B6<=INDEX(SC_SSBaseYear,$G6)+2,Z6,1/(1/AC4*(INDEX(SC_EA_SSCOLA, EAIDX-1)+1))), 1) -> 1 | AD6: =IF(INDEX(SP_PensionSWD,$G6)="",0,IF(YEAR(INDEX(SP_PensionSWD,$G6))>$B6,0,YEARFRAC(INDEX(SP_PensionSWD,$G6), MIN(DATE($B6+1,1,1),SP_TargetRD)))) -> 0 | AE6: =IF(AND(AD6>0, $B6=SC_TargetRY, INDEX(SP_PensionFAE,$G6)>0),SUMIF(OFFSET(G6,-MIN(INDEX(SP_PensionFAE,$G6),AD6)*2,0,MIN(INDEX(SP_PensionFAE,$G6),AD6)*2),$G6,OFFSET(P6,-MIN(INDEX(SP_PensionFAE,$G6),AD6)*2,0,MIN(INDEX(SP_PensionFAE,$G6),AD6)*2))/MIN(INDEX(SP_PensionFAE,$G6),AD6)*INDEX(SP_PensionPCT,$G6)*AD6,0) -> 0 | AF6: =$T6+$U6 -> 0 | AG6: =$R6 -> 0 | AH6: =SUMIFS($AE6:$AE7,SP_PensionPayout,"Lump sum",$E6:$E7,"<>0") -> 0 | AI6: =SUMIFS($AE6:$AE7,SP_PensionPayout,"Annuity",$E6:$E7,"<>0") -> 0 | AJ6: =IF(ISBLANK(INDEX(SP_SSPBFA,1)),0,IF($J6<>INDEX(SP_SSPBFA,1),AJ4,SP_AdditionalRI/INDEX(SC_EA_InflationWageIdx,EAIDX))) -> 0 | AK6: =SUMPRODUCT(AF6:AF7, --($E6:$E7<>0)) -> 0 | AL6: =SUMPRODUCT(AG6:AG7, --($E6:$E7<>0))+AJ6 -> 0 | AM6: =IFERROR(IF(OR(NOT(ISNUMBER($P6)),$P6<0,NOT(ISNUMBER($Q6)),$Q6<0,NOT(ISNUMBER($R6)),$R6<0,NOT(ISNUMBER($S6)),$S6<0),202,0),203) -> 0 | AN6: =IFERROR(VLOOKUP(AM6,IV_CodeTable,2,FALSE),"") -> 
B7: =B5+1 -> 1954 | C7: N | E7: 0 | F7: 0 | G7: 2 | H7: -1 | I7: 0 | J7: 0 | K7: 1 | P7: 0 | Q7: 0 | R7: 0 | S7: 0 | T7: 0 | U7: 0 | V7: 0 | W7: 0 | X7: 0 | Y7: 0 | Z7: 1 | AA7: 0 | AB7: =ROUNDDOWN(AVERAGE(IFERROR(LARGE((X6:X$6+Y6:Y$6)*Z6:Z$6*(G6:G$6=G7), SC_SSCalcYears),0))/(12*Z7),0) -> 0 | AC7: 1 | AD7: 0 | AE7: 0 | AF7: 0 | AG7: 0 | AM7: 0
B8: 1955 | C8: N | E8: 0 | F8: 0 | G8: 1 | H8: 1 | I8: 0 | J8: 0 | K8: 1 | P8: 0 | Q8: 0 | R8: 0 | S8: 0 | T8: 0 | U8: 0 | V8: 0 | W8: 0 | X8: 0 | Y8: 0 | Z8: 1 | AA8: 0 | AB8: =ROUNDDOWN(AVERAGE(IFERROR(LARGE((X$6:X7+Y$6:Y7)*Z$6:Z7*(G$6:G7=G8), SC_SSCalcYears),0))/(12*Z8),0) -> 0 | AC8: 1 | AD8: 0 | AE8: 0 | AF8: 0 | AG8: 0 | AH8: =SUMIFS($AE8:$AE9,SP_PensionPayout,"Lump sum",$E8:$E9,"<>0") -> 0 | AI8: =SUMIFS($AE8:$AE9,SP_PensionPayout,"Annuity",$E8:$E9,"<>0") -> 0 | AJ8: =IF(ISBLANK(INDEX(SP_SSPBFA,1)),0,IF($J8<>INDEX(SP_SSPBFA,1),AJ6,SP_AdditionalRI/INDEX(SC_EA_InflationWageIdx,EAIDX))) -> 0 | AK8: =SUMPRODUCT(AF8:AF9, --(G8:G9<>0)) -> 0 | AL8: =SUMPRODUCT(AG8:AG9, --(E8:E9<>0))+AJ8 -> 0 | AM8: 0
B9: 1955 | C9: N | E9: 0 | F9: 0 | G9: 2 | H9: -1 | I9: 0 | J9: 0 | K9: 1 | P9: 0 | Q9: 0 | R9: 0 | S9: 0 | T9: 0 | U9: 0 | V9: 0 | W9: 0 | X9: 0 | Y9: 0 | Z9: 1 | AA9: 0 | AB9: =ROUNDDOWN(AVERAGE(IFERROR(LARGE((X$6:X8+Y$6:Y8)*Z$6:Z8*(G$6:G8=G9), SC_SSCalcYears),0))/(12*Z9),0) -> 0 | AC9: 1 | AD9: 0 | AE9: 0 | AF9: 0 | AG9: 0 | AM9: 0
B10: 1956 | C10: N | E10: 0 | F10: 0 | G10: 1 | H10: 1 | I10: 0 | J10: 0 | K10: 1 | P10: 0 | Q10: 0 | R10: 0 | S10: 0 | T10: 0 | U10: 0 | V10: 0 | W10: 0 | X10: 0 | Y10: 0 | Z10: 1 | AA10: 0 | AB10: =ROUNDDOWN(AVERAGE(IFERROR(LARGE((X$6:X9+Y$6:Y9)*Z$6:Z9*(G$6:G9=G10), SC_SSCalcYears),0))/(12*Z10),0) -> 0 | AC10: 1 | AD10: 0 | AE10: 0 | AF10: 0 | AG10: 0 | AH10: =SUMIFS($AE10:$AE11,SP_PensionPayout,"Lump sum",$E10:$E11,"<>0") -> 0 | AI10: =SUMIFS($AE10:$AE11,SP_PensionPayout,"Annuity",$E10:$E11,"<>0") -> 0 | AJ10: =IF(ISBLANK(INDEX(SP_SSPBFA,1)),0,IF($J10<>INDEX(SP_SSPBFA,1),AJ8,SP_AdditionalRI/INDEX(SC_EA_InflationWageIdx,EAIDX))) -> 0 | AK10: =SUMPRODUCT(AF10:AF11, --(G10:G11<>0)) -> 0 | AL10: =SUMPRODUCT(AG10:AG11, --(E10:E11<>0))+AJ10 -> 0 | AM10: 0
B11: 1956 | C11: N | E11: 0 | F11: 0 | G11: 2 | H11: -1 | I11: 0 | J11: 0 | K11: 1 | P11: 0 | Q11: 0 | R11: 0 | S11: 0 | T11: 0 | U11: 0 | V11: 0 | W11: 0 | X11: 0 | Y11: 0 | Z11: 1 | AA11: 0 | AB11: =ROUNDDOWN(AVERAGE(IFERROR(LARGE((X$6:X10+Y$6:Y10)*Z$6:Z10*(G$6:G10=G11), SC_SSCalcYears),0))/(12*Z11),0) -> 0 | AC11: 1 | AD11: 0 | AE11: 0 | AF11: 0 | AG11: 0 | AM11: 0
B12: 1957 | C12: N | E12: 0 | F12: 0 | G12: 1 | H12: 1 | I12: 0 | J12: 0 | K12: 1 | P12: 0 | Q12: 0 | R12: 0 | S12: 0 | T12: 0 | U12: 0 | V12: 0 | W12: 0 | X12: 0 | Y12: 0 | Z12: 1 | AA12: 0 | AB12: =ROUNDDOWN(AVERAGE(IFERROR(LARGE((X$6:X11+Y$6:Y11)*Z$6:Z11*(G$6:G11=G12), SC_SSCalcYears),0))/(12*Z12),0) -> 0 | AC12: 1 | AD12: 0 | AE12: 0 | AF12: 0 | AG12: 0 | AH12: =SUMIFS($AE12:$AE13,SP_PensionPayout,"Lump sum",$E12:$E13,"<>0") -> 0 | AI12: =SUMIFS($AE12:$AE13,SP_PensionPayout,"Annuity",$E12:$E13,"<>0") -> 0 | AJ12: =IF(ISBLANK(INDEX(SP_SSPBFA,1)),0,IF($J12<>INDEX(SP_SSPBFA,1),AJ10,SP_AdditionalRI/INDEX(SC_EA_InflationWageIdx,EAIDX))) -> 0 | AK12: =SUMPRODUCT(AF12:AF13, --(G12:G13<>0)) -> 0 | AL12: =SUMPRODUCT(AG12:AG13, --(E12:E13<>0))+AJ12 -> 0 | AM12: 0
B13: 1957 | C13: N | E13: 0 | F13: 0 | G13: 2 | H13: -1 | I13: 0 | J13: 0 | K13: 1 | P13: 0 | Q13: 0 | R13: 0 | S13: 0 | T13: 0 | U13: 0 | V13: 0 | W13: 0 | X13: 0 | Y13: 0 | Z13: 1 | AA13: 0 | AB13: =ROUNDDOWN(AVERAGE(IFERROR(LARGE((X$6:X12+Y$6:Y12)*Z$6:Z12*(G$6:G12=G13), SC_SSCalcYears),0))/(12*Z13),0) -> 0 | AC13: 1 | AD13: 0 | AE13: 0 | AF13: 0 | AG13: 0 | AM13: 0
B14: 1958 | C14: N | E14: 0 | F14: 0 | G14: 1 | H14: 1 | I14: 0 | J14: 0 | K14: 1 | P14: 0 | Q14: 0 | R14: 0 | S14: 0 | T14: 0 | U14: 0 | V14: 0 | W14: 0 | X14: 0 | Y14: 0 | Z14: 1 | AA14: 0 | AB14: =ROUNDDOWN(AVERAGE(IFERROR(LARGE((X$6:X13+Y$6:Y13)*Z$6:Z13*(G$6:G13=G14), SC_SSCalcYears),0))/(12*Z14),0) -> 0 | AC14: 1 | AD14: 0 | AE14: 0 | AF14: 0 | AG14: 0 | AH14: =SUMIFS($AE14:$AE15,SP_PensionPayout,"Lump sum",$E14:$E15,"<>0") -> 0 | AI14: =SUMIFS($AE14:$AE15,SP_PensionPayout,"Annuity",$E14:$E15,"<>0") -> 0 | AJ14: =IF(ISBLANK(INDEX(SP_SSPBFA,1)),0,IF($J14<>INDEX(SP_SSPBFA,1),AJ12,SP_AdditionalRI/INDEX(SC_EA_InflationWageIdx,EAIDX))) -> 0 | AK14: =SUMPRODUCT(AF14:AF15, --(G14:G15<>0)) -> 0 | AL14: =SUMPRODUCT(AG14:AG15, --(E14:E15<>0))+AJ14 -> 0 | AM14: 0
B15: 1958 | C15: N | E15: 0 | F15: 0 | G15: 2 | H15: -1 | I15: 0 | J15: 0 | K15: 1 | P15: 0 | Q15: 0 | R15: 0 | S15: 0 | T15: 0 | U15: 0 | V15: 0 | W15: 0 | X15: 0 | Y15: 0 | Z15: 1 | AA15: 0 | AB15: =ROUNDDOWN(AVERAGE(IFERROR(LARGE((X$6:X14+Y$6:Y14)*Z$6:Z14*(G$6:G14=G15), SC_SSCalcYears),0))/(12*Z15),0) -> 0 | AC15: 1 | AD15: 0 | AE15: 0 | AF15: 0 | AG15: 0 | AM15: 0
B16: 1959 | C16: N | E16: 0 | F16: 0 | G16: 1 | H16: 1 | I16: 0 | J16: 0 | K16: 1 | P16: 0 | Q16: 0 | R16: 0 | S16: 0 | T16: 0 | U16: 0 | V16: 0 | W16: 0 | X16: 0 | Y16: 0 | Z16: 1 | AA16: 0 | AB16: =ROUNDDOWN(AVERAGE(IFERROR(LARGE((X$6:X15+Y$6:Y15)*Z$6:Z15*(G$6:G15=G16), SC_SSCalcYears),0))/(12*Z16),0) -> 0 | AC16: 1 | AD16: 0 | AE16: 0 | AF16: 0 | AG16: 0 | AH16: =SUMIFS($AE16:$AE17,SP_PensionPayout,"Lump sum",$E16:$E17,"<>0") -> 0 | AI16: =SUMIFS($AE16:$AE17,SP_PensionPayout,"Annuity",$E16:$E17,"<>0") -> 0 | AJ16: =IF(ISBLANK(INDEX(SP_SSPBFA,1)),0,IF($J16<>INDEX(SP_SSPBFA,1),AJ14,SP_AdditionalRI/INDEX(SC_EA_InflationWageIdx,EAIDX))) -> 0 | AK16: =SUMPRODUCT(AF16:AF17, --(G16:G17<>0)) -> 0 | AL16: =SUMPRODUCT(AG16:AG17, --(E16:E17<>0))+AJ16 -> 0 | AM16: 0
B17: 1959 | C17: N | E17: 0 | F17: 0 | G17: 2 | H17: -1 | I17: 0 | J17: 0 | K17: 1 | P17: 0 | Q17: 0 | R17: 0 | S17: 0 | T17: 0 | U17: 0 | V17: 0 | W17: 0 | X17: 0 | Y17: 0 | Z17: 1 | AA17: 0 | AB17: =ROUNDDOWN(AVERAGE(IFERROR(LARGE((X$6:X16+Y$6:Y16)*Z$6:Z16*(G$6:G16=G17), SC_SSCalcYears),0))/(12*Z17),0) -> 0 | AC17: 1 | AD17: 0 | AE17: 0 | AF17: 0 | AG17: 0 | AM17: 0
B18: 1960 | C18: N | E18: 0 | F18: 0 | G18: 1 | H18: 1 | I18: 0 | J18: 0 | K18: 1 | P18: 0 | Q18: 0 | R18: 0 | S18: 0 | T18: 0 | U18: 0 | V18: 0 | W18: 0 | X18: 0 | Y18: 0 | Z18: 1 | AA18: 0 | AB18: =ROUNDDOWN(AVERAGE(IFERROR(LARGE((X$6:X17+Y$6:Y17)*Z$6:Z17*(G$6:G17=G18), SC_SSCalcYears),0))/(12*Z18),0) -> 0 | AC18: 1 | AD18: 0 | AE18: 0 | AF18: 0 | AG18: 0 | AH18: =SUMIFS($AE18:$AE19,SP_PensionPayout,"Lump sum",$E18:$E19,"<>0") -> 0 | AI18: =SUMIFS($AE18:$AE19,SP_PensionPayout,"Annuity",$E18:$E19,"<>0") -> 0 | AJ18: =IF(ISBLANK(INDEX(SP_SSPBFA,1)),0,IF($J18<>INDEX(SP_SSPBFA,1),AJ16,SP_AdditionalRI/INDEX(SC_EA_InflationWageIdx,EAIDX))) -> 0 | AK18: =SUMPRODUCT(AF18:AF19, --(G18:G19<>0)) -> 0 | AL18: =SUMPRODUCT(AG18:AG19, --(E18:E19<>0))+AJ18 -> 0 | AM18: 0
B19: 1960 | C19: N | E19: 0 | F19: 0 | G19: 2 | H19: -1 | I19: 0 | J19: 0 | K19: 1 | P19: 0 | Q19: 0 | R19: 0 | S19: 0 | T19: 0 | U19: 0 | V19: 0 | W19: 0 | X19: 0 | Y19: 0 | Z19: 1 | AA19: 0 | AB19: =ROUNDDOWN(AVERAGE(IFERROR(LARGE((X$6:X18+Y$6:Y18)*Z$6:Z18*(G$6:G18=G19), SC_SSCalcYears),0))/(12*Z19),0) -> 0 | AC19: 1 | AD19: 0 | AE19: 0 | AF19: 0 | AG19: 0 | AM19: 0
B20: 1961 | C20: N | E20: 0 | F20: 0 | G20: 1 | H20: 1 | I20: 0 | J20: 0 | K20: 1 | P20: 0 | Q20: 0 | R20: 0 | S20: 0 | T20: 0 | U20: 0 | V20: 0 | W20: 0 | X20: 0 | Y20: 0 | Z20: 1 | AA20: 0 | AB20: =ROUNDDOWN(AVERAGE(IFERROR(LARGE((X$6:X19+Y$6:Y19)*Z$6:Z19*(G$6:G19=G20), SC_SSCalcYears),0))/(12*Z20),0) -> 0 | AC20: 1 | AD20: 0 | AE20: 0 | AF20: 0 | AG20: 0 | AH20: =SUMIFS($AE20:$AE21,SP_PensionPayout,"Lump sum",$E20:$E21,"<>0") -> 0 | AI20: =SUMIFS($AE20:$AE21,SP_PensionPayout,"Annuity",$E20:$E21,"<>0") -> 0 | AJ20: =IF(ISBLANK(INDEX(SP_SSPBFA,1)),0,IF($J20<>INDEX(SP_SSPBFA,1),AJ18,SP_AdditionalRI/INDEX(SC_EA_InflationWageIdx,EAIDX))) -> 0 | AK20: =SUMPRODUCT(AF20:AF21, --(G20:G21<>0)) -> 0 | AL20: =SUMPRODUCT(AG20:AG21, --(E20:E21<>0))+AJ20 -> 0 | AM20: 0
B21: 1961 | C21: N | E21: 0 | F21: 0 | G21: 2 | H21: -1 | I21: 0 | J21: 0 | K21: 1 | P21: 0 | Q21: 0 | R21: 0 | S21: 0 | T21: 0 | U21: 0 | V21: 0 | W21: 0 | X21: 0 | Y21: 0 | Z21: 1 | AA21: 0 | AB21: =ROUNDDOWN(AVERAGE(IFERROR(LARGE((X$6:X20+Y$6:Y20)*Z$6:Z20*(G$6:G20=G21), SC_SSCalcYears),0))/(12*Z21),0) -> 0 | AC21: 1 | AD21: 0 | AE21: 0 | AF21: 0 | AG21: 0 | AM21: 0
B22: 1962 | C22: N | E22: 0 | F22: 0 | G22: 1 | H22: 1 | I22: 0 | J22: 0 | K22: 1 | P22: 0 | Q22: 0 | R22: 0 | S22: 0 | T22: 0 | U22: 0 | V22: 0 | W22: 0 | X22: 0 | Y22: 0 | Z22: 1 | AA22: 0 | AB22: =ROUNDDOWN(AVERAGE(IFERROR(LARGE((X$6:X21+Y$6:Y21)*Z$6:Z21*(G$6:G21=G22), SC_SSCalcYears),0))/(12*Z22),0) -> 0 | AC22: 1 | AD22: 0 | AE22: 0 | AF22: 0 | AG22: 0 | AH22: =SUMIFS($AE22:$AE23,SP_PensionPayout,"Lump sum",$E22:$E23,"<>0") -> 0 | AI22: =SUMIFS($AE22:$AE23,SP_PensionPayout,"Annuity",$E22:$E23,"<>0") -> 0 | AJ22: =IF(ISBLANK(INDEX(SP_SSPBFA,1)),0,IF($J22<>INDEX(SP_SSPBFA,1),AJ20,SP_AdditionalRI/INDEX(SC_EA_InflationWageIdx,EAIDX))) -> 0 | AK22: =SUMPRODUCT(AF22:AF23, --(G22:G23<>0)) -> 0 | AL22: =SUMPRODUCT(AG22:AG23, --(E22:E23<>0))+AJ22 -> 0 | AM22: 0
B23: 1962 | C23: N | E23: 0 | F23: 0 | G23: 2 | H23: -1 | I23: 0 | J23: 0 | K23: 1 | P23: 0 | Q23: 0 | R23: 0 | S23: 0 | T23: 0 | U23: 0 | V23: 0 | W23: 0 | X23: 0 | Y23: 0 | Z23: 1 | AA23: 0 | AB23: =ROUNDDOWN(AVERAGE(IFERROR(LARGE((X$6:X22+Y$6:Y22)*Z$6:Z22*(G$6:G22=G23), SC_SSCalcYears),0))/(12*Z23),0) -> 0 | AC23: 1 | AD23: 0 | AE23: 0 | AF23: 0 | AG23: 0 | AM23: 0
B24: 1963 | C24: N | E24: 0 | F24: 0 | G24: 1 | H24: 1 | I24: 0 | J24: 0 | K24: 1 | P24: 0 | Q24: 0 | R24: 0 | S24: 0 | T24: 0 | U24: 0 | V24: 0 | W24: 0 | X24: 0 | Y24: 0 | Z24: 1 | AA24: 0 | AB24: =ROUNDDOWN(AVERAGE(IFERROR(LARGE((X$6:X23+Y$6:Y23)*Z$6:Z23*(G$6:G23=G24), SC_SSCalcYears),0))/(12*Z24),0) -> 0 | AC24: 1 | AD24: 0 | AE24: 0 | AF24: 0 | AG24: 0 | AH24: =SUMIFS($AE24:$AE25,SP_PensionPayout,"Lump sum",$E24:$E25,"<>0") -> 0 | AI24: =SUMIFS($AE24:$AE25,SP_PensionPayout,"Annuity",$E24:$E25,"<>0") -> 0 | AJ24: =IF(ISBLANK(INDEX(SP_SSPBFA,1)),0,IF($J24<>INDEX(SP_SSPBFA,1),AJ22,SP_AdditionalRI/INDEX(SC_EA_InflationWageIdx,EAIDX))) -> 0 | AK24: =SUMPRODUCT(AF24:AF25, --(G24:G25<>0)) -> 0 | AL24: =SUMPRODUCT(AG24:AG25, --(E24:E25<>0))+AJ24 -> 0 | AM24: 0
B25: 1963 | C25: N | E25: 0 | F25: 0 | G25: 2 | H25: -1 | I25: 0 | J25: 0 | K25: 1 | P25: 0 | Q25: 0 | R25: 0 | S25: 0 | T25: 0 | U25: 0 | V25: 0 | W25: 0 | X25: 0 | Y25: 0 | Z25: 1 | AA25: 0 | AB25: =ROUNDDOWN(AVERAGE(IFERROR(LARGE((X$6:X24+Y$6:Y24)*Z$6:Z24*(G$6:G24=G25), SC_SSCalcYears),0))/(12*Z25),0) -> 0 | AC25: 1 | AD25: 0 | AE25: 0 | AF25: 0 | AG25: 0 | AM25: 0
B26: 1964 | C26: N | E26: 0 | F26: 0 | G26: 1 | H26: 1 | I26: 0 | J26: 0 | K26: 1 | P26: 0 | Q26: 0 | R26: 0 | S26: 0 | T26: 0 | U26: 0 | V26: 0 | W26: 0 | X26: 0 | Y26: 0 | Z26: 1 | AA26: 0 | AB26: =ROUNDDOWN(AVERAGE(IFERROR(LARGE((X$6:X25+Y$6:Y25)*Z$6:Z25*(G$6:G25=G26), SC_SSCalcYears),0))/(12*Z26),0) -> 0 | AC26: 1 | AD26: 0 | AE26: 0 | AF26: 0 | AG26: 0 | AH26: =SUMIFS($AE26:$AE27,SP_PensionPayout,"Lump sum",$E26:$E27,"<>0") -> 0 | AI26: =SUMIFS($AE26:$AE27,SP_PensionPayout,"Annuity",$E26:$E27,"<>0") -> 0 | AJ26: =IF(ISBLANK(INDEX(SP_SSPBFA,1)),0,IF($J26<>INDEX(SP_SSPBFA,1),AJ24,SP_AdditionalRI/INDEX(SC_EA_InflationWageIdx,EAIDX))) -> 0 | AK26: =SUMPRODUCT(AF26:AF27, --(G26:G27<>0)) -> 0 | AL26: =SUMPRODUCT(AG26:AG27, --(E26:E27<>0))+AJ26 -> 0 | AM26: 0
B27: 1964 | C27: N | E27: 0 | F27: 0 | G27: 2 | H27: -1 | I27: 0 | J27: 0 | K27: 1 | P27: 0 | Q27: 0 | R27: 0 | S27: 0 | T27: 0 | U27: 0 | V27: 0 | W27: 0 | X27: 0 | Y27: 0 | Z27: 1 | AA27: 0 | AB27: =ROUNDDOWN(AVERAGE(IFERROR(LARGE((X$6:X26+Y$6:Y26)*Z$6:Z26*(G$6:G26=G27), SC_SSCalcYears),0))/(12*Z27),0) -> 0 | AC27: 1 | AD27: 0 | AE27: 0 | AF27: 0 | AG27: 0 | AM27: 0
B28: 1965 | C28: N | E28: 0 | F28: 0 | G28: 1 | H28: 1 | I28: 0 | J28: 0 | K28: 1 | P28: 0 | Q28: 0 | R28: 0 | S28: 0 | T28: 0 | U28: 0 | V28: 0 | W28: 0 | X28: 0 | Y28: 0 | Z28: 1 | AA28: 0 | AB28: =ROUNDDOWN(AVERAGE(IFERROR(LARGE((X$6:X27+Y$6:Y27)*Z$6:Z27*(G$6:G27=G28), SC_SSCalcYears),0))/(12*Z28),0) -> 0 | AC28: 1 | AD28: 0 | AE28: 0 | AF28: 0 | AG28: 0 | AH28: =SUMIFS($AE28:$AE29,SP_PensionPayout,"Lump sum",$E28:$E29,"<>0") -> 0 | AI28: =SUMIFS($AE28:$AE29,SP_PensionPayout,"Annuity",$E28:$E29,"<>0") -> 0 | AJ28: =IF(ISBLANK(INDEX(SP_SSPBFA,1)),0,IF($J28<>INDEX(SP_SSPBFA,1),AJ26,SP_AdditionalRI/INDEX(SC_EA_InflationWageIdx,EAIDX))) -> 0 | AK28: =SUMPRODUCT(AF28:AF29, --(G28:G29<>0)) -> 0 | AL28: =SUMPRODUCT(AG28:AG29, --(E28:E29<>0))+AJ28 -> 0 | AM28: 0
B29: 1965 | C29: N | E29: 0 | F29: 0 | G29: 2 | H29: -1 | I29: 0 | J29: 0 | K29: 1 | P29: 0 | Q29: 0 | R29: 0 | S29: 0 | T29: 0 | U29: 0 | V29: 0 | W29: 0 | X29: 0 | Y29: 0 | Z29: 1 | AA29: 0 | AB29: =ROUNDDOWN(AVERAGE(IFERROR(LARGE((X$6:X28+Y$6:Y28)*Z$6:Z28*(G$6:G28=G29), SC_SSCalcYears),0))/(12*Z29),0) -> 0 | AC29: 1 | AD29: 0 | AE29: 0 | AF29: 0 | AG29: 0 | AM29: 0
B30: 1966 | C30: N | E30: 0 | F30: 0 | G30: 1 | H30: 1 | I30: 0 | J30: 0 | K30: 1 | P30: 0 | Q30: 0 | R30: 0 | S30: 0 | T30: 0 | U30: 0 | V30: 0 | W30: 0 | X30: 0 | Y30: 0 | Z30: 1 | AA30: 0 | AB30: =ROUNDDOWN(AVERAGE(IFERROR(LARGE((X$6:X29+Y$6:Y29)*Z$6:Z29*(G$6:G29=G30), SC_SSCalcYears),0))/(12*Z30),0) -> 0 | AC30: 1 | AD30: 0 | AE30: 0 | AF30: 0 | AG30: 0 | AH30: =SUMIFS($AE30:$AE31,SP_PensionPayout,"Lump sum",$E30:$E31,"<>0") -> 0 | AI30: =SUMIFS($AE30:$AE31,SP_PensionPayout,"Annuity",$E30:$E31,"<>0") -> 0 | AJ30: =IF(ISBLANK(INDEX(SP_SSPBFA,1)),0,IF($J30<>INDEX(SP_SSPBFA,1),AJ28,SP_AdditionalRI/INDEX(SC_EA_InflationWageIdx,EAIDX))) -> 0 | AK30: =SUMPRODUCT(AF30:AF31, --(G30:G31<>0)) -> 0 | AL30: =SUMPRODUCT(AG30:AG31, --(E30:E31<>0))+AJ30 -> 0 | AM30: 0
B31: 1966 | C31: N | E31: 0 | F31: 0 | G31: 2 | H31: -1 | I31: 0 | J31: 0 | K31: 1 | P31: 0 | Q31: 0 | R31: 0 | S31: 0 | T31: 0 | U31: 0 | V31: 0 | W31: 0 | X31: 0 | Y31: 0 | Z31: 1 | AA31: 0 | AB31: =ROUNDDOWN(AVERAGE(IFERROR(LARGE((X$6:X30+Y$6:Y30)*Z$6:Z30*(G$6:G30=G31), SC_SSCalcYears),0))/(12*Z31),0) -> 0 | AC31: 1 | AD31: 0 | AE31: 0 | AF31: 0 | AG31: 0 | AM31: 0
B32: 1967 | C32: N | E32: 0 | F32: 0 | G32: 1 | H32: 1 | I32: 0 | J32: 0 | K32: 1 | P32: 0 | Q32: 0 | R32: 0 | S32: 0 | T32: 0 | U32: 0 | V32: 0 | W32: 0 | X32: 0 | Y32: 0 | Z32: 1 | AA32: 0 | AB32: =ROUNDDOWN(AVERAGE(IFERROR(LARGE((X$6:X31+Y$6:Y31)*Z$6:Z31*(G$6:G31=G32), SC_SSCalcYears),0))/(12*Z32),0) -> 0 | AC32: 1 | AD32: 0 | AE32: 0 | AF32: 0 | AG32: 0 | AH32: =SUMIFS($AE32:$AE33,SP_PensionPayout,"Lump sum",$E32:$E33,"<>0") -> 0 | AI32: =SUMIFS($AE32:$AE33,SP_PensionPayout,"Annuity",$E32:$E33,"<>0") -> 0 | AJ32: =IF(ISBLANK(INDEX(SP_SSPBFA,1)),0,IF($J32<>INDEX(SP_SSPBFA,1),AJ30,SP_AdditionalRI/INDEX(SC_EA_InflationWageIdx,EAIDX))) -> 0 | AK32: =SUMPRODUCT(AF32:AF33, --(G32:G33<>0)) -> 0 | AL32: =SUMPRODUCT(AG32:AG33, --(E32:E33<>0))+AJ32 -> 0 | AM32: 0
B33: 1967 | C33: N | E33: 0 | F33: 0 | G33: 2 | H33: -1 | I33: 0 | J33: 0 | K33: 1 | P33: 0 | Q33: 0 | R33: 0 | S33: 0 | T33: 0 | U33: 0 | V33: 0 | W33: 0 | X33: 0 | Y33: 0 | Z33: 1 | AA33: 0 | AB33: =ROUNDDOWN(AVERAGE(IFERROR(LARGE((X$6:X32+Y$6:Y32)*Z$6:Z32*(G$6:G32=G33), SC_SSCalcYears),0))/(12*Z33),0) -> 0 | AC33: 1 | AD33: 0 | AE33: 0 | AF33: 0 | AG33: 0 | AM33: 0
B34: 1968 | C34: N | E34: 0 | F34: 0 | G34: 1 | H34: 1 | I34: 0 | J34: 0 | K34: 1 | P34: 0 | Q34: 0 | R34: 0 | S34: 0 | T34: 0 | U34: 0 | V34: 0 | W34: 0 | X34: 0 | Y34: 0 | Z34: 1 | AA34: 0 | AB34: =ROUNDDOWN(AVERAGE(IFERROR(LARGE((X$6:X33+Y$6:Y33)*Z$6:Z33*(G$6:G33=G34), SC_SSCalcYears),0))/(12*Z34),0) -> 0 | AC34: 1 | AD34: 0 | AE34: 0 | AF34: 0 | AG34: 0 | AH34: =SUMIFS($AE34:$AE35,SP_PensionPayout,"Lump sum",$E34:$E35,"<>0") -> 0 | AI34: =SUMIFS($AE34:$AE35,SP_PensionPayout,"Annuity",$E34:$E35,"<>0") -> 0 | AJ34: =IF(ISBLANK(INDEX(SP_SSPBFA,1)),0,IF($J34<>INDEX(SP_SSPBFA,1),AJ32,SP_AdditionalRI/INDEX(SC_EA_InflationWageIdx,EAIDX))) -> 0 | AK34: =SUMPRODUCT(AF34:AF35, --(G34:G35<>0)) -> 0 | AL34: =SUMPRODUCT(AG34:AG35, --(E34:E35<>0))+AJ34 -> 0 | AM34: 0
B35: 1968 | C35: N | E35: 0 | F35: 0 | G35: 2 | H35: -1 | I35: 0 | J35: 0 | K35: 1 | P35: 0 | Q35: 0 | R35: 0 | S35: 0 | T35: 0 | U35: 0 | V35: 0 | W35: 0 | X35: 0 | Y35: 0 | Z35: 1 | AA35: 0 | AB35: =ROUNDDOWN(AVERAGE(IFERROR(LARGE((X$6:X34+Y$6:Y34)*Z$6:Z34*(G$6:G34=G35), SC_SSCalcYears),0))/(12*Z35),0) -> 0 | AC35: 1 | AD35: 0 | AE35: 0 | AF35: 0 | AG35: 0 | AM35: 0
B36: 1969 | C36: N | E36: 0 | F36: 0 | G36: 1 | H36: 1 | I36: 0 | J36: 0 | K36: 1 | P36: 0 | Q36: 0 | R36: 0 | S36: 0 | T36: 0 | U36: 0 | V36: 0 | W36: 0 | X36: 0 | Y36: 0 | Z36: 1 | AA36: 0 | AB36: =ROUNDDOWN(AVERAGE(IFERROR(LARGE((X$6:X35+Y$6:Y35)*Z$6:Z35*(G$6:G35=G36), SC_SSCalcYears),0))/(12*Z36),0) -> 0 | AC36: 1 | AD36: 0 | AE36: 0 | AF36: 0 | AG36: 0 | AH36: =SUMIFS($AE36:$AE37,SP_PensionPayout,"Lump sum",$E36:$E37,"<>0") -> 0 | AI36: =SUMIFS($AE36:$AE37,SP_PensionPayout,"Annuity",$E36:$E37,"<>0") -> 0 | AJ36: =IF(ISBLANK(INDEX(SP_SSPBFA,1)),0,IF($J36<>INDEX(SP_SSPBFA,1),AJ34,SP_AdditionalRI/INDEX(SC_EA_InflationWageIdx,EAIDX))) -> 0 | AK36: =SUMPRODUCT(AF36:AF37, --(G36:G37<>0)) -> 0 | AL36: =SUMPRODUCT(AG36:AG37, --(E36:E37<>0))+AJ36 -> 0 | AM36: 0
B37: 1969 | C37: N | E37: 0 | F37: 0 | G37: 2 | H37: -1 | I37: 0 | J37: 0 | K37: 1 | P37: 0 | Q37: 0 | R37: 0 | S37: 0 | T37: 0 | U37: 0 | V37: 0 | W37: 0 | X37: 0 | Y37: 0 | Z37: 1 | AA37: 0 | AB37: =ROUNDDOWN(AVERAGE(IFERROR(LARGE((X$6:X36+Y$6:Y36)*Z$6:Z36*(G$6:G36=G37), SC_SSCalcYears),0))/(12*Z37),0) -> 0 | AC37: 1 | AD37: 0 | AE37: 0 | AF37: 0 | AG37: 0 | AM37: 0
B38: 1970 | C38: N | E38: 0 | F38: 0 | G38: 1 | H38: 1 | I38: 0 | J38: 0 | K38: 1 | P38: 0 | Q38: 0 | R38: 0 | S38: 0 | T38: 0 | U38: 0 | V38: 0 | W38: 0 | X38: 0 | Y38: 0 | Z38: 1 | AA38: 0 | AB38: =ROUNDDOWN(AVERAGE(IFERROR(LARGE((X$6:X37+Y$6:Y37)*Z$6:Z37*(G$6:G37=G38), SC_SSCalcYears),0))/(12*Z38),0) -> 0 | AC38: 1 | AD38: 0 | AE38: 0 | AF38: 0 | AG38: 0 | AH38: =SUMIFS($AE38:$AE39,SP_PensionPayout,"Lump sum",$E38:$E39,"<>0") -> 0 | AI38: =SUMIFS($AE38:$AE39,SP_PensionPayout,"Annuity",$E38:$E39,"<>0") -> 0 | AJ38: =IF(ISBLANK(INDEX(SP_SSPBFA,1)),0,IF($J38<>INDEX(SP_SSPBFA,1),AJ36,SP_AdditionalRI/INDEX(SC_EA_InflationWageIdx,EAIDX))) -> 0 | AK38: =SUMPRODUCT(AF38:AF39, --(G38:G39<>0)) -> 0 | AL38: =SUMPRODUCT(AG38:AG39, --(E38:E39<>0))+AJ38 -> 0 | AM38: 0
B39: 1970 | C39: N | E39: 0 | F39: 0 | G39: 2 | H39: -1 | I39: 0 | J39: 0 | K39: 1 | P39: 0 | Q39: 0 | R39: 0 | S39: 0 | T39: 0 | U39: 0 | V39: 0 | W39: 0 | X39: 0 | Y39: 0 | Z39: 1 | AA39: 0 | AB39: =ROUNDDOWN(AVERAGE(IFERROR(LARGE((X$6:X38+Y$6:Y38)*Z$6:Z38*(G$6:G38=G39), SC_SSCalcYears),0))/(12*Z39),0) -> 0 | AC39: 1 | AD39: 0 | AE39: 0 | AF39: 0 | AG39: 0 | AM39: 0
B40: 1971 | C40: N | E40: 0 | F40: 0 | G40: 1 | H40: 1 | I40: 0 | J40: 0 | K40: 1 | P40: 0 | Q40: 0 | R40: 0 | S40: 0 | T40: 0 | U40: 0 | V40: 0 | W40: 0 | X40: 0 | Y40: 0 | Z40: 1 | AA40: 0 | AB40: =ROUNDDOWN(AVERAGE(IFERROR(LARGE((X$6:X39+Y$6:Y39)*Z$6:Z39*(G$6:G39=G40), SC_SSCalcYears),0))/(12*Z40),0) -> 0 | AC40: 1 | AD40: 0 | AE40: 0 | AF40: 0 | AG40: 0 | AH40: =SUMIFS($AE40:$AE41,SP_PensionPayout,"Lump sum",$E40:$E41,"<>0") -> 0 | AI40: =SUMIFS($AE40:$AE41,SP_PensionPayout,"Annuity",$E40:$E41,"<>0") -> 0 | AJ40: =IF(ISBLANK(INDEX(SP_SSPBFA,1)),0,IF($J40<>INDEX(SP_SSPBFA,1),AJ38,SP_AdditionalRI/INDEX(SC_EA_InflationWageIdx,EAIDX))) -> 0 | AK40: =SUMPRODUCT(AF40:AF41, --(G40:G41<>0)) -> 0 | AL40: =SUMPRODUCT(AG40:AG41, --(E40:E41<>0))+AJ40 -> 0 | AM40: 0
B41: 1971 | C41: N | E41: 0 | F41: 0 | G41: 2 | H41: -1 | I41: 0 | J41: 0 | K41: 1 | P41: 0 | Q41: 0 | R41: 0 | S41: 0 | T41: 0 | U41: 0 | V41: 0 | W41: 0 | X41: 0 | Y41: 0 | Z41: 1 | AA41: 0 | AB41: =ROUNDDOWN(AVERAGE(IFERROR(LARGE((X$6:X40+Y$6:Y40)*Z$6:Z40*(G$6:G40=G41), SC_SSCalcYears),0))/(12*Z41),0) -> 0 | AC41: 1 | AD41: 0 | AE41: 0 | AF41: 0 | AG41: 0 | AM41: 0
B42: 1972 | C42: N | E42: 0 | F42: 0 | G42: 1 | H42: 1 | I42: 0 | J42: 0 | K42: 1 | P42: 0 | Q42: 0 | R42: 0 | S42: 0 | T42: 0 | U42: 0 | V42: 0 | W42: 0 | X42: 0 | Y42: 0 | Z42: 1 | AA42: 0 | AB42: =ROUNDDOWN(AVERAGE(IFERROR(LARGE((X$6:X41+Y$6:Y41)*Z$6:Z41*(G$6:G41=G42), SC_SSCalcYears),0))/(12*Z42),0) -> 0 | AC42: 1 | AD42: 0 | AE42: 0 | AF42: 0 | AG42: 0 | AH42: =SUMIFS($AE42:$AE43,SP_PensionPayout,"Lump sum",$E42:$E43,"<>0") -> 0 | AI42: =SUMIFS($AE42:$AE43,SP_PensionPayout,"Annuity",$E42:$E43,"<>0") -> 0 | AJ42: =IF(ISBLANK(INDEX(SP_SSPBFA,1)),0,IF($J42<>INDEX(SP_SSPBFA,1),AJ40,SP_AdditionalRI/INDEX(SC_EA_InflationWageIdx,EAIDX))) -> 0 | AK42: =SUMPRODUCT(AF42:AF43, --(G42:G43<>0)) -> 0 | AL42: =SUMPRODUCT(AG42:AG43, --(E42:E43<>0))+AJ42 -> 0 | AM42: 0
B43: 1972 | C43: N | E43: 0 | F43: 0 | G43: 2 | H43: -1 | I43: 0 | J43: 0 | K43: 1 | P43: 0 | Q43: 0 | R43: 0 | S43: 0 | T43: 0 | U43: 0 | V43: 0 | W43: 0 | X43: 0 | Y43: 0 | Z43: 1 | AA43: 0 | AB43: =ROUNDDOWN(AVERAGE(IFERROR(LARGE((X$6:X42+Y$6:Y42)*Z$6:Z42*(G$6:G42=G43), SC_SSCalcYears),0))/(12*Z43),0) -> 0 | AC43: 1 | AD43: 0 | AE43: 0 | AF43: 0 | AG43: 0 | AM43: 0
B44: 1973 | C44: N | E44: 0 | F44: 0 | G44: 1 | H44: 1 | I44: 0 | J44: 0 | K44: 1 | P44: 0 | Q44: 0 | R44: 0 | S44: 0 | T44: 0 | U44: 0 | V44: 0 | W44: 0 | X44: 0 | Y44: 0 | Z44: 1 | AA44: 0 | AB44: =ROUNDDOWN(AVERAGE(IFERROR(LARGE((X$6:X43+Y$6:Y43)*Z$6:Z43*(G$6:G43=G44), SC_SSCalcYears),0))/(12*Z44),0) -> 0 | AC44: 1 | AD44: 0 | AE44: 0 | AF44: 0 | AG44: 0 | AH44: =SUMIFS($AE44:$AE45,SP_PensionPayout,"Lump sum",$E44:$E45,"<>0") -> 0 | AI44: =SUMIFS($AE44:$AE45,SP_PensionPayout,"Annuity",$E44:$E45,"<>0") -> 0 | AJ44: =IF(ISBLANK(INDEX(SP_SSPBFA,1)),0,IF($J44<>INDEX(SP_SSPBFA,1),AJ42,SP_AdditionalRI/INDEX(SC_EA_InflationWageIdx,EAIDX))) -> 0 | AK44: =SUMPRODUCT(AF44:AF45, --(G44:G45<>0)) -> 0 | AL44: =SUMPRODUCT(AG44:AG45, --(E44:E45<>0))+AJ44 -> 0 | AM44: 0
B45: 1973 | C45: N | E45: 0 | F45: 0 | G45: 2 | H45: -1 | I45: 0 | J45: 0 | K45: 1 | P45: 0 | Q45: 0 | R45: 0 | S45: 0 | T45: 0 | U45: 0 | V45: 0 | W45: 0 | X45: 0 | Y45: 0 | Z45: 1 | AA45: 0 | AB45: =ROUNDDOWN(AVERAGE(IFERROR(LARGE((X$6:X44+Y$6:Y44)*Z$6:Z44*(G$6:G44=G45), SC_SSCalcYears),0))/(12*Z45),0) -> 0 | AC45: 1 | AD45: 0 | AE45: 0 | AF45: 0 | AG45: 0 | AM45: 0
B46: 1974 | C46: N | E46: 0 | F46: 0 | G46: 1 | H46: 1 | I46: 0 | J46: 0 | K46: 1 | P46: 0 | Q46: 0 | R46: 0 | S46: 0 | T46: 0 | U46: 0 | V46: 0 | W46: 0 | X46: 0 | Y46: 0 | Z46: 1 | AA46: 0 | AB46: =ROUNDDOWN(AVERAGE(IFERROR(LARGE((X$6:X45+Y$6:Y45)*Z$6:Z45*(G$6:G45=G46), SC_SSCalcYears),0))/(12*Z46),0) -> 0 | AC46: 1 | AD46: 0 | AE46: 0 | AF46: 0 | AG46: 0 | AH46: =SUMIFS($AE46:$AE47,SP_PensionPayout,"Lump sum",$E46:$E47,"<>0") -> 0 | AI46: =SUMIFS($AE46:$AE47,SP_PensionPayout,"Annuity",$E46:$E47,"<>0") -> 0 | AJ46: =IF(ISBLANK(INDEX(SP_SSPBFA,1)),0,IF($J46<>INDEX(SP_SSPBFA,1),AJ44,SP_AdditionalRI/INDEX(SC_EA_InflationWageIdx,EAIDX))) -> 0 | AK46: =SUMPRODUCT(AF46:AF47, --(G46:G47<>0)) -> 0 | AL46: =SUMPRODUCT(AG46:AG47, --(E46:E47<>0))+AJ46 -> 0 | AM46: 0
B47: 1974 | C47: N | E47: 0 | F47: 0 | G47: 2 | H47: -1 | I47: 0 | J47: 0 | K47: 1 | P47: 0 | Q47: 0 | R47: 0 | S47: 0 | T47: 0 | U47: 0 | V47: 0 | W47: 0 | X47: 0 | Y47: 0 | Z47: 1 | AA47: 0 | AB47: =ROUNDDOWN(AVERAGE(IFERROR(LARGE((X$6:X46+Y$6:Y46)*Z$6:Z46*(G$6:G46=G47), SC_SSCalcYears),0))/(12*Z47),0) -> 0 | AC47: 1 | AD47: 0 | AE47: 0 | AF47: 0 | AG47: 0 | AM47: 0
B48: 1975 | C48: N | E48: 0 | F48: 0 | G48: 1 | H48: 1 | I48: 0 | J48: 0 | K48: 1 | P48: 0 | Q48: 0 | R48: 0 | S48: 0 | T48: 0 | U48: 0 | V48: 0 | W48: 0 | X48: 0 | Y48: 0 | Z48: 1 | AA48: 0 | AB48: =ROUNDDOWN(AVERAGE(IFERROR(LARGE((X$6:X47+Y$6:Y47)*Z$6:Z47*(G$6:G47=G48), SC_SSCalcYears),0))/(12*Z48),0) -> 0 | AC48: 1 | AD48: 0 | AE48: 0 | AF48: 0 | AG48: 0 | AH48: =SUMIFS($AE48:$AE49,SP_PensionPayout,"Lump sum",$E48:$E49,"<>0") -> 0 | AI48: =SUMIFS($AE48:$AE49,SP_PensionPayout,"Annuity",$E48:$E49,"<>0") -> 0 | AJ48: =IF(ISBLANK(INDEX(SP_SSPBFA,1)),0,IF($J48<>INDEX(SP_SSPBFA,1),AJ46,SP_AdditionalRI/INDEX(SC_EA_InflationWageIdx,EAIDX))) -> 0 | AK48: =SUMPRODUCT(AF48:AF49, --(G48:G49<>0)) -> 0 | AL48: =SUMPRODUCT(AG48:AG49, --(E48:E49<>0))+AJ48 -> 0 | AM48: 0
B49: 1975 | C49: N | E49: 0 | F49: 0 | G49: 2 | H49: -1 | I49: 0 | J49: 0 | K49: 1 | P49: 0 | Q49: 0 | R49: 0 | S49: 0 | T49: 0 | U49: 0 | V49: 0 | W49: 0 | X49: 0 | Y49: 0 | Z49: 1 | AA49: 0 | AB49: =ROUNDDOWN(AVERAGE(IFERROR(LARGE((X$6:X48+Y$6:Y48)*Z$6:Z48*(G$6:G48=G49), SC_SSCalcYears),0))/(12*Z49),0) -> 0 | AC49: 1 | AD49: 0 | AE49: 0 | AF49: 0 | AG49: 0 | AM49: 0
B50: 1976 | C50: N | E50: 0 | F50: 0 | G50: 1 | H50: 1 | I50: 0 | J50: 0 | K50: 1 | P50: 0 | Q50: 0 | R50: 0 | S50: 0 | T50: 0 | U50: 0 | V50: 0 | W50: 0 | X50: 0 | Y50: 0 | Z50: 1 | AA50: 0 | AB50: =ROUNDDOWN(AVERAGE(IFERROR(LARGE((X$6:X49+Y$6:Y49)*Z$6:Z49*(G$6:G49=G50), SC_SSCalcYears),0))/(12*Z50),0) -> 0 | AC50: 1 | AD50: 0 | AE50: 0 | AF50: 0 | AG50: 0 | AH50: =SUMIFS($AE50:$AE51,SP_PensionPayout,"Lump sum",$E50:$E51,"<>0") -> 0 | AI50: =SUMIFS($AE50:$AE51,SP_PensionPayout,"Annuity",$E50:$E51,"<>0") -> 0 | AJ50: =IF(ISBLANK(INDEX(SP_SSPBFA,1)),0,IF($J50<>INDEX(SP_SSPBFA,1),AJ48,SP_AdditionalRI/INDEX(SC_EA_InflationWageIdx,EAIDX))) -> 0 | AK50: =SUMPRODUCT(AF50:AF51, --(G50:G51<>0)) -> 0 | AL50: =SUMPRODUCT(AG50:AG51, --(E50:E51<>0))+AJ50 -> 0 | AM50: 0
B51: 1976 | C51: N | E51: 0 | F51: 0 | G51: 2 | H51: -1 | I51: 0 | J51: 0 | K51: 1 | P51: 0 | Q51: 0 | R51: 0 | S51: 0 | T51: 0 | U51: 0 | V51: 0 | W51: 0 | X51: 0 | Y51: 0 | Z51: 1 | AA51: 0 | AB51: =ROUNDDOWN(AVERAGE(IFERROR(LARGE((X$6:X50+Y$6:Y50)*Z$6:Z50*(G$6:G50=G51), SC_SSCalcYears),0))/(12*Z51),0) -> 0 | AC51: 1 | AD51: 0 | AE51: 0 | AF51: 0 | AG51: 0 | AM51: 0
B52: 1977 | C52: N | E52: 0 | F52: 0 | G52: 1 | H52: 1 | I52: 0 | J52: 0 | K52: 1 | P52: 0 | Q52: 0 | R52: 0 | S52: 0 | T52: 0 | U52: 0 | V52: 0 | W52: 0 | X52: 0 | Y52: 0 | Z52: 1 | AA52: 0 | AB52: =ROUNDDOWN(AVERAGE(IFERROR(LARGE((X$6:X51+Y$6:Y51)*Z$6:Z51*(G$6:G51=G52), SC_SSCalcYears),0))/(12*Z52),0) -> 0 | AC52: 1 | AD52: 0 | AE52: 0 | AF52: 0 | AG52: 0 | AH52: =SUMIFS($AE52:$AE53,SP_PensionPayout,"Lump sum",$E52:$E53,"<>0") -> 0 | AI52: =SUMIFS($AE52:$AE53,SP_PensionPayout,"Annuity",$E52:$E53,"<>0") -> 0 | AJ52: =IF(ISBLANK(INDEX(SP_SSPBFA,1)),0,IF($J52<>INDEX(SP_SSPBFA,1),AJ50,SP_AdditionalRI/INDEX(SC_EA_InflationWageIdx,EAIDX))) -> 0 | AK52: =SUMPRODUCT(AF52:AF53, --(G52:G53<>0)) -> 0 | AL52: =SUMPRODUCT(AG52:AG53, --(E52:E53<>0))+AJ52 -> 0 | AM52: 0
B53: 1977 | C53: N | E53: 0 | F53: 0 | G53: 2 | H53: -1 | I53: 0 | J53: 0 | K53: 1 | P53: 0 | Q53: 0 | R53: 0 | S53: 0 | T53: 0 | U53: 0 | V53: 0 | W53: 0 | X53: 0 | Y53: 0 | Z53: 1 | AA53: 0 | AB53: =ROUNDDOWN(AVERAGE(IFERROR(LARGE((X$6:X52+Y$6:Y52)*Z$6:Z52*(G$6:G52=G53), SC_SSCalcYears),0))/(12*Z53),0) -> 0 | AC53: 1 | AD53: 0 | AE53: 0 | AF53: 0 | AG53: 0 | AM53: 0
B54: 1978 | C54: N | E54: 0 | F54: 0 | G54: 1 | H54: 1 | I54: 0 | J54: 0 | K54: 1 | P54: 0 | Q54: 0 | R54: 0 | S54: 0 | T54: 0 | U54: 0 | V54: 0 | W54: 0 | X54: 0 | Y54: 0 | Z54: 1 | AA54: 0 | AB54: =ROUNDDOWN(AVERAGE(IFERROR(LARGE((X$6:X53+Y$6:Y53)*Z$6:Z53*(G$6:G53=G54), SC_SSCalcYears),0))/(12*Z54),0) -> 0 | AC54: 1 | AD54: 0 | AE54: 0 | AF54: 0 | AG54: 0 | AH54: =SUMIFS($AE54:$AE55,SP_PensionPayout,"Lump sum",$E54:$E55,"<>0") -> 0 | AI54: =SUMIFS($AE54:$AE55,SP_PensionPayout,"Annuity",$E54:$E55,"<>0") -> 0 | AJ54: =IF(ISBLANK(INDEX(SP_SSPBFA,1)),0,IF($J54<>INDEX(SP_SSPBFA,1),AJ52,SP_AdditionalRI/INDEX(SC_EA_InflationWageIdx,EAIDX))) -> 0 | AK54: =SUMPRODUCT(AF54:AF55, --(G54:G55<>0)) -> 0 | AL54: =SUMPRODUCT(AG54:AG55, --(E54:E55<>0))+AJ54 -> 0 | AM54: 0
B55: 1978 | C55: N | E55: 0 | F55: 0 | G55: 2 | H55: -1 | I55: 0 | J55: 0 | K55: 1 | P55: 0 | Q55: 0 | R55: 0 | S55: 0 | T55: 0 | U55: 0 | V55: 0 | W55: 0 | X55: 0 | Y55: 0 | Z55: 1 | AA55: 0 | AB55: =ROUNDDOWN(AVERAGE(IFERROR(LARGE((X$6:X54+Y$6:Y54)*Z$6:Z54*(G$6:G54=G55), SC_SSCalcYears),0))/(12*Z55),0) -> 0 | AC55: 1 | AD55: 0 | AE55: 0 | AF55: 0 | AG55: 0 | AM55: 0
B56: 1979 | C56: N | E56: 0 | F56: 0 | G56: 1 | H56: 1 | I56: 0 | J56: 0 | K56: 1 | P56: 0 | Q56: 0 | R56: 0 | S56: 0 | T56: 0 | U56: 0 | V56: 0 | W56: 0 | X56: 0 | Y56: 0 | Z56: 1 | AA56: 0 | AB56: =ROUNDDOWN(AVERAGE(IFERROR(LARGE((X$6:X55+Y$6:Y55)*Z$6:Z55*(G$6:G55=G56), SC_SSCalcYears),0))/(12*Z56),0) -> 0 | AC56: 1 | AD56: 0 | AE56: 0 | AF56: 0 | AG56: 0 | AH56: =SUMIFS($AE56:$AE57,SP_PensionPayout,"Lump sum",$E56:$E57,"<>0") -> 0 | AI56: =SUMIFS($AE56:$AE57,SP_PensionPayout,"Annuity",$E56:$E57,"<>0") -> 0 | AJ56: =IF(ISBLANK(INDEX(SP_SSPBFA,1)),0,IF($J56<>INDEX(SP_SSPBFA,1),AJ54,SP_AdditionalRI/INDEX(SC_EA_InflationWageIdx,EAIDX))) -> 0 | AK56: =SUMPRODUCT(AF56:AF57, --(G56:G57<>0)) -> 0 | AL56: =SUMPRODUCT(AG56:AG57, --(E56:E57<>0))+AJ56 -> 0 | AM56: 0
B57: 1979 | C57: N | E57: 0 | F57: 0 | G57: 2 | H57: -1 | I57: 0 | J57: 0 | K57: 1 | P57: 0 | Q57: 0 | R57: 0 | S57: 0 | T57: 0 | U57: 0 | V57: 0 | W57: 0 | X57: 0 | Y57: 0 | Z57: 1 | AA57: 0 | AB57: =ROUNDDOWN(AVERAGE(IFERROR(LARGE((X$6:X56+Y$6:Y56)*Z$6:Z56*(G$6:G56=G57), SC_SSCalcYears),0))/(12*Z57),0) -> 0 | AC57: 1 | AD57: 0 | AE57: 0 | AF57: 0 | AG57: 0 | AM57: 0
B58: 1980 | C58: N | E58: 0 | F58: 0 | G58: 1 | H58: 1 | I58: 0 | J58: 0 | K58: 1 | P58: 0 | Q58: 0 | R58: 0 | S58: 0 | T58: 0 | U58: 0 | V58: 0 | W58: 0 | X58: 0 | Y58: 0 | Z58: 1 | AA58: 0 | AB58: =ROUNDDOWN(AVERAGE(IFERROR(LARGE((X$6:X57+Y$6:Y57)*Z$6:Z57*(G$6:G57=G58), SC_SSCalcYears),0))/(12*Z58),0) -> 0 | AC58: 1 | AD58: 0 | AE58: 0 | AF58: 0 | AG58: 0 | AH58: =SUMIFS($AE58:$AE59,SP_PensionPayout,"Lump sum",$E58:$E59,"<>0") -> 0 | AI58: =SUMIFS($AE58:$AE59,SP_PensionPayout,"Annuity",$E58:$E59,"<>0") -> 0 | AJ58: =IF(ISBLANK(INDEX(SP_SSPBFA,1)),0,IF($J58<>INDEX(SP_SSPBFA,1),AJ56,SP_AdditionalRI/INDEX(SC_EA_InflationWageIdx,EAIDX))) -> 0 | AK58: =SUMPRODUCT(AF58:AF59, --(G58:G59<>0)) -> 0 | AL58: =SUMPRODUCT(AG58:AG59, --(E58:E59<>0))+AJ58 -> 0 | AM58: 0
B59: 1980 | C59: N | E59: 0 | F59: 0 | G59: 2 | H59: -1 | I59: 0 | J59: 0 | K59: 1 | P59: 0 | Q59: 0 | R59: 0 | S59: 0 | T59: 0 | U59: 0 | V59: 0 | W59: 0 | X59: 0 | Y59: 0 | Z59: 1 | AA59: 0 | AB59: =ROUNDDOWN(AVERAGE(IFERROR(LARGE((X$6:X58+Y$6:Y58)*Z$6:Z58*(G$6:G58=G59), SC_SSCalcYears),0))/(12*Z59),0) -> 0 | AC59: 1 | AD59: 0 | AE59: 0 | AF59: 0 | AG59: 0 | AM59: 0
B60: 1981 | C60: N | E60: 0 | F60: 0 | G60: 1 | H60: 1 | I60: 0 | J60: 0 | K60: 1 | P60: 0 | Q60: 0 | R60: 0 | S60: 0 | T60: 0 | U60: 0 | V60: 0 | W60: 0 | X60: 0 | Y60: 0 | Z60: 1 | AA60: 0 | AB60: =ROUNDDOWN(AVERAGE(IFERROR(LARGE((X$6:X59+Y$6:Y59)*Z$6:Z59*(G$6:G59=G60), SC_SSCalcYears),0))/(12*Z60),0) -> 0 | AC60: 1 | AD60: 0 | AE60: 0 | AF60: 0 | AG60: 0 | AH60: =SUMIFS($AE60:$AE61,SP_PensionPayout,"Lump sum",$E60:$E61,"<>0") -> 0 | AI60: =SUMIFS($AE60:$AE61,SP_PensionPayout,"Annuity",$E60:$E61,"<>0") -> 0 | AJ60: =IF(ISBLANK(INDEX(SP_SSPBFA,1)),0,IF($J60<>INDEX(SP_SSPBFA,1),AJ58,SP_AdditionalRI/INDEX(SC_EA_InflationWageIdx,EAIDX))) -> 0 | AK60: =SUMPRODUCT(AF60:AF61, --(G60:G61<>0)) -> 0 | AL60: =SUMPRODUCT(AG60:AG61, --(E60:E61<>0))+AJ60 -> 0 | AM60: 0
B61: 1981 | C61: N | E61: 0 | F61: 0 | G61: 2 | H61: -1 | I61: 0 | J61: 0 | K61: 1 | P61: 0 | Q61: 0 | R61: 0 | S61: 0 | T61: 0 | U61: 0 | V61: 0 | W61: 0 | X61: 0 | Y61: 0 | Z61: 1 | AA61: 0 | AB61: =ROUNDDOWN(AVERAGE(IFERROR(LARGE((X$6:X60+Y$6:Y60)*Z$6:Z60*(G$6:G60=G61), SC_SSCalcYears),0))/(12*Z61),0) -> 0 | AC61: 1 | AD61: 0 | AE61: 0 | AF61: 0 | AG61: 0 | AM61: 0
B62: 1982 | C62: N | E62: 0 | F62: 0 | G62: 1 | H62: 1 | I62: 0 | J62: 0 | K62: 1 | P62: 0 | Q62: 0 | R62: 0 | S62: 0 | T62: 0 | U62: 0 | V62: 0 | W62: 0 | X62: 0 | Y62: 0 | Z62: 1 | AA62: 0 | AB62: =ROUNDDOWN(AVERAGE(IFERROR(LARGE((X$6:X61+Y$6:Y61)*Z$6:Z61*(G$6:G61=G62), SC_SSCalcYears),0))/(12*Z62),0) -> 0 | AC62: 1 | AD62: 0 | AE62: 0 | AF62: 0 | AG62: 0 | AH62: =SUMIFS($AE62:$AE63,SP_PensionPayout,"Lump sum",$E62:$E63,"<>0") -> 0 | AI62: =SUMIFS($AE62:$AE63,SP_PensionPayout,"Annuity",$E62:$E63,"<>0") -> 0 | AJ62: =IF(ISBLANK(INDEX(SP_SSPBFA,1)),0,IF($J62<>INDEX(SP_SSPBFA,1),AJ60,SP_AdditionalRI/INDEX(SC_EA_InflationWageIdx,EAIDX))) -> 0 | AK62: =SUMPRODUCT(AF62:AF63, --(G62:G63<>0)) -> 0 | AL62: =SUMPRODUCT(AG62:AG63, --(E62:E63<>0))+AJ62 -> 0 | AM62: 0
B63: 1982 | C63: N | E63: 0 | F63: 0 | G63: 2 | H63: -1 | I63: 0 | J63: 0 | K63: 1 | P63: 0 | Q63: 0 | R63: 0 | S63: 0 | T63: 0 | U63: 0 | V63: 0 | W63: 0 | X63: 0 | Y63: 0 | Z63: 1 | AA63: 0 | AB63: =ROUNDDOWN(AVERAGE(IFERROR(LARGE((X$6:X62+Y$6:Y62)*Z$6:Z62*(G$6:G62=G63), SC_SSCalcYears),0))/(12*Z63),0) -> 0 | AC63: 1 | AD63: 0 | AE63: 0 | AF63: 0 | AG63: 0 | AM63: 0
B64: 1983 | C64: N | E64: 0 | F64: 0 | G64: 1 | H64: 1 | I64: 0 | J64: 0 | K64: 1 | P64: 0 | Q64: 0 | R64: 0 | S64: 0 | T64: 0 | U64: 0 | V64: 0 | W64: 0 | X64: 0 | Y64: 0 | Z64: 1 | AA64: 0 | AB64: =ROUNDDOWN(AVERAGE(IFERROR(LARGE((X$6:X63+Y$6:Y63)*Z$6:Z63*(G$6:G63=G64), SC_SSCalcYears),0))/(12*Z64),0) -> 0 | AC64: 1 | AD64: 0 | AE64: 0 | AF64: 0 | AG64: 0 | AH64: =SUMIFS($AE64:$AE65,SP_PensionPayout,"Lump sum",$E64:$E65,"<>0") -> 0 | AI64: =SUMIFS($AE64:$AE65,SP_PensionPayout,"Annuity",$E64:$E65,"<>0") -> 0 | AJ64: =IF(ISBLANK(INDEX(SP_SSPBFA,1)),0,IF($J64<>INDEX(SP_SSPBFA,1),AJ62,SP_AdditionalRI/INDEX(SC_EA_InflationWageIdx,EAIDX))) -> 0 | AK64: =SUMPRODUCT(AF64:AF65, --(G64:G65<>0)) -> 0 | AL64: =SUMPRODUCT(AG64:AG65, --(E64:E65<>0))+AJ64 -> 0 | AM64: 0
B65: 1983 | C65: N | E65: 0 | F65: 0 | G65: 2 | H65: -1 | I65: 0 | J65: 0 | K65: 1 | P65: 0 | Q65: 0 | R65: 0 | S65: 0 | T65: 0 | U65: 0 | V65: 0 | W65: 0 | X65: 0 | Y65: 0 | Z65: 1 | AA65: 0 | AB65: =ROUNDDOWN(AVERAGE(IFERROR(LARGE((X$6:X64+Y$6:Y64)*Z$6:Z64*(G$6:G64=G65), SC_SSCalcYears),0))/(12*Z65),0) -> 0 | AC65: 1 | AD65: 0 | AE65: 0 | AF65: 0 | AG65: 0 | AM65: 0
B66: 1984 | C66: N | E66: 0 | F66: 0 | G66: 1 | H66: 1 | I66: 0 | J66: 0 | K66: 1 | P66: 0 | Q66: 0 | R66: 0 | S66: 0 | T66: 0 | U66: 0 | V66: 0 | W66: 0 | X66: 0 | Y66: 0 | Z66: 1 | AA66: 0 | AB66: =ROUNDDOWN(AVERAGE(IFERROR(LARGE((X$6:X65+Y$6:Y65)*Z$6:Z65*(G$6:G65=G66), SC_SSCalcYears),0))/(12*Z66),0) -> 0 | AC66: 1 | AD66: 0 | AE66: 0 | AF66: 0 | AG66: 0 | AH66: =SUMIFS($AE66:$AE67,SP_PensionPayout,"Lump sum",$E66:$E67,"<>0") -> 0 | AI66: =SUMIFS($AE66:$AE67,SP_PensionPayout,"Annuity",$E66:$E67,"<>0") -> 0 | AJ66: =IF(ISBLANK(INDEX(SP_SSPBFA,1)),0,IF($J66<>INDEX(SP_SSPBFA,1),AJ64,SP_AdditionalRI/INDEX(SC_EA_InflationWageIdx,EAIDX))) -> 0 | AK66: =SUMPRODUCT(AF66:AF67, --(G66:G67<>0)) -> 0 | AL66: =SUMPRODUCT(AG66:AG67, --(E66:E67<>0))+AJ66 -> 0 | AM66: 0
B67: 1984 | C67: N | E67: 0 | F67: 0 | G67: 2 | H67: -1 | I67: 0 | J67: 0 | K67: 1 | P67: 0 | Q67: 0 | R67: 0 | S67: 0 | T67: 0 | U67: 0 | V67: 0 | W67: 0 | X67: 0 | Y67: 0 | Z67: 1 | AA67: 0 | AB67: =ROUNDDOWN(AVERAGE(IFERROR(LARGE((X$6:X66+Y$6:Y66)*Z$6:Z66*(G$6:G66=G67), SC_SSCalcYears),0))/(12*Z67),0) -> 0 | AC67: 1 | AD67: 0 | AE67: 0 | AF67: 0 | AG67: 0 | AM67: 0
B68: 1985 | C68: N | D68: =INDEX(SP_Initials,G68) ->  | E68: =INDEX(SC_TaxIndex,$G68) -> 0 | F68: 0 | G68: 1 | H68: 1 | I68: =IF(INDEX(SC_ShowRetireatee,$G68),IF($B68<YEAR(INDEX(SP_BirthDate,$G68)),0,$B68-YEAR(INDEX(SP_BirthDate,$G68))),0) -> 0 | J68: 0 | K68: =IF($B68<SC_TargetRY,1,IF($B68=SC_TargetRY,-(1-YEARFRAC(SP_TargetRD,DATE($B68+1,1,1))),0)) -> 1 | P68: 0 | Q68: 0 | R68: 0 | S68: 0 | T68: 0 | U68: 0 | V68: 0 | W68: 0 | X68: 0 | Y68: 0 | Z68: 1 | AA68: 0 | AB68: =ROUNDDOWN(AVERAGE(IFERROR(LARGE((X$6:X67+Y$6:Y67)*Z$6:Z67*(G$6:G67=G68), SC_SSCalcYears),0))/(12*Z68),0) -> 0 | AC68: 1 | AD68: 0 | AE68: 0 | AF68: 0 | AG68: 0 | AH68: =SUMIFS($AE68:$AE69,SP_PensionPayout,"Lump sum",$E68:$E69,"<>0") -> 0 | AI68: =SUMIFS($AE68:$AE69,SP_PensionPayout,"Annuity",$E68:$E69,"<>0") -> 0 | AJ68: =IF(ISBLANK(INDEX(SP_SSPBFA,1)),0,IF($J68<>INDEX(SP_SSPBFA,1),AJ66,SP_AdditionalRI/INDEX(SC_EA_InflationWageIdx,EAIDX))) -> 0 | AK68: =SUMPRODUCT(AF68:AF69, --(G68:G69<>0)) -> 0 | AL68: =SUMPRODUCT(AG68:AG69, --(E68:E69<>0))+AJ68 -> 0 | AM68: 0
B69: 1985 | C69: N | E69: 0 | F69: 0 | G69: =MOD(ROW(),2)+1 -> 2 | H69: -1 | I69: 0 | J69: 0 | K69: 1 | P69: 0 | Q69: 0 | R69: 0 | S69: 0 | T69: 0 | U69: 0 | V69: 0 | W69: 0 | X69: 0 | Y69: 0 | Z69: 1 | AA69: 0 | AB69: =ROUNDDOWN(AVERAGE(IFERROR(LARGE((X$6:X68+Y$6:Y68)*Z$6:Z68*(G$6:G68=G69), SC_SSCalcYears),0))/(12*Z69),0) -> 0 | AC69: 1 | AD69: 0 | AE69: 0 | AF69: 0 | AG69: 0 | AM69: 0
B70: 1986 | C70: N | E70: 0 | F70: =MAX($J70+1-INDEX(SP_StartWorkAge,$G70),0) -> 0 | G70: 1 | H70: =MOD($G70,2)-($G70-1) -> 1 | I70: 0 | J70: =IF(INDEX(SC_ShowRetireatee,$G70),IF($B70>(YEAR(INDEX(SP_BirthDate,$G70))+INDEX(SP_LifeExp,$G70)),0,$I70),0) -> 0 | K70: 1 | P70: =IF(IF(COLUMN()=COLUMN(L70),TRUE,ISBLANK(L70)), IF(OR($F70=0,$K70=0),0,IF($B70=SP_CurrentYear, 0, IF($B70>SP_CurrentYear, $P68*(1+INDEX(SP_EA_InflationWageRate, EAIDX-1)+INDEX(SP_IncomeEmployerAdj, $G70)), $P72/(1+INDEX(SP_EA_InflationWageRate, EAIDX)+INDEX(SP_IncomeEmployerAdj, $G70))))), L70) -> 0 | Q70: =IF(IF(COLUMN()=COLUMN(M70),TRUE,ISBLANK(M70)), IF(OR($F70=0,$K70=0),0,IF($B70=SP_CurrentYear, 0, IF($B70>SP_CurrentYear, $Q68*(1+INDEX(SP_EA_InflationWageRate, EAIDX-1)+INDEX(SP_IncomeSEAdj, $G70)), 0))), M70) -> 0 | R70: =IF(IF(COLUMN()=COLUMN(N70),TRUE,ISBLANK(N70)), IF($B70=SP_CurrentYear, 0, IF($B70>SP_CurrentYear, $R68*(1+INDEX(SP_EA_InflationWageRate, EAIDX-1)+INDEX(SP_IncomePassiveAdj, $G70)), 0)), N70) -> 0 | S70: =IF(IF(COLUMN()=COLUMN(O70),TRUE,ISBLANK(O70)), IF($B70=SP_CurrentYear,(-INDEX(SC_ExpensesLivingPF,$G70,1)*ABS($K70)-INDEX(SC_ExpensesLivingPF,$G70,2)*(1-ABS($K70)))/INDEX(SC_EA_InflationCPIdx, EAIDX)*12, IF($B70>SP_CurrentYear, $S68*(1+INDEX(SP_EA_InflationCPRate, EAIDX-1)), IF($P70=0, 0,$S72/(1+INDEX(SP_EA_InflationCPRate, EAIDX)))))*ABS($K70), O70) -> 0 | T70: =P70*ABS($K70) -> 0 | U70: =Q70*ABS($K70) -> 0 | V70: =MAX(T70-ABS($S70)*ABS($K70), 0) -> 0 | W70: =MAX(U70-MAX(ABS($S70)*ABS($K70)-P70, 0),0) -> 0 | X70: =IF($J70=0, 0, MAX(MIN(T70-ABS($S70)*ABS($K70), INDEX(SC_EA_SSWageBase, EAIDX)), 0)) -> 0 | Y70: =IF($J70=0, 0, MIN(MAX(U70-MAX(ABS($S70)*ABS($K70)-P70, 0),0), INDEX(SC_EA_SSWageBase, EAIDX)-X70)) -> 0 | Z70: =IF($J70=0,1,IF($B70>=INDEX(SC_SSBaseYear,$G70),1,Z72*(INDEX(SP_EA_InflationWageRate, EAIDX+1)+1))) -> 1 | AA70: =IF($J70=0, 0, ROUNDDOWN(MIN((X70+Y70)*Z70,LT_SSMaxCredit*Z70)/(LT_SSOneCredit*Z70), 0)) -> 0 | AB70: =ROUNDDOWN(AVERAGE(IFERROR(LARGE((X$6:X69+Y$6:Y69)*Z$6:Z69*(G$6:G69=G70), SC_SSCalcYears),0))/(12*Z70),0) -> 0 | AC70: =IF($I70>0, IF($B70<=INDEX(SC_SSBaseYear,$G70)+2,Z70,1/(1/AC68*(INDEX(SC_EA_SSCOLA, EAIDX-1)+1))), 1) -> 1 | AD70: =IF(INDEX(SP_PensionSWD,$G70)="",0,IF(YEAR(INDEX(SP_PensionSWD,$G70))>$B70,0,YEARFRAC(INDEX(SP_PensionSWD,$G70), MIN(DATE($B70+1,1,1),SP_TargetRD)))) -> 0 | AE70: =IF(AND(AD70>0, $B70=SC_TargetRY, INDEX(SP_PensionFAE,$G70)>0),SUMIF(OFFSET(G70,-MIN(INDEX(SP_PensionFAE,$G70),AD70)*2,0,MIN(INDEX(SP_PensionFAE,$G70),AD70)*2),$G70,OFFSET(P70,-MIN(INDEX(SP_PensionFAE,$G70),AD70)*2,0,MIN(INDEX(SP_PensionFAE,$G70),AD70)*2))/MIN(INDEX(SP_PensionFAE,$G70),AD70)*INDEX(SP_PensionPCT,$G70)*AD70,0) -> 0 | AF70: =$T70+$U70 -> 0 | AG70: =$R70 -> 0 | AH70: =SUMIFS($AE70:$AE71,SP_PensionPayout,"Lump sum",$E70:$E71,"<>0") -> 0 | AI70: =SUMIFS($AE70:$AE71,SP_PensionPayout,"Annuity",$E70:$E71,"<>0") -> 0 | AJ70: =IF(ISBLANK(INDEX(SP_SSPBFA,1)),0,IF($J70<>INDEX(SP_SSPBFA,1),AJ68,SP_AdditionalRI/INDEX(SC_EA_InflationWageIdx,EAIDX))) -> 0 | AK70: =SUMPRODUCT(AF70:AF71, --(G70:G71<>0)) -> 0 | AL70: =SUMPRODUCT(AG70:AG71, --(E70:E71<>0))+AJ70 -> 0 | AM70: =IFERROR(IF(OR(NOT(ISNUMBER($P70)),$P70<0,NOT(ISNUMBER($Q70)),$Q70<0,NOT(ISNUMBER($R70)),$R70<0,NOT(ISNUMBER($S70)),$S70<0),202,0),203) -> 0 | AN70: =IFERROR(VLOOKUP(AM70,IV_CodeTable,2,FALSE),"") -> 
B71: =B69+1 -> 1986 | C71: N | E71: 0 | F71: 0 | G71: 2 | H71: -1 | I71: 0 | J71: 0 | K71: 1 | P71: 0 | Q71: 0 | R71: 0 | S71: 0 | T71: 0 | U71: 0 | V71: 0 | W71: 0 | X71: 0 | Y71: 0 | Z71: 1 | AA71: 0 | AB71: =ROUNDDOWN(AVERAGE(IFERROR(LARGE((X$6:X70+Y$6:Y70)*Z$6:Z70*(G$6:G70=G71), SC_SSCalcYears),0))/(12*Z71),0) -> 0 | AC71: 1 | AD71: 0 | AE71: 0 | AF71: 0 | AG71: 0 | AM71: 0
B72: 1987 | C72: N | E72: 0 | F72: 0 | G72: 1 | H72: 1 | I72: 0 | J72: 0 | K72: 1 | P72: 0 | Q72: 0 | R72: 0 | S72: 0 | T72: 0 | U72: 0 | V72: 0 | W72: 0 | X72: 0 | Y72: 0 | Z72: 1 | AA72: 0 | AB72: =ROUNDDOWN(AVERAGE(IFERROR(LARGE((X$6:X71+Y$6:Y71)*Z$6:Z71*(G$6:G71=G72), SC_SSCalcYears),0))/(12*Z72),0) -> 0 | AC72: 1 | AD72: 0 | AE72: 0 | AF72: 0 | AG72: 0 | AH72: =SUMIFS($AE72:$AE73,SP_PensionPayout,"Lump sum",$E72:$E73,"<>0") -> 0 | AI72: =SUMIFS($AE72:$AE73,SP_PensionPayout,"Annuity",$E72:$E73,"<>0") -> 0 | AJ72: =IF(ISBLANK(INDEX(SP_SSPBFA,1)),0,IF($J72<>INDEX(SP_SSPBFA,1),AJ70,SP_AdditionalRI/INDEX(SC_EA_InflationWageIdx,EAIDX))) -> 0 | AK72: =SUMPRODUCT(AF72:AF73, --(G72:G73<>0)) -> 0 | AL72: =SUMPRODUCT(AG72:AG73, --(E72:E73<>0))+AJ72 -> 0 | AM72: 0
B73: 1987 | C73: N | E73: 0 | F73: 0 | G73: 2 | H73: -1 | I73: 0 | J73: 0 | K73: 1 | P73: 0 | Q73: 0 | R73: 0 | S73: 0 | T73: 0 | U73: 0 | V73: 0 | W73: 0 | X73: 0 | Y73: 0 | Z73: 1 | AA73: 0 | AB73: =ROUNDDOWN(AVERAGE(IFERROR(LARGE((X$6:X72+Y$6:Y72)*Z$6:Z72*(G$6:G72=G73), SC_SSCalcYears),0))/(12*Z73),0) -> 0 | AC73: 1 | AD73: 0 | AE73: 0 | AF73: 0 | AG73: 0 | AM73: 0
B74: 1988 | C74: N | E74: 0 | F74: 0 | G74: 1 | H74: 1 | I74: 0 | J74: 0 | K74: 1 | P74: 0 | Q74: 0 | R74: 0 | S74: 0 | T74: 0 | U74: 0 | V74: 0 | W74: 0 | X74: 0 | Y74: 0 | Z74: 1 | AA74: 0 | AB74: =ROUNDDOWN(AVERAGE(IFERROR(LARGE((X$6:X73+Y$6:Y73)*Z$6:Z73*(G$6:G73=G74), SC_SSCalcYears),0))/(12*Z74),0) -> 0 | AC74: 1 | AD74: 0 | AE74: 0 | AF74: 0 | AG74: 0 | AH74: =SUMIFS($AE74:$AE75,SP_PensionPayout,"Lump sum",$E74:$E75,"<>0") -> 0 | AI74: =SUMIFS($AE74:$AE75,SP_PensionPayout,"Annuity",$E74:$E75,"<>0") -> 0 | AJ74: =IF(ISBLANK(INDEX(SP_SSPBFA,1)),0,IF($J74<>INDEX(SP_SSPBFA,1),AJ72,SP_AdditionalRI/INDEX(SC_EA_InflationWageIdx,EAIDX))) -> 0 | AK74: =SUMPRODUCT(AF74:AF75, --(G74:G75<>0)) -> 0 | AL74: =SUMPRODUCT(AG74:AG75, --(E74:E75<>0))+AJ74 -> 0 | AM74: 0
B75: 1988 | C75: N | E75: 0 | F75: 0 | G75: 2 | H75: -1 | I75: 0 | J75: 0 | K75: 1 | P75: 0 | Q75: 0 | R75: 0 | S75: 0 | T75: 0 | U75: 0 | V75: 0 | W75: 0 | X75: 0 | Y75: 0 | Z75: 1 | AA75: 0 | AB75: =ROUNDDOWN(AVERAGE(IFERROR(LARGE((X$6:X74+Y$6:Y74)*Z$6:Z74*(G$6:G74=G75), SC_SSCalcYears),0))/(12*Z75),0) -> 0 | AC75: 1 | AD75: 0 | AE75: 0 | AF75: 0 | AG75: 0 | AM75: 0
B76: 1989 | C76: N | E76: 0 | F76: 0 | G76: 1 | H76: 1 | I76: 0 | J76: 0 | K76: 1 | P76: 0 | Q76: 0 | R76: 0 | S76: 0 | T76: 0 | U76: 0 | V76: 0 | W76: 0 | X76: 0 | Y76: 0 | Z76: 1 | AA76: 0 | AB76: =ROUNDDOWN(AVERAGE(IFERROR(LARGE((X$6:X75+Y$6:Y75)*Z$6:Z75*(G$6:G75=G76), SC_SSCalcYears),0))/(12*Z76),0) -> 0 | AC76: 1 | AD76: 0 | AE76: 0 | AF76: 0 | AG76: 0 | AH76: =SUMIFS($AE76:$AE77,SP_PensionPayout,"Lump sum",$E76:$E77,"<>0") -> 0 | AI76: =SUMIFS($AE76:$AE77,SP_PensionPayout,"Annuity",$E76:$E77,"<>0") -> 0 | AJ76: =IF(ISBLANK(INDEX(SP_SSPBFA,1)),0,IF($J76<>INDEX(SP_SSPBFA,1),AJ74,SP_AdditionalRI/INDEX(SC_EA_InflationWageIdx,EAIDX))) -> 0 | AK76: =SUMPRODUCT(AF76:AF77, --(G76:G77<>0)) -> 0 | AL76: =SUMPRODUCT(AG76:AG77, --(E76:E77<>0))+AJ76 -> 0 | AM76: 0
B77: 1989 | C77: N | E77: 0 | F77: 0 | G77: 2 | H77: -1 | I77: 0 | J77: 0 | K77: 1 | P77: 0 | Q77: 0 | R77: 0 | S77: 0 | T77: 0 | U77: 0 | V77: 0 | W77: 0 | X77: 0 | Y77: 0 | Z77: 1 | AA77: 0 | AB77: =ROUNDDOWN(AVERAGE(IFERROR(LARGE((X$6:X76+Y$6:Y76)*Z$6:Z76*(G$6:G76=G77), SC_SSCalcYears),0))/(12*Z77),0) -> 0 | AC77: 1 | AD77: 0 | AE77: 0 | AF77: 0 | AG77: 0 | AM77: 0
B78: 1990 | C78: N | E78: 0 | F78: 0 | G78: 1 | H78: 1 | I78: 0 | J78: 0 | K78: 1 | P78: 0 | Q78: 0 | R78: 0 | S78: 0 | T78: 0 | U78: 0 | V78: 0 | W78: 0 | X78: 0 | Y78: 0 | Z78: 1 | AA78: 0 | AB78: =ROUNDDOWN(AVERAGE(IFERROR(LARGE((X$6:X77+Y$6:Y77)*Z$6:Z77*(G$6:G77=G78), SC_SSCalcYears),0))/(12*Z78),0) -> 0 | AC78: 1 | AD78: 0 | AE78: 0 | AF78: 0 | AG78: 0 | AH78: =SUMIFS($AE78:$AE79,SP_PensionPayout,"Lump sum",$E78:$E79,"<>0") -> 0 | AI78: =SUMIFS($AE78:$AE79,SP_PensionPayout,"Annuity",$E78:$E79,"<>0") -> 0 | AJ78: =IF(ISBLANK(INDEX(SP_SSPBFA,1)),0,IF($J78<>INDEX(SP_SSPBFA,1),AJ76,SP_AdditionalRI/INDEX(SC_EA_InflationWageIdx,EAIDX))) -> 0 | AK78: =SUMPRODUCT(AF78:AF79, --(G78:G79<>0)) -> 0 | AL78: =SUMPRODUCT(AG78:AG79, --(E78:E79<>0))+AJ78 -> 0 | AM78: 0
B79: 1990 | C79: N | E79: 0 | F79: 0 | G79: 2 | H79: -1 | I79: 0 | J79: 0 | K79: 1 | P79: 0 | Q79: 0 | R79: 0 | S79: 0 | T79: 0 | U79: 0 | V79: 0 | W79: 0 | X79: 0 | Y79: 0 | Z79: 1 | AA79: 0 | AB79: =ROUNDDOWN(AVERAGE(IFERROR(LARGE((X$6:X78+Y$6:Y78)*Z$6:Z78*(G$6:G78=G79), SC_SSCalcYears),0))/(12*Z79),0) -> 0 | AC79: 1 | AD79: 0 | AE79: 0 | AF79: 0 | AG79: 0 | AM79: 0
B80: 1991 | C80: N | E80: 0 | F80: 0 | G80: 1 | H80: 1 | I80: 0 | J80: 0 | K80: 1 | P80: 0 | Q80: 0 | R80: 0 | S80: 0 | T80: 0 | U80: 0 | V80: 0 | W80: 0 | X80: 0 | Y80: 0 | Z80: 1 | AA80: 0 | AB80: =ROUNDDOWN(AVERAGE(IFERROR(LARGE((X$6:X79+Y$6:Y79)*Z$6:Z79*(G$6:G79=G80), SC_SSCalcYears),0))/(12*Z80),0) -> 0 | AC80: 1 | AD80: 0 | AE80: 0 | AF80: 0 | AG80: 0 | AH80: =SUMIFS($AE80:$AE81,SP_PensionPayout,"Lump sum",$E80:$E81,"<>0") -> 0 | AI80: =SUMIFS($AE80:$AE81,SP_PensionPayout,"Annuity",$E80:$E81,"<>0") -> 0 | AJ80: =IF(ISBLANK(INDEX(SP_SSPBFA,1)),0,IF($J80<>INDEX(SP_SSPBFA,1),AJ78,SP_AdditionalRI/INDEX(SC_EA_InflationWageIdx,EAIDX))) -> 0 | AK80: =SUMPRODUCT(AF80:AF81, --(G80:G81<>0)) -> 0 | AL80: =SUMPRODUCT(AG80:AG81, --(E80:E81<>0))+AJ80 -> 0 | AM80: 0
B81: 1991 | C81: N | E81: 0 | F81: 0 | G81: 2 | H81: -1 | I81: 0 | J81: 0 | K81: 1 | P81: 0 | Q81: 0 | R81: 0 | S81: 0 | T81: 0 | U81: 0 | V81: 0 | W81: 0 | X81: 0 | Y81: 0 | Z81: 1 | AA81: 0 | AB81: =ROUNDDOWN(AVERAGE(IFERROR(LARGE((X$6:X80+Y$6:Y80)*Z$6:Z80*(G$6:G80=G81), SC_SSCalcYears),0))/(12*Z81),0) -> 0 | AC81: 1 | AD81: 0 | AE81: 0 | AF81: 0 | AG81: 0 | AM81: 0
B82: 1992 | C82: N | E82: 0 | F82: 0 | G82: 1 | H82: 1 | I82: 0 | J82: 0 | K82: 1 | P82: 0 | Q82: 0 | R82: 0 | S82: 0 | T82: 0 | U82: 0 | V82: 0 | W82: 0 | X82: 0 | Y82: 0 | Z82: 1 | AA82: 0 | AB82: =ROUNDDOWN(AVERAGE(IFERROR(LARGE((X$6:X81+Y$6:Y81)*Z$6:Z81*(G$6:G81=G82), SC_SSCalcYears),0))/(12*Z82),0) -> 0 | AC82: 1 | AD82: 0 | AE82: 0 | AF82: 0 | AG82: 0 | AH82: =SUMIFS($AE82:$AE83,SP_PensionPayout,"Lump sum",$E82:$E83,"<>0") -> 0 | AI82: =SUMIFS($AE82:$AE83,SP_PensionPayout,"Annuity",$E82:$E83,"<>0") -> 0 | AJ82: =IF(ISBLANK(INDEX(SP_SSPBFA,1)),0,IF($J82<>INDEX(SP_SSPBFA,1),AJ80,SP_AdditionalRI/INDEX(SC_EA_InflationWageIdx,EAIDX))) -> 0 | AK82: =SUMPRODUCT(AF82:AF83, --(G82:G83<>0)) -> 0 | AL82: =SUMPRODUCT(AG82:AG83, --(E82:E83<>0))+AJ82 -> 0 | AM82: 0
B83: 1992 | C83: N | E83: 0 | F83: 0 | G83: 2 | H83: -1 | I83: 0 | J83: 0 | K83: 1 | P83: 0 | Q83: 0 | R83: 0 | S83: 0 | T83: 0 | U83: 0 | V83: 0 | W83: 0 | X83: 0 | Y83: 0 | Z83: 1 | AA83: 0 | AB83: =ROUNDDOWN(AVERAGE(IFERROR(LARGE((X$6:X82+Y$6:Y82)*Z$6:Z82*(G$6:G82=G83), SC_SSCalcYears),0))/(12*Z83),0) -> 0 | AC83: 1 | AD83: 0 | AE83: 0 | AF83: 0 | AG83: 0 | AM83: 0
B84: 1993 | C84: N | E84: 0 | F84: 0 | G84: 1 | H84: 1 | I84: 0 | J84: 0 | K84: 1 | P84: 0 | Q84: 0 | R84: 0 | S84: 0 | T84: 0 | U84: 0 | V84: 0 | W84: 0 | X84: 0 | Y84: 0 | Z84: 1 | AA84: 0 | AB84: =ROUNDDOWN(AVERAGE(IFERROR(LARGE((X$6:X83+Y$6:Y83)*Z$6:Z83*(G$6:G83=G84), SC_SSCalcYears),0))/(12*Z84),0) -> 0 | AC84: 1 | AD84: 0 | AE84: 0 | AF84: 0 | AG84: 0 | AH84: =SUMIFS($AE84:$AE85,SP_PensionPayout,"Lump sum",$E84:$E85,"<>0") -> 0 | AI84: =SUMIFS($AE84:$AE85,SP_PensionPayout,"Annuity",$E84:$E85,"<>0") -> 0 | AJ84: =IF(ISBLANK(INDEX(SP_SSPBFA,1)),0,IF($J84<>INDEX(SP_SSPBFA,1),AJ82,SP_AdditionalRI/INDEX(SC_EA_InflationWageIdx,EAIDX))) -> 0 | AK84: =SUMPRODUCT(AF84:AF85, --(G84:G85<>0)) -> 0 | AL84: =SUMPRODUCT(AG84:AG85, --(E84:E85<>0))+AJ84 -> 0 | AM84: 0
B85: 1993 | C85: N | E85: 0 | F85: 0 | G85: 2 | H85: -1 | I85: 0 | J85: 0 | K85: 1 | P85: 0 | Q85: 0 | R85: 0 | S85: 0 | T85: 0 | U85: 0 | V85: 0 | W85: 0 | X85: 0 | Y85: 0 | Z85: 1 | AA85: 0 | AB85: =ROUNDDOWN(AVERAGE(IFERROR(LARGE((X$6:X84+Y$6:Y84)*Z$6:Z84*(G$6:G84=G85), SC_SSCalcYears),0))/(12*Z85),0) -> 0 | AC85: 1 | AD85: 0 | AE85: 0 | AF85: 0 | AG85: 0 | AM85: 0
B86: 1994 | C86: N | E86: 0 | F86: 0 | G86: 1 | H86: 1 | I86: 0 | J86: 0 | K86: 1 | P86: 0 | Q86: 0 | R86: 0 | S86: 0 | T86: 0 | U86: 0 | V86: 0 | W86: 0 | X86: 0 | Y86: 0 | Z86: 1 | AA86: 0 | AB86: =ROUNDDOWN(AVERAGE(IFERROR(LARGE((X$6:X85+Y$6:Y85)*Z$6:Z85*(G$6:G85=G86), SC_SSCalcYears),0))/(12*Z86),0) -> 0 | AC86: 1 | AD86: 0 | AE86: 0 | AF86: 0 | AG86: 0 | AH86: =SUMIFS($AE86:$AE87,SP_PensionPayout,"Lump sum",$E86:$E87,"<>0") -> 0 | AI86: =SUMIFS($AE86:$AE87,SP_PensionPayout,"Annuity",$E86:$E87,"<>0") -> 0 | AJ86: =IF(ISBLANK(INDEX(SP_SSPBFA,1)),0,IF($J86<>INDEX(SP_SSPBFA,1),AJ84,SP_AdditionalRI/INDEX(SC_EA_InflationWageIdx,EAIDX))) -> 0 | AK86: =SUMPRODUCT(AF86:AF87, --(G86:G87<>0)) -> 0 | AL86: =SUMPRODUCT(AG86:AG87, --(E86:E87<>0))+AJ86 -> 0 | AM86: 0
B87: 1994 | C87: N | E87: 0 | F87: 0 | G87: 2 | H87: -1 | I87: 0 | J87: 0 | K87: 1 | P87: 0 | Q87: 0 | R87: 0 | S87: 0 | T87: 0 | U87: 0 | V87: 0 | W87: 0 | X87: 0 | Y87: 0 | Z87: 1 | AA87: 0 | AB87: =ROUNDDOWN(AVERAGE(IFERROR(LARGE((X$6:X86+Y$6:Y86)*Z$6:Z86*(G$6:G86=G87), SC_SSCalcYears),0))/(12*Z87),0) -> 0 | AC87: 1 | AD87: 0 | AE87: 0 | AF87: 0 | AG87: 0 | AM87: 0
B88: 1995 | C88: N | E88: 0 | F88: 0 | G88: 1 | H88: 1 | I88: 0 | J88: 0 | K88: 1 | P88: 0 | Q88: 0 | R88: 0 | S88: 0 | T88: 0 | U88: 0 | V88: 0 | W88: 0 | X88: 0 | Y88: 0 | Z88: 1 | AA88: 0 | AB88: =ROUNDDOWN(AVERAGE(IFERROR(LARGE((X$6:X87+Y$6:Y87)*Z$6:Z87*(G$6:G87=G88), SC_SSCalcYears),0))/(12*Z88),0) -> 0 | AC88: 1 | AD88: 0 | AE88: 0 | AF88: 0 | AG88: 0 | AH88: =SUMIFS($AE88:$AE89,SP_PensionPayout,"Lump sum",$E88:$E89,"<>0") -> 0 | AI88: =SUMIFS($AE88:$AE89,SP_PensionPayout,"Annuity",$E88:$E89,"<>0") -> 0 | AJ88: =IF(ISBLANK(INDEX(SP_SSPBFA,1)),0,IF($J88<>INDEX(SP_SSPBFA,1),AJ86,SP_AdditionalRI/INDEX(SC_EA_InflationWageIdx,EAIDX))) -> 0 | AK88: =SUMPRODUCT(AF88:AF89, --(G88:G89<>0)) -> 0 | AL88: =SUMPRODUCT(AG88:AG89, --(E88:E89<>0))+AJ88 -> 0 | AM88: 0
B89: 1995 | C89: N | E89: 0 | F89: 0 | G89: 2 | H89: -1 | I89: 0 | J89: 0 | K89: 1 | P89: 0 | Q89: 0 | R89: 0 | S89: 0 | T89: 0 | U89: 0 | V89: 0 | W89: 0 | X89: 0 | Y89: 0 | Z89: 1 | AA89: 0 | AB89: =ROUNDDOWN(AVERAGE(IFERROR(LARGE((X$6:X88+Y$6:Y88)*Z$6:Z88*(G$6:G88=G89), SC_SSCalcYears),0))/(12*Z89),0) -> 0 | AC89: 1 | AD89: 0 | AE89: 0 | AF89: 0 | AG89: 0 | AM89: 0
B90: 1996 | C90: N | E90: 0 | F90: 0 | G90: 1 | H90: 1 | I90: 0 | J90: 0 | K90: 1 | P90: 0 | Q90: 0 | R90: 0 | S90: 0 | T90: 0 | U90: 0 | V90: 0 | W90: 0 | X90: 0 | Y90: 0 | Z90: 1 | AA90: 0 | AB90: =ROUNDDOWN(AVERAGE(IFERROR(LARGE((X$6:X89+Y$6:Y89)*Z$6:Z89*(G$6:G89=G90), SC_SSCalcYears),0))/(12*Z90),0) -> 0 | AC90: 1 | AD90: 0 | AE90: 0 | AF90: 0 | AG90: 0 | AH90: =SUMIFS($AE90:$AE91,SP_PensionPayout,"Lump sum",$E90:$E91,"<>0") -> 0 | AI90: =SUMIFS($AE90:$AE91,SP_PensionPayout,"Annuity",$E90:$E91,"<>0") -> 0 | AJ90: =IF(ISBLANK(INDEX(SP_SSPBFA,1)),0,IF($J90<>INDEX(SP_SSPBFA,1),AJ88,SP_AdditionalRI/INDEX(SC_EA_InflationWageIdx,EAIDX))) -> 0 | AK90: =SUMPRODUCT(AF90:AF91, --(G90:G91<>0)) -> 0 | AL90: =SUMPRODUCT(AG90:AG91, --(E90:E91<>0))+AJ90 -> 0 | AM90: 0
B91: 1996 | C91: N | E91: 0 | F91: 0 | G91: 2 | H91: -1 | I91: 0 | J91: 0 | K91: 1 | P91: 0 | Q91: 0 | R91: 0 | S91: 0 | T91: 0 | U91: 0 | V91: 0 | W91: 0 | X91: 0 | Y91: 0 | Z91: 1 | AA91: 0 | AB91: =ROUNDDOWN(AVERAGE(IFERROR(LARGE((X$6:X90+Y$6:Y90)*Z$6:Z90*(G$6:G90=G91), SC_SSCalcYears),0))/(12*Z91),0) -> 0 | AC91: 1 | AD91: 0 | AE91: 0 | AF91: 0 | AG91: 0 | AM91: 0
B92: 1997 | C92: N | E92: 0 | F92: 0 | G92: 1 | H92: 1 | I92: 0 | J92: 0 | K92: 1 | P92: 0 | Q92: 0 | R92: 0 | S92: 0 | T92: 0 | U92: 0 | V92: 0 | W92: 0 | X92: 0 | Y92: 0 | Z92: 1 | AA92: 0 | AB92: =ROUNDDOWN(AVERAGE(IFERROR(LARGE((X$6:X91+Y$6:Y91)*Z$6:Z91*(G$6:G91=G92), SC_SSCalcYears),0))/(12*Z92),0) -> 0 | AC92: 1 | AD92: 0 | AE92: 0 | AF92: 0 | AG92: 0 | AH92: =SUMIFS($AE92:$AE93,SP_PensionPayout,"Lump sum",$E92:$E93,"<>0") -> 0 | AI92: =SUMIFS($AE92:$AE93,SP_PensionPayout,"Annuity",$E92:$E93,"<>0") -> 0 | AJ92: =IF(ISBLANK(INDEX(SP_SSPBFA,1)),0,IF($J92<>INDEX(SP_SSPBFA,1),AJ90,SP_AdditionalRI/INDEX(SC_EA_InflationWageIdx,EAIDX))) -> 0 | AK92: =SUMPRODUCT(AF92:AF93, --(G92:G93<>0)) -> 0 | AL92: =SUMPRODUCT(AG92:AG93, --(E92:E93<>0))+AJ92 -> 0 | AM92: 0
B93: 1997 | C93: N | E93: 0 | F93: 0 | G93: 2 | H93: -1 | I93: 0 | J93: 0 | K93: 1 | P93: 0 | Q93: 0 | R93: 0 | S93: 0 | T93: 0 | U93: 0 | V93: 0 | W93: 0 | X93: 0 | Y93: 0 | Z93: 1 | AA93: 0 | AB93: =ROUNDDOWN(AVERAGE(IFERROR(LARGE((X$6:X92+Y$6:Y92)*Z$6:Z92*(G$6:G92=G93), SC_SSCalcYears),0))/(12*Z93),0) -> 0 | AC93: 1 | AD93: 0 | AE93: 0 | AF93: 0 | AG93: 0 | AM93: 0
B94: 1998 | C94: N | E94: 0 | F94: 0 | G94: 1 | H94: 1 | I94: 0 | J94: 0 | K94: 1 | P94: 0 | Q94: 0 | R94: 0 | S94: 0 | T94: 0 | U94: 0 | V94: 0 | W94: 0 | X94: 0 | Y94: 0 | Z94: 1 | AA94: 0 | AB94: =ROUNDDOWN(AVERAGE(IFERROR(LARGE((X$6:X93+Y$6:Y93)*Z$6:Z93*(G$6:G93=G94), SC_SSCalcYears),0))/(12*Z94),0) -> 0 | AC94: 1 | AD94: 0 | AE94: 0 | AF94: 0 | AG94: 0 | AH94: =SUMIFS($AE94:$AE95,SP_PensionPayout,"Lump sum",$E94:$E95,"<>0") -> 0 | AI94: =SUMIFS($AE94:$AE95,SP_PensionPayout,"Annuity",$E94:$E95,"<>0") -> 0 | AJ94: =IF(ISBLANK(INDEX(SP_SSPBFA,1)),0,IF($J94<>INDEX(SP_SSPBFA,1),AJ92,SP_AdditionalRI/INDEX(SC_EA_InflationWageIdx,EAIDX))) -> 0 | AK94: =SUMPRODUCT(AF94:AF95, --(G94:G95<>0)) -> 0 | AL94: =SUMPRODUCT(AG94:AG95, --(E94:E95<>0))+AJ94 -> 0 | AM94: 0
B95: 1998 | C95: N | E95: 0 | F95: 0 | G95: 2 | H95: -1 | I95: 0 | J95: 0 | K95: 1 | P95: 0 | Q95: 0 | R95: 0 | S95: 0 | T95: 0 | U95: 0 | V95: 0 | W95: 0 | X95: 0 | Y95: 0 | Z95: 1 | AA95: 0 | AB95: =ROUNDDOWN(AVERAGE(IFERROR(LARGE((X$6:X94+Y$6:Y94)*Z$6:Z94*(G$6:G94=G95), SC_SSCalcYears),0))/(12*Z95),0) -> 0 | AC95: 1 | AD95: 0 | AE95: 0 | AF95: 0 | AG95: 0 | AM95: 0
B96: 1999 | C96: N | E96: 0 | F96: 0 | G96: 1 | H96: 1 | I96: 0 | J96: 0 | K96: 1 | P96: 0 | Q96: 0 | R96: 0 | S96: 0 | T96: 0 | U96: 0 | V96: 0 | W96: 0 | X96: 0 | Y96: 0 | Z96: 1 | AA96: 0 | AB96: =ROUNDDOWN(AVERAGE(IFERROR(LARGE((X$6:X95+Y$6:Y95)*Z$6:Z95*(G$6:G95=G96), SC_SSCalcYears),0))/(12*Z96),0) -> 0 | AC96: 1 | AD96: 0 | AE96: 0 | AF96: 0 | AG96: 0 | AH96: =SUMIFS($AE96:$AE97,SP_PensionPayout,"Lump sum",$E96:$E97,"<>0") -> 0 | AI96: =SUMIFS($AE96:$AE97,SP_PensionPayout,"Annuity",$E96:$E97,"<>0") -> 0 | AJ96: =IF(ISBLANK(INDEX(SP_SSPBFA,1)),0,IF($J96<>INDEX(SP_SSPBFA,1),AJ94,SP_AdditionalRI/INDEX(SC_EA_InflationWageIdx,EAIDX))) -> 0 | AK96: =SUMPRODUCT(AF96:AF97, --(G96:G97<>0)) -> 0 | AL96: =SUMPRODUCT(AG96:AG97, --(E96:E97<>0))+AJ96 -> 0 | AM96: 0
B97: 1999 | C97: N | E97: 0 | F97: 0 | G97: 2 | H97: -1 | I97: 0 | J97: 0 | K97: 1 | P97: 0 | Q97: 0 | R97: 0 | S97: 0 | T97: 0 | U97: 0 | V97: 0 | W97: 0 | X97: 0 | Y97: 0 | Z97: 1 | AA97: 0 | AB97: =ROUNDDOWN(AVERAGE(IFERROR(LARGE((X$6:X96+Y$6:Y96)*Z$6:Z96*(G$6:G96=G97), SC_SSCalcYears),0))/(12*Z97),0) -> 0 | AC97: 1 | AD97: 0 | AE97: 0 | AF97: 0 | AG97: 0 | AM97: 0
B98: 2000 | C98: N | E98: 0 | F98: 0 | G98: 1 | H98: 1 | I98: 0 | J98: 0 | K98: 1 | P98: 0 | Q98: 0 | R98: 0 | S98: 0 | T98: 0 | U98: 0 | V98: 0 | W98: 0 | X98: 0 | Y98: 0 | Z98: 1 | AA98: 0 | AB98: =ROUNDDOWN(AVERAGE(IFERROR(LARGE((X$6:X97+Y$6:Y97)*Z$6:Z97*(G$6:G97=G98), SC_SSCalcYears),0))/(12*Z98),0) -> 0 | AC98: 1 | AD98: 0 | AE98: 0 | AF98: 0 | AG98: 0 | AH98: =SUMIFS($AE98:$AE99,SP_PensionPayout,"Lump sum",$E98:$E99,"<>0") -> 0 | AI98: =SUMIFS($AE98:$AE99,SP_PensionPayout,"Annuity",$E98:$E99,"<>0") -> 0 | AJ98: =IF(ISBLANK(INDEX(SP_SSPBFA,1)),0,IF($J98<>INDEX(SP_SSPBFA,1),AJ96,SP_AdditionalRI/INDEX(SC_EA_InflationWageIdx,EAIDX))) -> 0 | AK98: =SUMPRODUCT(AF98:AF99, --(G98:G99<>0)) -> 0 | AL98: =SUMPRODUCT(AG98:AG99, --(E98:E99<>0))+AJ98 -> 0 | AM98: 0
B99: 2000 | C99: N | E99: 0 | F99: 0 | G99: 2 | H99: -1 | I99: 0 | J99: 0 | K99: 1 | P99: 0 | Q99: 0 | R99: 0 | S99: 0 | T99: 0 | U99: 0 | V99: 0 | W99: 0 | X99: 0 | Y99: 0 | Z99: 1 | AA99: 0 | AB99: =ROUNDDOWN(AVERAGE(IFERROR(LARGE((X$6:X98+Y$6:Y98)*Z$6:Z98*(G$6:G98=G99), SC_SSCalcYears),0))/(12*Z99),0) -> 0 | AC99: 1 | AD99: 0 | AE99: 0 | AF99: 0 | AG99: 0 | AM99: 0
B100: 2001 | C100: N | E100: 0 | F100: 0 | G100: 1 | H100: 1 | I100: 0 | J100: 0 | K100: 1 | P100: 0 | Q100: 0 | R100: 0 | S100: 0 | T100: 0 | U100: 0 | V100: 0 | W100: 0 | X100: 0 | Y100: 0 | Z100: 1 | AA100: 0 | AB100: =ROUNDDOWN(AVERAGE(IFERROR(LARGE((X$6:X99+Y$6:Y99)*Z$6:Z99*(G$6:G99=G100), SC_SSCalcYears),0))/(12*Z100),0) -> 0 | AC100: 1 | AD100: 0 | AE100: 0 | AF100: 0 | AG100: 0 | AH100: =SUMIFS($AE100:$AE101,SP_PensionPayout,"Lump sum",$E100:$E101,"<>0") -> 0 | AI100: =SUMIFS($AE100:$AE101,SP_PensionPayout,"Annuity",$E100:$E101,"<>0") -> 0 | AJ100: =IF(ISBLANK(INDEX(SP_SSPBFA,1)),0,IF($J100<>INDEX(SP_SSPBFA,1),AJ98,SP_AdditionalRI/INDEX(SC_EA_InflationWageIdx,EAIDX))) -> 0 | AK100: =SUMPRODUCT(AF100:AF101, --(G100:G101<>0)) -> 0 | AL100: =SUMPRODUCT(AG100:AG101, --(E100:E101<>0))+AJ100 -> 0 | AM100: 0
B101: 2001 | C101: N | E101: 0 | F101: 0 | G101: 2 | H101: -1 | I101: 0 | J101: 0 | K101: 1 | P101: 0 | Q101: 0 | R101: 0 | S101: 0 | T101: 0 | U101: 0 | V101: 0 | W101: 0 | X101: 0 | Y101: 0 | Z101: 1 | AA101: 0 | AB101: =ROUNDDOWN(AVERAGE(IFERROR(LARGE((X$6:X100+Y$6:Y100)*Z$6:Z100*(G$6:G100=G101), SC_SSCalcYears),0))/(12*Z101),0) -> 0 | AC101: 1 | AD101: 0 | AE101: 0 | AF101: 0 | AG101: 0 | AM101: 0
B102: 2002 | C102: N | E102: 0 | F102: 0 | G102: 1 | H102: 1 | I102: 0 | J102: 0 | K102: 1 | P102: 0 | Q102: 0 | R102: 0 | S102: 0 | T102: 0 | U102: 0 | V102: 0 | W102: 0 | X102: 0 | Y102: 0 | Z102: 1 | AA102: 0 | AB102: =ROUNDDOWN(AVERAGE(IFERROR(LARGE((X$6:X101+Y$6:Y101)*Z$6:Z101*(G$6:G101=G102), SC_SSCalcYears),0))/(12*Z102),0) -> 0 | AC102: 1 | AD102: 0 | AE102: 0 | AF102: 0 | AG102: 0 | AH102: =SUMIFS($AE102:$AE103,SP_PensionPayout,"Lump sum",$E102:$E103,"<>0") -> 0 | AI102: =SUMIFS($AE102:$AE103,SP_PensionPayout,"Annuity",$E102:$E103,"<>0") -> 0 | AJ102: =IF(ISBLANK(INDEX(SP_SSPBFA,1)),0,IF($J102<>INDEX(SP_SSPBFA,1),AJ100,SP_AdditionalRI/INDEX(SC_EA_InflationWageIdx,EAIDX))) -> 0 | AK102: =SUMPRODUCT(AF102:AF103, --(G102:G103<>0)) -> 0 | AL102: =SUMPRODUCT(AG102:AG103, --(E102:E103<>0))+AJ102 -> 0 | AM102: 0
B103: 2002 | C103: N | E103: 0 | F103: 0 | G103: 2 | H103: -1 | I103: 0 | J103: 0 | K103: 1 | P103: 0 | Q103: 0 | R103: 0 | S103: 0 | T103: 0 | U103: 0 | V103: 0 | W103: 0 | X103: 0 | Y103: 0 | Z103: 1 | AA103: 0 | AB103: =ROUNDDOWN(AVERAGE(IFERROR(LARGE((X$6:X102+Y$6:Y102)*Z$6:Z102*(G$6:G102=G103), SC_SSCalcYears),0))/(12*Z103),0) -> 0 | AC103: 1 | AD103: 0 | AE103: 0 | AF103: 0 | AG103: 0 | AM103: 0
B104: 2003 | C104: N | E104: 0 | F104: 0 | G104: 1 | H104: 1 | I104: 0 | J104: 0 | K104: 1 | P104: 0 | Q104: 0 | R104: 0 | S104: 0 | T104: 0 | U104: 0 | V104: 0 | W104: 0 | X104: 0 | Y104: 0 | Z104: 1 | AA104: 0 | AB104: =ROUNDDOWN(AVERAGE(IFERROR(LARGE((X$6:X103+Y$6:Y103)*Z$6:Z103*(G$6:G103=G104), SC_SSCalcYears),0))/(12*Z104),0) -> 0 | AC104: 1 | AD104: 0 | AE104: 0 | AF104: 0 | AG104: 0 | AH104: =SUMIFS($AE104:$AE105,SP_PensionPayout,"Lump sum",$E104:$E105,"<>0") -> 0 | AI104: =SUMIFS($AE104:$AE105,SP_PensionPayout,"Annuity",$E104:$E105,"<>0") -> 0 | AJ104: =IF(ISBLANK(INDEX(SP_SSPBFA,1)),0,IF($J104<>INDEX(SP_SSPBFA,1),AJ102,SP_AdditionalRI/INDEX(SC_EA_InflationWageIdx,EAIDX))) -> 0 | AK104: =SUMPRODUCT(AF104:AF105, --(G104:G105<>0)) -> 0 | AL104: =SUMPRODUCT(AG104:AG105, --(E104:E105<>0))+AJ104 -> 0 | AM104: 0
B105: 2003 | C105: N | E105: 0 | F105: 0 | G105: 2 | H105: -1 | I105: 0 | J105: 0 | K105: 1 | P105: 0 | Q105: 0 | R105: 0 | S105: 0 | T105: 0 | U105: 0 | V105: 0 | W105: 0 | X105: 0 | Y105: 0 | Z105: 1 | AA105: 0 | AB105: =ROUNDDOWN(AVERAGE(IFERROR(LARGE((X$6:X104+Y$6:Y104)*Z$6:Z104*(G$6:G104=G105), SC_SSCalcYears),0))/(12*Z105),0) -> 0 | AC105: 1 | AD105: 0 | AE105: 0 | AF105: 0 | AG105: 0 | AM105: 0
B106: 2004 | C106: N | E106: 0 | F106: 0 | G106: 1 | H106: 1 | I106: 0 | J106: 0 | K106: 1 | P106: 0 | Q106: 0 | R106: 0 | S106: 0 | T106: 0 | U106: 0 | V106: 0 | W106: 0 | X106: 0 | Y106: 0 | Z106: 1 | AA106: 0 | AB106: =ROUNDDOWN(AVERAGE(IFERROR(LARGE((X$6:X105+Y$6:Y105)*Z$6:Z105*(G$6:G105=G106), SC_SSCalcYears),0))/(12*Z106),0) -> 0 | AC106: 1 | AD106: 0 | AE106: 0 | AF106: 0 | AG106: 0 | AH106: =SUMIFS($AE106:$AE107,SP_PensionPayout,"Lump sum",$E106:$E107,"<>0") -> 0 | AI106: =SUMIFS($AE106:$AE107,SP_PensionPayout,"Annuity",$E106:$E107,"<>0") -> 0 | AJ106: =IF(ISBLANK(INDEX(SP_SSPBFA,1)),0,IF($J106<>INDEX(SP_SSPBFA,1),AJ104,SP_AdditionalRI/INDEX(SC_EA_InflationWageIdx,EAIDX))) -> 0 | AK106: =SUMPRODUCT(AF106:AF107, --(G106:G107<>0)) -> 0 | AL106: =SUMPRODUCT(AG106:AG107, --(E106:E107<>0))+AJ106 -> 0 | AM106: 0
B107: 2004 | C107: N | E107: 0 | F107: 0 | G107: 2 | H107: -1 | I107: 0 | J107: 0 | K107: 1 | P107: 0 | Q107: 0 | R107: 0 | S107: 0 | T107: 0 | U107: 0 | V107: 0 | W107: 0 | X107: 0 | Y107: 0 | Z107: 1 | AA107: 0 | AB107: =ROUNDDOWN(AVERAGE(IFERROR(LARGE((X$6:X106+Y$6:Y106)*Z$6:Z106*(G$6:G106=G107), SC_SSCalcYears),0))/(12*Z107),0) -> 0 | AC107: 1 | AD107: 0 | AE107: 0 | AF107: 0 | AG107: 0 | AM107: 0
B108: 2005 | C108: N | E108: 0 | F108: 0 | G108: 1 | H108: 1 | I108: 0 | J108: 0 | K108: 1 | P108: 0 | Q108: 0 | R108: 0 | S108: 0 | T108: 0 | U108: 0 | V108: 0 | W108: 0 | X108: 0 | Y108: 0 | Z108: 1 | AA108: 0 | AB108: =ROUNDDOWN(AVERAGE(IFERROR(LARGE((X$6:X107+Y$6:Y107)*Z$6:Z107*(G$6:G107=G108), SC_SSCalcYears),0))/(12*Z108),0) -> 0 | AC108: 1 | AD108: 0 | AE108: 0 | AF108: 0 | AG108: 0 | AH108: =SUMIFS($AE108:$AE109,SP_PensionPayout,"Lump sum",$E108:$E109,"<>0") -> 0 | AI108: =SUMIFS($AE108:$AE109,SP_PensionPayout,"Annuity",$E108:$E109,"<>0") -> 0 | AJ108: =IF(ISBLANK(INDEX(SP_SSPBFA,1)),0,IF($J108<>INDEX(SP_SSPBFA,1),AJ106,SP_AdditionalRI/INDEX(SC_EA_InflationWageIdx,EAIDX))) -> 0 | AK108: =SUMPRODUCT(AF108:AF109, --(G108:G109<>0)) -> 0 | AL108: =SUMPRODUCT(AG108:AG109, --(E108:E109<>0))+AJ108 -> 0 | AM108: 0
B109: 2005 | C109: N | E109: 0 | F109: 0 | G109: 2 | H109: -1 | I109: 0 | J109: 0 | K109: 1 | P109: 0 | Q109: 0 | R109: 0 | S109: 0 | T109: 0 | U109: 0 | V109: 0 | W109: 0 | X109: 0 | Y109: 0 | Z109: 1 | AA109: 0 | AB109: =ROUNDDOWN(AVERAGE(IFERROR(LARGE((X$6:X108+Y$6:Y108)*Z$6:Z108*(G$6:G108=G109), SC_SSCalcYears),0))/(12*Z109),0) -> 0 | AC109: 1 | AD109: 0 | AE109: 0 | AF109: 0 | AG109: 0 | AM109: 0
B110: 2006 | C110: N | E110: 0 | F110: 0 | G110: 1 | H110: 1 | I110: 0 | J110: 0 | K110: 1 | P110: 0 | Q110: 0 | R110: 0 | S110: 0 | T110: 0 | U110: 0 | V110: 0 | W110: 0 | X110: 0 | Y110: 0 | Z110: 1 | AA110: 0 | AB110: =ROUNDDOWN(AVERAGE(IFERROR(LARGE((X$6:X109+Y$6:Y109)*Z$6:Z109*(G$6:G109=G110), SC_SSCalcYears),0))/(12*Z110),0) -> 0 | AC110: 1 | AD110: 0 | AE110: 0 | AF110: 0 | AG110: 0 | AH110: =SUMIFS($AE110:$AE111,SP_PensionPayout,"Lump sum",$E110:$E111,"<>0") -> 0 | AI110: =SUMIFS($AE110:$AE111,SP_PensionPayout,"Annuity",$E110:$E111,"<>0") -> 0 | AJ110: =IF(ISBLANK(INDEX(SP_SSPBFA,1)),0,IF($J110<>INDEX(SP_SSPBFA,1),AJ108,SP_AdditionalRI/INDEX(SC_EA_InflationWageIdx,EAIDX))) -> 0 | AK110: =SUMPRODUCT(AF110:AF111, --(G110:G111<>0)) -> 0 | AL110: =SUMPRODUCT(AG110:AG111, --(E110:E111<>0))+AJ110 -> 0 | AM110: 0
B111: 2006 | C111: N | E111: 0 | F111: 0 | G111: 2 | H111: -1 | I111: 0 | J111: 0 | K111: 1 | P111: 0 | Q111: 0 | R111: 0 | S111: 0 | T111: 0 | U111: 0 | V111: 0 | W111: 0 | X111: 0 | Y111: 0 | Z111: 1 | AA111: 0 | AB111: =ROUNDDOWN(AVERAGE(IFERROR(LARGE((X$6:X110+Y$6:Y110)*Z$6:Z110*(G$6:G110=G111), SC_SSCalcYears),0))/(12*Z111),0) -> 0 | AC111: 1 | AD111: 0 | AE111: 0 | AF111: 0 | AG111: 0 | AM111: 0
B112: 2007 | C112: N | E112: 0 | F112: 0 | G112: 1 | H112: 1 | I112: 0 | J112: 0 | K112: 1 | P112: 0 | Q112: 0 | R112: 0 | S112: 0 | T112: 0 | U112: 0 | V112: 0 | W112: 0 | X112: 0 | Y112: 0 | Z112: 1 | AA112: 0 | AB112: =ROUNDDOWN(AVERAGE(IFERROR(LARGE((X$6:X111+Y$6:Y111)*Z$6:Z111*(G$6:G111=G112), SC_SSCalcYears),0))/(12*Z112),0) -> 0 | AC112: 1 | AD112: 0 | AE112: 0 | AF112: 0 | AG112: 0 | AH112: =SUMIFS($AE112:$AE113,SP_PensionPayout,"Lump sum",$E112:$E113,"<>0") -> 0 | AI112: =SUMIFS($AE112:$AE113,SP_PensionPayout,"Annuity",$E112:$E113,"<>0") -> 0 | AJ112: =IF(ISBLANK(INDEX(SP_SSPBFA,1)),0,IF($J112<>INDEX(SP_SSPBFA,1),AJ110,SP_AdditionalRI/INDEX(SC_EA_InflationWageIdx,EAIDX))) -> 0 | AK112: =SUMPRODUCT(AF112:AF113, --(G112:G113<>0)) -> 0 | AL112: =SUMPRODUCT(AG112:AG113, --(E112:E113<>0))+AJ112 -> 0 | AM112: 0
B113: 2007 | C113: N | E113: 0 | F113: 0 | G113: 2 | H113: -1 | I113: 0 | J113: 0 | K113: 1 | P113: 0 | Q113: 0 | R113: 0 | S113: 0 | T113: 0 | U113: 0 | V113: 0 | W113: 0 | X113: 0 | Y113: 0 | Z113: 1 | AA113: 0 | AB113: =ROUNDDOWN(AVERAGE(IFERROR(LARGE((X$6:X112+Y$6:Y112)*Z$6:Z112*(G$6:G112=G113), SC_SSCalcYears),0))/(12*Z113),0) -> 0 | AC113: 1 | AD113: 0 | AE113: 0 | AF113: 0 | AG113: 0 | AM113: 0
B114: 2008 | C114: N | E114: 0 | F114: 0 | G114: 1 | H114: 1 | I114: 0 | J114: 0 | K114: 1 | P114: 0 | Q114: 0 | R114: 0 | S114: 0 | T114: 0 | U114: 0 | V114: 0 | W114: 0 | X114: 0 | Y114: 0 | Z114: 1 | AA114: 0 | AB114: =ROUNDDOWN(AVERAGE(IFERROR(LARGE((X$6:X113+Y$6:Y113)*Z$6:Z113*(G$6:G113=G114), SC_SSCalcYears),0))/(12*Z114),0) -> 0 | AC114: 1 | AD114: 0 | AE114: 0 | AF114: 0 | AG114: 0 | AH114: =SUMIFS($AE114:$AE115,SP_PensionPayout,"Lump sum",$E114:$E115,"<>0") -> 0 | AI114: =SUMIFS($AE114:$AE115,SP_PensionPayout,"Annuity",$E114:$E115,"<>0") -> 0 | AJ114: =IF(ISBLANK(INDEX(SP_SSPBFA,1)),0,IF($J114<>INDEX(SP_SSPBFA,1),AJ112,SP_AdditionalRI/INDEX(SC_EA_InflationWageIdx,EAIDX))) -> 0 | AK114: =SUMPRODUCT(AF114:AF115, --(G114:G115<>0)) -> 0 | AL114: =SUMPRODUCT(AG114:AG115, --(E114:E115<>0))+AJ114 -> 0 | AM114: 0
B115: 2008 | C115: N | E115: 0 | F115: 0 | G115: 2 | H115: -1 | I115: 0 | J115: 0 | K115: 1 | P115: 0 | Q115: 0 | R115: 0 | S115: 0 | T115: 0 | U115: 0 | V115: 0 | W115: 0 | X115: 0 | Y115: 0 | Z115: 1 | AA115: 0 | AB115: =ROUNDDOWN(AVERAGE(IFERROR(LARGE((X$6:X114+Y$6:Y114)*Z$6:Z114*(G$6:G114=G115), SC_SSCalcYears),0))/(12*Z115),0) -> 0 | AC115: 1 | AD115: 0 | AE115: 0 | AF115: 0 | AG115: 0 | AM115: 0
B116: 2009 | C116: N | E116: 0 | F116: 0 | G116: 1 | H116: 1 | I116: 0 | J116: 0 | K116: 1 | P116: 0 | Q116: 0 | R116: 0 | S116: 0 | T116: 0 | U116: 0 | V116: 0 | W116: 0 | X116: 0 | Y116: 0 | Z116: 1 | AA116: 0 | AB116: =ROUNDDOWN(AVERAGE(IFERROR(LARGE((X$6:X115+Y$6:Y115)*Z$6:Z115*(G$6:G115=G116), SC_SSCalcYears),0))/(12*Z116),0) -> 0 | AC116: 1 | AD116: 0 | AE116: 0 | AF116: 0 | AG116: 0 | AH116: =SUMIFS($AE116:$AE117,SP_PensionPayout,"Lump sum",$E116:$E117,"<>0") -> 0 | AI116: =SUMIFS($AE116:$AE117,SP_PensionPayout,"Annuity",$E116:$E117,"<>0") -> 0 | AJ116: =IF(ISBLANK(INDEX(SP_SSPBFA,1)),0,IF($J116<>INDEX(SP_SSPBFA,1),AJ114,SP_AdditionalRI/INDEX(SC_EA_InflationWageIdx,EAIDX))) -> 0 | AK116: =SUMPRODUCT(AF116:AF117, --(G116:G117<>0)) -> 0 | AL116: =SUMPRODUCT(AG116:AG117, --(E116:E117<>0))+AJ116 -> 0 | AM116: 0
B117: 2009 | C117: N | E117: 0 | F117: 0 | G117: 2 | H117: -1 | I117: 0 | J117: 0 | K117: 1 | P117: 0 | Q117: 0 | R117: 0 | S117: 0 | T117: 0 | U117: 0 | V117: 0 | W117: 0 | X117: 0 | Y117: 0 | Z117: 1 | AA117: 0 | AB117: =ROUNDDOWN(AVERAGE(IFERROR(LARGE((X$6:X116+Y$6:Y116)*Z$6:Z116*(G$6:G116=G117), SC_SSCalcYears),0))/(12*Z117),0) -> 0 | AC117: 1 | AD117: 0 | AE117: 0 | AF117: 0 | AG117: 0 | AM117: 0
B118: 2010 | C118: N | E118: 0 | F118: 0 | G118: 1 | H118: 1 | I118: 0 | J118: 0 | K118: 1 | P118: 0 | Q118: 0 | R118: 0 | S118: 0 | T118: 0 | U118: 0 | V118: 0 | W118: 0 | X118: 0 | Y118: 0 | Z118: 1 | AA118: 0 | AB118: =ROUNDDOWN(AVERAGE(IFERROR(LARGE((X$6:X117+Y$6:Y117)*Z$6:Z117*(G$6:G117=G118), SC_SSCalcYears),0))/(12*Z118),0) -> 0 | AC118: 1 | AD118: 0 | AE118: 0 | AF118: 0 | AG118: 0 | AH118: =SUMIFS($AE118:$AE119,SP_PensionPayout,"Lump sum",$E118:$E119,"<>0") -> 0 | AI118: =SUMIFS($AE118:$AE119,SP_PensionPayout,"Annuity",$E118:$E119,"<>0") -> 0 | AJ118: =IF(ISBLANK(INDEX(SP_SSPBFA,1)),0,IF($J118<>INDEX(SP_SSPBFA,1),AJ116,SP_AdditionalRI/INDEX(SC_EA_InflationWageIdx,EAIDX))) -> 0 | AK118: =SUMPRODUCT(AF118:AF119, --(G118:G119<>0)) -> 0 | AL118: =SUMPRODUCT(AG118:AG119, --(E118:E119<>0))+AJ118 -> 0 | AM118: 0
B119: 2010 | C119: N | E119: 0 | F119: 0 | G119: 2 | H119: -1 | I119: 0 | J119: 0 | K119: 1 | P119: 0 | Q119: 0 | R119: 0 | S119: 0 | T119: 0 | U119: 0 | V119: 0 | W119: 0 | X119: 0 | Y119: 0 | Z119: 1 | AA119: 0 | AB119: =ROUNDDOWN(AVERAGE(IFERROR(LARGE((X$6:X118+Y$6:Y118)*Z$6:Z118*(G$6:G118=G119), SC_SSCalcYears),0))/(12*Z119),0) -> 0 | AC119: 1 | AD119: 0 | AE119: 0 | AF119: 0 | AG119: 0 | AM119: 0
B120: 2011 | C120: N | E120: 0 | F120: 0 | G120: 1 | H120: 1 | I120: 0 | J120: 0 | K120: 1 | P120: 0 | Q120: 0 | R120: 0 | S120: 0 | T120: 0 | U120: 0 | V120: 0 | W120: 0 | X120: 0 | Y120: 0 | Z120: 1 | AA120: 0 | AB120: =ROUNDDOWN(AVERAGE(IFERROR(LARGE((X$6:X119+Y$6:Y119)*Z$6:Z119*(G$6:G119=G120), SC_SSCalcYears),0))/(12*Z120),0) -> 0 | AC120: 1 | AD120: 0 | AE120: 0 | AF120: 0 | AG120: 0 | AH120: =SUMIFS($AE120:$AE121,SP_PensionPayout,"Lump sum",$E120:$E121,"<>0") -> 0 | AI120: =SUMIFS($AE120:$AE121,SP_PensionPayout,"Annuity",$E120:$E121,"<>0") -> 0 | AJ120: =IF(ISBLANK(INDEX(SP_SSPBFA,1)),0,IF($J120<>INDEX(SP_SSPBFA,1),AJ118,SP_AdditionalRI/INDEX(SC_EA_InflationWageIdx,EAIDX))) -> 0 | AK120: =SUMPRODUCT(AF120:AF121, --(G120:G121<>0)) -> 0 | AL120: =SUMPRODUCT(AG120:AG121, --(E120:E121<>0))+AJ120 -> 0 | AM120: 0
B121: 2011 | C121: N | E121: 0 | F121: 0 | G121: 2 | H121: -1 | I121: 0 | J121: 0 | K121: 1 | P121: 0 | Q121: 0 | R121: 0 | S121: 0 | T121: 0 | U121: 0 | V121: 0 | W121: 0 | X121: 0 | Y121: 0 | Z121: 1 | AA121: 0 | AB121: =ROUNDDOWN(AVERAGE(IFERROR(LARGE((X$6:X120+Y$6:Y120)*Z$6:Z120*(G$6:G120=G121), SC_SSCalcYears),0))/(12*Z121),0) -> 0 | AC121: 1 | AD121: 0 | AE121: 0 | AF121: 0 | AG121: 0 | AM121: 0
B122: 2012 | C122: N | E122: 0 | F122: 0 | G122: 1 | H122: 1 | I122: 0 | J122: 0 | K122: 1 | P122: 0 | Q122: 0 | R122: 0 | S122: 0 | T122: 0 | U122: 0 | V122: 0 | W122: 0 | X122: 0 | Y122: 0 | Z122: 1 | AA122: 0 | AB122: =ROUNDDOWN(AVERAGE(IFERROR(LARGE((X$6:X121+Y$6:Y121)*Z$6:Z121*(G$6:G121=G122), SC_SSCalcYears),0))/(12*Z122),0) -> 0 | AC122: 1 | AD122: 0 | AE122: 0 | AF122: 0 | AG122: 0 | AH122: =SUMIFS($AE122:$AE123,SP_PensionPayout,"Lump sum",$E122:$E123,"<>0") -> 0 | AI122: =SUMIFS($AE122:$AE123,SP_PensionPayout,"Annuity",$E122:$E123,"<>0") -> 0 | AJ122: =IF(ISBLANK(INDEX(SP_SSPBFA,1)),0,IF($J122<>INDEX(SP_SSPBFA,1),AJ120,SP_AdditionalRI/INDEX(SC_EA_InflationWageIdx,EAIDX))) -> 0 | AK122: =SUMPRODUCT(AF122:AF123, --(G122:G123<>0)) -> 0 | AL122: =SUMPRODUCT(AG122:AG123, --(E122:E123<>0))+AJ122 -> 0 | AM122: 0
B123: 2012 | C123: N | E123: 0 | F123: 0 | G123: 2 | H123: -1 | I123: 0 | J123: 0 | K123: 1 | P123: 0 | Q123: 0 | R123: 0 | S123: 0 | T123: 0 | U123: 0 | V123: 0 | W123: 0 | X123: 0 | Y123: 0 | Z123: 1 | AA123: 0 | AB123: =ROUNDDOWN(AVERAGE(IFERROR(LARGE((X$6:X122+Y$6:Y122)*Z$6:Z122*(G$6:G122=G123), SC_SSCalcYears),0))/(12*Z123),0) -> 0 | AC123: 1 | AD123: 0 | AE123: 0 | AF123: 0 | AG123: 0 | AM123: 0
B124: 2013 | C124: N | E124: 0 | F124: 0 | G124: 1 | H124: 1 | I124: 0 | J124: 0 | K124: 1 | P124: 0 | Q124: 0 | R124: 0 | S124: 0 | T124: 0 | U124: 0 | V124: 0 | W124: 0 | X124: 0 | Y124: 0 | Z124: 1 | AA124: 0 | AB124: =ROUNDDOWN(AVERAGE(IFERROR(LARGE((X$6:X123+Y$6:Y123)*Z$6:Z123*(G$6:G123=G124), SC_SSCalcYears),0))/(12*Z124),0) -> 0 | AC124: 1 | AD124: 0 | AE124: 0 | AF124: 0 | AG124: 0 | AH124: =SUMIFS($AE124:$AE125,SP_PensionPayout,"Lump sum",$E124:$E125,"<>0") -> 0 | AI124: =SUMIFS($AE124:$AE125,SP_PensionPayout,"Annuity",$E124:$E125,"<>0") -> 0 | AJ124: =IF(ISBLANK(INDEX(SP_SSPBFA,1)),0,IF($J124<>INDEX(SP_SSPBFA,1),AJ122,SP_AdditionalRI/INDEX(SC_EA_InflationWageIdx,EAIDX))) -> 0 | AK124: =SUMPRODUCT(AF124:AF125, --(G124:G125<>0)) -> 0 | AL124: =SUMPRODUCT(AG124:AG125, --(E124:E125<>0))+AJ124 -> 0 | AM124: 0
B125: 2013 | C125: N | E125: 0 | F125: 0 | G125: 2 | H125: -1 | I125: 0 | J125: 0 | K125: 1 | P125: 0 | Q125: 0 | R125: 0 | S125: 0 | T125: 0 | U125: 0 | V125: 0 | W125: 0 | X125: 0 | Y125: 0 | Z125: 1 | AA125: 0 | AB125: =ROUNDDOWN(AVERAGE(IFERROR(LARGE((X$6:X124+Y$6:Y124)*Z$6:Z124*(G$6:G124=G125), SC_SSCalcYears),0))/(12*Z125),0) -> 0 | AC125: 1 | AD125: 0 | AE125: 0 | AF125: 0 | AG125: 0 | AM125: 0
B126: 2014 | C126: N | E126: 0 | F126: 0 | G126: 1 | H126: 1 | I126: 0 | J126: 0 | K126: 1 | P126: 0 | Q126: 0 | R126: 0 | S126: 0 | T126: 0 | U126: 0 | V126: 0 | W126: 0 | X126: 0 | Y126: 0 | Z126: 1 | AA126: 0 | AB126: =ROUNDDOWN(AVERAGE(IFERROR(LARGE((X$6:X125+Y$6:Y125)*Z$6:Z125*(G$6:G125=G126), SC_SSCalcYears),0))/(12*Z126),0) -> 0 | AC126: 1 | AD126: 0 | AE126: 0 | AF126: 0 | AG126: 0 | AH126: =SUMIFS($AE126:$AE127,SP_PensionPayout,"Lump sum",$E126:$E127,"<>0") -> 0 | AI126: =SUMIFS($AE126:$AE127,SP_PensionPayout,"Annuity",$E126:$E127,"<>0") -> 0 | AJ126: =IF(ISBLANK(INDEX(SP_SSPBFA,1)),0,IF($J126<>INDEX(SP_SSPBFA,1),AJ124,SP_AdditionalRI/INDEX(SC_EA_InflationWageIdx,EAIDX))) -> 0 | AK126: =SUMPRODUCT(AF126:AF127, --(G126:G127<>0)) -> 0 | AL126: =SUMPRODUCT(AG126:AG127, --(E126:E127<>0))+AJ126 -> 0 | AM126: 0
B127: 2014 | C127: N | E127: 0 | F127: 0 | G127: 2 | H127: -1 | I127: 0 | J127: 0 | K127: 1 | P127: 0 | Q127: 0 | R127: 0 | S127: 0 | T127: 0 | U127: 0 | V127: 0 | W127: 0 | X127: 0 | Y127: 0 | Z127: 1 | AA127: 0 | AB127: =ROUNDDOWN(AVERAGE(IFERROR(LARGE((X$6:X126+Y$6:Y126)*Z$6:Z126*(G$6:G126=G127), SC_SSCalcYears),0))/(12*Z127),0) -> 0 | AC127: 1 | AD127: 0 | AE127: 0 | AF127: 0 | AG127: 0 | AM127: 0
B128: 2015 | C128: N | E128: 0 | F128: 0 | G128: 1 | H128: 1 | I128: 0 | J128: 0 | K128: 1 | P128: 0 | Q128: 0 | R128: 0 | S128: 0 | T128: 0 | U128: 0 | V128: 0 | W128: 0 | X128: 0 | Y128: 0 | Z128: 1 | AA128: 0 | AB128: =ROUNDDOWN(AVERAGE(IFERROR(LARGE((X$6:X127+Y$6:Y127)*Z$6:Z127*(G$6:G127=G128), SC_SSCalcYears),0))/(12*Z128),0) -> 0 | AC128: 1 | AD128: 0 | AE128: 0 | AF128: 0 | AG128: 0 | AH128: =SUMIFS($AE128:$AE129,SP_PensionPayout,"Lump sum",$E128:$E129,"<>0") -> 0 | AI128: =SUMIFS($AE128:$AE129,SP_PensionPayout,"Annuity",$E128:$E129,"<>0") -> 0 | AJ128: =IF(ISBLANK(INDEX(SP_SSPBFA,1)),0,IF($J128<>INDEX(SP_SSPBFA,1),AJ126,SP_AdditionalRI/INDEX(SC_EA_InflationWageIdx,EAIDX))) -> 0 | AK128: =SUMPRODUCT(AF128:AF129, --(G128:G129<>0)) -> 0 | AL128: =SUMPRODUCT(AG128:AG129, --(E128:E129<>0))+AJ128 -> 0 | AM128: 0
B129: 2015 | C129: N | E129: 0 | F129: 0 | G129: 2 | H129: -1 | I129: 0 | J129: 0 | K129: 1 | P129: 0 | Q129: 0 | R129: 0 | S129: 0 | T129: 0 | U129: 0 | V129: 0 | W129: 0 | X129: 0 | Y129: 0 | Z129: 1 | AA129: 0 | AB129: =ROUNDDOWN(AVERAGE(IFERROR(LARGE((X$6:X128+Y$6:Y128)*Z$6:Z128*(G$6:G128=G129), SC_SSCalcYears),0))/(12*Z129),0) -> 0 | AC129: 1 | AD129: 0 | AE129: 0 | AF129: 0 | AG129: 0 | AM129: 0
B130: 2016 | C130: N | E130: 0 | F130: 0 | G130: 1 | H130: 1 | I130: 0 | J130: 0 | K130: 1 | P130: 0 | Q130: 0 | R130: 0 | S130: 0 | T130: 0 | U130: 0 | V130: 0 | W130: 0 | X130: 0 | Y130: 0 | Z130: 1 | AA130: 0 | AB130: =ROUNDDOWN(AVERAGE(IFERROR(LARGE((X$6:X129+Y$6:Y129)*Z$6:Z129*(G$6:G129=G130), SC_SSCalcYears),0))/(12*Z130),0) -> 0 | AC130: 1 | AD130: 0 | AE130: 0 | AF130: 0 | AG130: 0 | AH130: =SUMIFS($AE130:$AE131,SP_PensionPayout,"Lump sum",$E130:$E131,"<>0") -> 0 | AI130: =SUMIFS($AE130:$AE131,SP_PensionPayout,"Annuity",$E130:$E131,"<>0") -> 0 | AJ130: =IF(ISBLANK(INDEX(SP_SSPBFA,1)),0,IF($J130<>INDEX(SP_SSPBFA,1),AJ128,SP_AdditionalRI/INDEX(SC_EA_InflationWageIdx,EAIDX))) -> 0 | AK130: =SUMPRODUCT(AF130:AF131, --(G130:G131<>0)) -> 0 | AL130: =SUMPRODUCT(AG130:AG131, --(E130:E131<>0))+AJ130 -> 0 | AM130: 0
B131: 2016 | C131: N | E131: 0 | F131: 0 | G131: 2 | H131: -1 | I131: 0 | J131: 0 | K131: 1 | P131: 0 | Q131: 0 | R131: 0 | S131: 0 | T131: 0 | U131: 0 | V131: 0 | W131: 0 | X131: 0 | Y131: 0 | Z131: 1 | AA131: 0 | AB131: =ROUNDDOWN(AVERAGE(IFERROR(LARGE((X$6:X130+Y$6:Y130)*Z$6:Z130*(G$6:G130=G131), SC_SSCalcYears),0))/(12*Z131),0) -> 0 | AC131: 1 | AD131: 0 | AE131: 0 | AF131: 0 | AG131: 0 | AM131: 0
B132: 2017 | C132: N | D132: =INDEX(SP_Initials,G132) ->  | E132: =INDEX(SC_TaxIndex,$G132) -> 0 | F132: 0 | G132: 1 | H132: 1 | I132: =IF(INDEX(SC_ShowRetireatee,$G132),IF($B132<YEAR(INDEX(SP_BirthDate,$G132)),0,$B132-YEAR(INDEX(SP_BirthDate,$G132))),0) -> 0 | J132: 0 | K132: =IF($B132<SC_TargetRY,1,IF($B132=SC_TargetRY,-(1-YEARFRAC(SP_TargetRD,DATE($B132+1,1,1))),0)) -> 1 | P132: 0 | Q132: 0 | R132: 0 | S132: 0 | T132: 0 | U132: 0 | V132: 0 | W132: 0 | X132: 0 | Y132: 0 | Z132: 1 | AA132: 0 | AB132: =ROUNDDOWN(AVERAGE(IFERROR(LARGE((X$6:X131+Y$6:Y131)*Z$6:Z131*(G$6:G131=G132), SC_SSCalcYears),0))/(12*Z132),0) -> 0 | AC132: 1 | AD132: 0 | AE132: 0 | AF132: 0 | AG132: 0 | AH132: =SUMIFS($AE132:$AE133,SP_PensionPayout,"Lump sum",$E132:$E133,"<>0") -> 0 | AI132: =SUMIFS($AE132:$AE133,SP_PensionPayout,"Annuity",$E132:$E133,"<>0") -> 0 | AJ132: =IF(ISBLANK(INDEX(SP_SSPBFA,1)),0,IF($J132<>INDEX(SP_SSPBFA,1),AJ130,SP_AdditionalRI/INDEX(SC_EA_InflationWageIdx,EAIDX))) -> 0 | AK132: =SUMPRODUCT(AF132:AF133, --(G132:G133<>0)) -> 0 | AL132: =SUMPRODUCT(AG132:AG133, --(E132:E133<>0))+AJ132 -> 0 | AM132: 0
B133: 2017 | C133: N | E133: 0 | F133: 0 | G133: =MOD(ROW(),2)+1 -> 2 | H133: -1 | I133: 0 | J133: 0 | K133: 1 | P133: 0 | Q133: 0 | R133: 0 | S133: 0 | T133: 0 | U133: 0 | V133: 0 | W133: 0 | X133: 0 | Y133: 0 | Z133: 1 | AA133: 0 | AB133: =ROUNDDOWN(AVERAGE(IFERROR(LARGE((X$6:X132+Y$6:Y132)*Z$6:Z132*(G$6:G132=G133), SC_SSCalcYears),0))/(12*Z133),0) -> 0 | AC133: 1 | AD133: 0 | AE133: 0 | AF133: 0 | AG133: 0 | AM133: 0
B134: 2018 | C134: N | E134: 0 | F134: =MAX($J134+1-INDEX(SP_StartWorkAge,$G134),0) -> 0 | G134: 1 | H134: =MOD($G134,2)-($G134-1) -> 1 | I134: 0 | J134: =IF(INDEX(SC_ShowRetireatee,$G134),IF($B134>(YEAR(INDEX(SP_BirthDate,$G134))+INDEX(SP_LifeExp,$G134)),0,$I134),0) -> 0 | K134: 1 | P134: =IF(IF(COLUMN()=COLUMN(L134),TRUE,ISBLANK(L134)), IF(OR($F134=0,$K134=0),0,IF($B134=SP_CurrentYear, 0, IF($B134>SP_CurrentYear, $P132*(1+INDEX(SP_EA_InflationWageRate, EAIDX-1)+INDEX(SP_IncomeEmployerAdj, $G134)), $P136/(1+INDEX(SP_EA_InflationWageRate, EAIDX)+INDEX(SP_IncomeEmployerAdj, $G134))))), L134) -> 0 | Q134: =IF(IF(COLUMN()=COLUMN(M134),TRUE,ISBLANK(M134)), IF(OR($F134=0,$K134=0),0,IF($B134=SP_CurrentYear, 0, IF($B134>SP_CurrentYear, $Q132*(1+INDEX(SP_EA_InflationWageRate, EAIDX-1)+INDEX(SP_IncomeSEAdj, $G134)), 0))), M134) -> 0 | R134: =IF(IF(COLUMN()=COLUMN(N134),TRUE,ISBLANK(N134)), IF($B134=SP_CurrentYear, 0, IF($B134>SP_CurrentYear, $R132*(1+INDEX(SP_EA_InflationWageRate, EAIDX-1)+INDEX(SP_IncomePassiveAdj, $G134)), 0)), N134) -> 0 | S134: =IF(IF(COLUMN()=COLUMN(O134),TRUE,ISBLANK(O134)), IF($B134=SP_CurrentYear,(-INDEX(SC_ExpensesLivingPF,$G134,1)*ABS($K134)-INDEX(SC_ExpensesLivingPF,$G134,2)*(1-ABS($K134)))/INDEX(SC_EA_InflationCPIdx, EAIDX)*12, IF($B134>SP_CurrentYear, $S132*(1+INDEX(SP_EA_InflationCPRate, EAIDX-1)), IF($P134=0, 0,$S136/(1+INDEX(SP_EA_InflationCPRate, EAIDX)))))*ABS($K134), O134) -> 0 | T134: =P134*ABS($K134) -> 0 | U134: =Q134*ABS($K134) -> 0 | V134: =MAX(T134-ABS($S134)*ABS($K134), 0) -> 0 | W134: =MAX(U134-MAX(ABS($S134)*ABS($K134)-P134, 0),0) -> 0 | X134: =IF($J134=0, 0, MAX(MIN(T134-ABS($S134)*ABS($K134), INDEX(SC_EA_SSWageBase, EAIDX)), 0)) -> 0 | Y134: =IF($J134=0, 0, MIN(MAX(U134-MAX(ABS($S134)*ABS($K134)-P134, 0),0), INDEX(SC_EA_SSWageBase, EAIDX)-X134)) -> 0 | Z134: =IF($J134=0,1,IF($B134>=INDEX(SC_SSBaseYear,$G134),1,Z136*(INDEX(SP_EA_InflationWageRate, EAIDX+1)+1))) -> 1 | AA134: =IF($J134=0, 0, ROUNDDOWN(MIN((X134+Y134)*Z134,LT_SSMaxCredit*Z134)/(LT_SSOneCredit*Z134), 0)) -> 0 | AB134: =ROUNDDOWN(AVERAGE(IFERROR(LARGE((X$6:X133+Y$6:Y133)*Z$6:Z133*(G$6:G133=G134), SC_SSCalcYears),0))/(12*Z134),0) -> 0 | AC134: =IF($I134>0, IF($B134<=INDEX(SC_SSBaseYear,$G134)+2,Z134,1/(1/AC132*(INDEX(SC_EA_SSCOLA, EAIDX-1)+1))), 1) -> 1 | AD134: =IF(INDEX(SP_PensionSWD,$G134)="",0,IF(YEAR(INDEX(SP_PensionSWD,$G134))>$B134,0,YEARFRAC(INDEX(SP_PensionSWD,$G134), MIN(DATE($B134+1,1,1),SP_TargetRD)))) -> 0 | AE134: =IF(AND(AD134>0, $B134=SC_TargetRY, INDEX(SP_PensionFAE,$G134)>0),SUMIF(OFFSET(G134,-MIN(INDEX(SP_PensionFAE,$G134),AD134)*2,0,MIN(INDEX(SP_PensionFAE,$G134),AD134)*2),$G134,OFFSET(P134,-MIN(INDEX(SP_PensionFAE,$G134),AD134)*2,0,MIN(INDEX(SP_PensionFAE,$G134),AD134)*2))/MIN(INDEX(SP_PensionFAE,$G134),AD134)*INDEX(SP_PensionPCT,$G134)*AD134,0) -> 0 | AF134: =$T134+$U134 -> 0 | AG134: =$R134 -> 0 | AH134: =SUMIFS($AE134:$AE135,SP_PensionPayout,"Lump sum",$E134:$E135,"<>0") -> 0 | AI134: =SUMIFS($AE134:$AE135,SP_PensionPayout,"Annuity",$E134:$E135,"<>0") -> 0 | AJ134: =IF(ISBLANK(INDEX(SP_SSPBFA,1)),0,IF($J134<>INDEX(SP_SSPBFA,1),AJ132,SP_AdditionalRI/INDEX(SC_EA_InflationWageIdx,EAIDX))) -> 0 | AK134: =SUMPRODUCT(AF134:AF135, --(G134:G135<>0)) -> 0 | AL134: =SUMPRODUCT(AG134:AG135, --(E134:E135<>0))+AJ134 -> 0 | AM134: =IFERROR(IF(OR(NOT(ISNUMBER($P134)),$P134<0,NOT(ISNUMBER($Q134)),$Q134<0,NOT(ISNUMBER($R134)),$R134<0,NOT(ISNUMBER($S134)),$S134<0),202,0),203) -> 0 | AN134: =IFERROR(VLOOKUP(AM134,IV_CodeTable,2,FALSE),"") -> 
B135: =B133+1 -> 2018 | C135: N | E135: 0 | F135: 0 | G135: 2 | H135: -1 | I135: 0 | J135: 0 | K135: 1 | P135: 0 | Q135: 0 | R135: 0 | S135: 0 | T135: 0 | U135: 0 | V135: 0 | W135: 0 | X135: 0 | Y135: 0 | Z135: 1 | AA135: 0 | AB135: =ROUNDDOWN(AVERAGE(IFERROR(LARGE((X$6:X134+Y$6:Y134)*Z$6:Z134*(G$6:G134=G135), SC_SSCalcYears),0))/(12*Z135),0) -> 0 | AC135: 1 | AD135: 0 | AE135: 0 | AF135: 0 | AG135: 0 | AM135: 0
B136: 2019 | C136: N | E136: 0 | F136: 0 | G136: 1 | H136: 1 | I136: 0 | J136: 0 | K136: 1 | P136: 0 | Q136: 0 | R136: 0 | S136: 0 | T136: 0 | U136: 0 | V136: 0 | W136: 0 | X136: 0 | Y136: 0 | Z136: 1 | AA136: 0 | AB136: =ROUNDDOWN(AVERAGE(IFERROR(LARGE((X$6:X135+Y$6:Y135)*Z$6:Z135*(G$6:G135=G136), SC_SSCalcYears),0))/(12*Z136),0) -> 0 | AC136: 1 | AD136: 0 | AE136: 0 | AF136: 0 | AG136: 0 | AH136: =SUMIFS($AE136:$AE137,SP_PensionPayout,"Lump sum",$E136:$E137,"<>0") -> 0 | AI136: =SUMIFS($AE136:$AE137,SP_PensionPayout,"Annuity",$E136:$E137,"<>0") -> 0 | AJ136: =IF(ISBLANK(INDEX(SP_SSPBFA,1)),0,IF($J136<>INDEX(SP_SSPBFA,1),AJ134,SP_AdditionalRI/INDEX(SC_EA_InflationWageIdx,EAIDX))) -> 0 | AK136: =SUMPRODUCT(AF136:AF137, --(G136:G137<>0)) -> 0 | AL136: =SUMPRODUCT(AG136:AG137, --(E136:E137<>0))+AJ136 -> 0 | AM136: 0
B137: 2019 | C137: N | E137: 0 | F137: 0 | G137: 2 | H137: -1 | I137: 0 | J137: 0 | K137: 1 | P137: 0 | Q137: 0 | R137: 0 | S137: 0 | T137: 0 | U137: 0 | V137: 0 | W137: 0 | X137: 0 | Y137: 0 | Z137: 1 | AA137: 0 | AB137: =ROUNDDOWN(AVERAGE(IFERROR(LARGE((X$6:X136+Y$6:Y136)*Z$6:Z136*(G$6:G136=G137), SC_SSCalcYears),0))/(12*Z137),0) -> 0 | AC137: 1 | AD137: 0 | AE137: 0 | AF137: 0 | AG137: 0 | AM137: 0
B138: 2020 | C138: N | E138: 0 | F138: 0 | G138: 1 | H138: 1 | I138: 0 | J138: 0 | K138: 1 | P138: 0 | Q138: 0 | R138: 0 | S138: 0 | T138: 0 | U138: 0 | V138: 0 | W138: 0 | X138: 0 | Y138: 0 | Z138: 1 | AA138: 0 | AB138: =ROUNDDOWN(AVERAGE(IFERROR(LARGE((X$6:X137+Y$6:Y137)*Z$6:Z137*(G$6:G137=G138), SC_SSCalcYears),0))/(12*Z138),0) -> 0 | AC138: 1 | AD138: 0 | AE138: 0 | AF138: 0 | AG138: 0 | AH138: =SUMIFS($AE138:$AE139,SP_PensionPayout,"Lump sum",$E138:$E139,"<>0") -> 0 | AI138: =SUMIFS($AE138:$AE139,SP_PensionPayout,"Annuity",$E138:$E139,"<>0") -> 0 | AJ138: =IF(ISBLANK(INDEX(SP_SSPBFA,1)),0,IF($J138<>INDEX(SP_SSPBFA,1),AJ136,SP_AdditionalRI/INDEX(SC_EA_InflationWageIdx,EAIDX))) -> 0 | AK138: =SUMPRODUCT(AF138:AF139, --(G138:G139<>0)) -> 0 | AL138: =SUMPRODUCT(AG138:AG139, --(E138:E139<>0))+AJ138 -> 0 | AM138: 0
B139: 2020 | C139: N | E139: 0 | F139: 0 | G139: 2 | H139: -1 | I139: 0 | J139: 0 | K139: 1 | P139: 0 | Q139: 0 | R139: 0 | S139: 0 | T139: 0 | U139: 0 | V139: 0 | W139: 0 | X139: 0 | Y139: 0 | Z139: 1 | AA139: 0 | AB139: =ROUNDDOWN(AVERAGE(IFERROR(LARGE((X$6:X138+Y$6:Y138)*Z$6:Z138*(G$6:G138=G139), SC_SSCalcYears),0))/(12*Z139),0) -> 0 | AC139: 1 | AD139: 0 | AE139: 0 | AF139: 0 | AG139: 0 | AM139: 0
B140: 2021 | C140: N | E140: 0 | F140: 0 | G140: 1 | H140: 1 | I140: 0 | J140: 0 | K140: 1 | P140: 0 | Q140: 0 | R140: 0 | S140: 0 | T140: 0 | U140: 0 | V140: 0 | W140: 0 | X140: 0 | Y140: 0 | Z140: 1 | AA140: 0 | AB140: =ROUNDDOWN(AVERAGE(IFERROR(LARGE((X$6:X139+Y$6:Y139)*Z$6:Z139*(G$6:G139=G140), SC_SSCalcYears),0))/(12*Z140),0) -> 0 | AC140: 1 | AD140: 0 | AE140: 0 | AF140: 0 | AG140: 0 | AH140: =SUMIFS($AE140:$AE141,SP_PensionPayout,"Lump sum",$E140:$E141,"<>0") -> 0 | AI140: =SUMIFS($AE140:$AE141,SP_PensionPayout,"Annuity",$E140:$E141,"<>0") -> 0 | AJ140: =IF(ISBLANK(INDEX(SP_SSPBFA,1)),0,IF($J140<>INDEX(SP_SSPBFA,1),AJ138,SP_AdditionalRI/INDEX(SC_EA_InflationWageIdx,EAIDX))) -> 0 | AK140: =SUMPRODUCT(AF140:AF141, --(G140:G141<>0)) -> 0 | AL140: =SUMPRODUCT(AG140:AG141, --(E140:E141<>0))+AJ140 -> 0 | AM140: 0
B141: 2021 | C141: N | E141: 0 | F141: 0 | G141: 2 | H141: -1 | I141: 0 | J141: 0 | K141: 1 | P141: 0 | Q141: 0 | R141: 0 | S141: 0 | T141: 0 | U141: 0 | V141: 0 | W141: 0 | X141: 0 | Y141: 0 | Z141: 1 | AA141: 0 | AB141: =ROUNDDOWN(AVERAGE(IFERROR(LARGE((X$6:X140+Y$6:Y140)*Z$6:Z140*(G$6:G140=G141), SC_SSCalcYears),0))/(12*Z141),0) -> 0 | AC141: 1 | AD141: 0 | AE141: 0 | AF141: 0 | AG141: 0 | AM141: 0
B142: 2022 | C142: N | E142: 0 | F142: 0 | G142: 1 | H142: 1 | I142: 0 | J142: 0 | K142: 1 | P142: 0 | Q142: 0 | R142: 0 | S142: 0 | T142: 0 | U142: 0 | V142: 0 | W142: 0 | X142: 0 | Y142: 0 | Z142: 1 | AA142: 0 | AB142: =ROUNDDOWN(AVERAGE(IFERROR(LARGE((X$6:X141+Y$6:Y141)*Z$6:Z141*(G$6:G141=G142), SC_SSCalcYears),0))/(12*Z142),0) -> 0 | AC142: 1 | AD142: 0 | AE142: 0 | AF142: 0 | AG142: 0 | AH142: =SUMIFS($AE142:$AE143,SP_PensionPayout,"Lump sum",$E142:$E143,"<>0") -> 0 | AI142: =SUMIFS($AE142:$AE143,SP_PensionPayout,"Annuity",$E142:$E143,"<>0") -> 0 | AJ142: =IF(ISBLANK(INDEX(SP_SSPBFA,1)),0,IF($J142<>INDEX(SP_SSPBFA,1),AJ140,SP_AdditionalRI/INDEX(SC_EA_InflationWageIdx,EAIDX))) -> 0 | AK142: =SUMPRODUCT(AF142:AF143, --(G142:G143<>0)) -> 0 | AL142: =SUMPRODUCT(AG142:AG143, --(E142:E143<>0))+AJ142 -> 0 | AM142: 0
B143: 2022 | C143: N | E143: 0 | F143: 0 | G143: 2 | H143: -1 | I143: 0 | J143: 0 | K143: 1 | P143: 0 | Q143: 0 | R143: 0 | S143: 0 | T143: 0 | U143: 0 | V143: 0 | W143: 0 | X143: 0 | Y143: 0 | Z143: 1 | AA143: 0 | AB143: =ROUNDDOWN(AVERAGE(IFERROR(LARGE((X$6:X142+Y$6:Y142)*Z$6:Z142*(G$6:G142=G143), SC_SSCalcYears),0))/(12*Z143),0) -> 0 | AC143: 1 | AD143: 0 | AE143: 0 | AF143: 0 | AG143: 0 | AM143: 0
B144: 2023 | C144: N | E144: 0 | F144: 0 | G144: 1 | H144: 1 | I144: 0 | J144: 0 | K144: 1 | P144: 0 | Q144: 0 | R144: 0 | S144: 0 | T144: 0 | U144: 0 | V144: 0 | W144: 0 | X144: 0 | Y144: 0 | Z144: 1 | AA144: 0 | AB144: =ROUNDDOWN(AVERAGE(IFERROR(LARGE((X$6:X143+Y$6:Y143)*Z$6:Z143*(G$6:G143=G144), SC_SSCalcYears),0))/(12*Z144),0) -> 0 | AC144: 1 | AD144: 0 | AE144: 0 | AF144: 0 | AG144: 0 | AH144: =SUMIFS($AE144:$AE145,SP_PensionPayout,"Lump sum",$E144:$E145,"<>0") -> 0 | AI144: =SUMIFS($AE144:$AE145,SP_PensionPayout,"Annuity",$E144:$E145,"<>0") -> 0 | AJ144: =IF(ISBLANK(INDEX(SP_SSPBFA,1)),0,IF($J144<>INDEX(SP_SSPBFA,1),AJ142,SP_AdditionalRI/INDEX(SC_EA_InflationWageIdx,EAIDX))) -> 0 | AK144: =SUMPRODUCT(AF144:AF145, --(G144:G145<>0)) -> 0 | AL144: =SUMPRODUCT(AG144:AG145, --(E144:E145<>0))+AJ144 -> 0 | AM144: 0
B145: 2023 | C145: N | E145: 0 | F145: 0 | G145: 2 | H145: -1 | I145: 0 | J145: 0 | K145: 1 | P145: 0 | Q145: 0 | R145: 0 | S145: 0 | T145: 0 | U145: 0 | V145: 0 | W145: 0 | X145: 0 | Y145: 0 | Z145: 1 | AA145: 0 | AB145: =ROUNDDOWN(AVERAGE(IFERROR(LARGE((X$6:X144+Y$6:Y144)*Z$6:Z144*(G$6:G144=G145), SC_SSCalcYears),0))/(12*Z145),0) -> 0 | AC145: 1 | AD145: 0 | AE145: 0 | AF145: 0 | AG145: 0 | AM145: 0
B146: 2024 | C146: N | E146: 0 | F146: 0 | G146: 1 | H146: 1 | I146: 0 | J146: 0 | K146: 0 | P146: 0 | Q146: 0 | R146: 0 | S146: 0 | T146: 0 | U146: 0 | V146: 0 | W146: 0 | X146: 0 | Y146: 0 | Z146: 1 | AA146: 0 | AB146: =ROUNDDOWN(AVERAGE(IFERROR(LARGE((X$6:X145+Y$6:Y145)*Z$6:Z145*(G$6:G145=G146), SC_SSCalcYears),0))/(12*Z146),0) -> 0 | AC146: 1 | AD146: 0 | AE146: 0 | AF146: 0 | AG146: 0 | AH146: =SUMIFS($AE146:$AE147,SP_PensionPayout,"Lump sum",$E146:$E147,"<>0") -> 0 | AI146: =SUMIFS($AE146:$AE147,SP_PensionPayout,"Annuity",$E146:$E147,"<>0") -> 0 | AJ146: =IF(ISBLANK(INDEX(SP_SSPBFA,1)),0,IF($J146<>INDEX(SP_SSPBFA,1),AJ144,SP_AdditionalRI/INDEX(SC_EA_InflationWageIdx,EAIDX))) -> 0 | AK146: =SUMPRODUCT(AF146:AF147, --(G146:G147<>0)) -> 0 | AL146: =SUMPRODUCT(AG146:AG147, --(E146:E147<>0))+AJ146 -> 0 | AM146: 0
B147: 2024 | C147: N | E147: 0 | F147: 0 | G147: 2 | H147: -1 | I147: 0 | J147: 0 | K147: 0 | P147: 0 | Q147: 0 | R147: 0 | S147: 0 | T147: 0 | U147: 0 | V147: 0 | W147: 0 | X147: 0 | Y147: 0 | Z147: 1 | AA147: 0 | AB147: =ROUNDDOWN(AVERAGE(IFERROR(LARGE((X$6:X146+Y$6:Y146)*Z$6:Z146*(G$6:G146=G147), SC_SSCalcYears),0))/(12*Z147),0) -> 0 | AC147: 1 | AD147: 0 | AE147: 0 | AF147: 0 | AG147: 0 | AM147: 0
B148: 2025 | C148: N | E148: 0 | F148: 0 | G148: 1 | H148: 1 | I148: 0 | J148: 0 | K148: 0 | P148: 0 | Q148: 0 | R148: 0 | S148: 0 | T148: 0 | U148: 0 | V148: 0 | W148: 0 | X148: 0 | Y148: 0 | Z148: 1 | AA148: 0 | AB148: =ROUNDDOWN(AVERAGE(IFERROR(LARGE((X$6:X147+Y$6:Y147)*Z$6:Z147*(G$6:G147=G148), SC_SSCalcYears),0))/(12*Z148),0) -> 0 | AC148: 1 | AD148: 0 | AE148: 0 | AF148: 0 | AG148: 0 | AH148: =SUMIFS($AE148:$AE149,SP_PensionPayout,"Lump sum",$E148:$E149,"<>0") -> 0 | AI148: =SUMIFS($AE148:$AE149,SP_PensionPayout,"Annuity",$E148:$E149,"<>0") -> 0 | AJ148: =IF(ISBLANK(INDEX(SP_SSPBFA,1)),0,IF($J148<>INDEX(SP_SSPBFA,1),AJ146,SP_AdditionalRI/INDEX(SC_EA_InflationWageIdx,EAIDX))) -> 0 | AK148: =SUMPRODUCT(AF148:AF149, --(G148:G149<>0)) -> 0 | AL148: =SUMPRODUCT(AG148:AG149, --(E148:E149<>0))+AJ148 -> 0 | AM148: 0
B149: 2025 | C149: N | E149: 0 | F149: 0 | G149: 2 | H149: -1 | I149: 0 | J149: 0 | K149: 0 | P149: 0 | Q149: 0 | R149: 0 | S149: 0 | T149: 0 | U149: 0 | V149: 0 | W149: 0 | X149: 0 | Y149: 0 | Z149: 1 | AA149: 0 | AB149: =ROUNDDOWN(AVERAGE(IFERROR(LARGE((X$6:X148+Y$6:Y148)*Z$6:Z148*(G$6:G148=G149), SC_SSCalcYears),0))/(12*Z149),0) -> 0 | AC149: 1 | AD149: 0 | AE149: 0 | AF149: 0 | AG149: 0 | AM149: 0
B150: 2026 | C150: N | E150: 0 | F150: 0 | G150: 1 | H150: 1 | I150: 0 | J150: 0 | K150: 0 | P150: 0 | Q150: 0 | R150: 0 | S150: 0 | T150: 0 | U150: 0 | V150: 0 | W150: 0 | X150: 0 | Y150: 0 | Z150: 1 | AA150: 0 | AB150: =ROUNDDOWN(AVERAGE(IFERROR(LARGE((X$6:X149+Y$6:Y149)*Z$6:Z149*(G$6:G149=G150), SC_SSCalcYears),0))/(12*Z150),0) -> 0 | AC150: 1 | AD150: 0 | AE150: 0 | AF150: 0 | AG150: 0 | AH150: =SUMIFS($AE150:$AE151,SP_PensionPayout,"Lump sum",$E150:$E151,"<>0") -> 0 | AI150: =SUMIFS($AE150:$AE151,SP_PensionPayout,"Annuity",$E150:$E151,"<>0") -> 0 | AJ150: =IF(ISBLANK(INDEX(SP_SSPBFA,1)),0,IF($J150<>INDEX(SP_SSPBFA,1),AJ148,SP_AdditionalRI/INDEX(SC_EA_InflationWageIdx,EAIDX))) -> 0 | AK150: =SUMPRODUCT(AF150:AF151, --(G150:G151<>0)) -> 0 | AL150: =SUMPRODUCT(AG150:AG151, --(E150:E151<>0))+AJ150 -> 0 | AM150: 0
B151: 2026 | C151: N | E151: 0 | F151: 0 | G151: 2 | H151: -1 | I151: 0 | J151: 0 | K151: 0 | P151: 0 | Q151: 0 | R151: 0 | S151: 0 | T151: 0 | U151: 0 | V151: 0 | W151: 0 | X151: 0 | Y151: 0 | Z151: 1 | AA151: 0 | AB151: =ROUNDDOWN(AVERAGE(IFERROR(LARGE((X$6:X150+Y$6:Y150)*Z$6:Z150*(G$6:G150=G151), SC_SSCalcYears),0))/(12*Z151),0) -> 0 | AC151: 1 | AD151: 0 | AE151: 0 | AF151: 0 | AG151: 0 | AM151: 0
B152: 2027 | C152: N | E152: 0 | F152: 0 | G152: 1 | H152: 1 | I152: 0 | J152: 0 | K152: 0 | P152: 0 | Q152: 0 | R152: 0 | S152: 0 | T152: 0 | U152: 0 | V152: 0 | W152: 0 | X152: 0 | Y152: 0 | Z152: 1 | AA152: 0 | AB152: =ROUNDDOWN(AVERAGE(IFERROR(LARGE((X$6:X151+Y$6:Y151)*Z$6:Z151*(G$6:G151=G152), SC_SSCalcYears),0))/(12*Z152),0) -> 0 | AC152: 1 | AD152: 0 | AE152: 0 | AF152: 0 | AG152: 0 | AH152: =SUMIFS($AE152:$AE153,SP_PensionPayout,"Lump sum",$E152:$E153,"<>0") -> 0 | AI152: =SUMIFS($AE152:$AE153,SP_PensionPayout,"Annuity",$E152:$E153,"<>0") -> 0 | AJ152: =IF(ISBLANK(INDEX(SP_SSPBFA,1)),0,IF($J152<>INDEX(SP_SSPBFA,1),AJ150,SP_AdditionalRI/INDEX(SC_EA_InflationWageIdx,EAIDX))) -> 0 | AK152: =SUMPRODUCT(AF152:AF153, --(G152:G153<>0)) -> 0 | AL152: =SUMPRODUCT(AG152:AG153, --(E152:E153<>0))+AJ152 -> 0 | AM152: 0
B153: 2027 | C153: N | E153: 0 | F153: 0 | G153: 2 | H153: -1 | I153: 0 | J153: 0 | K153: 0 | P153: 0 | Q153: 0 | R153: 0 | S153: 0 | T153: 0 | U153: 0 | V153: 0 | W153: 0 | X153: 0 | Y153: 0 | Z153: 1 | AA153: 0 | AB153: =ROUNDDOWN(AVERAGE(IFERROR(LARGE((X$6:X152+Y$6:Y152)*Z$6:Z152*(G$6:G152=G153), SC_SSCalcYears),0))/(12*Z153),0) -> 0 | AC153: 1 | AD153: 0 | AE153: 0 | AF153: 0 | AG153: 0 | AM153: 0
B154: 2028 | C154: N | E154: 0 | F154: 0 | G154: 1 | H154: 1 | I154: 0 | J154: 0 | K154: 0 | P154: 0 | Q154: 0 | R154: 0 | S154: 0 | T154: 0 | U154: 0 | V154: 0 | W154: 0 | X154: 0 | Y154: 0 | Z154: 1 | AA154: 0 | AB154: =ROUNDDOWN(AVERAGE(IFERROR(LARGE((X$6:X153+Y$6:Y153)*Z$6:Z153*(G$6:G153=G154), SC_SSCalcYears),0))/(12*Z154),0) -> 0 | AC154: 1 | AD154: 0 | AE154: 0 | AF154: 0 | AG154: 0 | AH154: =SUMIFS($AE154:$AE155,SP_PensionPayout,"Lump sum",$E154:$E155,"<>0") -> 0 | AI154: =SUMIFS($AE154:$AE155,SP_PensionPayout,"Annuity",$E154:$E155,"<>0") -> 0 | AJ154: =IF(ISBLANK(INDEX(SP_SSPBFA,1)),0,IF($J154<>INDEX(SP_SSPBFA,1),AJ152,SP_AdditionalRI/INDEX(SC_EA_InflationWageIdx,EAIDX))) -> 0 | AK154: =SUMPRODUCT(AF154:AF155, --(G154:G155<>0)) -> 0 | AL154: =SUMPRODUCT(AG154:AG155, --(E154:E155<>0))+AJ154 -> 0 | AM154: 0
B155: 2028 | C155: N | E155: 0 | F155: 0 | G155: 2 | H155: -1 | I155: 0 | J155: 0 | K155: 0 | P155: 0 | Q155: 0 | R155: 0 | S155: 0 | T155: 0 | U155: 0 | V155: 0 | W155: 0 | X155: 0 | Y155: 0 | Z155: 1 | AA155: 0 | AB155: =ROUNDDOWN(AVERAGE(IFERROR(LARGE((X$6:X154+Y$6:Y154)*Z$6:Z154*(G$6:G154=G155), SC_SSCalcYears),0))/(12*Z155),0) -> 0 | AC155: 1 | AD155: 0 | AE155: 0 | AF155: 0 | AG155: 0 | AM155: 0
B156: 2029 | C156: N | E156: 0 | F156: 0 | G156: 1 | H156: 1 | I156: 0 | J156: 0 | K156: 0 | P156: 0 | Q156: 0 | R156: 0 | S156: 0 | T156: 0 | U156: 0 | V156: 0 | W156: 0 | X156: 0 | Y156: 0 | Z156: 1 | AA156: 0 | AB156: =ROUNDDOWN(AVERAGE(IFERROR(LARGE((X$6:X155+Y$6:Y155)*Z$6:Z155*(G$6:G155=G156), SC_SSCalcYears),0))/(12*Z156),0) -> 0 | AC156: 1 | AD156: 0 | AE156: 0 | AF156: 0 | AG156: 0 | AH156: =SUMIFS($AE156:$AE157,SP_PensionPayout,"Lump sum",$E156:$E157,"<>0") -> 0 | AI156: =SUMIFS($AE156:$AE157,SP_PensionPayout,"Annuity",$E156:$E157,"<>0") -> 0 | AJ156: =IF(ISBLANK(INDEX(SP_SSPBFA,1)),0,IF($J156<>INDEX(SP_SSPBFA,1),AJ154,SP_AdditionalRI/INDEX(SC_EA_InflationWageIdx,EAIDX))) -> 0 | AK156: =SUMPRODUCT(AF156:AF157, --(G156:G157<>0)) -> 0 | AL156: =SUMPRODUCT(AG156:AG157, --(E156:E157<>0))+AJ156 -> 0 | AM156: 0
B157: 2029 | C157: N | E157: 0 | F157: 0 | G157: 2 | H157: -1 | I157: 0 | J157: 0 | K157: 0 | P157: 0 | Q157: 0 | R157: 0 | S157: 0 | T157: 0 | U157: 0 | V157: 0 | W157: 0 | X157: 0 | Y157: 0 | Z157: 1 | AA157: 0 | AB157: =ROUNDDOWN(AVERAGE(IFERROR(LARGE((X$6:X156+Y$6:Y156)*Z$6:Z156*(G$6:G156=G157), SC_SSCalcYears),0))/(12*Z157),0) -> 0 | AC157: 1 | AD157: 0 | AE157: 0 | AF157: 0 | AG157: 0 | AM157: 0
B158: 2030 | C158: N | E158: 0 | F158: 0 | G158: 1 | H158: 1 | I158: 0 | J158: 0 | K158: 0 | P158: 0 | Q158: 0 | R158: 0 | S158: 0 | T158: 0 | U158: 0 | V158: 0 | W158: 0 | X158: 0 | Y158: 0 | Z158: 1 | AA158: 0 | AB158: =ROUNDDOWN(AVERAGE(IFERROR(LARGE((X$6:X157+Y$6:Y157)*Z$6:Z157*(G$6:G157=G158), SC_SSCalcYears),0))/(12*Z158),0) -> 0 | AC158: 1 | AD158: 0 | AE158: 0 | AF158: 0 | AG158: 0 | AH158: =SUMIFS($AE158:$AE159,SP_PensionPayout,"Lump sum",$E158:$E159,"<>0") -> 0 | AI158: =SUMIFS($AE158:$AE159,SP_PensionPayout,"Annuity",$E158:$E159,"<>0") -> 0 | AJ158: =IF(ISBLANK(INDEX(SP_SSPBFA,1)),0,IF($J158<>INDEX(SP_SSPBFA,1),AJ156,SP_AdditionalRI/INDEX(SC_EA_InflationWageIdx,EAIDX))) -> 0 | AK158: =SUMPRODUCT(AF158:AF159, --(G158:G159<>0)) -> 0 | AL158: =SUMPRODUCT(AG158:AG159, --(E158:E159<>0))+AJ158 -> 0 | AM158: 0
B159: 2030 | C159: N | E159: 0 | F159: 0 | G159: 2 | H159: -1 | I159: 0 | J159: 0 | K159: 0 | P159: 0 | Q159: 0 | R159: 0 | S159: 0 | T159: 0 | U159: 0 | V159: 0 | W159: 0 | X159: 0 | Y159: 0 | Z159: 1 | AA159: 0 | AB159: =ROUNDDOWN(AVERAGE(IFERROR(LARGE((X$6:X158+Y$6:Y158)*Z$6:Z158*(G$6:G158=G159), SC_SSCalcYears),0))/(12*Z159),0) -> 0 | AC159: 1 | AD159: 0 | AE159: 0 | AF159: 0 | AG159: 0 | AM159: 0
B160: 2031 | C160: N | E160: 0 | F160: 0 | G160: 1 | H160: 1 | I160: 0 | J160: 0 | K160: 0 | P160: 0 | Q160: 0 | R160: 0 | S160: 0 | T160: 0 | U160: 0 | V160: 0 | W160: 0 | X160: 0 | Y160: 0 | Z160: 1 | AA160: 0 | AB160: =ROUNDDOWN(AVERAGE(IFERROR(LARGE((X$6:X159+Y$6:Y159)*Z$6:Z159*(G$6:G159=G160), SC_SSCalcYears),0))/(12*Z160),0) -> 0 | AC160: 1 | AD160: 0 | AE160: 0 | AF160: 0 | AG160: 0 | AH160: =SUMIFS($AE160:$AE161,SP_PensionPayout,"Lump sum",$E160:$E161,"<>0") -> 0 | AI160: =SUMIFS($AE160:$AE161,SP_PensionPayout,"Annuity",$E160:$E161,"<>0") -> 0 | AJ160: =IF(ISBLANK(INDEX(SP_SSPBFA,1)),0,IF($J160<>INDEX(SP_SSPBFA,1),AJ158,SP_AdditionalRI/INDEX(SC_EA_InflationWageIdx,EAIDX))) -> 0 | AK160: =SUMPRODUCT(AF160:AF161, --(G160:G161<>0)) -> 0 | AL160: =SUMPRODUCT(AG160:AG161, --(E160:E161<>0))+AJ160 -> 0 | AM160: 0
B161: 2031 | C161: N | E161: 0 | F161: 0 | G161: 2 | H161: -1 | I161: 0 | J161: 0 | K161: 0 | P161: 0 | Q161: 0 | R161: 0 | S161: 0 | T161: 0 | U161: 0 | V161: 0 | W161: 0 | X161: 0 | Y161: 0 | Z161: 1 | AA161: 0 | AB161: =ROUNDDOWN(AVERAGE(IFERROR(LARGE((X$6:X160+Y$6:Y160)*Z$6:Z160*(G$6:G160=G161), SC_SSCalcYears),0))/(12*Z161),0) -> 0 | AC161: 1 | AD161: 0 | AE161: 0 | AF161: 0 | AG161: 0 | AM161: 0
B162: 2032 | C162: N | E162: 0 | F162: 0 | G162: 1 | H162: 1 | I162: 0 | J162: 0 | K162: 0 | P162: 0 | Q162: 0 | R162: 0 | S162: 0 | T162: 0 | U162: 0 | V162: 0 | W162: 0 | X162: 0 | Y162: 0 | Z162: 1 | AA162: 0 | AB162: =ROUNDDOWN(AVERAGE(IFERROR(LARGE((X$6:X161+Y$6:Y161)*Z$6:Z161*(G$6:G161=G162), SC_SSCalcYears),0))/(12*Z162),0) -> 0 | AC162: 1 | AD162: 0 | AE162: 0 | AF162: 0 | AG162: 0 | AH162: =SUMIFS($AE162:$AE163,SP_PensionPayout,"Lump sum",$E162:$E163,"<>0") -> 0 | AI162: =SUMIFS($AE162:$AE163,SP_PensionPayout,"Annuity",$E162:$E163,"<>0") -> 0 | AJ162: =IF(ISBLANK(INDEX(SP_SSPBFA,1)),0,IF($J162<>INDEX(SP_SSPBFA,1),AJ160,SP_AdditionalRI/INDEX(SC_EA_InflationWageIdx,EAIDX))) -> 0 | AK162: =SUMPRODUCT(AF162:AF163, --(G162:G163<>0)) -> 0 | AL162: =SUMPRODUCT(AG162:AG163, --(E162:E163<>0))+AJ162 -> 0 | AM162: 0
B163: 2032 | C163: N | E163: 0 | F163: 0 | G163: 2 | H163: -1 | I163: 0 | J163: 0 | K163: 0 | P163: 0 | Q163: 0 | R163: 0 | S163: 0 | T163: 0 | U163: 0 | V163: 0 | W163: 0 | X163: 0 | Y163: 0 | Z163: 1 | AA163: 0 | AB163: =ROUNDDOWN(AVERAGE(IFERROR(LARGE((X$6:X162+Y$6:Y162)*Z$6:Z162*(G$6:G162=G163), SC_SSCalcYears),0))/(12*Z163),0) -> 0 | AC163: 1 | AD163: 0 | AE163: 0 | AF163: 0 | AG163: 0 | AM163: 0
B164: 2033 | C164: N | E164: 0 | F164: 0 | G164: 1 | H164: 1 | I164: 0 | J164: 0 | K164: 0 | P164: 0 | Q164: 0 | R164: 0 | S164: 0 | T164: 0 | U164: 0 | V164: 0 | W164: 0 | X164: 0 | Y164: 0 | Z164: 1 | AA164: 0 | AB164: =ROUNDDOWN(AVERAGE(IFERROR(LARGE((X$6:X163+Y$6:Y163)*Z$6:Z163*(G$6:G163=G164), SC_SSCalcYears),0))/(12*Z164),0) -> 0 | AC164: 1 | AD164: 0 | AE164: 0 | AF164: 0 | AG164: 0 | AH164: =SUMIFS($AE164:$AE165,SP_PensionPayout,"Lump sum",$E164:$E165,"<>0") -> 0 | AI164: =SUMIFS($AE164:$AE165,SP_PensionPayout,"Annuity",$E164:$E165,"<>0") -> 0 | AJ164: =IF(ISBLANK(INDEX(SP_SSPBFA,1)),0,IF($J164<>INDEX(SP_SSPBFA,1),AJ162,SP_AdditionalRI/INDEX(SC_EA_InflationWageIdx,EAIDX))) -> 0 | AK164: =SUMPRODUCT(AF164:AF165, --(G164:G165<>0)) -> 0 | AL164: =SUMPRODUCT(AG164:AG165, --(E164:E165<>0))+AJ164 -> 0 | AM164: 0
B165: 2033 | C165: N | E165: 0 | F165: 0 | G165: 2 | H165: -1 | I165: 0 | J165: 0 | K165: 0 | P165: 0 | Q165: 0 | R165: 0 | S165: 0 | T165: 0 | U165: 0 | V165: 0 | W165: 0 | X165: 0 | Y165: 0 | Z165: 1 | AA165: 0 | AB165: =ROUNDDOWN(AVERAGE(IFERROR(LARGE((X$6:X164+Y$6:Y164)*Z$6:Z164*(G$6:G164=G165), SC_SSCalcYears),0))/(12*Z165),0) -> 0 | AC165: 1 | AD165: 0 | AE165: 0 | AF165: 0 | AG165: 0 | AM165: 0
B166: 2034 | C166: N | E166: 0 | F166: 0 | G166: 1 | H166: 1 | I166: 0 | J166: 0 | K166: 0 | P166: 0 | Q166: 0 | R166: 0 | S166: 0 | T166: 0 | U166: 0 | V166: 0 | W166: 0 | X166: 0 | Y166: 0 | Z166: 1 | AA166: 0 | AB166: =ROUNDDOWN(AVERAGE(IFERROR(LARGE((X$6:X165+Y$6:Y165)*Z$6:Z165*(G$6:G165=G166), SC_SSCalcYears),0))/(12*Z166),0) -> 0 | AC166: 1 | AD166: 0 | AE166: 0 | AF166: 0 | AG166: 0 | AH166: =SUMIFS($AE166:$AE167,SP_PensionPayout,"Lump sum",$E166:$E167,"<>0") -> 0 | AI166: =SUMIFS($AE166:$AE167,SP_PensionPayout,"Annuity",$E166:$E167,"<>0") -> 0 | AJ166: =IF(ISBLANK(INDEX(SP_SSPBFA,1)),0,IF($J166<>INDEX(SP_SSPBFA,1),AJ164,SP_AdditionalRI/INDEX(SC_EA_InflationWageIdx,EAIDX))) -> 0 | AK166: =SUMPRODUCT(AF166:AF167, --(G166:G167<>0)) -> 0 | AL166: =SUMPRODUCT(AG166:AG167, --(E166:E167<>0))+AJ166 -> 0 | AM166: 0
B167: 2034 | C167: N | E167: 0 | F167: 0 | G167: 2 | H167: -1 | I167: 0 | J167: 0 | K167: 0 | P167: 0 | Q167: 0 | R167: 0 | S167: 0 | T167: 0 | U167: 0 | V167: 0 | W167: 0 | X167: 0 | Y167: 0 | Z167: 1 | AA167: 0 | AB167: =ROUNDDOWN(AVERAGE(IFERROR(LARGE((X$6:X166+Y$6:Y166)*Z$6:Z166*(G$6:G166=G167), SC_SSCalcYears),0))/(12*Z167),0) -> 0 | AC167: 1 | AD167: 0 | AE167: 0 | AF167: 0 | AG167: 0 | AM167: 0
B168: 2035 | C168: N | E168: 0 | F168: 0 | G168: 1 | H168: 1 | I168: 0 | J168: 0 | K168: 0 | P168: 0 | Q168: 0 | R168: 0 | S168: 0 | T168: 0 | U168: 0 | V168: 0 | W168: 0 | X168: 0 | Y168: 0 | Z168: 1 | AA168: 0 | AB168: =ROUNDDOWN(AVERAGE(IFERROR(LARGE((X$6:X167+Y$6:Y167)*Z$6:Z167*(G$6:G167=G168), SC_SSCalcYears),0))/(12*Z168),0) -> 0 | AC168: 1 | AD168: 0 | AE168: 0 | AF168: 0 | AG168: 0 | AH168: =SUMIFS($AE168:$AE169,SP_PensionPayout,"Lump sum",$E168:$E169,"<>0") -> 0 | AI168: =SUMIFS($AE168:$AE169,SP_PensionPayout,"Annuity",$E168:$E169,"<>0") -> 0 | AJ168: =IF(ISBLANK(INDEX(SP_SSPBFA,1)),0,IF($J168<>INDEX(SP_SSPBFA,1),AJ166,SP_AdditionalRI/INDEX(SC_EA_InflationWageIdx,EAIDX))) -> 0 | AK168: =SUMPRODUCT(AF168:AF169, --(G168:G169<>0)) -> 0 | AL168: =SUMPRODUCT(AG168:AG169, --(E168:E169<>0))+AJ168 -> 0 | AM168: 0
B169: 2035 | C169: N | E169: 0 | F169: 0 | G169: 2 | H169: -1 | I169: 0 | J169: 0 | K169: 0 | P169: 0 | Q169: 0 | R169: 0 | S169: 0 | T169: 0 | U169: 0 | V169: 0 | W169: 0 | X169: 0 | Y169: 0 | Z169: 1 | AA169: 0 | AB169: =ROUNDDOWN(AVERAGE(IFERROR(LARGE((X$6:X168+Y$6:Y168)*Z$6:Z168*(G$6:G168=G169), SC_SSCalcYears),0))/(12*Z169),0) -> 0 | AC169: 1 | AD169: 0 | AE169: 0 | AF169: 0 | AG169: 0 | AM169: 0
B170: 2036 | C170: N | E170: 0 | F170: 0 | G170: 1 | H170: 1 | I170: 0 | J170: 0 | K170: 0 | P170: 0 | Q170: 0 | R170: 0 | S170: 0 | T170: 0 | U170: 0 | V170: 0 | W170: 0 | X170: 0 | Y170: 0 | Z170: 1 | AA170: 0 | AB170: =ROUNDDOWN(AVERAGE(IFERROR(LARGE((X$6:X169+Y$6:Y169)*Z$6:Z169*(G$6:G169=G170), SC_SSCalcYears),0))/(12*Z170),0) -> 0 | AC170: 1 | AD170: 0 | AE170: 0 | AF170: 0 | AG170: 0 | AH170: =SUMIFS($AE170:$AE171,SP_PensionPayout,"Lump sum",$E170:$E171,"<>0") -> 0 | AI170: =SUMIFS($AE170:$AE171,SP_PensionPayout,"Annuity",$E170:$E171,"<>0") -> 0 | AJ170: =IF(ISBLANK(INDEX(SP_SSPBFA,1)),0,IF($J170<>INDEX(SP_SSPBFA,1),AJ168,SP_AdditionalRI/INDEX(SC_EA_InflationWageIdx,EAIDX))) -> 0 | AK170: =SUMPRODUCT(AF170:AF171, --(G170:G171<>0)) -> 0 | AL170: =SUMPRODUCT(AG170:AG171, --(E170:E171<>0))+AJ170 -> 0 | AM170: 0
B171: 2036 | C171: N | E171: 0 | F171: 0 | G171: 2 | H171: -1 | I171: 0 | J171: 0 | K171: 0 | P171: 0 | Q171: 0 | R171: 0 | S171: 0 | T171: 0 | U171: 0 | V171: 0 | W171: 0 | X171: 0 | Y171: 0 | Z171: 1 | AA171: 0 | AB171: =ROUNDDOWN(AVERAGE(IFERROR(LARGE((X$6:X170+Y$6:Y170)*Z$6:Z170*(G$6:G170=G171), SC_SSCalcYears),0))/(12*Z171),0) -> 0 | AC171: 1 | AD171: 0 | AE171: 0 | AF171: 0 | AG171: 0 | AM171: 0
B172: 2037 | C172: N | E172: 0 | F172: 0 | G172: 1 | H172: 1 | I172: 0 | J172: 0 | K172: 0 | P172: 0 | Q172: 0 | R172: 0 | S172: 0 | T172: 0 | U172: 0 | V172: 0 | W172: 0 | X172: 0 | Y172: 0 | Z172: 1 | AA172: 0 | AB172: =ROUNDDOWN(AVERAGE(IFERROR(LARGE((X$6:X171+Y$6:Y171)*Z$6:Z171*(G$6:G171=G172), SC_SSCalcYears),0))/(12*Z172),0) -> 0 | AC172: 1 | AD172: 0 | AE172: 0 | AF172: 0 | AG172: 0 | AH172: =SUMIFS($AE172:$AE173,SP_PensionPayout,"Lump sum",$E172:$E173,"<>0") -> 0 | AI172: =SUMIFS($AE172:$AE173,SP_PensionPayout,"Annuity",$E172:$E173,"<>0") -> 0 | AJ172: =IF(ISBLANK(INDEX(SP_SSPBFA,1)),0,IF($J172<>INDEX(SP_SSPBFA,1),AJ170,SP_AdditionalRI/INDEX(SC_EA_InflationWageIdx,EAIDX))) -> 0 | AK172: =SUMPRODUCT(AF172:AF173, --(G172:G173<>0)) -> 0 | AL172: =SUMPRODUCT(AG172:AG173, --(E172:E173<>0))+AJ172 -> 0 | AM172: 0
B173: 2037 | C173: N | E173: 0 | F173: 0 | G173: 2 | H173: -1 | I173: 0 | J173: 0 | K173: 0 | P173: 0 | Q173: 0 | R173: 0 | S173: 0 | T173: 0 | U173: 0 | V173: 0 | W173: 0 | X173: 0 | Y173: 0 | Z173: 1 | AA173: 0 | AB173: =ROUNDDOWN(AVERAGE(IFERROR(LARGE((X$6:X172+Y$6:Y172)*Z$6:Z172*(G$6:G172=G173), SC_SSCalcYears),0))/(12*Z173),0) -> 0 | AC173: 1 | AD173: 0 | AE173: 0 | AF173: 0 | AG173: 0 | AM173: 0
B174: 2038 | C174: N | E174: 0 | F174: 0 | G174: 1 | H174: 1 | I174: 0 | J174: 0 | K174: 0 | P174: 0 | Q174: 0 | R174: 0 | S174: 0 | T174: 0 | U174: 0 | V174: 0 | W174: 0 | X174: 0 | Y174: 0 | Z174: 1 | AA174: 0 | AB174: =ROUNDDOWN(AVERAGE(IFERROR(LARGE((X$6:X173+Y$6:Y173)*Z$6:Z173*(G$6:G173=G174), SC_SSCalcYears),0))/(12*Z174),0) -> 0 | AC174: 1 | AD174: 0 | AE174: 0 | AF174: 0 | AG174: 0 | AH174: =SUMIFS($AE174:$AE175,SP_PensionPayout,"Lump sum",$E174:$E175,"<>0") -> 0 | AI174: =SUMIFS($AE174:$AE175,SP_PensionPayout,"Annuity",$E174:$E175,"<>0") -> 0 | AJ174: =IF(ISBLANK(INDEX(SP_SSPBFA,1)),0,IF($J174<>INDEX(SP_SSPBFA,1),AJ172,SP_AdditionalRI/INDEX(SC_EA_InflationWageIdx,EAIDX))) -> 0 | AK174: =SUMPRODUCT(AF174:AF175, --(G174:G175<>0)) -> 0 | AL174: =SUMPRODUCT(AG174:AG175, --(E174:E175<>0))+AJ174 -> 0 | AM174: 0
B175: 2038 | C175: N | E175: 0 | F175: 0 | G175: 2 | H175: -1 | I175: 0 | J175: 0 | K175: 0 | P175: 0 | Q175: 0 | R175: 0 | S175: 0 | T175: 0 | U175: 0 | V175: 0 | W175: 0 | X175: 0 | Y175: 0 | Z175: 1 | AA175: 0 | AB175: =ROUNDDOWN(AVERAGE(IFERROR(LARGE((X$6:X174+Y$6:Y174)*Z$6:Z174*(G$6:G174=G175), SC_SSCalcYears),0))/(12*Z175),0) -> 0 | AC175: 1 | AD175: 0 | AE175: 0 | AF175: 0 | AG175: 0 | AM175: 0
B176: 2039 | C176: N | E176: 0 | F176: 0 | G176: 1 | H176: 1 | I176: 0 | J176: 0 | K176: 0 | P176: 0 | Q176: 0 | R176: 0 | S176: 0 | T176: 0 | U176: 0 | V176: 0 | W176: 0 | X176: 0 | Y176: 0 | Z176: 1 | AA176: 0 | AB176: =ROUNDDOWN(AVERAGE(IFERROR(LARGE((X$6:X175+Y$6:Y175)*Z$6:Z175*(G$6:G175=G176), SC_SSCalcYears),0))/(12*Z176),0) -> 0 | AC176: 1 | AD176: 0 | AE176: 0 | AF176: 0 | AG176: 0 | AH176: =SUMIFS($AE176:$AE177,SP_PensionPayout,"Lump sum",$E176:$E177,"<>0") -> 0 | AI176: =SUMIFS($AE176:$AE177,SP_PensionPayout,"Annuity",$E176:$E177,"<>0") -> 0 | AJ176: =IF(ISBLANK(INDEX(SP_SSPBFA,1)),0,IF($J176<>INDEX(SP_SSPBFA,1),AJ174,SP_AdditionalRI/INDEX(SC_EA_InflationWageIdx,EAIDX))) -> 0 | AK176: =SUMPRODUCT(AF176:AF177, --(G176:G177<>0)) -> 0 | AL176: =SUMPRODUCT(AG176:AG177, --(E176:E177<>0))+AJ176 -> 0 | AM176: 0
B177: 2039 | C177: N | E177: 0 | F177: 0 | G177: 2 | H177: -1 | I177: 0 | J177: 0 | K177: 0 | P177: 0 | Q177: 0 | R177: 0 | S177: 0 | T177: 0 | U177: 0 | V177: 0 | W177: 0 | X177: 0 | Y177: 0 | Z177: 1 | AA177: 0 | AB177: =ROUNDDOWN(AVERAGE(IFERROR(LARGE((X$6:X176+Y$6:Y176)*Z$6:Z176*(G$6:G176=G177), SC_SSCalcYears),0))/(12*Z177),0) -> 0 | AC177: 1 | AD177: 0 | AE177: 0 | AF177: 0 | AG177: 0 | AM177: 0
B178: 2040 | C178: N | E178: 0 | F178: 0 | G178: 1 | H178: 1 | I178: 0 | J178: 0 | K178: 0 | P178: 0 | Q178: 0 | R178: 0 | S178: 0 | T178: 0 | U178: 0 | V178: 0 | W178: 0 | X178: 0 | Y178: 0 | Z178: 1 | AA178: 0 | AB178: =ROUNDDOWN(AVERAGE(IFERROR(LARGE((X$6:X177+Y$6:Y177)*Z$6:Z177*(G$6:G177=G178), SC_SSCalcYears),0))/(12*Z178),0) -> 0 | AC178: 1 | AD178: 0 | AE178: 0 | AF178: 0 | AG178: 0 | AH178: =SUMIFS($AE178:$AE179,SP_PensionPayout,"Lump sum",$E178:$E179,"<>0") -> 0 | AI178: =SUMIFS($AE178:$AE179,SP_PensionPayout,"Annuity",$E178:$E179,"<>0") -> 0 | AJ178: =IF(ISBLANK(INDEX(SP_SSPBFA,1)),0,IF($J178<>INDEX(SP_SSPBFA,1),AJ176,SP_AdditionalRI/INDEX(SC_EA_InflationWageIdx,EAIDX))) -> 0 | AK178: =SUMPRODUCT(AF178:AF179, --(G178:G179<>0)) -> 0 | AL178: =SUMPRODUCT(AG178:AG179, --(E178:E179<>0))+AJ178 -> 0 | AM178: 0
B179: 2040 | C179: N | E179: 0 | F179: 0 | G179: 2 | H179: -1 | I179: 0 | J179: 0 | K179: 0 | P179: 0 | Q179: 0 | R179: 0 | S179: 0 | T179: 0 | U179: 0 | V179: 0 | W179: 0 | X179: 0 | Y179: 0 | Z179: 1 | AA179: 0 | AB179: =ROUNDDOWN(AVERAGE(IFERROR(LARGE((X$6:X178+Y$6:Y178)*Z$6:Z178*(G$6:G178=G179), SC_SSCalcYears),0))/(12*Z179),0) -> 0 | AC179: 1 | AD179: 0 | AE179: 0 | AF179: 0 | AG179: 0 | AM179: 0
B180: 2041 | C180: N | E180: 0 | F180: 0 | G180: 1 | H180: 1 | I180: 0 | J180: 0 | K180: 0 | P180: 0 | Q180: 0 | R180: 0 | S180: 0 | T180: 0 | U180: 0 | V180: 0 | W180: 0 | X180: 0 | Y180: 0 | Z180: 1 | AA180: 0 | AB180: =ROUNDDOWN(AVERAGE(IFERROR(LARGE((X$6:X179+Y$6:Y179)*Z$6:Z179*(G$6:G179=G180), SC_SSCalcYears),0))/(12*Z180),0) -> 0 | AC180: 1 | AD180: 0 | AE180: 0 | AF180: 0 | AG180: 0 | AH180: =SUMIFS($AE180:$AE181,SP_PensionPayout,"Lump sum",$E180:$E181,"<>0") -> 0 | AI180: =SUMIFS($AE180:$AE181,SP_PensionPayout,"Annuity",$E180:$E181,"<>0") -> 0 | AJ180: =IF(ISBLANK(INDEX(SP_SSPBFA,1)),0,IF($J180<>INDEX(SP_SSPBFA,1),AJ178,SP_AdditionalRI/INDEX(SC_EA_InflationWageIdx,EAIDX))) -> 0 | AK180: =SUMPRODUCT(AF180:AF181, --(G180:G181<>0)) -> 0 | AL180: =SUMPRODUCT(AG180:AG181, --(E180:E181<>0))+AJ180 -> 0 | AM180: 0
B181: 2041 | C181: N | E181: 0 | F181: 0 | G181: 2 | H181: -1 | I181: 0 | J181: 0 | K181: 0 | P181: 0 | Q181: 0 | R181: 0 | S181: 0 | T181: 0 | U181: 0 | V181: 0 | W181: 0 | X181: 0 | Y181: 0 | Z181: 1 | AA181: 0 | AB181: =ROUNDDOWN(AVERAGE(IFERROR(LARGE((X$6:X180+Y$6:Y180)*Z$6:Z180*(G$6:G180=G181), SC_SSCalcYears),0))/(12*Z181),0) -> 0 | AC181: 1 | AD181: 0 | AE181: 0 | AF181: 0 | AG181: 0 | AM181: 0
B182: 2042 | C182: N | E182: 0 | F182: 0 | G182: 1 | H182: 1 | I182: 0 | J182: 0 | K182: 0 | P182: 0 | Q182: 0 | R182: 0 | S182: 0 | T182: 0 | U182: 0 | V182: 0 | W182: 0 | X182: 0 | Y182: 0 | Z182: 1 | AA182: 0 | AB182: =ROUNDDOWN(AVERAGE(IFERROR(LARGE((X$6:X181+Y$6:Y181)*Z$6:Z181*(G$6:G181=G182), SC_SSCalcYears),0))/(12*Z182),0) -> 0 | AC182: 1 | AD182: 0 | AE182: 0 | AF182: 0 | AG182: 0 | AH182: =SUMIFS($AE182:$AE183,SP_PensionPayout,"Lump sum",$E182:$E183,"<>0") -> 0 | AI182: =SUMIFS($AE182:$AE183,SP_PensionPayout,"Annuity",$E182:$E183,"<>0") -> 0 | AJ182: =IF(ISBLANK(INDEX(SP_SSPBFA,1)),0,IF($J182<>INDEX(SP_SSPBFA,1),AJ180,SP_AdditionalRI/INDEX(SC_EA_InflationWageIdx,EAIDX))) -> 0 | AK182: =SUMPRODUCT(AF182:AF183, --(G182:G183<>0)) -> 0 | AL182: =SUMPRODUCT(AG182:AG183, --(E182:E183<>0))+AJ182 -> 0 | AM182: 0
B183: 2042 | C183: N | E183: 0 | F183: 0 | G183: 2 | H183: -1 | I183: 0 | J183: 0 | K183: 0 | P183: 0 | Q183: 0 | R183: 0 | S183: 0 | T183: 0 | U183: 0 | V183: 0 | W183: 0 | X183: 0 | Y183: 0 | Z183: 1 | AA183: 0 | AB183: =ROUNDDOWN(AVERAGE(IFERROR(LARGE((X$6:X182+Y$6:Y182)*Z$6:Z182*(G$6:G182=G183), SC_SSCalcYears),0))/(12*Z183),0) -> 0 | AC183: 1 | AD183: 0 | AE183: 0 | AF183: 0 | AG183: 0 | AM183: 0
B184: 2043 | C184: N | E184: 0 | F184: 0 | G184: 1 | H184: 1 | I184: 0 | J184: 0 | K184: 0 | P184: 0 | Q184: 0 | R184: 0 | S184: 0 | T184: 0 | U184: 0 | V184: 0 | W184: 0 | X184: 0 | Y184: 0 | Z184: 1 | AA184: 0 | AB184: =ROUNDDOWN(AVERAGE(IFERROR(LARGE((X$6:X183+Y$6:Y183)*Z$6:Z183*(G$6:G183=G184), SC_SSCalcYears),0))/(12*Z184),0) -> 0 | AC184: 1 | AD184: 0 | AE184: 0 | AF184: 0 | AG184: 0 | AH184: =SUMIFS($AE184:$AE185,SP_PensionPayout,"Lump sum",$E184:$E185,"<>0") -> 0 | AI184: =SUMIFS($AE184:$AE185,SP_PensionPayout,"Annuity",$E184:$E185,"<>0") -> 0 | AJ184: =IF(ISBLANK(INDEX(SP_SSPBFA,1)),0,IF($J184<>INDEX(SP_SSPBFA,1),AJ182,SP_AdditionalRI/INDEX(SC_EA_InflationWageIdx,EAIDX))) -> 0 | AK184: =SUMPRODUCT(AF184:AF185, --(G184:G185<>0)) -> 0 | AL184: =SUMPRODUCT(AG184:AG185, --(E184:E185<>0))+AJ184 -> 0 | AM184: 0
B185: 2043 | C185: N | E185: 0 | F185: 0 | G185: 2 | H185: -1 | I185: 0 | J185: 0 | K185: 0 | P185: 0 | Q185: 0 | R185: 0 | S185: 0 | T185: 0 | U185: 0 | V185: 0 | W185: 0 | X185: 0 | Y185: 0 | Z185: 1 | AA185: 0 | AB185: =ROUNDDOWN(AVERAGE(IFERROR(LARGE((X$6:X184+Y$6:Y184)*Z$6:Z184*(G$6:G184=G185), SC_SSCalcYears),0))/(12*Z185),0) -> 0 | AC185: 1 | AD185: 0 | AE185: 0 | AF185: 0 | AG185: 0 | AM185: 0
B186: 2044 | C186: N | E186: 0 | F186: 0 | G186: 1 | H186: 1 | I186: 0 | J186: 0 | K186: 0 | P186: 0 | Q186: 0 | R186: 0 | S186: 0 | T186: 0 | U186: 0 | V186: 0 | W186: 0 | X186: 0 | Y186: 0 | Z186: 1 | AA186: 0 | AB186: =ROUNDDOWN(AVERAGE(IFERROR(LARGE((X$6:X185+Y$6:Y185)*Z$6:Z185*(G$6:G185=G186), SC_SSCalcYears),0))/(12*Z186),0) -> 0 | AC186: 1 | AD186: 0 | AE186: 0 | AF186: 0 | AG186: 0 | AH186: =SUMIFS($AE186:$AE187,SP_PensionPayout,"Lump sum",$E186:$E187,"<>0") -> 0 | AI186: =SUMIFS($AE186:$AE187,SP_PensionPayout,"Annuity",$E186:$E187,"<>0") -> 0 | AJ186: =IF(ISBLANK(INDEX(SP_SSPBFA,1)),0,IF($J186<>INDEX(SP_SSPBFA,1),AJ184,SP_AdditionalRI/INDEX(SC_EA_InflationWageIdx,EAIDX))) -> 0 | AK186: =SUMPRODUCT(AF186:AF187, --(G186:G187<>0)) -> 0 | AL186: =SUMPRODUCT(AG186:AG187, --(E186:E187<>0))+AJ186 -> 0 | AM186: 0
B187: 2044 | C187: N | E187: 0 | F187: 0 | G187: 2 | H187: -1 | I187: 0 | J187: 0 | K187: 0 | P187: 0 | Q187: 0 | R187: 0 | S187: 0 | T187: 0 | U187: 0 | V187: 0 | W187: 0 | X187: 0 | Y187: 0 | Z187: 1 | AA187: 0 | AB187: =ROUNDDOWN(AVERAGE(IFERROR(LARGE((X$6:X186+Y$6:Y186)*Z$6:Z186*(G$6:G186=G187), SC_SSCalcYears),0))/(12*Z187),0) -> 0 | AC187: 1 | AD187: 0 | AE187: 0 | AF187: 0 | AG187: 0 | AM187: 0
B188: 2045 | C188: N | E188: 0 | F188: 0 | G188: 1 | H188: 1 | I188: 0 | J188: 0 | K188: 0 | P188: 0 | Q188: 0 | R188: 0 | S188: 0 | T188: 0 | U188: 0 | V188: 0 | W188: 0 | X188: 0 | Y188: 0 | Z188: 1 | AA188: 0 | AB188: =ROUNDDOWN(AVERAGE(IFERROR(LARGE((X$6:X187+Y$6:Y187)*Z$6:Z187*(G$6:G187=G188), SC_SSCalcYears),0))/(12*Z188),0) -> 0 | AC188: 1 | AD188: 0 | AE188: 0 | AF188: 0 | AG188: 0 | AH188: =SUMIFS($AE188:$AE189,SP_PensionPayout,"Lump sum",$E188:$E189,"<>0") -> 0 | AI188: =SUMIFS($AE188:$AE189,SP_PensionPayout,"Annuity",$E188:$E189,"<>0") -> 0 | AJ188: =IF(ISBLANK(INDEX(SP_SSPBFA,1)),0,IF($J188<>INDEX(SP_SSPBFA,1),AJ186,SP_AdditionalRI/INDEX(SC_EA_InflationWageIdx,EAIDX))) -> 0 | AK188: =SUMPRODUCT(AF188:AF189, --(G188:G189<>0)) -> 0 | AL188: =SUMPRODUCT(AG188:AG189, --(E188:E189<>0))+AJ188 -> 0 | AM188: 0
B189: 2045 | C189: N | E189: 0 | F189: 0 | G189: 2 | H189: -1 | I189: 0 | J189: 0 | K189: 0 | P189: 0 | Q189: 0 | R189: 0 | S189: 0 | T189: 0 | U189: 0 | V189: 0 | W189: 0 | X189: 0 | Y189: 0 | Z189: 1 | AA189: 0 | AB189: =ROUNDDOWN(AVERAGE(IFERROR(LARGE((X$6:X188+Y$6:Y188)*Z$6:Z188*(G$6:G188=G189), SC_SSCalcYears),0))/(12*Z189),0) -> 0 | AC189: 1 | AD189: 0 | AE189: 0 | AF189: 0 | AG189: 0 | AM189: 0
B190: 2046 | C190: N | E190: 0 | F190: 0 | G190: 1 | H190: 1 | I190: 0 | J190: 0 | K190: 0 | P190: 0 | Q190: 0 | R190: 0 | S190: 0 | T190: 0 | U190: 0 | V190: 0 | W190: 0 | X190: 0 | Y190: 0 | Z190: 1 | AA190: 0 | AB190: =ROUNDDOWN(AVERAGE(IFERROR(LARGE((X$6:X189+Y$6:Y189)*Z$6:Z189*(G$6:G189=G190), SC_SSCalcYears),0))/(12*Z190),0) -> 0 | AC190: 1 | AD190: 0 | AE190: 0 | AF190: 0 | AG190: 0 | AH190: =SUMIFS($AE190:$AE191,SP_PensionPayout,"Lump sum",$E190:$E191,"<>0") -> 0 | AI190: =SUMIFS($AE190:$AE191,SP_PensionPayout,"Annuity",$E190:$E191,"<>0") -> 0 | AJ190: =IF(ISBLANK(INDEX(SP_SSPBFA,1)),0,IF($J190<>INDEX(SP_SSPBFA,1),AJ188,SP_AdditionalRI/INDEX(SC_EA_InflationWageIdx,EAIDX))) -> 0 | AK190: =SUMPRODUCT(AF190:AF191, --(G190:G191<>0)) -> 0 | AL190: =SUMPRODUCT(AG190:AG191, --(E190:E191<>0))+AJ190 -> 0 | AM190: 0
B191: 2046 | C191: N | E191: 0 | F191: 0 | G191: 2 | H191: -1 | I191: 0 | J191: 0 | K191: 0 | P191: 0 | Q191: 0 | R191: 0 | S191: 0 | T191: 0 | U191: 0 | V191: 0 | W191: 0 | X191: 0 | Y191: 0 | Z191: 1 | AA191: 0 | AB191: =ROUNDDOWN(AVERAGE(IFERROR(LARGE((X$6:X190+Y$6:Y190)*Z$6:Z190*(G$6:G190=G191), SC_SSCalcYears),0))/(12*Z191),0) -> 0 | AC191: 1 | AD191: 0 | AE191: 0 | AF191: 0 | AG191: 0 | AM191: 0
B192: 2047 | C192: N | E192: 0 | F192: 0 | G192: 1 | H192: 1 | I192: 0 | J192: 0 | K192: 0 | P192: 0 | Q192: 0 | R192: 0 | S192: 0 | T192: 0 | U192: 0 | V192: 0 | W192: 0 | X192: 0 | Y192: 0 | Z192: 1 | AA192: 0 | AB192: =ROUNDDOWN(AVERAGE(IFERROR(LARGE((X$6:X191+Y$6:Y191)*Z$6:Z191*(G$6:G191=G192), SC_SSCalcYears),0))/(12*Z192),0) -> 0 | AC192: 1 | AD192: 0 | AE192: 0 | AF192: 0 | AG192: 0 | AH192: =SUMIFS($AE192:$AE193,SP_PensionPayout,"Lump sum",$E192:$E193,"<>0") -> 0 | AI192: =SUMIFS($AE192:$AE193,SP_PensionPayout,"Annuity",$E192:$E193,"<>0") -> 0 | AJ192: =IF(ISBLANK(INDEX(SP_SSPBFA,1)),0,IF($J192<>INDEX(SP_SSPBFA,1),AJ190,SP_AdditionalRI/INDEX(SC_EA_InflationWageIdx,EAIDX))) -> 0 | AK192: =SUMPRODUCT(AF192:AF193, --(G192:G193<>0)) -> 0 | AL192: =SUMPRODUCT(AG192:AG193, --(E192:E193<>0))+AJ192 -> 0 | AM192: 0
B193: 2047 | C193: N | E193: 0 | F193: 0 | G193: 2 | H193: -1 | I193: 0 | J193: 0 | K193: 0 | P193: 0 | Q193: 0 | R193: 0 | S193: 0 | T193: 0 | U193: 0 | V193: 0 | W193: 0 | X193: 0 | Y193: 0 | Z193: 1 | AA193: 0 | AB193: =ROUNDDOWN(AVERAGE(IFERROR(LARGE((X$6:X192+Y$6:Y192)*Z$6:Z192*(G$6:G192=G193), SC_SSCalcYears),0))/(12*Z193),0) -> 0 | AC193: 1 | AD193: 0 | AE193: 0 | AF193: 0 | AG193: 0 | AM193: 0
B194: 2048 | C194: N | E194: 0 | F194: 0 | G194: 1 | H194: 1 | I194: 0 | J194: 0 | K194: 0 | P194: 0 | Q194: 0 | R194: 0 | S194: 0 | T194: 0 | U194: 0 | V194: 0 | W194: 0 | X194: 0 | Y194: 0 | Z194: 1 | AA194: 0 | AB194: =ROUNDDOWN(AVERAGE(IFERROR(LARGE((X$6:X193+Y$6:Y193)*Z$6:Z193*(G$6:G193=G194), SC_SSCalcYears),0))/(12*Z194),0) -> 0 | AC194: 1 | AD194: 0 | AE194: 0 | AF194: 0 | AG194: 0 | AH194: =SUMIFS($AE194:$AE195,SP_PensionPayout,"Lump sum",$E194:$E195,"<>0") -> 0 | AI194: =SUMIFS($AE194:$AE195,SP_PensionPayout,"Annuity",$E194:$E195,"<>0") -> 0 | AJ194: =IF(ISBLANK(INDEX(SP_SSPBFA,1)),0,IF($J194<>INDEX(SP_SSPBFA,1),AJ192,SP_AdditionalRI/INDEX(SC_EA_InflationWageIdx,EAIDX))) -> 0 | AK194: =SUMPRODUCT(AF194:AF195, --(G194:G195<>0)) -> 0 | AL194: =SUMPRODUCT(AG194:AG195, --(E194:E195<>0))+AJ194 -> 0 | AM194: 0
B195: 2048 | C195: N | E195: 0 | F195: 0 | G195: 2 | H195: -1 | I195: 0 | J195: 0 | K195: 0 | P195: 0 | Q195: 0 | R195: 0 | S195: 0 | T195: 0 | U195: 0 | V195: 0 | W195: 0 | X195: 0 | Y195: 0 | Z195: 1 | AA195: 0 | AB195: =ROUNDDOWN(AVERAGE(IFERROR(LARGE((X$6:X194+Y$6:Y194)*Z$6:Z194*(G$6:G194=G195), SC_SSCalcYears),0))/(12*Z195),0) -> 0 | AC195: 1 | AD195: 0 | AE195: 0 | AF195: 0 | AG195: 0 | AM195: 0
B196: 2049 | C196: N | D196: =INDEX(SP_Initials,G196) ->  | E196: =INDEX(SC_TaxIndex,$G196) -> 0 | F196: 0 | G196: 1 | H196: 1 | I196: =IF(INDEX(SC_ShowRetireatee,$G196),IF($B196<YEAR(INDEX(SP_BirthDate,$G196)),0,$B196-YEAR(INDEX(SP_BirthDate,$G196))),0) -> 0 | J196: 0 | K196: =IF($B196<SC_TargetRY,1,IF($B196=SC_TargetRY,-(1-YEARFRAC(SP_TargetRD,DATE($B196+1,1,1))),0)) -> 0 | P196: 0 | Q196: 0 | R196: 0 | S196: 0 | T196: 0 | U196: 0 | V196: 0 | W196: 0 | X196: 0 | Y196: 0 | Z196: 1 | AA196: 0 | AB196: =ROUNDDOWN(AVERAGE(IFERROR(LARGE((X$6:X195+Y$6:Y195)*Z$6:Z195*(G$6:G195=G196), SC_SSCalcYears),0))/(12*Z196),0) -> 0 | AC196: 1 | AD196: 0 | AE196: 0 | AF196: 0 | AG196: 0 | AH196: =SUMIFS($AE196:$AE197,SP_PensionPayout,"Lump sum",$E196:$E197,"<>0") -> 0 | AI196: =SUMIFS($AE196:$AE197,SP_PensionPayout,"Annuity",$E196:$E197,"<>0") -> 0 | AJ196: =IF(ISBLANK(INDEX(SP_SSPBFA,1)),0,IF($J196<>INDEX(SP_SSPBFA,1),AJ194,SP_AdditionalRI/INDEX(SC_EA_InflationWageIdx,EAIDX))) -> 0 | AK196: =SUMPRODUCT(AF196:AF197, --(G196:G197<>0)) -> 0 | AL196: =SUMPRODUCT(AG196:AG197, --(E196:E197<>0))+AJ196 -> 0 | AM196: 0
B197: 2049 | C197: N | E197: 0 | F197: 0 | G197: =MOD(ROW(),2)+1 -> 2 | H197: -1 | I197: 0 | J197: 0 | K197: 0 | P197: 0 | Q197: 0 | R197: 0 | S197: 0 | T197: 0 | U197: 0 | V197: 0 | W197: 0 | X197: 0 | Y197: 0 | Z197: 1 | AA197: 0 | AB197: =ROUNDDOWN(AVERAGE(IFERROR(LARGE((X$6:X196+Y$6:Y196)*Z$6:Z196*(G$6:G196=G197), SC_SSCalcYears),0))/(12*Z197),0) -> 0 | AC197: 1 | AD197: 0 | AE197: 0 | AF197: 0 | AG197: 0 | AM197: 0
B198: 2050 | C198: N | E198: 0 | F198: =MAX($J198+1-INDEX(SP_StartWorkAge,$G198),0) -> 0 | G198: 1 | H198: =MOD($G198,2)-($G198-1) -> 1 | I198: 0 | J198: =IF(INDEX(SC_ShowRetireatee,$G198),IF($B198>(YEAR(INDEX(SP_BirthDate,$G198))+INDEX(SP_LifeExp,$G198)),0,$I198),0) -> 0 | K198: 0 | P198: =IF(IF(COLUMN()=COLUMN(L198),TRUE,ISBLANK(L198)), IF(OR($F198=0,$K198=0),0,IF($B198=SP_CurrentYear, 0, IF($B198>SP_CurrentYear, $P196*(1+INDEX(SP_EA_InflationWageRate, EAIDX-1)+INDEX(SP_IncomeEmployerAdj, $G198)), $P200/(1+INDEX(SP_EA_InflationWageRate, EAIDX)+INDEX(SP_IncomeEmployerAdj, $G198))))), L198) -> 0 | Q198: =IF(IF(COLUMN()=COLUMN(M198),TRUE,ISBLANK(M198)), IF(OR($F198=0,$K198=0),0,IF($B198=SP_CurrentYear, 0, IF($B198>SP_CurrentYear, $Q196*(1+INDEX(SP_EA_InflationWageRate, EAIDX-1)+INDEX(SP_IncomeSEAdj, $G198)), 0))), M198) -> 0 | R198: =IF(IF(COLUMN()=COLUMN(N198),TRUE,ISBLANK(N198)), IF($B198=SP_CurrentYear, 0, IF($B198>SP_CurrentYear, $R196*(1+INDEX(SP_EA_InflationWageRate, EAIDX-1)+INDEX(SP_IncomePassiveAdj, $G198)), 0)), N198) -> 0 | S198: =IF(IF(COLUMN()=COLUMN(O198),TRUE,ISBLANK(O198)), IF($B198=SP_CurrentYear,(-INDEX(SC_ExpensesLivingPF,$G198,1)*ABS($K198)-INDEX(SC_ExpensesLivingPF,$G198,2)*(1-ABS($K198)))/INDEX(SC_EA_InflationCPIdx, EAIDX)*12, IF($B198>SP_CurrentYear, $S196*(1+INDEX(SP_EA_InflationCPRate, EAIDX-1)), IF($P198=0, 0,$S200/(1+INDEX(SP_EA_InflationCPRate, EAIDX)))))*ABS($K198), O198) -> 0 | T198: =P198*ABS($K198) -> 0 | U198: =Q198*ABS($K198) -> 0 | V198: =MAX(T198-ABS($S198)*ABS($K198), 0) -> 0 | W198: =MAX(U198-MAX(ABS($S198)*ABS($K198)-P198, 0),0) -> 0 | X198: =IF($J198=0, 0, MAX(MIN(T198-ABS($S198)*ABS($K198), INDEX(SC_EA_SSWageBase, EAIDX)), 0)) -> 0 | Y198: =IF($J198=0, 0, MIN(MAX(U198-MAX(ABS($S198)*ABS($K198)-P198, 0),0), INDEX(SC_EA_SSWageBase, EAIDX)-X198)) -> 0 | Z198: =IF($J198=0,1,IF($B198>=INDEX(SC_SSBaseYear,$G198),1,Z200*(INDEX(SP_EA_InflationWageRate, EAIDX+1)+1))) -> 1 | AA198: =IF($J198=0, 0, ROUNDDOWN(MIN((X198+Y198)*Z198,LT_SSMaxCredit*Z198)/(LT_SSOneCredit*Z198), 0)) -> 0 | AB198: =ROUNDDOWN(AVERAGE(IFERROR(LARGE((X$6:X197+Y$6:Y197)*Z$6:Z197*(G$6:G197=G198), SC_SSCalcYears),0))/(12*Z198),0) -> 0 | AC198: =IF($I198>0, IF($B198<=INDEX(SC_SSBaseYear,$G198)+2,Z198,1/(1/AC196*(INDEX(SC_EA_SSCOLA, EAIDX-1)+1))), 1) -> 1 | AD198: =IF(INDEX(SP_PensionSWD,$G198)="",0,IF(YEAR(INDEX(SP_PensionSWD,$G198))>$B198,0,YEARFRAC(INDEX(SP_PensionSWD,$G198), MIN(DATE($B198+1,1,1),SP_TargetRD)))) -> 0 | AE198: =IF(AND(AD198>0, $B198=SC_TargetRY, INDEX(SP_PensionFAE,$G198)>0),SUMIF(OFFSET(G198,-MIN(INDEX(SP_PensionFAE,$G198),AD198)*2,0,MIN(INDEX(SP_PensionFAE,$G198),AD198)*2),$G198,OFFSET(P198,-MIN(INDEX(SP_PensionFAE,$G198),AD198)*2,0,MIN(INDEX(SP_PensionFAE,$G198),AD198)*2))/MIN(INDEX(SP_PensionFAE,$G198),AD198)*INDEX(SP_PensionPCT,$G198)*AD198,0) -> 0 | AF198: =$T198+$U198 -> 0 | AG198: =$R198 -> 0 | AH198: =SUMIFS($AE198:$AE199,SP_PensionPayout,"Lump sum",$E198:$E199,"<>0") -> 0 | AI198: =SUMIFS($AE198:$AE199,SP_PensionPayout,"Annuity",$E198:$E199,"<>0") -> 0 | AJ198: =IF(ISBLANK(INDEX(SP_SSPBFA,1)),0,IF($J198<>INDEX(SP_SSPBFA,1),AJ196,SP_AdditionalRI/INDEX(SC_EA_InflationWageIdx,EAIDX))) -> 0 | AK198: =SUMPRODUCT(AF198:AF199, --(G198:G199<>0)) -> 0 | AL198: =SUMPRODUCT(AG198:AG199, --(E198:E199<>0))+AJ198 -> 0 | AM198: =IFERROR(IF(OR(NOT(ISNUMBER($P198)),$P198<0,NOT(ISNUMBER($Q198)),$Q198<0,NOT(ISNUMBER($R198)),$R198<0,NOT(ISNUMBER($S198)),$S198<0),202,0),203) -> 0 | AN198: =IFERROR(VLOOKUP(AM198,IV_CodeTable,2,FALSE),"") -> 
B199: =B197+1 -> 2050 | C199: N | E199: 0 | F199: 0 | G199: 2 | H199: -1 | I199: 0 | J199: 0 | K199: 0 | P199: 0 | Q199: 0 | R199: 0 | S199: 0 | T199: 0 | U199: 0 | V199: 0 | W199: 0 | X199: 0 | Y199: 0 | Z199: 1 | AA199: 0 | AB199: =ROUNDDOWN(AVERAGE(IFERROR(LARGE((X$6:X198+Y$6:Y198)*Z$6:Z198*(G$6:G198=G199), SC_SSCalcYears),0))/(12*Z199),0) -> 0 | AC199: 1 | AD199: 0 | AE199: 0 | AF199: 0 | AG199: 0 | AM199: 0
B200: 2051 | C200: N | E200: 0 | F200: 0 | G200: 1 | H200: 1 | I200: 0 | J200: 0 | K200: 0 | P200: 0 | Q200: 0 | R200: 0 | S200: 0 | T200: 0 | U200: 0 | V200: 0 | W200: 0 | X200: 0 | Y200: 0 | Z200: 1 | AA200: 0 | AB200: =ROUNDDOWN(AVERAGE(IFERROR(LARGE((X$6:X199+Y$6:Y199)*Z$6:Z199*(G$6:G199=G200), SC_SSCalcYears),0))/(12*Z200),0) -> 0 | AC200: 1 | AD200: 0 | AE200: 0 | AF200: 0 | AG200: 0 | AH200: =SUMIFS($AE200:$AE201,SP_PensionPayout,"Lump sum",$E200:$E201,"<>0") -> 0 | AI200: =SUMIFS($AE200:$AE201,SP_PensionPayout,"Annuity",$E200:$E201,"<>0") -> 0 | AJ200: =IF(ISBLANK(INDEX(SP_SSPBFA,1)),0,IF($J200<>INDEX(SP_SSPBFA,1),AJ198,SP_AdditionalRI/INDEX(SC_EA_InflationWageIdx,EAIDX))) -> 0 | AK200: =SUMPRODUCT(AF200:AF201, --(G200:G201<>0)) -> 0 | AL200: =SUMPRODUCT(AG200:AG201, --(E200:E201<>0))+AJ200 -> 0 | AM200: 0
... 103 more rows

Sheet Expenses (hidden)
A1: =PMBASIC+PMADVANCED+VMONLINE+VMMACRO -> 54 | B1: =PMBASIC+PMADVANCED+VMONLINE+VMMACRO -> 54 | C1: =PMBASIC+PMADVANCED -> 48 | D1: =PMBASIC+PMADVANCED+VMONLINE+VMMACRO -> 54 | E1: =PMBASIC+PMADVANCED+VMONLINE+VMMACRO -> 54 | F1: =PMBASIC+PMADVANCED+VMONLINE+VMMACRO -> 54 | G1: =PMADVANCED+VMONLINE+VMMACRO -> 38 | H1: =PMBASIC+PMADVANCED -> 48 | I1: 48 | J1: 48 | K1: 48 | L1: 48 | M1: 48 | N1: 48 | O1: =PMBASIC+PMADVANCED+VMONLINE+VMMACRO -> 54 | P1: =PMBASIC+PMADVANCED+VMONLINE+VMMACRO -> 54
A2: =PMBASIC+PMADVANCED+VMONLINE+VMMACRO -> 54 | D2: Monthly Expenses (Real Dollars)
A3: =PMBASIC+PMADVANCED+VMONLINE+VMMACRO -> 54 | C3: FLT | I3: Shadow | K3: Shadow TD | L3: Default | N3: Default TD
A4: =PMBASIC+PMADVANCED+IF(SP_HM, VMONLINE+VMMACRO, 0) -> 48 | B4: Home and Mortgage | C4: =IF(SC_ViewMode=VMWIPED,FALSE,IF(SC_ViewMode=VMDEBUG,TRUE,AND(MOD(INT($A4/POWER(2,LOG(SC_ParameterMode,2))),2)<>0,MOD(INT($A4/POWER(2,LOG(SC_ViewMode,2))),2)<>0))) -> FALSE | D4: Home Value: | I4: =IF(IF(COLUMN()=COLUMN(E4),TRUE,ISBLANK(E4)), L4, E4) -> 0 | L4: 0 | O4: =IFERROR(IF($C4,IF(OR(NOT(ISNUMBER($I4)),$I4<0),202,IF($I4=0,103,0)),0),203) -> 0 | P4: =IFERROR(VLOOKUP(O4,IV_CodeTable,2,FALSE),"") -> 
A5: 48 | C5: =IF(SC_ViewMode=VMWIPED,FALSE,IF(SC_ViewMode=VMDEBUG,TRUE,AND(MOD(INT($A5/POWER(2,LOG(SC_ParameterMode,2))),2)<>0,MOD(INT($A5/POWER(2,LOG(SC_ViewMode,2))),2)<>0))) -> FALSE | D5: Origination Date: | I5: =IF(IF(COLUMN()=COLUMN(E5),TRUE,ISBLANK(E5)), "", IF($E5="","",EDATE(DATE(YEAR($E5),MONTH($E5),1), IF(DAY($E5)=1, 0, 1)))) ->  | O5: =IFERROR(IF($C5,IF($I5="",0,IF(ISERROR(DATEVALUE(TEXT($I5,"mm/dd/yyyy"))),200,IF(YEAR($I5)>SC_YearStop,206,0))),0),203) -> 0
A6: 48 | C6: =IF(SC_ViewMode=VMWIPED,FALSE,IF(SC_ViewMode=VMDEBUG,TRUE,AND(MOD(INT($A6/POWER(2,LOG(SC_ParameterMode,2))),2)<>0,MOD(INT($A6/POWER(2,LOG(SC_ViewMode,2))),2)<>0))) -> FALSE | D6: Original Balance: | I6: =IF(IF(COLUMN()=COLUMN(E6),TRUE,ISBLANK(E6)), L6, E6) -> 0 | L6: 0 | O6: =IFERROR(IF($C6,IF(OR(NOT(ISNUMBER($I6)),$I6<0),202,0),0),203) -> 0
A7: 48 | C7: =IF(SC_ViewMode=VMWIPED,FALSE,IF(SC_ViewMode=VMDEBUG,TRUE,AND(MOD(INT($A7/POWER(2,LOG(SC_ParameterMode,2))),2)<>0,MOD(INT($A7/POWER(2,LOG(SC_ViewMode,2))),2)<>0))) -> FALSE | D7: Term: | F7: months | I7: =IF(IF(COLUMN()=COLUMN(E7),TRUE,ISBLANK(E7)), L7, E7) -> 0 | L7: 0 | O7: =IFERROR(IF($C7,IF(OR(NOT(ISNUMBER($I7)),$I7<0),202,0),0),203) -> 0
A8: 48 | C8: =IF(SC_ViewMode=VMWIPED,FALSE,IF(SC_ViewMode=VMDEBUG,TRUE,AND(MOD(INT($A8/POWER(2,LOG(SC_ParameterMode,2))),2)<>0,MOD(INT($A8/POWER(2,LOG(SC_ViewMode,2))),2)<>0))) -> FALSE | D8: Interest Rate: | F8: /year | G8: Tax Deductible | I8: =IF(IF(COLUMN()=COLUMN(E8),TRUE,ISBLANK(E8)), L8, E8) -> 0.0503 | L8: =INDEX(SC_EA_ARBonds,EAIDX)+1.5% -> 0.0503 | O8: =IFERROR(IF($C8,IF(OR(NOT(ISNUMBER($I8)),$I8<0),202,IF($I8=0,103,0)),0),203) -> 0
A9: 48 | D9: Principal Payment: | E9: =IFERROR(-PPMT(SP_MortRate/12,IFERROR(DATEDIF(SP_MortOriginDate, SP_CurrentDate, "m")+1,0),SP_MortNper,SP_MortOriginBalance,0,0),0) -> 0 | K9: =IF(IF(COLUMN()=COLUMN(G9),TRUE,ISBLANK(G9)), N9, G9) -> No | N9: No
A10: 48 | D10: Interest Payment: | E10: =IFERROR(-IPMT(SP_MortRate/12,IFERROR(DATEDIF(SP_MortOriginDate, SP_CurrentDate, "m")+1,0),SP_MortNper,SP_MortOriginBalance,0,0),0) -> 0 | K10: =IF(IF(COLUMN()=COLUMN(G10),TRUE,ISBLANK(G10)), N10, G10) -> Fed/State:1 | N10: Fed/State:1
A11: 48 | C11: =IF(SC_ViewMode=VMWIPED,FALSE,IF(SC_ViewMode=VMDEBUG,TRUE,AND(MOD(INT($A11/POWER(2,LOG(SC_ParameterMode,2))),2)<>0,MOD(INT($A11/POWER(2,LOG(SC_ViewMode,2))),2)<>0))) -> FALSE | D11: Real Estate Tax: | I11: =IF(IF(COLUMN()=COLUMN(E11),TRUE,ISBLANK(E11)), L11, E11) -> 0 | K11: =IF(IF(COLUMN()=COLUMN(G11),TRUE,ISBLANK(G11)), N11, G11) -> Fed/State:1 | L11: =VLOOKUP(SP_Taxes, LT_StateTax, 6, FALSE)*SP_HomeValue/12 -> 0 | N11: Fed/State:1 | O11: =IFERROR(IF($C11,IF(OR(NOT(ISNUMBER($I11)),$I11<0),202,0),0),203) -> 0
A12: 48 | C12: =IF(SC_ViewMode=VMWIPED,FALSE,IF(SC_ViewMode=VMDEBUG,TRUE,AND(MOD(INT($A12/POWER(2,LOG(SC_ParameterMode,2))),2)<>0,MOD(INT($A12/POWER(2,LOG(SC_ViewMode,2))),2)<>0))) -> FALSE | D12: Home Insurance: | I12: =IF(IF(COLUMN()=COLUMN(E12),TRUE,ISBLANK(E12)), L12, E12) -> 0 | K12: =IF(IF(COLUMN()=COLUMN(G12),TRUE,ISBLANK(G12)), N12, G12) -> No | L12: =0.35%*SP_HomeValue/12 -> 0 | N12: No | O12: =IFERROR(IF($C12,IF(OR(NOT(ISNUMBER($I12)),$I12<0),202,0),0),203) -> 0
A13: =PMADVANCED+IF(SP_HM, VMONLINE+VMMACRO, 0) -> 32 | C13: =IF(SC_ViewMode=VMWIPED,FALSE,IF(SC_ViewMode=VMDEBUG,TRUE,AND(MOD(INT($A13/POWER(2,LOG(SC_ParameterMode,2))),2)<>0,MOD(INT($A13/POWER(2,LOG(SC_ViewMode,2))),2)<>0))) -> FALSE | D13: Extra Payment: | I13: =IF(IF(COLUMN()=COLUMN(E13),TRUE,ISBLANK(E13)), L13, E13) -> 0 | K13: =IF(IF(COLUMN()=COLUMN(G13),TRUE,ISBLANK(G13)), N13, G13) -> No | L13: 0 | N13: No | O13: =IFERROR(IF($C13,IF(OR(NOT(ISNUMBER($I13)),$I13<0),202,0),0),203) -> 0
A14: =PMBASIC+PMADVANCED+IF(SP_HM, VMONLINE+VMMACRO, 0) -> 48 | D14: Mortgage Payment: | E14: =SUM(E9:E13) -> 0
A15: =PMADVANCED+IF(SP_HM, VMONLINE+VMMACRO, 0) -> 32 | B15: HECM | C15: =IF(SC_ViewMode=VMWIPED,FALSE,IF(SC_ViewMode=VMDEBUG,TRUE,AND(MOD(INT($A15/POWER(2,LOG(SC_ParameterMode,2))),2)<>0,MOD(INT($A15/POWER(2,LOG(SC_ViewMode,2))),2)<>0))) -> FALSE | D15: Origination Date: | I15: =IF(IF(COLUMN()=COLUMN(E15),TRUE,ISBLANK(E15)), "", IF($E15="","",EDATE(DATE(YEAR($E15),MONTH($E15),1), IF(DAY($E15)=1, 0, 1)))) ->  | O15: =IFERROR(IF($C15,IF($I15="",0,IF(ISERROR(DATEVALUE(TEXT($I15,"mm/dd/yyyy"))),200,IF(YEAR($I15)>SC_YearStop,206,0))),0),203) -> 0
A16: =PMADVANCED+IF(SP_HM, VMONLINE+VMMACRO, 0) -> 32 | C16: =IF(SC_ViewMode=VMWIPED,FALSE,IF(SC_ViewMode=VMDEBUG,TRUE,AND(MOD(INT($A16/POWER(2,LOG(SC_ParameterMode,2))),2)<>0,MOD(INT($A16/POWER(2,LOG(SC_ViewMode,2))),2)<>0))) -> FALSE | D16: Original Balance: | I16: =IF(IF(COLUMN()=COLUMN(E16),TRUE,ISBLANK(E16)), L16, E16) -> 0 | L16: 0 | O16: =IFERROR(IF($C16,IF(OR(NOT(ISNUMBER($I16)),$I16<0),202,0),0),203) -> 0 | P16: =IFERROR(VLOOKUP(O16,IV_CodeTable,2,FALSE),"") -> 
A17: =PMADVANCED+IF(SP_HM, VMONLINE+VMMACRO, 0) -> 32 | D17: Term: | E17: =IF(SP_HECMOriginDate="",0,MAX(IF(INDEX(SC_ShowRetireatee,1),OFFSET(LT_AnnuityLifeTable,INDEX(SC_EX_Age,(YEAR(SP_HECMOriginDate)-SC_YearEpoch)*2+1),3,1,1),0),IF(INDEX(SC_ShowRetireatee,2),OFFSET(LT_AnnuityLifeTable,INDEX(SC_EX_Age,(YEAR(SP_HECMOriginDate)-SC_YearEpoch)*2+2),6,1,1),0))*12) -> 0 | F17: months
A18: =PMADVANCED+IF(SP_HM, VMONLINE+VMMACRO, 0) -> 32 | C18: =IF(SC_ViewMode=VMWIPED,FALSE,IF(SC_ViewMode=VMDEBUG,TRUE,AND(MOD(INT($A18/POWER(2,LOG(SC_ParameterMode,2))),2)<>0,MOD(INT($A18/POWER(2,LOG(SC_ViewMode,2))),2)<>0))) -> FALSE | D18: Interest Rate: | F18: /year | I18: =IF(IF(COLUMN()=COLUMN(E18),TRUE,ISBLANK(E18)), L18, E18) -> 0.0503 | L18: =INDEX(SP_EA_BondYield,IFERROR(YEAR(SP_HECMOriginDate)-SC_YearEpoch+1,EAIDX))+1.5% -> 0.0503 | O18: =IFERROR(IF($C18,IF(OR(NOT(ISNUMBER($I18)),$I18<0),202,IF($I18=0,103,0)),0),203) -> 0 | P18: =IFERROR(VLOOKUP(O18,IV_CodeTable,2,FALSE),"") -> 
A19: =PMADVANCED+IF(SP_HM, VMONLINE+VMMACRO, 0) -> 32 | D19: Principal Limit Factor: | E19: =0.75/POWER(1+(0.66*SP_HECMRate),SC_HECMNper/12) -> 0.75
A20: =PMBASIC+PMADVANCED+IF(SP_HM, VMONLINE+VMMACRO, 0) -> 48
A21: =PMBASIC+PMADVANCED+VMONLINE+VMMACRO -> 54 | C21: FLT | E21: Accumulation Phase | F21: Distribution Phase | G21: Tax Deductible | H21: Shadow | I21: Shadow AP | J21: Shadow DP | K21: Shadow TD | L21: Default Tags | M21: Default AP | N21: Default TD
A22: 54 | B22: Present and Future Living Expenses | C22: =IF(SC_ViewMode=VMWIPED,FALSE,IF(SC_ViewMode=VMDEBUG,TRUE,AND(MOD(INT($A22/POWER(2,LOG(SC_ParameterMode,2))),2)<>0,MOD(INT($A22/POWER(2,LOG(SC_ViewMode,2))),2)<>0))) -> FALSE | D22: Health Care: | I22: =IF(IF(COLUMN()=COLUMN(E22),TRUE,ISBLANK(E22)), M22, E22) -> 0 | J22: =IF(IF(COLUMN()=COLUMN(F22),TRUE,ISBLANK(F22)), I22, F22) -> 0 | K22: =IF(IF(COLUMN()=COLUMN(G22),TRUE,ISBLANK(G22)), N22, G22) -> FICA/Fed/State:1 | M22: 0 | N22: FICA/Fed/State:1 | O22: =IFERROR(IF(OR(NOT(ISNUMBER($I22)),$I22<0,NOT(ISNUMBER($J22)),$J22<0),202,0),203) -> 0
A23: 54 | C23: =IF(SC_ViewMode=VMWIPED,FALSE,IF(SC_ViewMode=VMDEBUG,TRUE,AND(MOD(INT($A23/POWER(2,LOG(SC_ParameterMode,2))),2)<>0,MOD(INT($A23/POWER(2,LOG(SC_ViewMode,2))),2)<>0))) -> FALSE | D23: Life Insurance: | I23: =IF(IF(COLUMN()=COLUMN(E23),TRUE,ISBLANK(E23)), M23, E23) -> 0 | J23: 0 | K23: No | M23: 0 | N23: No | O23: =IFERROR(IF(OR(NOT(ISNUMBER($I23)),$I23<0,NOT(ISNUMBER($J23)),$J23<0),202,0),203) -> 0
A24: 54 | C24: =IF(SC_ViewMode=VMWIPED,FALSE,IF(SC_ViewMode=VMDEBUG,TRUE,AND(MOD(INT($A24/POWER(2,LOG(SC_ParameterMode,2))),2)<>0,MOD(INT($A24/POWER(2,LOG(SC_ViewMode,2))),2)<>0))) -> FALSE | D24: Dependent Care: | I24: 0 | J24: 0 | K24: No | M24: 0 | N24: No | O24: 0
A25: 54 | C25: =IF(SC_ViewMode=VMWIPED,FALSE,IF(SC_ViewMode=VMDEBUG,TRUE,AND(MOD(INT($A25/POWER(2,LOG(SC_ParameterMode,2))),2)<>0,MOD(INT($A25/POWER(2,LOG(SC_ViewMode,2))),2)<>0))) -> FALSE | D25: Charitable Donations: | I25: 0 | J25: 0 | K25: Fed/State:1 | M25: 0 | N25: Fed/State:1 | O25: 0
A26: 54 | C26: =IF(SC_ViewMode=VMWIPED,FALSE,IF(SC_ViewMode=VMDEBUG,TRUE,AND(MOD(INT($A26/POWER(2,LOG(SC_ParameterMode,2))),2)<>0,MOD(INT($A26/POWER(2,LOG(SC_ViewMode,2))),2)<>0))) -> FALSE | D26: Self-Employment Expenses: | I26: 0 | J26: 0 | K26: Fed/State:1 | M26: 0 | N26: Fed/State:1 | O26: 0
A27: 54 | C27: =IF(SC_ViewMode=VMWIPED,FALSE,IF(SC_ViewMode=VMDEBUG,TRUE,AND(MOD(INT($A27/POWER(2,LOG(SC_ParameterMode,2))),2)<>0,MOD(INT($A27/POWER(2,LOG(SC_ViewMode,2))),2)<>0))) -> FALSE | D27: Long-Term Care / Disability Insurance: | I27: 0 | J27: 0 | K27: No | M27: 0 | N27: No | O27: 0
A28: =PMBASIC+PMADVANCED+IF(SP_HM, VMONLINE+VMMACRO, 0) -> 48 | C28: =IF(SC_ViewMode=VMWIPED,FALSE,IF(SC_ViewMode=VMDEBUG,TRUE,AND(MOD(INT($A28/POWER(2,LOG(SC_ParameterMode,2))),2)<>0,MOD(INT($A28/POWER(2,LOG(SC_ViewMode,2))),2)<>0))) -> FALSE | D28: Home Maintenance: | I28: 0 | J28: 0 | K28: No | M28: =1%*SP_HomeValue/12 -> 0 | N28: No | O28: 0
A29: =PMBASIC+PMADVANCED+IF(SP_HM, 0,VMONLINE+VMMACRO) -> 54 | C29: =IF(SC_ViewMode=VMWIPED,FALSE,IF(SC_ViewMode=VMDEBUG,TRUE,AND(MOD(INT($A29/POWER(2,LOG(SC_ParameterMode,2))),2)<>0,MOD(INT($A29/POWER(2,LOG(SC_ViewMode,2))),2)<>0))) -> FALSE | D29: Rent: | I29: 0 | J29: 0 | K29: No | M29: 0 | N29: No | O29: 0
A30: =PMBASIC+PMADVANCED+IF(SP_HM, 0,VMONLINE+VMMACRO) -> 54 | C30: =IF(SC_ViewMode=VMWIPED,FALSE,IF(SC_ViewMode=VMDEBUG,TRUE,AND(MOD(INT($A30/POWER(2,LOG(SC_ParameterMode,2))),2)<>0,MOD(INT($A30/POWER(2,LOG(SC_ViewMode,2))),2)<>0))) -> FALSE | D30: Renter's Insurance: | I30: 0 | J30: 0 | K30: No | M30: 0 | N30: No | O30: 0
A31: =PMBASIC+PMADVANCED+VMONLINE+VMMACRO -> 54 | C31: =IF(SC_ViewMode=VMWIPED,FALSE,IF(SC_ViewMode=VMDEBUG,TRUE,AND(MOD(INT($A31/POWER(2,LOG(SC_ParameterMode,2))),2)<>0,MOD(INT($A31/POWER(2,LOG(SC_ViewMode,2))),2)<>0))) -> FALSE | D31: Utilities: | I31: 0 | J31: 0 | K31: No | M31: 0 | N31: No | O31: 0
A32: 54 | C32: =IF(SC_ViewMode=VMWIPED,FALSE,IF(SC_ViewMode=VMDEBUG,TRUE,AND(MOD(INT($A32/POWER(2,LOG(SC_ParameterMode,2))),2)<>0,MOD(INT($A32/POWER(2,LOG(SC_ViewMode,2))),2)<>0))) -> FALSE | D32: Internet, Cable, Phone: | I32: 0 | J32: 0 | K32: No | M32: 0 | N32: No | O32: 0
A33: 54 | C33: =IF(SC_ViewMode=VMWIPED,FALSE,IF(SC_ViewMode=VMDEBUG,TRUE,AND(MOD(INT($A33/POWER(2,LOG(SC_ParameterMode,2))),2)<>0,MOD(INT($A33/POWER(2,LOG(SC_ViewMode,2))),2)<>0))) -> FALSE | D33: Auto and Transportation: | I33: 0 | J33: 0 | K33: No | M33: 0 | N33: No | O33: 0
A34: 54 | C34: =IF(SC_ViewMode=VMWIPED,FALSE,IF(SC_ViewMode=VMDEBUG,TRUE,AND(MOD(INT($A34/POWER(2,LOG(SC_ParameterMode,2))),2)<>0,MOD(INT($A34/POWER(2,LOG(SC_ViewMode,2))),2)<>0))) -> FALSE | D34: Auto Insurance: | I34: 0 | J34: 0 | K34: No | M34: 0 | N34: No | O34: 0
A35: 54 | C35: =IF(SC_ViewMode=VMWIPED,FALSE,IF(SC_ViewMode=VMDEBUG,TRUE,AND(MOD(INT($A35/POWER(2,LOG(SC_ParameterMode,2))),2)<>0,MOD(INT($A35/POWER(2,LOG(SC_ViewMode,2))),2)<>0))) -> FALSE | D35: Food and Entertainment: | I35: 0 | J35: 0 | K35: No | M35: 0 | N35: No | O35: 0
A36: 54 | C36: =IF(SC_ViewMode=VMWIPED,FALSE,IF(SC_ViewMode=VMDEBUG,TRUE,AND(MOD(INT($A36/POWER(2,LOG(SC_ParameterMode,2))),2)<>0,MOD(INT($A36/POWER(2,LOG(SC_ViewMode,2))),2)<>0))) -> FALSE | D36: Clothing: | I36: 0 | J36: 0 | K36: No | M36: 0 | N36: No | O36: 0
A37: 54 | C37: =IF(SC_ViewMode=VMWIPED,FALSE,IF(SC_ViewMode=VMDEBUG,TRUE,AND(MOD(INT($A37/POWER(2,LOG(SC_ParameterMode,2))),2)<>0,MOD(INT($A37/POWER(2,LOG(SC_ViewMode,2))),2)<>0))) -> FALSE | D37: Vacation and Travel: | I37: 0 | J37: 0 | K37: No | M37: 0 | N37: No | O37: 0
A38: 54 | C38: =IF(SC_ViewMode=VMWIPED,FALSE,IF(SC_ViewMode=VMDEBUG,TRUE,AND(MOD(INT($A38/POWER(2,LOG(SC_ParameterMode,2))),2)<>0,MOD(INT($A38/POWER(2,LOG(SC_ViewMode,2))),2)<>0))) -> FALSE | D38: Additional Discretionary: | I38: 0 | J38: =IF(IF(COLUMN()=COLUMN(F38),TRUE,ISBLANK(F38)), I38, F38) -> 0 | K38: No | M38: 0 | N38: No | O38: 0
A39: 54 | C39: =IF(SC_ViewMode=VMWIPED,FALSE,IF(SC_ViewMode=VMDEBUG,TRUE,AND(MOD(INT($A39/POWER(2,LOG(SC_ParameterMode,2))),2)<>0,MOD(INT($A39/POWER(2,LOG(SC_ViewMode,2))),2)<>0))) -> FALSE | H39: =IF(IF(COLUMN()=COLUMN(D39),TRUE,ISBLANK(D39)), L39, D39) -> Miscellaneous 1: | I39: 0 | J39: 0 | K39: No | L39: Miscellaneous 1: | M39: 0 | N39: No | O39: 0
A40: 54 | C40: =IF(SC_ViewMode=VMWIPED,FALSE,IF(SC_ViewMode=VMDEBUG,TRUE,AND(MOD(INT($A40/POWER(2,LOG(SC_ParameterMode,2))),2)<>0,MOD(INT($A40/POWER(2,LOG(SC_ViewMode,2))),2)<>0))) -> FALSE | H40: =IF(IF(COLUMN()=COLUMN(D40),TRUE,ISBLANK(D40)), L40, D40) -> Miscellaneous 2: | I40: 0 | J40: 0 | K40: No | L40: Miscellaneous 2: | M40: 0 | N40: No | O40: 0
A41: 54 | C41: =IF(SC_ViewMode=VMWIPED,FALSE,IF(SC_ViewMode=VMDEBUG,TRUE,AND(MOD(INT($A41/POWER(2,LOG(SC_ParameterMode,2))),2)<>0,MOD(INT($A41/POWER(2,LOG(SC_ViewMode,2))),2)<>0))) -> FALSE | H41: =IF(IF(COLUMN()=COLUMN(D41),TRUE,ISBLANK(D41)), L41, D41) -> Miscellaneous 3: | I41: 0 | J41: 0 | K41: No | L41: Miscellaneous 3: | M41: 0 | N41: No | O41: 0
A42: 54 | C42: =IF(SC_ViewMode=VMWIPED,FALSE,IF(SC_ViewMode=VMDEBUG,TRUE,AND(MOD(INT($A42/POWER(2,LOG(SC_ParameterMode,2))),2)<>0,MOD(INT($A42/POWER(2,LOG(SC_ViewMode,2))),2)<>0))) -> FALSE | H42: =IF(IF(COLUMN()=COLUMN(D42),TRUE,ISBLANK(D42)), L42, D42) -> Miscellaneous 4: | I42: 0 | J42: 0 | K42: No | L42: Miscellaneous 4: | M42: 0 | N42: No | O42: 0
A43: 54 | C43: =IF(SC_ViewMode=VMWIPED,FALSE,IF(SC_ViewMode=VMDEBUG,TRUE,AND(MOD(INT($A43/POWER(2,LOG(SC_ParameterMode,2))),2)<>0,MOD(INT($A43/POWER(2,LOG(SC_ViewMode,2))),2)<>0))) -> FALSE | H43: =IF(IF(COLUMN()=COLUMN(D43),TRUE,ISBLANK(D43)), L43, D43) -> Miscellaneous 5: | I43: 0 | J43: 0 | K43: No | L43: Miscellaneous 5: | M43: 0 | N43: No | O43: 0
A44: =PMBASIC+PMADVANCED -> 48 | D44: Pre-FICA Deductions 1: | E44: =-SUMPRODUCT(ABS(I$22:I$43),--($K$22:$K$43="FICA/Fed/State:1")) -> 0 | F44: =-SUMPRODUCT(ABS(J$22:J$43),--($K$22:$K$43="FICA/Fed/State:1")) -> 0
A45: =PMBASIC+PMADVANCED -> 48 | D45: Pre-FICA Deductions 2: | E45: =-SUMPRODUCT(ABS(I$22:I$43),--($K$22:$K$43="FICA/Fed/State:2")) -> 0 | F45: =-SUMPRODUCT(ABS(J$22:J$43),--($K$22:$K$43="FICA/Fed/State:2")) -> 0
A46: =PMBASIC+PMADVANCED -> 48 | D46: Deductible Expenses 1: | E46: =-SUMPRODUCT(ABS(I$22:I$43),--($K$22:$K$43="Fed/State:1")) -> 0 | F46: =-SUMPRODUCT(ABS(J$22:J$43),--($K$22:$K$43="Fed/State:1")) -> 0
A47: =PMBASIC+PMADVANCED -> 48 | D47: Deductible Expenses 2: | E47: =-SUMPRODUCT(ABS(I$22:I$43),--($K$22:$K$43="Fed/State:2")) -> 0 | F47: =-SUMPRODUCT(ABS(J$22:J$43),--($K$22:$K$43="Fed/State:2")) -> 0
A48: =PMBASIC+PMADVANCED -> 48 | D48: Total Living Expenses: | E48: =-SUMPRODUCT(ABS(I$22:I$43)) -> 0 | F48: =-SUMPRODUCT(ABS(J$22:J$43)) -> 0
A49: =PMBASIC+PMADVANCED+VMONLINE+VMMACRO -> 54
A50: 54 | D50: One-Time Lump Sum Changes (Real Dollars)
A51: 54
A52: 54 | C52: FLT | E52: Year | F52: Amount | H52: Shadow | I52: Shadow Year | J52: Shadow Amount | L52: Default Tags | M52: Default Year | N52: Default Amount
A53: 54 | C53: =IF(SC_ViewMode=VMWIPED,FALSE,IF(SC_ViewMode=VMDEBUG,TRUE,AND(MOD(INT($A53/POWER(2,LOG(SC_ParameterMode,2))),2)<>0,MOD(INT($A53/POWER(2,LOG(SC_ViewMode,2))),2)<>0))) -> FALSE | H53: =IF(IF(COLUMN()=COLUMN(D53),TRUE,ISBLANK(D53)), L53, D53) -> Lump Sum 1: | I53: =IF(IF(COLUMN()=COLUMN(E53),TRUE,ISBLANK(E53)), M53, E53) -> 2023 | J53: =IF(IF(COLUMN()=COLUMN(F53),TRUE,ISBLANK(F53)), N53, F53) -> 0 | L53: Lump Sum 1: | M53: =SP_CurrentYear -> 2023 | N53: 0 | O53: =IFERROR(IF(OR(NOT(ISNUMBER($J53))),202,0),203) -> 0 | P53: =IFERROR(VLOOKUP(O53,IV_CodeTable,2,FALSE),"") -> 
A54: 54 | C54: =IF(SC_ViewMode=VMWIPED,FALSE,IF(SC_ViewMode=VMDEBUG,TRUE,AND(MOD(INT($A54/POWER(2,LOG(SC_ParameterMode,2))),2)<>0,MOD(INT($A54/POWER(2,LOG(SC_ViewMode,2))),2)<>0))) -> FALSE | H54: Lump Sum 2: | I54: 2023 | J54: 0 | L54: Lump Sum 2: | M54: =SP_CurrentYear -> 2023 | N54: 0 | O54: =IFERROR(IF(OR(NOT(ISNUMBER($J54))),202,0),203) -> 0
A55: 54 | C55: =IF(SC_ViewMode=VMWIPED,FALSE,IF(SC_ViewMode=VMDEBUG,TRUE,AND(MOD(INT($A55/POWER(2,LOG(SC_ParameterMode,2))),2)<>0,MOD(INT($A55/POWER(2,LOG(SC_ViewMode,2))),2)<>0))) -> FALSE | H55: Lump Sum 3: | I55: 2023 | J55: 0 | L55: Lump Sum 3: | M55: =SP_CurrentYear -> 2023 | N55: 0 | O55: =IFERROR(IF(OR(NOT(ISNUMBER($J55))),202,0),203) -> 0
A56: 54 | C56: =IF(SC_ViewMode=VMWIPED,FALSE,IF(SC_ViewMode=VMDEBUG,TRUE,AND(MOD(INT($A56/POWER(2,LOG(SC_ParameterMode,2))),2)<>0,MOD(INT($A56/POWER(2,LOG(SC_ViewMode,2))),2)<>0))) -> FALSE | H56: Lump Sum 4: | I56: 2023 | J56: 0 | L56: Lump Sum 4: | M56: =SP_CurrentYear -> 2023 | N56: 0 | O56: =IFERROR(IF(OR(NOT(ISNUMBER($J56))),202,0),203) -> 0
A57: 54 | C57: =IF(SC_ViewMode=VMWIPED,FALSE,IF(SC_ViewMode=VMDEBUG,TRUE,AND(MOD(INT($A57/POWER(2,LOG(SC_ParameterMode,2))),2)<>0,MOD(INT($A57/POWER(2,LOG(SC_ViewMode,2))),2)<>0))) -> FALSE | H57: Lump Sum 5: | I57: 2023 | J57: 0 | L57: Lump Sum 5: | M57: =SP_CurrentYear -> 2023 | N57: 0 | O57: =IFERROR(IF(OR(NOT(ISNUMBER($J57))),202,0),203) -> 0
A58: 54
A59: 54 | D59: Average Monthly Cash Flow (Real Dollars)
A60: 54
A61: 54 | E61: Accumulation Phase | F61: Distribution Phase
A62: =PMBASIC+PMADVANCED -> 48 | D62: Code: | E62: A | F62: D
A63: =PMBASIC+PMADVANCED+VMONLINE+VMMACRO -> 54 | D63: Active Income: | E63: =IFERROR(AVERAGEIFS(SC_ZX_IncomeActive, SC_ZX_CodeA, E$62, SC_ZX_ValueType, "R"),0)/12 -> 0 | F63: =IFERROR(AVERAGEIFS(SC_ZX_IncomeActive, SC_ZX_CodeA, F$62, SC_ZX_ValueType, "R"),0)/12 -> 0
A64: 54 | D64: Passive Income: | E64: =IFERROR(AVERAGEIFS(SC_ZX_IncomePassive, SC_ZX_CodeA, E$62, SC_ZX_ValueType, "R"),0)/12 -> 0 | F64: =IFERROR(AVERAGEIFS(SC_ZX_IncomePassive, SC_ZX_CodeA, F$62, SC_ZX_ValueType, "R"),0)/12 -> 0
A65: 54 | D65: Social Security Income: | E65: =IFERROR(AVERAGEIFS(SC_ZX_IncomeSS, SC_ZX_CodeA, E$62, SC_ZX_ValueType, "R"),0)/12 -> 0 | F65: =IFERROR(AVERAGEIFS(SC_ZX_IncomeSS, SC_ZX_CodeA, F$62, SC_ZX_ValueType, "R"),0)/12 -> 0
A66: 54 | D66: Gross Income Excluding Capital Income: | E66: =SUM(E63:E65) -> 0 | F66: =SUM(F63:F65) -> 0
A67: 54 | D67: Savings Contributions: | E67: =IFERROR(AVERAGEIFS(SC_ZX_SavingsContrib, SC_ZX_CodeA, E$62, SC_ZX_ValueType, "R"),0)/12 -> 0 | F67: =IFERROR(AVERAGEIFS(SC_ZX_SavingsContrib, SC_ZX_CodeA, F$62, SC_ZX_ValueType, "R"),0)/12 -> 0
A68: 54 | D68: Expenses: | E68: =IFERROR(AVERAGEIFS(SC_ZX_Expenses, SC_ZX_CodeA, E$62, SC_ZX_ValueType, "R"),0)/12 -> 0 | F68: =IFERROR(AVERAGEIFS(SC_ZX_Expenses, SC_ZX_CodeA, F$62, SC_ZX_ValueType, "R"),0)/12 -> 0
A69: 54 | D69: Income Taxes: | E69: =IFERROR(AVERAGEIFS(SC_ZX_TotalTaxes, SC_ZX_CodeA, E$62, SC_ZX_ValueType, "R"),0)/12 -> 0 | F69: =IFERROR(AVERAGEIFS(SC_ZX_TotalTaxes, SC_ZX_CodeA, F$62, SC_ZX_ValueType, "R"),0)/12 -> 0
A70: 54 | D70: Interest on Debt: | E70: =IFERROR(AVERAGEIFS(SC_ZX_Debt, SC_ZX_CodeA, E$62, SC_ZX_ValueType, "R"),0)*SP_DebtRate/12 -> 0 | F70: =IFERROR(AVERAGEIFS(SC_ZX_Debt, SC_ZX_CodeA, F$62, SC_ZX_ValueType, "R"),0)*SP_DebtRate/12 -> 0
A71: 54 | D71: Surplus or Deficit: | E71: =SUM(E66:E70) -> 0 | F71: =SUM(F66:F70) -> 0

Sheet Portfolio (hidden)
A1: =PMADVANCED+VMONLINE+VMMACRO -> 38 | B1: =PMBASIC+PMADVANCED+VMONLINE+VMMACRO -> 54 | C1: =PMBASIC+PMADVANCED+VMONLINE+VMMACRO -> 54 | D1: =PMBASIC+PMADVANCED+IF(INDEX(SC_ShowRetireatee,2), VMONLINE+VMMACRO, 0) -> 48 | E1: =PMBASIC+PMADVANCED -> 48 | F1: =PMBASIC+PMADVANCED -> 48 | G1: =PMBASIC+PMADVANCED -> 48 | H1: =PMBASIC+PMADVANCED+VMONLINE+VMMACRO -> 54 | I1: =PMBASIC+PMADVANCED -> 48 | J1: 48 | K1: 48 | L1: 48 | M1: 48 | N1: 48 | O1: =PMBASIC+PMADVANCED+VMONLINE+VMMACRO -> 54 | P1: =PMBASIC+PMADVANCED+VMONLINE+VMMACRO -> 54 | Q1: =PMBASIC+PMADVANCED+VMONLINE+VMMACRO -> 54 | R1: =PMBASIC+PMADVANCED+VMONLINE+VMMACRO -> 54 | S1: =PMBASIC+PMADVANCED+VMONLINE+VMMACRO -> 54 | T1: =PMBASIC+PMADVANCED -> 48 | U1: =PMBASIC+PMADVANCED -> 48 | V1: =PMBASIC+PMADVANCED+VMONLINE+VMMACRO -> 54 | W1: =PMBASIC+PMADVANCED+VMONLINE+VMMACRO -> 54 | X1: =PMBASIC+PMADVANCED+IF(SP_EI, VMONLINE+VMMACRO, 0) -> 48 | Y1: =PMBASIC+PMADVANCED+IF(SP_EI, VMONLINE+VMMACRO, 0) -> 48 | Z1: =PMBASIC+PMADVANCED+IF(SP_EI, VMONLINE+VMMACRO, 0) -> 48 | AA1: =PMBASIC+PMADVANCED -> 48 | AB1: =PMBASIC+PMADVANCED -> 48 | AC1: =PMBASIC+PMADVANCED+IF(SP_EI, VMONLINE+VMMACRO, 0) -> 48 | AD1: =PMBASIC+PMADVANCED+IF(SP_EI, VMONLINE+VMMACRO, 0) -> 48 | AE1: =PMBASIC+PMADVANCED+IF(SP_EI, VMONLINE+VMMACRO, 0) -> 48 | AF1: =PMBASIC+PMADVANCED+IF(SP_EI, VMONLINE+VMMACRO, 0) -> 48 | AG1: =PMBASIC+PMADVANCED+IF(SP_EI, VMONLINE+VMMACRO, 0) -> 48 | AH1: =PMBASIC+PMADVANCED -> 48 | AI1: =PMBASIC+PMADVANCED -> 48 | AJ1: =PMBASIC+PMADVANCED+IF(SP_EI, VMONLINE+VMMACRO, 0) -> 48 | AK1: =PMBASIC+PMADVANCED+IF(SP_EI, VMONLINE+VMMACRO, 0) -> 48 | AL1: =PMBASIC+PMADVANCED+IF(SP_SEI, VMONLINE+VMMACRO, 0) -> 48 | AM1: =PMBASIC+PMADVANCED+IF(SP_SEI, VMONLINE+VMMACRO, 0) -> 48 | AN1: =PMBASIC+PMADVANCED+IF(SP_SEI, VMONLINE+VMMACRO, 0) -> 48 | AO1: =PMBASIC+PMADVANCED -> 48 | AP1: =PMBASIC+PMADVANCED -> 48 | AQ1: =PMBASIC+PMADVANCED+IF(SP_SEI, VMONLINE+VMMACRO, 0) -> 48 | AR1: =PMBASIC+PMADVANCED+IF(SP_SEI, VMONLINE+VMMACRO, 0) -> 48 | AS1: =PMBASIC+PMADVANCED+IF(SP_SEI, VMONLINE+VMMACRO, 0) -> 48 | AT1: =PMBASIC+PMADVANCED+IF(SP_SEI, VMONLINE+VMMACRO, 0) -> 48 | AU1: =PMBASIC+PMADVANCED+IF(SP_SEI, VMONLINE+VMMACRO, 0) -> 48 | AV1: =PMBASIC+PMADVANCED -> 48 | AW1: =PMBASIC+PMADVANCED -> 48 | AX1: =PMBASIC+PMADVANCED+IF(SP_SEI, VMONLINE+VMMACRO, 0) -> 48 | AY1: =PMBASIC+PMADVANCED+IF(SP_SEI, VMONLINE+VMMACRO, 0) -> 48 | AZ1: =PMBASIC+PMADVANCED+IF(SP_PIIRP, VMONLINE+VMMACRO, 0) -> 48 | BA1: =PMBASIC+PMADVANCED+IF(SP_PIIRP, VMONLINE+VMMACRO, 0) -> 48 | BB1: =PMADVANCED+IF(AND(SP_PIIRP,INDEX(SC_ShowRetireatee,2)), VMONLINE+VMMACRO, 0) -> 32 | BC1: =PMBASIC+PMADVANCED -> 48 | BD1: =PMBASIC+PMADVANCED -> 48 | BE1: =PMBASIC+PMADVANCED+IF(SP_PIIRP, VMONLINE+VMMACRO, 0) -> 48 | BF1: =PMBASIC+PMADVANCED+IF(SP_PIIRP, VMONLINE+VMMACRO, 0) -> 48 | BG1: =PMBASIC+PMADVANCED+IF(SP_PIIRP, VMONLINE+VMMACRO, 0) -> 48 | BH1: =PMBASIC+PMADVANCED+IF(SP_PIIRP, VMONLINE+VMMACRO, 0) -> 48 | BI1: =PMBASIC+PMADVANCED+IF(SP_PIIRP, VMONLINE+VMMACRO, 0) -> 48 | BJ1: =PMBASIC+PMADVANCED -> 48 | BK1: =PMBASIC+PMADVANCED -> 48 | BL1: =PMBASIC+PMADVANCED+IF(SP_PIIRP, VMONLINE+VMMACRO, 0) -> 48 | BM1: =PMBASIC+PMADVANCED+IF(SP_PIIRP, VMONLINE+VMMACRO, 0) -> 48 | BN1: =PMBASIC+PMADVANCED+VMONLINE+VMMACRO -> 54 | BO1: 54 | BP1: 54 | BQ1: 54 | BR1: 54 | BS1: 54 | BT1: 54 | BU1: 54 | BV1: =PMBASIC+PMADVANCED -> 48 | BW1: =PMBASIC+PMADVANCED+VMONLINE+VMMACRO -> 54 | BX1: =PMBASIC+PMADVANCED+VMONLINE+VMMACRO -> 54
A2: =PMBASIC+PMADVANCED+VMONLINE+VMMACRO -> 54 | P2: Core Account | X2: 401(k)/403(b)/TSP | AE2: Roth 401(k)/403(b)/TSP | AL2: SEP/SIMPLE/Solo 401(k) | AS2: Roth Solo 401(k) | AZ2: Traditional IRA | BG2: Roth IRA | BN2: Individual | BT2: Household
A3: =PMBASIC+PMADVANCED+VMONLINE+VMMACRO -> 54 | B3: Year | C3: $ | D3: RI | E3: TN | F3: RN | G3: RO | H3: Age | I3: Age LE | J3: APW | K3: CDW | L3: OFF | M3: +/- | N3: Years to Retirement | O3: Rate of Return | P3: Balance | Q3: Cost Basis | R3: Deposit | S3: Rollover | T3: Accessible Balance | U3: Percent of Accessible Balance | V3: Withdrawals | W3: Return | X3: Balance | Y3: Deposit | Z3: Match | AA3: Accessible Balance | AB3: Percent of Accessible Balance | AC3: Withdrawal | AD3: Return | AE3: Balance | AF3: Cost Basis | AG3: Deposit | AH3: Accessible Balance | AI3: Percent of Accessible Balance | AJ3: Withdrawal | AK3: Return | AL3: Balance | AM3: Deposit | AN3: Match | AO3: Accessible Balance | AP3: Percent of Accessible Balance | AQ3: Withdrawal | AR3: Return | AS3: Balance | AT3: Cost Basis | AU3: Deposit | AV3: Accessible Balance | AW3: Percent of Accessible Balance | AX3: Withdrawal | AY3: Return | AZ3: Balance | BA3: Deposit | BB3: Spouse Deposit | BC3: Accessible Balance | BD3: Percent of Accessible Balance | BE3: Withdrawal | BF3: Return | BG3: Balance | BH3: Cost Basis | BI3: Deposit | BJ3: Accessible Balance | BK3: Percent of Accessible Balance | BL3: Withdrawal | BM3: Return | BN3: Deductible IRA Contrib | BO3: Non-Deductible IRA Contrib | BP3: Long Term Capital Gains | BQ3: Short Term Capital Gains | BR3: Taxable Capital Income | BS3: Non-Taxable Capital Income | BT3: IRA Contrib | BU3: Capital Income | BV3: Accessible Balance | BW3: Before-Tax Balance | BX3: After-Tax Balance
B4: 0 | J4: =IF(YEAR(SP_AdjustedDate)<SC_TargetRY,1,IF(YEAR(SP_AdjustedDate)=SC_TargetRY,-(1-YEARFRAC(SP_TargetRD,DATE(SC_TargetRY+1,1,1))),0)) -> 1 | K4: =-(1-YEARFRAC(SP_AdjustedDate,DATE(YEAR(SP_AdjustedDate)+1,1,1))) -> -0.2888888889 | L4: =(YEAR(SP_AdjustedDate)-SP_CurrentYear)*2+ROW()-ROW($A$4) -> 0 | M4: 1 | O4: =IF(INDEX(SC_ZX_CodeA,1)="X",0,ABS($K4)*OFFSET(O$10,$L4,0)) -> 0.01519266667 | P4: =OFFSET(P$10,$L4,0) -> 0 | Q4: =OFFSET(Q$10,$L4,0) -> 0 | R4: =IF(INDEX(SC_ZX_CodeA,1)="X",0,IF(ABS($J4)<(1/12),ABS($K4),MAX(ABS(MAX(IF($J4<=0,$J4,-1),IF($K4<=0,$K4,-1)))+MIN(IF($J4>=0,$J4,1),IF($K4>=0,$K4,1))-1,0)/ABS($J4))*OFFSET(R$10,$L4,0)*$M4) -> 0 | S4: 0 | V4: =IF(INDEX(SC_ZX_CodeA,1)="X",0,IF(ABS($J4)>(11/12),ABS($K4),MAX(ABS(MAX(IF($J4>=0,-1+$J4,-1),IF($K4<=0,$K4,-1)))+MIN(IF($J4<=0,1+$J4,1),IF($K4>=0,$K4,1))-1,0)/(1-ABS($J4)))*OFFSET(V$10,$L4,0)*$M4) -> 0 | W4: =(P4+R4+S4+V4)*$O4*$M4 -> 0 | X4: =OFFSET(X$10,$L4,0) -> 0 | Y4: =IF(INDEX(SC_ZX_CodeA,1)="X",0,IF(ABS($J4)<(1/12),ABS($K4),MAX(ABS(MAX(IF($J4<=0,$J4,-1),IF($K4<=0,$K4,-1)))+MIN(IF($J4>=0,$J4,1),IF($K4>=0,$K4,1))-1,0)/ABS($J4))*OFFSET(Y$10,$L4,0)*$M4) -> 0 | Z4: =IF(INDEX(SC_ZX_CodeA,1)="X",0,IF(ABS($J4)<(1/12),ABS($K4),MAX(ABS(MAX(IF($J4<=0,$J4,-1),IF($K4<=0,$K4,-1)))+MIN(IF($J4>=0,$J4,1),IF($K4>=0,$K4,1))-1,0)/ABS($J4))*OFFSET(Z$10,$L4,0)*$M4) -> 0 | AC4: =IF(INDEX(SC_ZX_CodeA,1)="X",0,IF(ABS($J4)>(11/12),ABS($K4),MAX(ABS(MAX(IF($J4>=0,-1+$J4,-1),IF($K4<=0,$K4,-1)))+MIN(IF($J4<=0,1+$J4,1),IF($K4>=0,$K4,1))-1,0)/(1-ABS($J4)))*OFFSET(AC$10,$L4,0)*$M4) -> 0 | AD4: =(X4+Y4+Z4+AC4)*$O4*$M4 -> 0 | AE4: =OFFSET(AE$10,$L4,0) -> 0 | AF4: =OFFSET(AF$10,$L4,0) -> 0 | AG4: =IF(INDEX(SC_ZX_CodeA,1)="X",0,IF(ABS($J4)<(1/12),ABS($K4),MAX(ABS(MAX(IF($J4<=0,$J4,-1),IF($K4<=0,$K4,-1)))+MIN(IF($J4>=0,$J4,1),IF($K4>=0,$K4,1))-1,0)/ABS($J4))*OFFSET(AG$10,$L4,0)*$M4) -> 0 | AJ4: =IF(INDEX(SC_ZX_CodeA,1)="X",0,IF(ABS($J4)>(11/12),ABS($K4),MAX(ABS(MAX(IF($J4>=0,-1+$J4,-1),IF($K4<=0,$K4,-1)))+MIN(IF($J4<=0,1+$J4,1),IF($K4>=0,$K4,1))-1,0)/(1-ABS($J4)))*OFFSET(AJ$10,$L4,0)*$M4) -> 0 | AK4: =(AE4+AG4+AJ4)*$O4*$M4 -> 0 | AL4: =OFFSET(AL$10,$L4,0) -> 0 | AM4: =IF(INDEX(SC_ZX_CodeA,1)="X",0,IF(ABS($J4)<(1/12),ABS($K4),MAX(ABS(MAX(IF($J4<=0,$J4,-1),IF($K4<=0,$K4,-1)))+MIN(IF($J4>=0,$J4,1),IF($K4>=0,$K4,1))-1,0)/ABS($J4))*OFFSET(AM$10,$L4,0)*$M4) -> 0 | AN4: =IF(INDEX(SC_ZX_CodeA,1)="X",0,IF(ABS($J4)<(1/12),ABS($K4),MAX(ABS(MAX(IF($J4<=0,$J4,-1),IF($K4<=0,$K4,-1)))+MIN(IF($J4>=0,$J4,1),IF($K4>=0,$K4,1))-1,0)/ABS($J4))*OFFSET(AN$10,$L4,0)*$M4) -> 0 | AQ4: =IF(INDEX(SC_ZX_CodeA,1)="X",0,IF(ABS($J4)>(11/12),ABS($K4),MAX(ABS(MAX(IF($J4>=0,-1+$J4,-1),IF($K4<=0,$K4,-1)))+MIN(IF($J4<=0,1+$J4,1),IF($K4>=0,$K4,1))-1,0)/(1-ABS($J4)))*OFFSET(AQ$10,$L4,0)*$M4) -> 0 | AR4: =(AL4+AM4+AN4+AQ4)*$O4*$M4 -> 0 | AS4: =OFFSET(AS$10,$L4,0) -> 0 | AT4: =OFFSET(AT$10,$L4,0) -> 0 | AU4: =IF(INDEX(SC_ZX_CodeA,1)="X",0,IF(ABS($J4)<(1/12),ABS($K4),MAX(ABS(MAX(IF($J4<=0,$J4,-1),IF($K4<=0,$K4,-1)))+MIN(IF($J4>=0,$J4,1),IF($K4>=0,$K4,1))-1,0)/ABS($J4))*OFFSET(AU$10,$L4,0)*$M4) -> 0 | AX4: =IF(INDEX(SC_ZX_CodeA,1)="X",0,IF(ABS($J4)>(11/12),ABS($K4),MAX(ABS(MAX(IF($J4>=0,-1+$J4,-1),IF($K4<=0,$K4,-1)))+MIN(IF($J4<=0,1+$J4,1),IF($K4>=0,$K4,1))-1,0)/(1-ABS($J4)))*OFFSET(AX$10,$L4,0)*$M4) -> 0 | AY4: =(AS4+AU4+AX4)*$O4*$M4 -> 0 | AZ4: =OFFSET(AZ$10,$L4,0) -> 0 | BA4: =IF(INDEX(SC_ZX_CodeA,1)="X",0,IF(ABS($J4)<(1/12),ABS($K4),MAX(ABS(MAX(IF($J4<=0,$J4,-1),IF($K4<=0,$K4,-1)))+MIN(IF($J4>=0,$J4,1),IF($K4>=0,$K4,1))-1,0)/ABS($J4))*OFFSET(BA$10,$L4,0)*$M4) -> 0 | BB4: =IF(INDEX(SC_ZX_CodeA,1)="X",0,IF(ABS($J4)<(1/12),ABS($K4),MAX(ABS(MAX(IF($J4<=0,$J4,-1),IF($K4<=0,$K4,-1)))+MIN(IF($J4>=0,$J4,1),IF($K4>=0,$K4,1))-1,0)/ABS($J4))*OFFSET(BB$10,$L4,0)*$M4) -> 0 | BE4: =IF(INDEX(SC_ZX_CodeA,1)="X",0,IF(ABS($J4)>(11/12),ABS($K4),MAX(ABS(MAX(IF($J4>=0,-1+$J4,-1),IF($K4<=0,$K4,-1)))+MIN(IF($J4<=0,1+$J4,1),IF($K4>=0,$K4,1))-1,0)/(1-ABS($J4)))*OFFSET(BE$10,$L4,0)*$M4) -> 0 | BF4: =(AZ4+BA4+BB4+BE4)*$O4*$M4 -> 0 | BG4: =OFFSET(BG$10,$L4,0) -> 0 | BH4: =OFFSET(BH$10,$L4,0) -> 0 | BI4: =IF(INDEX(SC_ZX_CodeA,1)="X",0,IF(ABS($J4)<(1/12),ABS($K4),MAX(ABS(MAX(IF($J4<=0,$J4,-1),IF($K4<=0,$K4,-1)))+MIN(IF($J4>=0,$J4,1),IF($K4>=0,$K4,1))-1,0)/ABS($J4))*OFFSET(BI$10,$L4,0)*$M4) -> 0 | BL4: =IF(INDEX(SC_ZX_CodeA,1)="X",0,IF(ABS($J4)>(11/12),ABS($K4),MAX(ABS(MAX(IF($J4>=0,-1+$J4,-1),IF($K4<=0,$K4,-1)))+MIN(IF($J4<=0,1+$J4,1),IF($K4>=0,$K4,1))-1,0)/(1-ABS($J4)))*OFFSET(BL$10,$L4,0)*$M4) -> 0 | BM4: =(BG4+BI4+BL4)*$O4*$M4 -> 0
B5: 0 | J5: =IF(YEAR(SP_AdjustedDate)<SC_TargetRY,1,IF(YEAR(SP_AdjustedDate)=SC_TargetRY,-(1-YEARFRAC(SP_TargetRD,DATE(SC_TargetRY+1,1,1))),0)) -> 1 | K5: =-(1-YEARFRAC(SP_AdjustedDate,DATE(YEAR(SP_AdjustedDate)+1,1,1))) -> -0.2888888889 | L5: =(YEAR(SP_AdjustedDate)-SP_CurrentYear)*2+ROW()-ROW($A$4) -> 1 | M5: 1 | O5: =IF(INDEX(SC_ZX_CodeA,1)="X",0,ABS($K5)*OFFSET(O$10,$L5,0)) -> 0.01519266667 | X5: =OFFSET(X$10,$L5,0) -> 0 | Y5: =IF(INDEX(SC_ZX_CodeA,1)="X",0,IF(ABS($J5)<(1/12),ABS($K5),MAX(ABS(MAX(IF($J5<=0,$J5,-1),IF($K5<=0,$K5,-1)))+MIN(IF($J5>=0,$J5,1),IF($K5>=0,$K5,1))-1,0)/ABS($J5))*OFFSET(Y$10,$L5,0)*$M5) -> 0 | Z5: =IF(INDEX(SC_ZX_CodeA,1)="X",0,IF(ABS($J5)<(1/12),ABS($K5),MAX(ABS(MAX(IF($J5<=0,$J5,-1),IF($K5<=0,$K5,-1)))+MIN(IF($J5>=0,$J5,1),IF($K5>=0,$K5,1))-1,0)/ABS($J5))*OFFSET(Z$10,$L5,0)*$M5) -> 0 | AC5: =IF(INDEX(SC_ZX_CodeA,1)="X",0,IF(ABS($J5)>(11/12),ABS($K5),MAX(ABS(MAX(IF($J5>=0,-1+$J5,-1),IF($K5<=0,$K5,-1)))+MIN(IF($J5<=0,1+$J5,1),IF($K5>=0,$K5,1))-1,0)/(1-ABS($J5)))*OFFSET(AC$10,$L5,0)*$M5) -> 0 | AD5: =(X5+Y5+Z5+AC5)*$O5*$M5 -> 0 | AE5: =OFFSET(AE$10,$L5,0) -> 0 | AF5: 0 | AG5: =IF(INDEX(SC_ZX_CodeA,1)="X",0,IF(ABS($J5)<(1/12),ABS($K5),MAX(ABS(MAX(IF($J5<=0,$J5,-1),IF($K5<=0,$K5,-1)))+MIN(IF($J5>=0,$J5,1),IF($K5>=0,$K5,1))-1,0)/ABS($J5))*OFFSET(AG$10,$L5,0)*$M5) -> 0 | AJ5: =IF(INDEX(SC_ZX_CodeA,1)="X",0,IF(ABS($J5)>(11/12),ABS($K5),MAX(ABS(MAX(IF($J5>=0,-1+$J5,-1),IF($K5<=0,$K5,-1)))+MIN(IF($J5<=0,1+$J5,1),IF($K5>=0,$K5,1))-1,0)/(1-ABS($J5)))*OFFSET(AJ$10,$L5,0)*$M5) -> 0 | AK5: =(AE5+AG5+AJ5)*$O5*$M5 -> 0 | AL5: =OFFSET(AL$10,$L5,0) -> 0 | AM5: =IF(INDEX(SC_ZX_CodeA,1)="X",0,IF(ABS($J5)<(1/12),ABS($K5),MAX(ABS(MAX(IF($J5<=0,$J5,-1),IF($K5<=0,$K5,-1)))+MIN(IF($J5>=0,$J5,1),IF($K5>=0,$K5,1))-1,0)/ABS($J5))*OFFSET(AM$10,$L5,0)*$M5) -> 0 | AN5: =IF(INDEX(SC_ZX_CodeA,1)="X",0,IF(ABS($J5)<(1/12),ABS($K5),MAX(ABS(MAX(IF($J5<=0,$J5,-1),IF($K5<=0,$K5,-1)))+MIN(IF($J5>=0,$J5,1),IF($K5>=0,$K5,1))-1,0)/ABS($J5))*OFFSET(AN$10,$L5,0)*$M5) -> 0 | AQ5: =IF(INDEX(SC_ZX_CodeA,1)="X",0,IF(ABS($J5)>(11/12),ABS($K5),MAX(ABS(MAX(IF($J5>=0,-1+$J5,-1),IF($K5<=0,$K5,-1)))+MIN(IF($J5<=0,1+$J5,1),IF($K5>=0,$K5,1))-1,0)/(1-ABS($J5)))*OFFSET(AQ$10,$L5,0)*$M5) -> 0 | AR5: =(AL5+AM5+AN5+AQ5)*$O5*$M5 -> 0 | AS5: =OFFSET(AS$10,$L5,0) -> 0 | AT5: =OFFSET(AT$10,$L5,0) -> 0 | AU5: =IF(INDEX(SC_ZX_CodeA,1)="X",0,IF(ABS($J5)<(1/12),ABS($K5),MAX(ABS(MAX(IF($J5<=0,$J5,-1),IF($K5<=0,$K5,-1)))+MIN(IF($J5>=0,$J5,1),IF($K5>=0,$K5,1))-1,0)/ABS($J5))*OFFSET(AU$10,$L5,0)*$M5) -> 0 | AX5: =IF(INDEX(SC_ZX_CodeA,1)="X",0,IF(ABS($J5)>(11/12),ABS($K5),MAX(ABS(MAX(IF($J5>=0,-1+$J5,-1),IF($K5<=0,$K5,-1)))+MIN(IF($J5<=0,1+$J5,1),IF($K5>=0,$K5,1))-1,0)/(1-ABS($J5)))*OFFSET(AX$10,$L5,0)*$M5) -> 0 | AY5: =(AS5+AU5+AX5)*$O5*$M5 -> 0 | AZ5: =OFFSET(AZ$10,$L5,0) -> 0 | BA5: =IF(INDEX(SC_ZX_CodeA,1)="X",0,IF(ABS($J5)<(1/12),ABS($K5),MAX(ABS(MAX(IF($J5<=0,$J5,-1),IF($K5<=0,$K5,-1)))+MIN(IF($J5>=0,$J5,1),IF($K5>=0,$K5,1))-1,0)/ABS($J5))*OFFSET(BA$10,$L5,0)*$M5) -> 0 | BB5: =IF(INDEX(SC_ZX_CodeA,1)="X",0,IF(ABS($J5)<(1/12),ABS($K5),MAX(ABS(MAX(IF($J5<=0,$J5,-1),IF($K5<=0,$K5,-1)))+MIN(IF($J5>=0,$J5,1),IF($K5>=0,$K5,1))-1,0)/ABS($J5))*OFFSET(BB$10,$L5,0)*$M5) -> 0 | BE5: =IF(INDEX(SC_ZX_CodeA,1)="X",0,IF(ABS($J5)>(11/12),ABS($K5),MAX(ABS(MAX(IF($J5>=0,-1+$J5,-1),IF($K5<=0,$K5,-1)))+MIN(IF($J5<=0,1+$J5,1),IF($K5>=0,$K5,1))-1,0)/(1-ABS($J5)))*OFFSET(BE$10,$L5,0)*$M5) -> 0 | BF5: =(AZ5+BA5+BB5+BE5)*$O5*$M5 -> 0 | BG5: =OFFSET(BG$10,$L5,0) -> 0 | BH5: =OFFSET(BH$10,$L5,0) -> 0 | BI5: =IF(INDEX(SC_ZX_CodeA,1)="X",0,IF(ABS($J5)<(1/12),ABS($K5),MAX(ABS(MAX(IF($J5<=0,$J5,-1),IF($K5<=0,$K5,-1)))+MIN(IF($J5>=0,$J5,1),IF($K5>=0,$K5,1))-1,0)/ABS($J5))*OFFSET(BI$10,$L5,0)*$M5) -> 0 | BL5: =IF(INDEX(SC_ZX_CodeA,1)="X",0,IF(ABS($J5)>(11/12),ABS($K5),MAX(ABS(MAX(IF($J5>=0,-1+$J5,-1),IF($K5<=0,$K5,-1)))+MIN(IF($J5<=0,1+$J5,1),IF($K5>=0,$K5,1))-1,0)/(1-ABS($J5)))*OFFSET(BL$10,$L5,0)*$M5) -> 0 | BM5: =(BG5+BI5+BL5)*$O5*$M5 -> 0
B6: 0 | P6: =MAX(P4+R4+S4+V4+W4,0) -> 0 | Q6: =MAX(Q4+R4+IF((P4+R4+S4)>0,MAX(V4/(P4+R4+S4)*(Q4+R4),V4),0),0) -> 0 | X6: =MAX(X4+Y4+Z4+AC4+AD4,0) -> 0 | AE6: =MAX(AE4+AG4+AJ4+AK4,0) -> 0 | AF6: =MAX(AF4+AG4+AJ4,0) -> 0 | AL6: =MAX(AL4+AM4+AN4+AQ4+AR4,0) -> 0 | AS6: =MAX(AS4+AU4+AX4+AY4,0) -> 0 | AT6: =MAX(AT4+AU4+AX4,0) -> 0 | AZ6: =MAX(AZ4+BA4+BB4+BE4+BF4,0) -> 0 | BG6: =MAX(BG4+BI4+BL4+BM4,0) -> 0 | BH6: =MAX(BH4+BI4+BL4,0) -> 0
B7: 0 | X7: 0 | AE7: 0 | AF7: 0 | AL7: =MAX(AL5+AM5+AN5+AQ5+AR5,0) -> 0 | AS7: =MAX(AS5+AU5+AX5+AY5,0) -> 0 | AT7: =MAX(AT5+AU5+AX5,0) -> 0 | AZ7: =MAX(AZ5+BA5+BB5+BE5+BF5,0) -> 0 | BG7: =MAX(BG5+BI5+BL5+BM5,0) -> 0 | BH7: =MAX(BH5+BI5+BL5,0) -> 0
B8: =SP_CurrentYear-1 -> 2022 | C8: N | D8: =INDEX(SP_Initials,F8) ->  | E8: =INDEX(SC_TaxIndex,$F8) -> 0 | F8: =MOD(ROW(),2)+1 -> 1 | G8: =MOD($F8,2)-($F8-1) -> 1 | H8: =IF(INDEX(SC_ShowRetireatee,$F8),IF($B8<YEAR(INDEX(SP_BirthDate,$F8)),0,$B8-YEAR(INDEX(SP_BirthDate,$F8))),0) -> 0 | I8: =IF(INDEX(SC_ShowRetireatee,$F8),IF($B8>(YEAR(INDEX(SP_BirthDate,$F8))+INDEX(SP_LifeExp,$F8)),0,$H8)) -> FALSE | J8: =INDEX(SC_EX_APW,EXIDX+2) -> 1 | K8: =-(1-SC_CurrentDatePr) -> -0.2888888889 | L8: =ROW()-ROW($A$8) -> 0 | M8: -1 | O8: =IF(INDEX(SC_ZX_CodeA,1)="X",0,(ABS($K8)*OFFSET(O$10,$L8,0))/(1+ABS($K8)*OFFSET(O$10,$L8,0))) -> 0.01496530379 | P8: =SP_CoreBalance -> 0 | Q8: =SP_CoreCostBasis -> 0 | R8: =IF(INDEX(SC_ZX_CodeA,1)="X",0,IF(ABS($J8)<(1/12),ABS($K8),MAX(ABS(MAX(IF($J8<=0,$J8,-1),IF($K8<=0,$K8,-1)))+MIN(IF($J8>=0,$J8,1),IF($K8>=0,$K8,1))-1,0)/ABS($J8))*OFFSET(R$10,$L8,0)*$M8) -> 0 | S8: 0 | V8: =IF(INDEX(SC_ZX_CodeA,1)="X",0,IF(ABS($J8)>(11/12),ABS($K8),MAX(ABS(MAX(IF($J8>=0,-1+$J8,-1),IF($K8<=0,$K8,-1)))+MIN(IF($J8<=0,1+$J8,1),IF($K8>=0,$K8,1))-1,0)/(1-ABS($J8)))*OFFSET(V$10,$L8,0)*$M8) -> 0 | W8: =P8*$O8*$M8 -> 0 | X8: =INDEX(SP_401KBalance,$F8) -> 0 | Y8: =IF(INDEX(SC_ZX_CodeA,1)="X",0,IF(ABS($J8)<(1/12),ABS($K8),MAX(ABS(MAX(IF($J8<=0,$J8,-1),IF($K8<=0,$K8,-1)))+MIN(IF($J8>=0,$J8,1),IF($K8>=0,$K8,1))-1,0)/ABS($J8))*OFFSET(Y$10,$L8,0)*$M8) -> 0 | Z8: =IF(INDEX(SC_ZX_CodeA,1)="X",0,IF(ABS($J8)<(1/12),ABS($K8),MAX(ABS(MAX(IF($J8<=0,$J8,-1),IF($K8<=0,$K8,-1)))+MIN(IF($J8>=0,$J8,1),IF($K8>=0,$K8,1))-1,0)/ABS($J8))*OFFSET(Z$10,$L8,0)*$M8) -> 0 | AC8: =IF(INDEX(SC_ZX_CodeA,1)="X",0,IF(ABS($J8)>(11/12),ABS($K8),MAX(ABS(MAX(IF($J8>=0,-1+$J8,-1),IF($K8<=0,$K8,-1)))+MIN(IF($J8<=0,1+$J8,1),IF($K8>=0,$K8,1))-1,0)/(1-ABS($J8)))*OFFSET(AC$10,$L8,0)*$M8) -> 0 | AD8: =X8*$O8*$M8 -> 0 | AE8: =INDEX(SP_Roth401KBalance,$F8) -> 0 | AF8: =INDEX(SP_Roth401KCostBasis,$F8) -> 0 | AG8: =IF(INDEX(SC_ZX_CodeA,1)="X",0,IF(ABS($J8)<(1/12),ABS($K8),MAX(ABS(MAX(IF($J8<=0,$J8,-1),IF($K8<=0,$K8,-1)))+MIN(IF($J8>=0,$J8,1),IF($K8>=0,$K8,1))-1,0)/ABS($J8))*OFFSET(AG$10,$L8,0)*$M8) -> 0 | AJ8: =IF(INDEX(SC_ZX_CodeA,1)="X",0,IF(ABS($J8)>(11/12),ABS($K8),MAX(ABS(MAX(IF($J8>=0,-1+$J8,-1),IF($K8<=0,$K8,-1)))+MIN(IF($J8<=0,1+$J8,1),IF($K8>=0,$K8,1))-1,0)/(1-ABS($J8)))*OFFSET(AJ$10,$L8,0)*$M8) -> 0 | AK8: =AE8*$O8*$M8 -> 0 | AL8: =INDEX(SP_Solo401KBalance,$F8) -> 0 | AM8: =IF(INDEX(SC_ZX_CodeA,1)="X",0,IF(ABS($J8)<(1/12),ABS($K8),MAX(ABS(MAX(IF($J8<=0,$J8,-1),IF($K8<=0,$K8,-1)))+MIN(IF($J8>=0,$J8,1),IF($K8>=0,$K8,1))-1,0)/ABS($J8))*OFFSET(AM$10,$L8,0)*$M8) -> 0 | AN8: =IF(INDEX(SC_ZX_CodeA,1)="X",0,IF(ABS($J8)<(1/12),ABS($K8),MAX(ABS(MAX(IF($J8<=0,$J8,-1),IF($K8<=0,$K8,-1)))+MIN(IF($J8>=0,$J8,1),IF($K8>=0,$K8,1))-1,0)/ABS($J8))*OFFSET(AN$10,$L8,0)*$M8) -> 0 | AQ8: =IF(INDEX(SC_ZX_CodeA,1)="X",0,IF(ABS($J8)>(11/12),ABS($K8),MAX(ABS(MAX(IF($J8>=0,-1+$J8,-1),IF($K8<=0,$K8,-1)))+MIN(IF($J8<=0,1+$J8,1),IF($K8>=0,$K8,1))-1,0)/(1-ABS($J8)))*OFFSET(AQ$10,$L8,0)*$M8) -> 0 | AR8: =AL8*$O8*$M8 -> 0 | AS8: =INDEX(SP_RothSolo401KBalance,$F8) -> 0 | AT8: =INDEX(SP_RothSolo401KCostBasis,$F8) -> 0 | AU8: =IF(INDEX(SC_ZX_CodeA,1)="X",0,IF(ABS($J8)<(1/12),ABS($K8),MAX(ABS(MAX(IF($J8<=0,$J8,-1),IF($K8<=0,$K8,-1)))+MIN(IF($J8>=0,$J8,1),IF($K8>=0,$K8,1))-1,0)/ABS($J8))*OFFSET(AU$10,$L8,0)*$M8) -> 0 | AX8: =IF(INDEX(SC_ZX_CodeA,1)="X",0,IF(ABS($J8)>(11/12),ABS($K8),MAX(ABS(MAX(IF($J8>=0,-1+$J8,-1),IF($K8<=0,$K8,-1)))+MIN(IF($J8<=0,1+$J8,1),IF($K8>=0,$K8,1))-1,0)/(1-ABS($J8)))*OFFSET(AX$10,$L8,0)*$M8) -> 0 | AY8: =AS8*$O8*$M8 -> 0 | AZ8: =INDEX(SP_IRABalance,$F8) -> 0 | BA8: =IF(INDEX(SC_ZX_CodeA,1)="X",0,IF(ABS($J8)<(1/12),ABS($K8),MAX(ABS(MAX(IF($J8<=0,$J8,-1),IF($K8<=0,$K8,-1)))+MIN(IF($J8>=0,$J8,1),IF($K8>=0,$K8,1))-1,0)/ABS($J8))*OFFSET(BA$10,$L8,0)*$M8) -> 0 | BB8: =IF(INDEX(SC_ZX_CodeA,1)="X",0,IF(ABS($J8)<(1/12),ABS($K8),MAX(ABS(MAX(IF($J8<=0,$J8,-1),IF($K8<=0,$K8,-1)))+MIN(IF($J8>=0,$J8,1),IF($K8>=0,$K8,1))-1,0)/ABS($J8))*OFFSET(BB$10,$L8,0)*$M8) -> 0 | BE8: =IF(INDEX(SC_ZX_CodeA,1)="X",0,IF(ABS($J8)>(11/12),ABS($K8),MAX(ABS(MAX(IF($J8>=0,-1+$J8,-1),IF($K8<=0,$K8,-1)))+MIN(IF($J8<=0,1+$J8,1),IF($K8>=0,$K8,1))-1,0)/(1-ABS($J8)))*OFFSET(BE$10,$L8,0)*$M8) -> 0 | BF8: =AZ8*$O8*$M8 -> 0 | BG8: =INDEX(SP_RothIRABalance,$F8) -> 0 | BH8: =INDEX(SP_RothIRACostBasis,$F8) -> 0 | BI8: =IF(INDEX(SC_ZX_CodeA,1)="X",0,IF(ABS($J8)<(1/12),ABS($K8),MAX(ABS(MAX(IF($J8<=0,$J8,-1),IF($K8<=0,$K8,-1)))+MIN(IF($J8>=0,$J8,1),IF($K8>=0,$K8,1))-1,0)/ABS($J8))*OFFSET(BI$10,$L8,0)*$M8) -> 0 | BL8: =IF(INDEX(SC_ZX_CodeA,1)="X",0,IF(ABS($J8)>(11/12),ABS($K8),MAX(ABS(MAX(IF($J8>=0,-1+$J8,-1),IF($K8<=0,$K8,-1)))+MIN(IF($J8<=0,1+$J8,1),IF($K8>=0,$K8,1))-1,0)/(1-ABS($J8)))*OFFSET(BL$10,$L8,0)*$M8) -> 0 | BM8: =BG8*$O8*$M8 -> 0
B9: 2022 | C9: N | E9: 0 | F9: =MOD(ROW(),2)+1 -> 2 | G9: -1 | H9: 0 | I9: FALSE | J9: =INDEX(SC_EX_APW,EXIDX+2) -> 1 | K9: =-(1-SC_CurrentDatePr) -> -0.2888888889 | L9: =ROW()-ROW($A$8) -> 1 | M9: -1 | O9: =IF(INDEX(SC_ZX_CodeA,1)="X",0,(ABS($K9)*OFFSET(O$10,$L9,0))/(1+ABS($K9)*OFFSET(O$10,$L9,0))) -> 0.01496530379 | X9: 0 | Y9: =IF(INDEX(SC_ZX_CodeA,1)="X",0,IF(ABS($J9)<(1/12),ABS($K9),MAX(ABS(MAX(IF($J9<=0,$J9,-1),IF($K9<=0,$K9,-1)))+MIN(IF($J9>=0,$J9,1),IF($K9>=0,$K9,1))-1,0)/ABS($J9))*OFFSET(Y$10,$L9,0)*$M9) -> 0 | Z9: =IF(INDEX(SC_ZX_CodeA,1)="X",0,IF(ABS($J9)<(1/12),ABS($K9),MAX(ABS(MAX(IF($J9<=0,$J9,-1),IF($K9<=0,$K9,-1)))+MIN(IF($J9>=0,$J9,1),IF($K9>=0,$K9,1))-1,0)/ABS($J9))*OFFSET(Z$10,$L9,0)*$M9) -> 0 | AC9: =IF(INDEX(SC_ZX_CodeA,1)="X",0,IF(ABS($J9)>(11/12),ABS($K9),MAX(ABS(MAX(IF($J9>=0,-1+$J9,-1),IF($K9<=0,$K9,-1)))+MIN(IF($J9<=0,1+$J9,1),IF($K9>=0,$K9,1))-1,0)/(1-ABS($J9)))*OFFSET(AC$10,$L9,0)*$M9) -> 0 | AD9: =X9*$O9*$M9 -> 0 | AE9: 0 | AF9: =INDEX(SP_Roth401KCostBasis,$F9) -> 0 | AG9: =IF(INDEX(SC_ZX_CodeA,1)="X",0,IF(ABS($J9)<(1/12),ABS($K9),MAX(ABS(MAX(IF($J9<=0,$J9,-1),IF($K9<=0,$K9,-1)))+MIN(IF($J9>=0,$J9,1),IF($K9>=0,$K9,1))-1,0)/ABS($J9))*OFFSET(AG$10,$L9,0)*$M9) -> 0 | AJ9: =IF(INDEX(SC_ZX_CodeA,1)="X",0,IF(ABS($J9)>(11/12),ABS($K9),MAX(ABS(MAX(IF($J9>=0,-1+$J9,-1),IF($K9<=0,$K9,-1)))+MIN(IF($J9<=0,1+$J9,1),IF($K9>=0,$K9,1))-1,0)/(1-ABS($J9)))*OFFSET(AJ$10,$L9,0)*$M9) -> 0 | AK9: =AE9*$O9*$M9 -> 0 | AL9: 0 | AM9: =IF(INDEX(SC_ZX_CodeA,1)="X",0,IF(ABS($J9)<(1/12),ABS($K9),MAX(ABS(MAX(IF($J9<=0,$J9,-1),IF($K9<=0,$K9,-1)))+MIN(IF($J9>=0,$J9,1),IF($K9>=0,$K9,1))-1,0)/ABS($J9))*OFFSET(AM$10,$L9,0)*$M9) -> 0 | AN9: =IF(INDEX(SC_ZX_CodeA,1)="X",0,IF(ABS($J9)<(1/12),ABS($K9),MAX(ABS(MAX(IF($J9<=0,$J9,-1),IF($K9<=0,$K9,-1)))+MIN(IF($J9>=0,$J9,1),IF($K9>=0,$K9,1))-1,0)/ABS($J9))*OFFSET(AN$10,$L9,0)*$M9) -> 0 | AQ9: =IF(INDEX(SC_ZX_CodeA,1)="X",0,IF(ABS($J9)>(11/12),ABS($K9),MAX(ABS(MAX(IF($J9>=0,-1+$J9,-1),IF($K9<=0,$K9,-1)))+MIN(IF($J9<=0,1+$J9,1),IF($K9>=0,$K9,1))-1,0)/(1-ABS($J9)))*OFFSET(AQ$10,$L9,0)*$M9) -> 0 | AR9: =AL9*$O9*$M9 -> 0 | AS9: 0 | AT9: =INDEX(SP_RothSolo401KCostBasis,$F9) -> 0 | AU9: =IF(INDEX(SC_ZX_CodeA,1)="X",0,IF(ABS($J9)<(1/12),ABS($K9),MAX(ABS(MAX(IF($J9<=0,$J9,-1),IF($K9<=0,$K9,-1)))+MIN(IF($J9>=0,$J9,1),IF($K9>=0,$K9,1))-1,0)/ABS($J9))*OFFSET(AU$10,$L9,0)*$M9) -> 0 | AX9: =IF(INDEX(SC_ZX_CodeA,1)="X",0,IF(ABS($J9)>(11/12),ABS($K9),MAX(ABS(MAX(IF($J9>=0,-1+$J9,-1),IF($K9<=0,$K9,-1)))+MIN(IF($J9<=0,1+$J9,1),IF($K9>=0,$K9,1))-1,0)/(1-ABS($J9)))*OFFSET(AX$10,$L9,0)*$M9) -> 0 | AY9: =AS9*$O9*$M9 -> 0 | AZ9: 0 | BA9: =IF(INDEX(SC_ZX_CodeA,1)="X",0,IF(ABS($J9)<(1/12),ABS($K9),MAX(ABS(MAX(IF($J9<=0,$J9,-1),IF($K9<=0,$K9,-1)))+MIN(IF($J9>=0,$J9,1),IF($K9>=0,$K9,1))-1,0)/ABS($J9))*OFFSET(BA$10,$L9,0)*$M9) -> 0 | BB9: =IF(INDEX(SC_ZX_CodeA,1)="X",0,IF(ABS($J9)<(1/12),ABS($K9),MAX(ABS(MAX(IF($J9<=0,$J9,-1),IF($K9<=0,$K9,-1)))+MIN(IF($J9>=0,$J9,1),IF($K9>=0,$K9,1))-1,0)/ABS($J9))*OFFSET(BB$10,$L9,0)*$M9) -> 0 | BE9: =IF(INDEX(SC_ZX_CodeA,1)="X",0,IF(ABS($J9)>(11/12),ABS($K9),MAX(ABS(MAX(IF($J9>=0,-1+$J9,-1),IF($K9<=0,$K9,-1)))+MIN(IF($J9<=0,1+$J9,1),IF($K9>=0,$K9,1))-1,0)/(1-ABS($J9)))*OFFSET(BE$10,$L9,0)*$M9) -> 0 | BF9: =AZ9*$O9*$M9 -> 0 | BG9: 0 | BH9: =INDEX(SP_RothIRACostBasis,$F9) -> 0 | BI9: =IF(INDEX(SC_ZX_CodeA,1)="X",0,IF(ABS($J9)<(1/12),ABS($K9),MAX(ABS(MAX(IF($J9<=0,$J9,-1),IF($K9<=0,$K9,-1)))+MIN(IF($J9>=0,$J9,1),IF($K9>=0,$K9,1))-1,0)/ABS($J9))*OFFSET(BI$10,$L9,0)*$M9) -> 0 | BL9: =IF(INDEX(SC_ZX_CodeA,1)="X",0,IF(ABS($J9)>(11/12),ABS($K9),MAX(ABS(MAX(IF($J9>=0,-1+$J9,-1),IF($K9<=0,$K9,-1)))+MIN(IF($J9<=0,1+$J9,1),IF($K9>=0,$K9,1))-1,0)/(1-ABS($J9)))*OFFSET(BL$10,$L9,0)*$M9) -> 0 | BM9: =BG9*$O9*$M9 -> 0
B10: =B8+1 -> 2023 | C10: N | E10: 0 | F10: 1 | G10: 1 | H10: 0 | I10: FALSE | N10: =YEAR(SP_TargetRD)-$B10 -> 1 | O10: =LT_InvestmentStocks*INDEX(SP_EA_ARStocks,EAIDX)+LT_InvestmentBonds*INDEX(SC_EA_ARBonds,EAIDX) -> 0.05259 | P10: =MAX(P8+R8+S8+V8+W8,0) -> 0 | Q10: =MAX(Q8+R8+IF((P8+R8+S8)>0,MAX(V8/(P8+R8+S8)*(Q8+R8),V8),0),0) -> 0 | R10: =IF(SC_ZX_CodeA="X", 0, MAX(INDEX(SC_ZX_IncomeSurplus,ZXIDX2)+INDEX(SC_ZX_Debt,ZXIDX2),0)) -> 0 | S10: =IF(SC_ZX_CodeA="X", 0, INDEX(SC_EX_RolloverCore,EXIDX)) -> 0 | T10: =P10+R10+S10 -> 0 | U10: =IF(SC_ZX_BalanceAccessibleA>0, T10/SC_ZX_BalanceAccessibleA, 0) -> 0 | V10: =-IF(SC_ZX_CodeA="X",0,MIN(U10*MAX(INDEX(SC_ZX_Drawdown,ZXIDX2),0),T10)) -> 0 | W10: =(P10+R10+S10+V10)*$O10 -> 0 | X10: =MAX(X8+Y8+Z8+AC8+AD8,0) -> 0 | Y10: =MAX(INDEX(SC_EX_IncomeEmployer,EXIDX)*INDEX(SP_401KContrib,$F10),0) -> 0 | Z10: =MAX(INDEX(SC_EX_IncomeEmployer,EXIDX)*INDEX(SP_401KMatch,$F10),0) -> 0 | AA10: =(X10+Y10+Z10)*IF($H10>=INDEX(SP_401KDistribAge,$F10),1,0) -> 0 | AB10: =IF(INDEX(SC_ZX_BalanceAccessibleA,ZXIDX1)>0, AA10/INDEX(SC_ZX_BalanceAccessibleA,ZXIDX1), 0) -> 0 | AC10: =-IF(INDEX(SC_ZX_CodeA,ZXIDX1)="X", 0, MIN(AB10*MAX(INDEX(SC_ZX_Drawdown,ZXIDX2),0),AA10)) -> 0 | AD10: =(X10+Y10+Z10+AC10)*$O10 -> 0 | AE10: =MAX(AE8+AG8+AJ8+AK8,0) -> 0 | AF10: =MAX(AF8+AG8+AJ8,0) -> 0 | AG10: =MAX(INDEX(SC_EX_IncomeEmployer, EXIDX)*INDEX(SP_Roth401KContrib,$F10),0) -> 0 | AH10: =IF($H10>=INDEX(SP_401KDistribAge,$F10),AE10+AG10,MIN(AE10+AG10,AF10+AG10)) -> 0 | AI10: =IF(INDEX(SC_ZX_BalanceAccessibleA,ZXIDX1)>0, AH10/INDEX(SC_ZX_BalanceAccessibleA,ZXIDX1), 0) -> 0 | AJ10: =-IF(INDEX(SC_ZX_CodeA,ZXIDX1)="X", 0, MIN(AI10*MAX(INDEX(SC_ZX_Drawdown,ZXIDX2),0),AH10)) -> 0 | AK10: =(AE10+AG10+AJ10)*$O10 -> 0 | AL10: =MAX(AL8+AM8+AN8+AQ8+AR8,0) -> 0 | AM10: =MAX(INDEX(SC_EX_IncomeSE,EXIDX)*INDEX(SP_Solo401KContrib,$F10),0) -> 0 | AN10: =MAX(INDEX(SC_EX_IncomeSE,EXIDX)*INDEX(SP_Solo401KMatch,$F10),0) -> 0 | AO10: =(AL10+AM10+AN10)*IF($H10>=INDEX(SP_Solo401KDistribAge,$F10),1,0) -> 0 | AP10: =IF(INDEX(SC_ZX_BalanceAccessibleA,ZXIDX1)>0, AO10/INDEX(SC_ZX_BalanceAccessibleA,ZXIDX1), 0) -> 0 | AQ10: =-IF(INDEX(SC_ZX_CodeA,ZXIDX1)="X", 0, MIN(AP10*MAX(INDEX(SC_ZX_Drawdown,ZXIDX2),0),AO10)) -> 0 | AR10: =(AL10+AM10+AN10+AQ10)*$O10 -> 0 | AS10: =MAX(AS8+AU8+AX8+AY8,0) -> 0 | AT10: =MAX(AT8+AU8+AX8,0) -> 0 | AU10: =MAX(INDEX(SC_EX_IncomeSE, EXIDX)*INDEX(SP_RothSolo401KContrib,$F10),0) -> 0 | AV10: =IF($H10>=INDEX(SP_Solo401KDistribAge,$F10),AS10+AU10,MIN(AS10+AU10,AT10+AU10)) -> 0 | AW10: =IF(INDEX(SC_ZX_BalanceAccessibleA,ZXIDX1)>0, AV10/INDEX(SC_ZX_BalanceAccessibleA,ZXIDX1), 0) -> 0 | AX10: =-IF(INDEX(SC_ZX_CodeA,ZXIDX1)="X", 0, MIN(AW10*MAX(INDEX(SC_ZX_Drawdown,ZXIDX2),0),AV10)) -> 0 | AY10: =(AS10+AU10+AX10)*$O10 -> 0 | AZ10: =MAX(AZ8+BA8+BB8+BE8+BF8,0) -> 0 | BA10: =MAX(INDEX(SP_IRAContrib,$F10)/INDEX(SC_EA_InflationWageIdx, EAIDX)*ABS(INDEX(SC_EX_APW, EXIDX)),0) -> 0 | BB10: =MAX(INDEX(SP_IRASpousalContrib, OFFSET($F10,$G10,0))/INDEX(SC_EA_InflationWageIdx, EAIDX)*ABS(INDEX(SC_EX_APW, EXIDX)),0) -> 0 | BC10: =(AZ10+BA10+BB10)*IF($H10>=INDEX(SP_IRADistribAge,$F10),1,0) -> 0 | BD10: =IF(INDEX(SC_ZX_BalanceAccessibleA,ZXIDX1)>0, BC10/INDEX(SC_ZX_BalanceAccessibleA,ZXIDX1), 0) -> 0 | BE10: =-IF(INDEX(SC_ZX_CodeA,ZXIDX1)="X", 0, MIN(BD10*MAX(INDEX(SC_ZX_Drawdown,ZXIDX2),0),AZ10)) -> 0 | BF10: =(AZ10+BA10+BB10+BE10)*$O10 -> 0 | BG10: =MAX(BG8+BI8+BL8+BM8,0) -> 0 | BH10: =MAX(BH8+BI8+BL8,0) -> 0 | BI10: =MAX(INDEX(SP_RothIRAContrib,$F10)/INDEX(SC_EA_InflationWageIdx, EAIDX)*ABS(INDEX(SC_EX_APW, EXIDX)),0) -> 0 | BJ10: =IF($H10>=INDEX(SP_IRADistribAge,$F10),BG10+BI10,MIN(BG10+BI10,BH10+BI10)) -> 0 | BK10: =IF(INDEX(SC_ZX_BalanceAccessibleA,ZXIDX1)>0, BJ10/INDEX(SC_ZX_BalanceAccessibleA,ZXIDX1), 0) -> 0 | BL10: =-IF(INDEX(SC_ZX_CodeA,ZXIDX1)="X", 0, MIN(BK10*MAX(INDEX(SC_ZX_Drawdown,ZXIDX2),0),BJ10)) -> 0 | BM10: =(BG10+BI10+BL10)*$O10 -> 0 | BN10: =-(Y10+AM10+BA10)-OFFSET(BB10,$G10,0) -> 0 | BO10: =-(AG10+AU10+BI10) -> 0 | BP10: =-($V10-IF(($P10+$R10+$S10)>0,MAX($V10/($P10+$R10+$S10)*($Q10+$R10),$V10),0))*LT_InvestmentQDI -> 0 | BQ10: =-($V10-IF(($P10+$R10+$S10)>0,MAX($V10/($P10+$R10+$S10)*($Q10+$R10),$V10),0))*(1-LT_InvestmentQDI) -> 0 | BR10: =BP10+BQ10-AC10-AQ10-BE10 -> 0 | BS10: =-V10-BP10-BQ10-AJ10-AX10-BL10 -> 0 | BT10: =SUMPRODUCT($BN10:$BN11+$BO10:$BO11, --($E10:$E11<>0)) -> 0 | BU10: =SUMPRODUCT($BR10:$BR11+$BS10:$BS11, --($E10:$E11<>0)) -> 0 | BV10: =$T10+SUMPRODUCT($AA10:$AA11+$AH10:$AH11+$AO10:$AO11+$AV10:$AV11+$BC10:$BC11+$BJ10:$BJ11, --($E10:$E11<>0)) -> 0 | BW10: =MAX($P10-$Q10,0)+SUMPRODUCT($X10:$X11+$AL10:$AL11+$AZ10:$AZ11, --($E10:$E11<>0)) -> 0 | BX10: =MIN($P10,$Q10)+SUMPRODUCT($AE10:$AE11+$AS10:$AS11+$BG10:$BG11, --($E10:$E11<>0)) -> 0
B11: =B9+1 -> 2023 | C11: N | E11: 0 | F11: 2 | G11: -1 | H11: 0 | I11: FALSE | O11: =LT_InvestmentStocks*INDEX(SP_EA_ARStocks,EAIDX)+LT_InvestmentBonds*INDEX(SC_EA_ARBonds,EAIDX) -> 0.05259 | X11: 0 | Y11: 0 | Z11: 0 | AA11: 0 | AB11: =IF(INDEX(SC_ZX_BalanceAccessibleA,ZXIDX1)>0, AA11/INDEX(SC_ZX_BalanceAccessibleA,ZXIDX1), 0) -> 0 | AC11: =-IF(INDEX(SC_ZX_CodeA,ZXIDX1)="X", 0, MIN(AB11*MAX(INDEX(SC_ZX_Drawdown,ZXIDX2),0),AA11)) -> 0 | AD11: 0 | AE11: 0 | AF11: 0 | AG11: 0 | AH11: 0 | AI11: =IF(INDEX(SC_ZX_BalanceAccessibleA,ZXIDX1)>0, AH11/INDEX(SC_ZX_BalanceAccessibleA,ZXIDX1), 0) -> 0 | AJ11: =-IF(INDEX(SC_ZX_CodeA,ZXIDX1)="X", 0, MIN(AI11*MAX(INDEX(SC_ZX_Drawdown,ZXIDX2),0),AH11)) -> 0 | AK11: 0 | AL11: 0 | AM11: 0 | AN11: 0 | AO11: 0 | AP11: 0 | AQ11: =-IF(INDEX(SC_ZX_CodeA,ZXIDX1)="X", 0, MIN(AP11*MAX(INDEX(SC_ZX_Drawdown,ZXIDX2),0),AO11)) -> 0 | AR11: 0 | AS11: 0 | AT11: 0 | AU11: 0 | AV11: 0 | AW11: =IF(INDEX(SC_ZX_BalanceAccessibleA,ZXIDX1)>0, AV11/INDEX(SC_ZX_BalanceAccessibleA,ZXIDX1), 0) -> 0 | AX11: =-IF(INDEX(SC_ZX_CodeA,ZXIDX1)="X", 0, MIN(AW11*MAX(INDEX(SC_ZX_Drawdown,ZXIDX2),0),AV11)) -> 0 | AY11: 0 | AZ11: 0 | BA11: 0 | BB11: 0 | BC11: 0 | BD11: =IF(INDEX(SC_ZX_BalanceAccessibleA,ZXIDX1)>0, BC11/INDEX(SC_ZX_BalanceAccessibleA,ZXIDX1), 0) -> 0 | BE11: =-IF(INDEX(SC_ZX_CodeA,ZXIDX1)="X", 0, MIN(BD11*MAX(INDEX(SC_ZX_Drawdown,ZXIDX2),0),AZ11)) -> 0 | BF11: 0 | BG11: 0 | BH11: 0 | BI11: 0 | BJ11: 0 | BK11: =IF(INDEX(SC_ZX_BalanceAccessibleA,ZXIDX1)>0, BJ11/INDEX(SC_ZX_BalanceAccessibleA,ZXIDX1), 0) -> 0 | BL11: =-IF(INDEX(SC_ZX_CodeA,ZXIDX1)="X", 0, MIN(BK11*MAX(INDEX(SC_ZX_Drawdown,ZXIDX2),0),BJ11)) -> 0 | BM11: 0 | BN11: 0 | BO11: 0 | BP11: =-($V11-IF(($P11+$R11+$S11)>0,MAX($V11/($P11+$R11+$S11)*($Q11+$R11),$V11),0))*LT_InvestmentQDI -> 0 | BQ11: =-($V11-IF(($P11+$R11+$S11)>0,MAX($V11/($P11+$R11+$S11)*($Q11+$R11),$V11),0))*(1-LT_InvestmentQDI) -> 0 | BR11: 0 | BS11: 0
B12: =B10+1 -> 2024 | C12: N | E12: 0 | F12: 1 | G12: 1 | H12: 0 | I12: FALSE | N12: =YEAR(SP_TargetRD)-$B12 -> 0 | O12: =LT_InvestmentStocks*INDEX(SP_EA_ARStocks,EAIDX)+LT_InvestmentBonds*INDEX(SC_EA_ARBonds,EAIDX) ->  | P12: =MAX(P10+R10+S10+V10+W10,0) -> 0 | Q12: =MAX(Q10+R10+IF((P10+R10+S10)>0,MAX(V10/(P10+R10+S10)*(Q10+R10),V10),0),0) -> 0 | R12: =IF(SC_ZX_CodeA="X", 0, MAX(INDEX(SC_ZX_IncomeSurplus,ZXIDX2)+INDEX(SC_ZX_Debt,ZXIDX2),0)) ->  | S12: =IF(SC_ZX_CodeA="X", 0, INDEX(SC_EX_RolloverCore,EXIDX)) ->  | T12: =P12+R12+S12 ->  | U12: =IF(SC_ZX_BalanceAccessibleA>0, T12/SC_ZX_BalanceAccessibleA, 0) ->  | V12: =-IF(SC_ZX_CodeA="X",0,MIN(U12*MAX(INDEX(SC_ZX_Drawdown,ZXIDX2),0),T12)) ->  | W12: =(P12+R12+S12+V12)*$O12 ->  | X12: 0 | AC12: =-IF(INDEX(SC_ZX_CodeA,ZXIDX1)="X", 0, MIN(AB12*MAX(INDEX(SC_ZX_Drawdown,ZXIDX2),0),AA12)) ->  | AE12: 0 | AF12: 0 | AJ12: =-IF(INDEX(SC_ZX_CodeA,ZXIDX1)="X", 0, MIN(AI12*MAX(INDEX(SC_ZX_Drawdown,ZXIDX2),0),AH12)) ->  | AL12: 0 | AQ12: =-IF(INDEX(SC_ZX_CodeA,ZXIDX1)="X", 0, MIN(AP12*MAX(INDEX(SC_ZX_Drawdown,ZXIDX2),0),AO12)) ->  | AS12: 0 | AT12: 0 | AX12: =-IF(INDEX(SC_ZX_CodeA,ZXIDX1)="X", 0, MIN(AW12*MAX(INDEX(SC_ZX_Drawdown,ZXIDX2),0),AV12)) ->  | AZ12: 0 | BE12: =-IF(INDEX(SC_ZX_CodeA,ZXIDX1)="X", 0, MIN(BD12*MAX(INDEX(SC_ZX_Drawdown,ZXIDX2),0),AZ12)) ->  | BG12: 0 | BH12: 0 | BL12: =-IF(INDEX(SC_ZX_CodeA,ZXIDX1)="X", 0, MIN(BK12*MAX(INDEX(SC_ZX_Drawdown,ZXIDX2),0),BJ12)) ->  | BP12: =-($V12-IF(($P12+$R12+$S12)>0,MAX($V12/($P12+$R12+$S12)*($Q12+$R12),$V12),0))*LT_InvestmentQDI ->  | BQ12: =-($V12-IF(($P12+$R12+$S12)>0,MAX($V12/($P12+$R12+$S12)*($Q12+$R12),$V12),0))*(1-LT_InvestmentQDI) ->  | BT12: =SUMPRODUCT($BN12:$BN13+$BO12:$BO13, --($E12:$E13<>0)) ->  | BU12: =SUMPRODUCT($BR12:$BR13+$BS12:$BS13, --($E12:$E13<>0)) ->  | BV12: =$T12+SUMPRODUCT($AA12:$AA13+$AH12:$AH13+$AO12:$AO13+$AV12:$AV13+$BC12:$BC13+$BJ12:$BJ13, --($E12:$E13<>0)) ->  | BW12: =MAX($P12-$Q12,0)+SUMPRODUCT($X12:$X13+$AL12:$AL13+$AZ12:$AZ13, --($E12:$E13<>0)) -> 0 | BX12: =MIN($P12,$Q12)+SUMPRODUCT($AE12:$AE13+$AS12:$AS13+$BG12:$BG13, --($E12:$E13<>0)) -> 0
B13: 2024 | C13: N | E13: 0 | F13: 2 | G13: -1 | H13: 0 | I13: FALSE | O13: =LT_InvestmentStocks*INDEX(SP_EA_ARStocks,EAIDX)+LT_InvestmentBonds*INDEX(SC_EA_ARBonds,EAIDX) ->  | X13: 0 | AB13: =IF(INDEX(SC_ZX_BalanceAccessibleA,ZXIDX1)>0, AA13/INDEX(SC_ZX_BalanceAccessibleA,ZXIDX1), 0) ->  | AC13: =-IF(INDEX(SC_ZX_CodeA,ZXIDX1)="X", 0, MIN(AB13*MAX(INDEX(SC_ZX_Drawdown,ZXIDX2),0),AA13)) ->  | AE13: 0 | AF13: 0 | AI13: =IF(INDEX(SC_ZX_BalanceAccessibleA,ZXIDX1)>0, AH13/INDEX(SC_ZX_BalanceAccessibleA,ZXIDX1), 0) ->  | AJ13: =-IF(INDEX(SC_ZX_CodeA,ZXIDX1)="X", 0, MIN(AI13*MAX(INDEX(SC_ZX_Drawdown,ZXIDX2),0),AH13)) ->  | AL13: 0 | AP13: =IF(INDEX(SC_ZX_BalanceAccessibleA,ZXIDX1)>0, AO13/INDEX(SC_ZX_BalanceAccessibleA,ZXIDX1), 0) ->  | AQ13: =-IF(INDEX(SC_ZX_CodeA,ZXIDX1)="X", 0, MIN(AP13*MAX(INDEX(SC_ZX_Drawdown,ZXIDX2),0),AO13)) ->  | AS13: 0 | AT13: 0 | AW13: =IF(INDEX(SC_ZX_BalanceAccessibleA,ZXIDX1)>0, AV13/INDEX(SC_ZX_BalanceAccessibleA,ZXIDX1), 0) ->  | AX13: =-IF(INDEX(SC_ZX_CodeA,ZXIDX1)="X", 0, MIN(AW13*MAX(INDEX(SC_ZX_Drawdown,ZXIDX2),0),AV13)) ->  | AZ13: 0 | BD13: =IF(INDEX(SC_ZX_BalanceAccessibleA,ZXIDX1)>0, BC13/INDEX(SC_ZX_BalanceAccessibleA,ZXIDX1), 0) ->  | BE13: =-IF(INDEX(SC_ZX_CodeA,ZXIDX1)="X", 0, MIN(BD13*MAX(INDEX(SC_ZX_Drawdown,ZXIDX2),0),AZ13)) ->  | BG13: 0 | BH13: 0 | BK13: =IF(INDEX(SC_ZX_BalanceAccessibleA,ZXIDX1)>0, BJ13/INDEX(SC_ZX_BalanceAccessibleA,ZXIDX1), 0) ->  | BL13: =-IF(INDEX(SC_ZX_CodeA,ZXIDX1)="X", 0, MIN(BK13*MAX(INDEX(SC_ZX_Drawdown,ZXIDX2),0),BJ13)) ->  | BP13: =-($V13-IF(($P13+$R13+$S13)>0,MAX($V13/($P13+$R13+$S13)*($Q13+$R13),$V13),0))*LT_InvestmentQDI ->  | BQ13: =-($V13-IF(($P13+$R13+$S13)>0,MAX($V13/($P13+$R13+$S13)*($Q13+$R13),$V13),0))*(1-LT_InvestmentQDI) -> 
B14: =B12+1 -> 2025 | C14: N | E14: 0 | F14: 1 | G14: 1 | H14: 0 | I14: FALSE | N14: =YEAR(SP_TargetRD)-$B14 -> -1 | O14: =LT_InvestmentStocks*INDEX(SP_EA_ARStocks,EAIDX)+LT_InvestmentBonds*INDEX(SC_EA_ARBonds,EAIDX) ->  | P14: =MAX(P12+R12+S12+V12+W12,0) ->  | Q14: =MAX(Q12+R12+IF((P12+R12+S12)>0,MAX(V12/(P12+R12+S12)*(Q12+R12),V12),0),0) ->  | R14: =IF(SC_ZX_CodeA="X", 0, MAX(INDEX(SC_ZX_IncomeSurplus,ZXIDX2)+INDEX(SC_ZX_Debt,ZXIDX2),0)) ->  | S14: =IF(SC_ZX_CodeA="X", 0, INDEX(SC_EX_RolloverCore,EXIDX)) ->  | T14: =P14+R14+S14 ->  | U14: =IF(SC_ZX_BalanceAccessibleA>0, T14/SC_ZX_BalanceAccessibleA, 0) ->  | V14: =-IF(SC_ZX_CodeA="X",0,MIN(U14*MAX(INDEX(SC_ZX_Drawdown,ZXIDX2),0),T14)) ->  | W14: =(P14+R14+S14+V14)*$O14 ->  | AC14: =-IF(INDEX(SC_ZX_CodeA,ZXIDX1)="X", 0, MIN(AB14*MAX(INDEX(SC_ZX_Drawdown,ZXIDX2),0),AA14)) ->  | AJ14: =-IF(INDEX(SC_ZX_CodeA,ZXIDX1)="X", 0, MIN(AI14*MAX(INDEX(SC_ZX_Drawdown,ZXIDX2),0),AH14)) ->  | AQ14: =-IF(INDEX(SC_ZX_CodeA,ZXIDX1)="X", 0, MIN(AP14*MAX(INDEX(SC_ZX_Drawdown,ZXIDX2),0),AO14)) ->  | AX14: =-IF(INDEX(SC_ZX_CodeA,ZXIDX1)="X", 0, MIN(AW14*MAX(INDEX(SC_ZX_Drawdown,ZXIDX2),0),AV14)) ->  | BE14: =-IF(INDEX(SC_ZX_CodeA,ZXIDX1)="X", 0, MIN(BD14*MAX(INDEX(SC_ZX_Drawdown,ZXIDX2),0),AZ14)) ->  | BL14: =-IF(INDEX(SC_ZX_CodeA,ZXIDX1)="X", 0, MIN(BK14*MAX(INDEX(SC_ZX_Drawdown,ZXIDX2),0),BJ14)) ->  | BP14: =-($V14-IF(($P14+$R14+$S14)>0,MAX($V14/($P14+$R14+$S14)*($Q14+$R14),$V14),0))*LT_InvestmentQDI ->  | BQ14: =-($V14-IF(($P14+$R14+$S14)>0,MAX($V14/($P14+$R14+$S14)*($Q14+$R14),$V14),0))*(1-LT_InvestmentQDI) ->  | BT14: =SUMPRODUCT($BN14:$BN15+$BO14:$BO15, --($E14:$E15<>0)) ->  | BU14: =SUMPRODUCT($BR14:$BR15+$BS14:$BS15, --($E14:$E15<>0)) ->  | BV14: =$T14+SUMPRODUCT($AA14:$AA15+$AH14:$AH15+$AO14:$AO15+$AV14:$AV15+$BC14:$BC15+$BJ14:$BJ15, --($E14:$E15<>0)) ->  | BW14: =MAX($P14-$Q14,0)+SUMPRODUCT($X14:$X15+$AL14:$AL15+$AZ14:$AZ15, --($E14:$E15<>0)) ->  | BX14: =MIN($P14,$Q14)+SUMPRODUCT($AE14:$AE15+$AS14:$AS15+$BG14:$BG15, --($E14:$E15<>0)) -> 
B15: 2025 | C15: N | E15: 0 | F15: 2 | G15: -1 | H15: 0 | I15: FALSE | O15: =LT_InvestmentStocks*INDEX(SP_EA_ARStocks,EAIDX)+LT_InvestmentBonds*INDEX(SC_EA_ARBonds,EAIDX) ->  | AC15: =-IF(INDEX(SC_ZX_CodeA,ZXIDX1)="X", 0, MIN(AB15*MAX(INDEX(SC_ZX_Drawdown,ZXIDX2),0),AA15)) ->  | AJ15: =-IF(INDEX(SC_ZX_CodeA,ZXIDX1)="X", 0, MIN(AI15*MAX(INDEX(SC_ZX_Drawdown,ZXIDX2),0),AH15)) ->  | AQ15: =-IF(INDEX(SC_ZX_CodeA,ZXIDX1)="X", 0, MIN(AP15*MAX(INDEX(SC_ZX_Drawdown,ZXIDX2),0),AO15)) ->  | AX15: =-IF(INDEX(SC_ZX_CodeA,ZXIDX1)="X", 0, MIN(AW15*MAX(INDEX(SC_ZX_Drawdown,ZXIDX2),0),AV15)) ->  | BE15: =-IF(INDEX(SC_ZX_CodeA,ZXIDX1)="X", 0, MIN(BD15*MAX(INDEX(SC_ZX_Drawdown,ZXIDX2),0),AZ15)) ->  | BL15: =-IF(INDEX(SC_ZX_CodeA,ZXIDX1)="X", 0, MIN(BK15*MAX(INDEX(SC_ZX_Drawdown,ZXIDX2),0),BJ15)) ->  | BP15: =-($V15-IF(($P15+$R15+$S15)>0,MAX($V15/($P15+$R15+$S15)*($Q15+$R15),$V15),0))*LT_InvestmentQDI ->  | BQ15: =-($V15-IF(($P15+$R15+$S15)>0,MAX($V15/($P15+$R15+$S15)*($Q15+$R15),$V15),0))*(1-LT_InvestmentQDI) -> 
B16: =B14+1 -> 2026 | C16: N | E16: 0 | F16: 1 | G16: 1 | H16: 0 | I16: FALSE | N16: =YEAR(SP_TargetRD)-$B16 -> -2 | O16: =LT_InvestmentStocks*INDEX(SP_EA_ARStocks,EAIDX)+LT_InvestmentBonds*INDEX(SC_EA_ARBonds,EAIDX) ->  | P16: =MAX(P14+R14+S14+V14+W14,0) ->  | Q16: =MAX(Q14+R14+IF((P14+R14+S14)>0,MAX(V14/(P14+R14+S14)*(Q14+R14),V14),0),0) ->  | R16: =IF(SC_ZX_CodeA="X", 0, MAX(INDEX(SC_ZX_IncomeSurplus,ZXIDX2)+INDEX(SC_ZX_Debt,ZXIDX2),0)) ->  | S16: =IF(SC_ZX_CodeA="X", 0, INDEX(SC_EX_RolloverCore,EXIDX)) ->  | T16: =P16+R16+S16 ->  | U16: =IF(SC_ZX_BalanceAccessibleA>0, T16/SC_ZX_BalanceAccessibleA, 0) ->  | V16: =-IF(SC_ZX_CodeA="X",0,MIN(U16*MAX(INDEX(SC_ZX_Drawdown,ZXIDX2),0),T16)) ->  | W16: =(P16+R16+S16+V16)*$O16 ->  | AC16: =-IF(INDEX(SC_ZX_CodeA,ZXIDX1)="X", 0, MIN(AB16*MAX(INDEX(SC_ZX_Drawdown,ZXIDX2),0),AA16)) ->  | AJ16: =-IF(INDEX(SC_ZX_CodeA,ZXIDX1)="X", 0, MIN(AI16*MAX(INDEX(SC_ZX_Drawdown,ZXIDX2),0),AH16)) ->  | AQ16: =-IF(INDEX(SC_ZX_CodeA,ZXIDX1)="X", 0, MIN(AP16*MAX(INDEX(SC_ZX_Drawdown,ZXIDX2),0),AO16)) ->  | AX16: =-IF(INDEX(SC_ZX_CodeA,ZXIDX1)="X", 0, MIN(AW16*MAX(INDEX(SC_ZX_Drawdown,ZXIDX2),0),AV16)) ->  | BE16: =-IF(INDEX(SC_ZX_CodeA,ZXIDX1)="X", 0, MIN(BD16*MAX(INDEX(SC_ZX_Drawdown,ZXIDX2),0),AZ16)) ->  | BL16: =-IF(INDEX(SC_ZX_CodeA,ZXIDX1)="X", 0, MIN(BK16*MAX(INDEX(SC_ZX_Drawdown,ZXIDX2),0),BJ16)) ->  | BP16: =-($V16-IF(($P16+$R16+$S16)>0,MAX($V16/($P16+$R16+$S16)*($Q16+$R16),$V16),0))*LT_InvestmentQDI ->  | BQ16: =-($V16-IF(($P16+$R16+$S16)>0,MAX($V16/($P16+$R16+$S16)*($Q16+$R16),$V16),0))*(1-LT_InvestmentQDI) ->  | BT16: =SUMPRODUCT($BN16:$BN17+$BO16:$BO17, --($E16:$E17<>0)) ->  | BU16: =SUMPRODUCT($BR16:$BR17+$BS16:$BS17, --($E16:$E17<>0)) ->  | BV16: =$T16+SUMPRODUCT($AA16:$AA17+$AH16:$AH17+$AO16:$AO17+$AV16:$AV17+$BC16:$BC17+$BJ16:$BJ17, --($E16:$E17<>0)) ->  | BW16: =MAX($P16-$Q16,0)+SUMPRODUCT($X16:$X17+$AL16:$AL17+$AZ16:$AZ17, --($E16:$E17<>0)) ->  | BX16: =MIN($P16,$Q16)+SUMPRODUCT($AE16:$AE17+$AS16:$AS17+$BG16:$BG17, --($E16:$E17<>0)) -> 
B17: 2026 | C17: N | E17: 0 | F17: 2 | G17: -1 | H17: 0 | I17: FALSE | O17: =LT_InvestmentStocks*INDEX(SP_EA_ARStocks,EAIDX)+LT_InvestmentBonds*INDEX(SC_EA_ARBonds,EAIDX) ->  | AC17: =-IF(INDEX(SC_ZX_CodeA,ZXIDX1)="X", 0, MIN(AB17*MAX(INDEX(SC_ZX_Drawdown,ZXIDX2),0),AA17)) ->  | AJ17: =-IF(INDEX(SC_ZX_CodeA,ZXIDX1)="X", 0, MIN(AI17*MAX(INDEX(SC_ZX_Drawdown,ZXIDX2),0),AH17)) ->  | AQ17: =-IF(INDEX(SC_ZX_CodeA,ZXIDX1)="X", 0, MIN(AP17*MAX(INDEX(SC_ZX_Drawdown,ZXIDX2),0),AO17)) ->  | AX17: =-IF(INDEX(SC_ZX_CodeA,ZXIDX1)="X", 0, MIN(AW17*MAX(INDEX(SC_ZX_Drawdown,ZXIDX2),0),AV17)) ->  | BE17: =-IF(INDEX(SC_ZX_CodeA,ZXIDX1)="X", 0, MIN(BD17*MAX(INDEX(SC_ZX_Drawdown,ZXIDX2),0),AZ17)) ->  | BL17: =-IF(INDEX(SC_ZX_CodeA,ZXIDX1)="X", 0, MIN(BK17*MAX(INDEX(SC_ZX_Drawdown,ZXIDX2),0),BJ17)) ->  | BP17: =-($V17-IF(($P17+$R17+$S17)>0,MAX($V17/($P17+$R17+$S17)*($Q17+$R17),$V17),0))*LT_InvestmentQDI ->  | BQ17: =-($V17-IF(($P17+$R17+$S17)>0,MAX($V17/($P17+$R17+$S17)*($Q17+$R17),$V17),0))*(1-LT_InvestmentQDI) -> 
B18: =B16+1 -> 2027 | C18: N | E18: 0 | F18: 1 | G18: 1 | H18: 0 | I18: FALSE | N18: =YEAR(SP_TargetRD)-$B18 -> -3 | O18: =LT_InvestmentStocks*INDEX(SP_EA_ARStocks,EAIDX)+LT_InvestmentBonds*INDEX(SC_EA_ARBonds,EAIDX) ->  | P18: =MAX(P16+R16+S16+V16+W16,0) ->  | Q18: =MAX(Q16+R16+IF((P16+R16+S16)>0,MAX(V16/(P16+R16+S16)*(Q16+R16),V16),0),0) ->  | R18: =IF(SC_ZX_CodeA="X", 0, MAX(INDEX(SC_ZX_IncomeSurplus,ZXIDX2)+INDEX(SC_ZX_Debt,ZXIDX2),0)) ->  | S18: =IF(SC_ZX_CodeA="X", 0, INDEX(SC_EX_RolloverCore,EXIDX)) ->  | T18: =P18+R18+S18 ->  | U18: =IF(SC_ZX_BalanceAccessibleA>0, T18/SC_ZX_BalanceAccessibleA, 0) ->  | V18: =-IF(SC_ZX_CodeA="X",0,MIN(U18*MAX(INDEX(SC_ZX_Drawdown,ZXIDX2),0),T18)) ->  | W18: =(P18+R18+S18+V18)*$O18 ->  | AC18: =-IF(INDEX(SC_ZX_CodeA,ZXIDX1)="X", 0, MIN(AB18*MAX(INDEX(SC_ZX_Drawdown,ZXIDX2),0),AA18)) ->  | AJ18: =-IF(INDEX(SC_ZX_CodeA,ZXIDX1)="X", 0, MIN(AI18*MAX(INDEX(SC_ZX_Drawdown,ZXIDX2),0),AH18)) ->  | AQ18: =-IF(INDEX(SC_ZX_CodeA,ZXIDX1)="X", 0, MIN(AP18*MAX(INDEX(SC_ZX_Drawdown,ZXIDX2),0),AO18)) ->  | AX18: =-IF(INDEX(SC_ZX_CodeA,ZXIDX1)="X", 0, MIN(AW18*MAX(INDEX(SC_ZX_Drawdown,ZXIDX2),0),AV18)) ->  | BE18: =-IF(INDEX(SC_ZX_CodeA,ZXIDX1)="X", 0, MIN(BD18*MAX(INDEX(SC_ZX_Drawdown,ZXIDX2),0),AZ18)) ->  | BL18: =-IF(INDEX(SC_ZX_CodeA,ZXIDX1)="X", 0, MIN(BK18*MAX(INDEX(SC_ZX_Drawdown,ZXIDX2),0),BJ18)) ->  | BP18: =-($V18-IF(($P18+$R18+$S18)>0,MAX($V18/($P18+$R18+$S18)*($Q18+$R18),$V18),0))*LT_InvestmentQDI ->  | BQ18: =-($V18-IF(($P18+$R18+$S18)>0,MAX($V18/($P18+$R18+$S18)*($Q18+$R18),$V18),0))*(1-LT_InvestmentQDI) ->  | BT18: =SUMPRODUCT($BN18:$BN19+$BO18:$BO19, --($E18:$E19<>0)) ->  | BU18: =SUMPRODUCT($BR18:$BR19+$BS18:$BS19, --($E18:$E19<>0)) ->  | BV18: =$T18+SUMPRODUCT($AA18:$AA19+$AH18:$AH19+$AO18:$AO19+$AV18:$AV19+$BC18:$BC19+$BJ18:$BJ19, --($E18:$E19<>0)) ->  | BW18: =MAX($P18-$Q18,0)+SUMPRODUCT($X18:$X19+$AL18:$AL19+$AZ18:$AZ19, --($E18:$E19<>0)) ->  | BX18: =MIN($P18,$Q18)+SUMPRODUCT($AE18:$AE19+$AS18:$AS19+$BG18:$BG19, --($E18:$E19<>0)) -> 
B19: 2027 | C19: N | E19: 0 | F19: 2 | G19: -1 | H19: 0 | I19: FALSE | O19: =LT_InvestmentStocks*INDEX(SP_EA_ARStocks,EAIDX)+LT_InvestmentBonds*INDEX(SC_EA_ARBonds,EAIDX) ->  | AC19: =-IF(INDEX(SC_ZX_CodeA,ZXIDX1)="X", 0, MIN(AB19*MAX(INDEX(SC_ZX_Drawdown,ZXIDX2),0),AA19)) ->  | AJ19: =-IF(INDEX(SC_ZX_CodeA,ZXIDX1)="X", 0, MIN(AI19*MAX(INDEX(SC_ZX_Drawdown,ZXIDX2),0),AH19)) ->  | AQ19: =-IF(INDEX(SC_ZX_CodeA,ZXIDX1)="X", 0, MIN(AP19*MAX(INDEX(SC_ZX_Drawdown,ZXIDX2),0),AO19)) ->  | AX19: =-IF(INDEX(SC_ZX_CodeA,ZXIDX1)="X", 0, MIN(AW19*MAX(INDEX(SC_ZX_Drawdown,ZXIDX2),0),AV19)) ->  | BE19: =-IF(INDEX(SC_ZX_CodeA,ZXIDX1)="X", 0, MIN(BD19*MAX(INDEX(SC_ZX_Drawdown,ZXIDX2),0),AZ19)) ->  | BL19: =-IF(INDEX(SC_ZX_CodeA,ZXIDX1)="X", 0, MIN(BK19*MAX(INDEX(SC_ZX_Drawdown,ZXIDX2),0),BJ19)) ->  | BP19: =-($V19-IF(($P19+$R19+$S19)>0,MAX($V19/($P19+$R19+$S19)*($Q19+$R19),$V19),0))*LT_InvestmentQDI ->  | BQ19: =-($V19-IF(($P19+$R19+$S19)>0,MAX($V19/($P19+$R19+$S19)*($Q19+$R19),$V19),0))*(1-LT_InvestmentQDI) -> 
B20: =B18+1 -> 2028 | C20: N | E20: 0 | F20: 1 | G20: 1 | H20: 0 | I20: FALSE | N20: =YEAR(SP_TargetRD)-$B20 -> -4 | O20: =LT_InvestmentStocks*INDEX(SP_EA_ARStocks,EAIDX)+LT_InvestmentBonds*INDEX(SC_EA_ARBonds,EAIDX) ->  | P20: =MAX(P18+R18+S18+V18+W18,0) ->  | Q20: =MAX(Q18+R18+IF((P18+R18+S18)>0,MAX(V18/(P18+R18+S18)*(Q18+R18),V18),0),0) ->  | R20: =IF(SC_ZX_CodeA="X", 0, MAX(INDEX(SC_ZX_IncomeSurplus,ZXIDX2)+INDEX(SC_ZX_Debt,ZXIDX2),0)) ->  | S20: =IF(SC_ZX_CodeA="X", 0, INDEX(SC_EX_RolloverCore,EXIDX)) ->  | T20: =P20+R20+S20 ->  | U20: =IF(SC_ZX_BalanceAccessibleA>0, T20/SC_ZX_BalanceAccessibleA, 0) ->  | V20: =-IF(SC_ZX_CodeA="X",0,MIN(U20*MAX(INDEX(SC_ZX_Drawdown,ZXIDX2),0),T20)) ->  | W20: =(P20+R20+S20+V20)*$O20 ->  | AC20: =-IF(INDEX(SC_ZX_CodeA,ZXIDX1)="X", 0, MIN(AB20*MAX(INDEX(SC_ZX_Drawdown,ZXIDX2),0),AA20)) ->  | AJ20: =-IF(INDEX(SC_ZX_CodeA,ZXIDX1)="X", 0, MIN(AI20*MAX(INDEX(SC_ZX_Drawdown,ZXIDX2),0),AH20)) ->  | AQ20: =-IF(INDEX(SC_ZX_CodeA,ZXIDX1)="X", 0, MIN(AP20*MAX(INDEX(SC_ZX_Drawdown,ZXIDX2),0),AO20)) ->  | AX20: =-IF(INDEX(SC_ZX_CodeA,ZXIDX1)="X", 0, MIN(AW20*MAX(INDEX(SC_ZX_Drawdown,ZXIDX2),0),AV20)) ->  | BE20: =-IF(INDEX(SC_ZX_CodeA,ZXIDX1)="X", 0, MIN(BD20*MAX(INDEX(SC_ZX_Drawdown,ZXIDX2),0),AZ20)) ->  | BL20: =-IF(INDEX(SC_ZX_CodeA,ZXIDX1)="X", 0, MIN(BK20*MAX(INDEX(SC_ZX_Drawdown,ZXIDX2),0),BJ20)) ->  | BP20: =-($V20-IF(($P20+$R20+$S20)>0,MAX($V20/($P20+$R20+$S20)*($Q20+$R20),$V20),0))*LT_InvestmentQDI ->  | BQ20: =-($V20-IF(($P20+$R20+$S20)>0,MAX($V20/($P20+$R20+$S20)*($Q20+$R20),$V20),0))*(1-LT_InvestmentQDI) ->  | BT20: =SUMPRODUCT($BN20:$BN21+$BO20:$BO21, --($E20:$E21<>0)) ->  | BU20: =SUMPRODUCT($BR20:$BR21+$BS20:$BS21, --($E20:$E21<>0)) ->  | BV20: =$T20+SUMPRODUCT($AA20:$AA21+$AH20:$AH21+$AO20:$AO21+$AV20:$AV21+$BC20:$BC21+$BJ20:$BJ21, --($E20:$E21<>0)) ->  | BW20: =MAX($P20-$Q20,0)+SUMPRODUCT($X20:$X21+$AL20:$AL21+$AZ20:$AZ21, --($E20:$E21<>0)) ->  | BX20: =MIN($P20,$Q20)+SUMPRODUCT($AE20:$AE21+$AS20:$AS21+$BG20:$BG21, --($E20:$E21<>0)) -> 
B21: 2028 | C21: N | E21: 0 | F21: 2 | G21: -1 | H21: 0 | I21: FALSE | O21: =LT_InvestmentStocks*INDEX(SP_EA_ARStocks,EAIDX)+LT_InvestmentBonds*INDEX(SC_EA_ARBonds,EAIDX) ->  | AC21: =-IF(INDEX(SC_ZX_CodeA,ZXIDX1)="X", 0, MIN(AB21*MAX(INDEX(SC_ZX_Drawdown,ZXIDX2),0),AA21)) ->  | AJ21: =-IF(INDEX(SC_ZX_CodeA,ZXIDX1)="X", 0, MIN(AI21*MAX(INDEX(SC_ZX_Drawdown,ZXIDX2),0),AH21)) ->  | AQ21: =-IF(INDEX(SC_ZX_CodeA,ZXIDX1)="X", 0, MIN(AP21*MAX(INDEX(SC_ZX_Drawdown,ZXIDX2),0),AO21)) ->  | AX21: =-IF(INDEX(SC_ZX_CodeA,ZXIDX1)="X", 0, MIN(AW21*MAX(INDEX(SC_ZX_Drawdown,ZXIDX2),0),AV21)) ->  | BE21: =-IF(INDEX(SC_ZX_CodeA,ZXIDX1)="X", 0, MIN(BD21*MAX(INDEX(SC_ZX_Drawdown,ZXIDX2),0),AZ21)) ->  | BL21: =-IF(INDEX(SC_ZX_CodeA,ZXIDX1)="X", 0, MIN(BK21*MAX(INDEX(SC_ZX_Drawdown,ZXIDX2),0),BJ21)) ->  | BP21: =-($V21-IF(($P21+$R21+$S21)>0,MAX($V21/($P21+$R21+$S21)*($Q21+$R21),$V21),0))*LT_InvestmentQDI ->  | BQ21: =-($V21-IF(($P21+$R21+$S21)>0,MAX($V21/($P21+$R21+$S21)*($Q21+$R21),$V21),0))*(1-LT_InvestmentQDI) -> 
B22: =B20+1 -> 2029 | C22: N | E22: 0 | F22: 1 | G22: 1 | H22: 0 | I22: FALSE | N22: =YEAR(SP_TargetRD)-$B22 -> -5 | O22: =LT_InvestmentStocks*INDEX(SP_EA_ARStocks,EAIDX)+LT_InvestmentBonds*INDEX(SC_EA_ARBonds,EAIDX) ->  | P22: =MAX(P20+R20+S20+V20+W20,0) ->  | Q22: =MAX(Q20+R20+IF((P20+R20+S20)>0,MAX(V20/(P20+R20+S20)*(Q20+R20),V20),0),0) ->  | R22: =IF(SC_ZX_CodeA="X", 0, MAX(INDEX(SC_ZX_IncomeSurplus,ZXIDX2)+INDEX(SC_ZX_Debt,ZXIDX2),0)) ->  | S22: =IF(SC_ZX_CodeA="X", 0, INDEX(SC_EX_RolloverCore,EXIDX)) ->  | T22: =P22+R22+S22 ->  | U22: =IF(SC_ZX_BalanceAccessibleA>0, T22/SC_ZX_BalanceAccessibleA, 0) ->  | V22: =-IF(SC_ZX_CodeA="X",0,MIN(U22*MAX(INDEX(SC_ZX_Drawdown,ZXIDX2),0),T22)) ->  | W22: =(P22+R22+S22+V22)*$O22 ->  | AC22: =-IF(INDEX(SC_ZX_CodeA,ZXIDX1)="X", 0, MIN(AB22*MAX(INDEX(SC_ZX_Drawdown,ZXIDX2),0),AA22)) ->  | AJ22: =-IF(INDEX(SC_ZX_CodeA,ZXIDX1)="X", 0, MIN(AI22*MAX(INDEX(SC_ZX_Drawdown,ZXIDX2),0),AH22)) ->  | AQ22: =-IF(INDEX(SC_ZX_CodeA,ZXIDX1)="X", 0, MIN(AP22*MAX(INDEX(SC_ZX_Drawdown,ZXIDX2),0),AO22)) ->  | AX22: =-IF(INDEX(SC_ZX_CodeA,ZXIDX1)="X", 0, MIN(AW22*MAX(INDEX(SC_ZX_Drawdown,ZXIDX2),0),AV22)) ->  | BE22: =-IF(INDEX(SC_ZX_CodeA,ZXIDX1)="X", 0, MIN(BD22*MAX(INDEX(SC_ZX_Drawdown,ZXIDX2),0),AZ22)) ->  | BL22: =-IF(INDEX(SC_ZX_CodeA,ZXIDX1)="X", 0, MIN(BK22*MAX(INDEX(SC_ZX_Drawdown,ZXIDX2),0),BJ22)) ->  | BP22: =-($V22-IF(($P22+$R22+$S22)>0,MAX($V22/($P22+$R22+$S22)*($Q22+$R22),$V22),0))*LT_InvestmentQDI ->  | BQ22: =-($V22-IF(($P22+$R22+$S22)>0,MAX($V22/($P22+$R22+$S22)*($Q22+$R22),$V22),0))*(1-LT_InvestmentQDI) ->  | BT22: =SUMPRODUCT($BN22:$BN23+$BO22:$BO23, --($E22:$E23<>0)) ->  | BU22: =SUMPRODUCT($BR22:$BR23+$BS22:$BS23, --($E22:$E23<>0)) ->  | BV22: =$T22+SUMPRODUCT($AA22:$AA23+$AH22:$AH23+$AO22:$AO23+$AV22:$AV23+$BC22:$BC23+$BJ22:$BJ23, --($E22:$E23<>0)) ->  | BW22: =MAX($P22-$Q22,0)+SUMPRODUCT($X22:$X23+$AL22:$AL23+$AZ22:$AZ23, --($E22:$E23<>0)) ->  | BX22: =MIN($P22,$Q22)+SUMPRODUCT($AE22:$AE23+$AS22:$AS23+$BG22:$BG23, --($E22:$E23<>0)) -> 
B23: 2029 | C23: N | E23: 0 | F23: 2 | G23: -1 | H23: 0 | I23: FALSE | O23: =LT_InvestmentStocks*INDEX(SP_EA_ARStocks,EAIDX)+LT_InvestmentBonds*INDEX(SC_EA_ARBonds,EAIDX) ->  | AC23: =-IF(INDEX(SC_ZX_CodeA,ZXIDX1)="X", 0, MIN(AB23*MAX(INDEX(SC_ZX_Drawdown,ZXIDX2),0),AA23)) ->  | AJ23: =-IF(INDEX(SC_ZX_CodeA,ZXIDX1)="X", 0, MIN(AI23*MAX(INDEX(SC_ZX_Drawdown,ZXIDX2),0),AH23)) ->  | AQ23: =-IF(INDEX(SC_ZX_CodeA,ZXIDX1)="X", 0, MIN(AP23*MAX(INDEX(SC_ZX_Drawdown,ZXIDX2),0),AO23)) ->  | AX23: =-IF(INDEX(SC_ZX_CodeA,ZXIDX1)="X", 0, MIN(AW23*MAX(INDEX(SC_ZX_Drawdown,ZXIDX2),0),AV23)) ->  | BE23: =-IF(INDEX(SC_ZX_CodeA,ZXIDX1)="X", 0, MIN(BD23*MAX(INDEX(SC_ZX_Drawdown,ZXIDX2),0),AZ23)) ->  | BL23: =-IF(INDEX(SC_ZX_CodeA,ZXIDX1)="X", 0, MIN(BK23*MAX(INDEX(SC_ZX_Drawdown,ZXIDX2),0),BJ23)) ->  | BP23: =-($V23-IF(($P23+$R23+$S23)>0,MAX($V23/($P23+$R23+$S23)*($Q23+$R23),$V23),0))*LT_InvestmentQDI ->  | BQ23: =-($V23-IF(($P23+$R23+$S23)>0,MAX($V23/($P23+$R23+$S23)*($Q23+$R23),$V23),0))*(1-LT_InvestmentQDI) -> 
B24: =B22+1 -> 2030 | C24: N | E24: 0 | F24: 1 | G24: 1 | H24: 0 | I24: FALSE | N24: =YEAR(SP_TargetRD)-$B24 -> -6 | O24: =LT_InvestmentStocks*INDEX(SP_EA_ARStocks,EAIDX)+LT_InvestmentBonds*INDEX(SC_EA_ARBonds,EAIDX) ->  | P24: =MAX(P22+R22+S22+V22+W22,0) ->  | Q24: =MAX(Q22+R22+IF((P22+R22+S22)>0,MAX(V22/(P22+R22+S22)*(Q22+R22),V22),0),0) ->  | R24: =IF(SC_ZX_CodeA="X", 0, MAX(INDEX(SC_ZX_IncomeSurplus,ZXIDX2)+INDEX(SC_ZX_Debt,ZXIDX2),0)) ->  | S24: =IF(SC_ZX_CodeA="X", 0, INDEX(SC_EX_RolloverCore,EXIDX)) ->  | T24: =P24+R24+S24 ->  | U24: =IF(SC_ZX_BalanceAccessibleA>0, T24/SC_ZX_BalanceAccessibleA, 0) ->  | V24: =-IF(SC_ZX_CodeA="X",0,MIN(U24*MAX(INDEX(SC_ZX_Drawdown,ZXIDX2),0),T24)) ->  | W24: =(P24+R24+S24+V24)*$O24 ->  | AC24: =-IF(INDEX(SC_ZX_CodeA,ZXIDX1)="X", 0, MIN(AB24*MAX(INDEX(SC_ZX_Drawdown,ZXIDX2),0),AA24)) ->  | AJ24: =-IF(INDEX(SC_ZX_CodeA,ZXIDX1)="X", 0, MIN(AI24*MAX(INDEX(SC_ZX_Drawdown,ZXIDX2),0),AH24)) ->  | AQ24: =-IF(INDEX(SC_ZX_CodeA,ZXIDX1)="X", 0, MIN(AP24*MAX(INDEX(SC_ZX_Drawdown,ZXIDX2),0),AO24)) ->  | AX24: =-IF(INDEX(SC_ZX_CodeA,ZXIDX1)="X", 0, MIN(AW24*MAX(INDEX(SC_ZX_Drawdown,ZXIDX2),0),AV24)) ->  | BE24: =-IF(INDEX(SC_ZX_CodeA,ZXIDX1)="X", 0, MIN(BD24*MAX(INDEX(SC_ZX_Drawdown,ZXIDX2),0),AZ24)) ->  | BL24: =-IF(INDEX(SC_ZX_CodeA,ZXIDX1)="X", 0, MIN(BK24*MAX(INDEX(SC_ZX_Drawdown,ZXIDX2),0),BJ24)) ->  | BP24: =-($V24-IF(($P24+$R24+$S24)>0,MAX($V24/($P24+$R24+$S24)*($Q24+$R24),$V24),0))*LT_InvestmentQDI ->  | BQ24: =-($V24-IF(($P24+$R24+$S24)>0,MAX($V24/($P24+$R24+$S24)*($Q24+$R24),$V24),0))*(1-LT_InvestmentQDI) ->  | BT24: =SUMPRODUCT($BN24:$BN25+$BO24:$BO25, --($E24:$E25<>0)) ->  | BU24: =SUMPRODUCT($BR24:$BR25+$BS24:$BS25, --($E24:$E25<>0)) ->  | BV24: =$T24+SUMPRODUCT($AA24:$AA25+$AH24:$AH25+$AO24:$AO25+$AV24:$AV25+$BC24:$BC25+$BJ24:$BJ25, --($E24:$E25<>0)) ->  | BW24: =MAX($P24-$Q24,0)+SUMPRODUCT($X24:$X25+$AL24:$AL25+$AZ24:$AZ25, --($E24:$E25<>0)) ->  | BX24: =MIN($P24,$Q24)+SUMPRODUCT($AE24:$AE25+$AS24:$AS25+$BG24:$BG25, --($E24:$E25<>0)) -> 
B25: 2030 | C25: N | E25: 0 | F25: 2 | G25: -1 | H25: 0 | I25: FALSE | O25: =LT_InvestmentStocks*INDEX(SP_EA_ARStocks,EAIDX)+LT_InvestmentBonds*INDEX(SC_EA_ARBonds,EAIDX) ->  | AC25: =-IF(INDEX(SC_ZX_CodeA,ZXIDX1)="X", 0, MIN(AB25*MAX(INDEX(SC_ZX_Drawdown,ZXIDX2),0),AA25)) ->  | AJ25: =-IF(INDEX(SC_ZX_CodeA,ZXIDX1)="X", 0, MIN(AI25*MAX(INDEX(SC_ZX_Drawdown,ZXIDX2),0),AH25)) ->  | AQ25: =-IF(INDEX(SC_ZX_CodeA,ZXIDX1)="X", 0, MIN(AP25*MAX(INDEX(SC_ZX_Drawdown,ZXIDX2),0),AO25)) ->  | AX25: =-IF(INDEX(SC_ZX_CodeA,ZXIDX1)="X", 0, MIN(AW25*MAX(INDEX(SC_ZX_Drawdown,ZXIDX2),0),AV25)) ->  | BE25: =-IF(INDEX(SC_ZX_CodeA,ZXIDX1)="X", 0, MIN(BD25*MAX(INDEX(SC_ZX_Drawdown,ZXIDX2),0),AZ25)) ->  | BL25: =-IF(INDEX(SC_ZX_CodeA,ZXIDX1)="X", 0, MIN(BK25*MAX(INDEX(SC_ZX_Drawdown,ZXIDX2),0),BJ25)) ->  | BP25: =-($V25-IF(($P25+$R25+$S25)>0,MAX($V25/($P25+$R25+$S25)*($Q25+$R25),$V25),0))*LT_InvestmentQDI ->  | BQ25: =-($V25-IF(($P25+$R25+$S25)>0,MAX($V25/($P25+$R25+$S25)*($Q25+$R25),$V25),0))*(1-LT_InvestmentQDI) -> 
B26: =B24+1 -> 2031 | C26: N | E26: 0 | F26: 1 | G26: 1 | H26: 0 | I26: FALSE | N26: =YEAR(SP_TargetRD)-$B26 -> -7 | O26: =LT_InvestmentStocks*INDEX(SP_EA_ARStocks,EAIDX)+LT_InvestmentBonds*INDEX(SC_EA_ARBonds,EAIDX) ->  | P26: =MAX(P24+R24+S24+V24+W24,0) ->  | Q26: =MAX(Q24+R24+IF((P24+R24+S24)>0,MAX(V24/(P24+R24+S24)*(Q24+R24),V24),0),0) ->  | R26: =IF(SC_ZX_CodeA="X", 0, MAX(INDEX(SC_ZX_IncomeSurplus,ZXIDX2)+INDEX(SC_ZX_Debt,ZXIDX2),0)) ->  | S26: =IF(SC_ZX_CodeA="X", 0, INDEX(SC_EX_RolloverCore,EXIDX)) ->  | T26: =P26+R26+S26 ->  | U26: =IF(SC_ZX_BalanceAccessibleA>0, T26/SC_ZX_BalanceAccessibleA, 0) ->  | V26: =-IF(SC_ZX_CodeA="X",0,MIN(U26*MAX(INDEX(SC_ZX_Drawdown,ZXIDX2),0),T26)) ->  | W26: =(P26+R26+S26+V26)*$O26 ->  | AC26: =-IF(INDEX(SC_ZX_CodeA,ZXIDX1)="X", 0, MIN(AB26*MAX(INDEX(SC_ZX_Drawdown,ZXIDX2),0),AA26)) ->  | AJ26: =-IF(INDEX(SC_ZX_CodeA,ZXIDX1)="X", 0, MIN(AI26*MAX(INDEX(SC_ZX_Drawdown,ZXIDX2),0),AH26)) ->  | AQ26: =-IF(INDEX(SC_ZX_CodeA,ZXIDX1)="X", 0, MIN(AP26*MAX(INDEX(SC_ZX_Drawdown,ZXIDX2),0),AO26)) ->  | AX26: =-IF(INDEX(SC_ZX_CodeA,ZXIDX1)="X", 0, MIN(AW26*MAX(INDEX(SC_ZX_Drawdown,ZXIDX2),0),AV26)) ->  | BE26: =-IF(INDEX(SC_ZX_CodeA,ZXIDX1)="X", 0, MIN(BD26*MAX(INDEX(SC_ZX_Drawdown,ZXIDX2),0),AZ26)) ->  | BL26: =-IF(INDEX(SC_ZX_CodeA,ZXIDX1)="X", 0, MIN(BK26*MAX(INDEX(SC_ZX_Drawdown,ZXIDX2),0),BJ26)) ->  | BP26: =-($V26-IF(($P26+$R26+$S26)>0,MAX($V26/($P26+$R26+$S26)*($Q26+$R26),$V26),0))*LT_InvestmentQDI ->  | BQ26: =-($V26-IF(($P26+$R26+$S26)>0,MAX($V26/($P26+$R26+$S26)*($Q26+$R26),$V26),0))*(1-LT_InvestmentQDI) ->  | BT26: =SUMPRODUCT($BN26:$BN27+$BO26:$BO27, --($E26:$E27<>0)) ->  | BU26: =SUMPRODUCT($BR26:$BR27+$BS26:$BS27, --($E26:$E27<>0)) ->  | BV26: =$T26+SUMPRODUCT($AA26:$AA27+$AH26:$AH27+$AO26:$AO27+$AV26:$AV27+$BC26:$BC27+$BJ26:$BJ27, --($E26:$E27<>0)) ->  | BW26: =MAX($P26-$Q26,0)+SUMPRODUCT($X26:$X27+$AL26:$AL27+$AZ26:$AZ27, --($E26:$E27<>0)) ->  | BX26: =MIN($P26,$Q26)+SUMPRODUCT($AE26:$AE27+$AS26:$AS27+$BG26:$BG27, --($E26:$E27<>0)) -> 
B27: 2031 | C27: N | E27: 0 | F27: 2 | G27: -1 | H27: 0 | I27: FALSE | O27: =LT_InvestmentStocks*INDEX(SP_EA_ARStocks,EAIDX)+LT_InvestmentBonds*INDEX(SC_EA_ARBonds,EAIDX) ->  | AC27: =-IF(INDEX(SC_ZX_CodeA,ZXIDX1)="X", 0, MIN(AB27*MAX(INDEX(SC_ZX_Drawdown,ZXIDX2),0),AA27)) ->  | AJ27: =-IF(INDEX(SC_ZX_CodeA,ZXIDX1)="X", 0, MIN(AI27*MAX(INDEX(SC_ZX_Drawdown,ZXIDX2),0),AH27)) ->  | AQ27: =-IF(INDEX(SC_ZX_CodeA,ZXIDX1)="X", 0, MIN(AP27*MAX(INDEX(SC_ZX_Drawdown,ZXIDX2),0),AO27)) ->  | AX27: =-IF(INDEX(SC_ZX_CodeA,ZXIDX1)="X", 0, MIN(AW27*MAX(INDEX(SC_ZX_Drawdown,ZXIDX2),0),AV27)) ->  | BE27: =-IF(INDEX(SC_ZX_CodeA,ZXIDX1)="X", 0, MIN(BD27*MAX(INDEX(SC_ZX_Drawdown,ZXIDX2),0),AZ27)) ->  | BL27: =-IF(INDEX(SC_ZX_CodeA,ZXIDX1)="X", 0, MIN(BK27*MAX(INDEX(SC_ZX_Drawdown,ZXIDX2),0),BJ27)) ->  | BP27: =-($V27-IF(($P27+$R27+$S27)>0,MAX($V27/($P27+$R27+$S27)*($Q27+$R27),$V27),0))*LT_InvestmentQDI ->  | BQ27: =-($V27-IF(($P27+$R27+$S27)>0,MAX($V27/($P27+$R27+$S27)*($Q27+$R27),$V27),0))*(1-LT_InvestmentQDI) -> 
